Workbook

Sheet F
A1: 0% | B1: -0.00 | C1: =$H$28+($H$29*A1)+($H$30*A1*A1)+($H$31*A1*A1*A1)+($H$32*A1*A1*A1*A1)+($H$33*A1*A1*A1*A1*A1) -> -953.69 | V1: Время на 1 подход (по-умолчанию)
A2: 1% | B2: 0.00 | C2: =$H$28+($H$29*A2)+($H$30*A2*A2)+($H$31*A2*A2*A2)+($H$32*A2*A2*A2*A2)+($H$33*A2*A2*A2*A2*A2) -> -889.26 | P2: Коэф. воздействия на организм (одно-/много - суставное упражнение) | AE2: 0,1-0,4 Односуставные упражнения - французкий жим, махи гантелями, разгибания/сгибания ног, подъем штанги на бицепс…
A3: 2% | B3: 0.00 | C3: =$H$28+($H$29*A3)+($H$30*A3*A3)+($H$31*A3*A3*A3)+($H$32*A3*A3*A3*A3)+($H$33*A3*A3*A3*A3*A3) -> -828.35 | O3: % от ПМ | P3: 0.3 | Q3: 0.4 | R3: 0.5 | S3: 0.6 | T3: 0.7 | U3: 0.8 | V3: 0.9 | W3: 1 | X3: 1.1 | Y3: 1.2 | Z3: 1.3 | AA3: 1.4 | AB3: 1.5
A4: 3% | B4: 0.00 | C4: =$H$28+($H$29*A4)+($H$30*A4*A4)+($H$31*A4*A4*A4)+($H$32*A4*A4*A4*A4)+($H$33*A4*A4*A4*A4*A4) -> -770.80 | O4: 0% | P4: 1.5 | Q4: 1.5 | R4: 1.5 | S4: 1.8 | T4: 1.8 | U4: 1.8 | V4: 2 | W4: 2 | X4: 2.5 | Y4: 3 | Z4: 3 | AA4: 3.5 | AB4: 3.5
A5: 4% | B5: 0.00 | C5: -716.47 | O5: 35% | P5: 1.5 | Q5: 1.5 | R5: 1.5 | S5: 1.8 | T5: 1.8 | U5: 1.8 | V5: 2 | W5: 2 | X5: 2.5 | Y5: 3 | Z5: 3 | AA5: 3.5 | AB5: 3.5
A6: 5% | B6: 0.00 | C6: -665.23 | O6: 40% | P6: 1.5 | Q6: 1.5 | R6: 1.5 | S6: 1.8 | T6: 1.8 | U6: 1.8 | V6: 2 | W6: 2 | X6: 2.5 | Y6: 3 | Z6: 3 | AA6: 3.5 | AB6: 3.5 | AE6: 0,5-0,8 Двосуставные упражнения - жим стоя, подъем штанги на бицепс с читингом, тяга верхнего/нижнего блока…
A7: 6% | B7: 0.01 | C7: -616.95 | O7: 45% | P7: 1.5 | Q7: 1.5 | R7: 1.5 | S7: 1.8 | T7: 1.8 | U7: 1.8 | V7: 2 | W7: 2 | X7: 2.5 | Y7: 3 | Z7: 3 | AA7: 3.5 | AB7: 3.5
A8: 7% | B8: 0.01 | C8: =$H$28+($H$29*A8)+($H$30*A8*A8)+($H$31*A8*A8*A8)+($H$32*A8*A8*A8*A8)+($H$33*A8*A8*A8*A8*A8) -> -571.49 | O8: 50% | P8: 1.5 | Q8: 1.5 | R8: 1.5 | S8: 1.8 | T8: 1.8 | U8: 1.8 | V8: 2 | W8: 2 | X8: 2.5 | Y8: 3 | Z8: 3 | AA8: 3.5 | AB8: 3.5
A9: 8% | B9: 0.01 | C9: -528.73 | O9: 55% | P9: 1.8 | Q9: 1.8 | R9: 1.8 | S9: 2.5 | T9: 2.5 | U9: 2.5 | V9: 3 | W9: 3 | X9: 3.5 | Y9: 4 | Z9: 4 | AA9: 4.5 | AB9: 4.5 | AE9: 0,9 - 1,9 Многосуставные упражнения -подтягивания, жим, присед, тяга, рывок, толчок
A10: 9% | B10: 0.01 | C10: -488.56 | O10: 60% | P10: 1.8 | Q10: 1.8 | R10: 1.8 | S10: 2.5 | T10: 2.5 | U10: 2.5 | V10: 3 | W10: 3 | X10: 3.5 | Y10: 4 | Z10: 4 | AA10: 4.5 | AB10: 4.5
A11: 10% | B11: 0.01 | C11: -450.84 | O11: 65% | P11: 1.8 | Q11: 1.8 | R11: 1.8 | S11: 2.5 | T11: 2.5 | U11: 2.5 | V11: 3 | W11: 3 | X11: 3.5 | Y11: 4 | Z11: 4 | AA11: 4.5 | AB11: 4.5
A12: 11% | B12: 0.01 | C12: -415.47 | O12: 70% | P12: 2.5 | Q12: 2.5 | R12: 2.5 | S12: 3 | T12: 3 | U12: 3 | V12: 4 | W12: 4 | X12: 5 | Y12: 5 | Z12: 5 | AA12: 5.5 | AB12: 5.5
A13: 12% | B13: 0.01 | C13: -382.34 | O13: 75% | P13: 2.5 | Q13: 2.5 | R13: 2.5 | S13: 3 | T13: 3 | U13: 3 | V13: 4 | W13: 4 | X13: 5 | Y13: 5 | Z13: 5 | AA13: 5.5 | AB13: 5.5
A14: 13% | B14: 0.01 | C14: -351.34 | O14: 80% | P14: 2.5 | Q14: 2.5 | R14: 2.5 | S14: 3 | T14: 3 | U14: 3 | V14: 4 | W14: 4 | X14: 5 | Y14: 5 | Z14: 5 | AA14: 5.5 | AB14: 5.5
A15: 14% | B15: 0.02 | C15: -322.36 | O15: 85% | P15: 3 | Q15: 3 | R15: 3 | S15: 3.5 | T15: 3.5 | U15: 3.5 | V15: 4.5 | W15: 4.5 | X15: 6 | Y15: 6.5 | Z15: 6.5 | AA15: 7 | AB15: 7
A16: 15% | B16: 0.02 | C16: =$H$28+($H$29*A16)+($H$30*A16*A16)+($H$31*A16*A16*A16)+($H$32*A16*A16*A16*A16)+($H$33*A16*A16*A16*A16*A16) -> -295.31 | O16: 90% | P16: 3 | Q16: 3 | R16: 3 | S16: 3.5 | T16: 3.5 | U16: 3.5 | V16: 4.5 | W16: 4.5 | X16: 6 | Y16: 6.5 | Z16: 6.5 | AA16: 7 | AB16: 7
A17: 16% | B17: 0.02 | C17: =$H$28+($H$29*A17)+($H$30*A17*A17)+($H$31*A17*A17*A17)+($H$32*A17*A17*A17*A17)+($H$33*A17*A17*A17*A17*A17) -> -270.09
A18: 17% | B18: 0.02 | C18: -246.60 | V18: Время на 1 подход (скорректированное)
A19: 18% | B19: 0.03 | C19: -224.76 | P19: Коэф. воздействия на организм (одно-/много - суставное упражнение)
A20: 19% | B20: 0.03 | C20: -204.48 | O20: % от ПМ | P20: 0.01 | Q20: 0.4 | R20: 0.5 | S20: 0.6 | T20: 0.7 | U20: 0.8 | V20: 0.9 | W20: 1 | X20: 1.1 | Y20: 1.2 | Z20: 1.3 | AA20: 1.4 | AB20: 1.5
A21: 20% | B21: 0.03 | C21: -185.67 | O21: 0% | P21: =P4*$T$35 -> 1.5 | Q21: =Q4*$T$35 -> 1.5 | R21: 1.5 | S21: 1.8 | T21: 1.8 | U21: 1.8 | V21: 2 | W21: 2 | X21: 2.5 | Y21: 3 | Z21: 3 | AA21: 3.5 | AB21: 3.5
A22: 21% | B22: 0.04 | C22: -168.25 | O22: 35% | P22: =P5*$T$35 -> 1.5 | Q22: 1.5 | R22: 1.5 | S22: 1.8 | T22: 1.8 | U22: 1.8 | V22: 2 | W22: 2 | X22: 2.5 | Y22: 3 | Z22: 3 | AA22: 3.5 | AB22: 3.5
A23: 22% | B23: 0.05 | C23: -152.15 | O23: 40% | P23: =P6*$T$35 -> 1.5 | Q23: 1.5 | R23: 1.5 | S23: 1.8 | T23: 1.8 | U23: 1.8 | V23: =V6*$T$35 -> 2 | W23: 2 | X23: 2.5 | Y23: 3 | Z23: 3 | AA23: 3.5 | AB23: 3.5
A24: 23% | B24: 0.06 | C24: -137.29 | O24: 45% | P24: =P7*$T$35 -> 1.5 | Q24: 1.5 | R24: 1.5 | S24: 1.8 | T24: 1.8 | U24: 1.8 | V24: 2 | W24: 2 | X24: 2.5 | Y24: 3 | Z24: 3 | AA24: 3.5 | AB24: 3.5
A25: 24% | B25: 0.07 | C25: -123.59 | O25: 50% | P25: =P8*$T$35 -> 1.5 | Q25: 1.5 | R25: 1.5 | S25: 1.8 | T25: 1.8 | U25: 1.8 | V25: 2 | W25: 2 | X25: 2.5 | Y25: 3 | Z25: 3 | AA25: 3.5 | AB25: 3.5
A26: 25% | B26: 0.08 | C26: -111.00 | O26: 55% | P26: =P9*$T$35 -> 1.8 | Q26: 1.8 | R26: 1.8 | S26: 2.5 | T26: 2.5 | U26: 2.5 | V26: 3 | W26: 3 | X26: 3.5 | Y26: 4 | Z26: 4 | AA26: 4.5 | AB26: 4.5
A27: 26% | B27: 0.09 | C27: -99.43 | O27: 60% | P27: =P10*$T$35 -> 1.8 | Q27: 1.8 | R27: 1.8 | S27: 2.5 | T27: 2.5 | U27: 2.5 | V27: 3 | W27: 3 | X27: 3.5 | Y27: 4 | Z27: 4 | AA27: 4.5 | AB27: 4.5
A28: 27% | B28: 0.10 | C28: -88.84 | G28: ао | H28: -953.68504 | O28: 65% | P28: =P11*$T$35 -> 1.8 | Q28: 1.8 | R28: 1.8 | S28: 2.5 | T28: 2.5 | U28: 2.5 | V28: 3 | W28: 3 | X28: 3.5 | Y28: 4 | Z28: 4 | AA28: 4.5 | AB28: 4.5
A29: 28% | B29: 0.11 | C29: =$H$28+($H$29*A29)+($H$30*A29*A29)+($H$31*A29*A29*A29)+($H$32*A29*A29*A29*A29)+($H$33*A29*A29*A29*A29*A29) -> -79.14 | G29: а1 | H29: 6622.72073 | O29: 70% | P29: =P12*$T$35 -> 2.5 | Q29: 2.5 | R29: 2.5 | S29: 3 | T29: 3 | U29: =U12*$T$35 -> 3 | V29: 4 | W29: 4 | X29: 5 | Y29: 5 | Z29: 5 | AA29: 5.5 | AB29: 5.5
A30: 29% | B30: 0.12 | C30: -70.30 | G30: а2 | H30: -18287.43042 | O30: 75% | P30: =P13*$T$35 -> 2.5 | Q30: 2.5 | R30: 2.5 | S30: 3 | T30: 3 | U30: 3 | V30: =V13*$T$35 -> 4 | W30: 4 | X30: 5 | Y30: 5 | Z30: 5 | AA30: 5.5 | AB30: 5.5
A31: 30% | B31: 0.13 | C31: -62.25 | G31: а3 | H31: 25117.35067 | O31: 80% | P31: =P14*$T$35 -> 2.5 | Q31: 2.5 | R31: 2.5 | S31: 3 | T31: 3 | U31: 3 | V31: 4 | W31: 4 | X31: 5 | Y31: 5 | Z31: 5 | AA31: 5.5 | AB31: 5.5
A32: 31% | B32: 0.14 | C32: -54.93 | G32: а4 | H32: -17165.31529 | O32: 85% | P32: =P15*$T$35 -> 3 | Q32: 3 | R32: 3 | S32: 3.5 | T32: 3.5 | U32: 3.5 | V32: 4.5 | W32: 4.5 | X32: 6 | Y32: 6.5 | Z32: 6.5 | AA32: 7 | AB32: 7
A33: 32% | B33: 0.16 | C33: -48.31 | G33: а5 | H33: 4674.73656 | O33: 90% | P33: =P16*$T$35 -> 3 | Q33: 3 | R33: 3 | S33: 3.5 | T33: 3.5 | U33: 3.5 | V33: 4.5 | W33: 4.5 | X33: 6 | Y33: 6.5 | Z33: 6.5 | AA33: 7 | AB33: 7
A34: 33% | B34: 0.18 | C34: -42.32
A35: 34% | B35: 0.20 | C35: -36.92 | O35: Коэфф. корректировки времени на подход | T35: 1
A36: 35% | B36: 0.22 | C36: -32.07
A37: 36% | B37: 0.24 | C37: -27.73 | O37: Суммарное время на разминку, заминку и растяжку, мин | V37: 30
A38: 37% | B38: 0.26 | C38: -23.85
A39: 38% | B39: 0.28 | C39: -20.40
A40: 39% | B40: 0.30 | C40: -17.34
A41: 40% | B41: 0.32 | C41: -14.64 | T41: Корректировка параметров для вычисления длительности тренировки
A42: 41% | B42: 0.34 | C42: -12.26
A43: 42% | B43: 0.36 | C43: -10.19 | P43: Введите расчетную длительность тренировки (из листа "1 в день")
A44: 43% | B44: 0.38 | C44: -8.38 | P44: Введите реальную длительность тренировки
A45: 44% | B45: 0.40 | C45: -6.82
A46: 45% | B46: 0.42 | C46: -5.47
A47: 46% | B47: 0.44 | C47: -4.32
A48: 47% | B48: 0.46 | C48: -3.34
A49: 48% | B49: 0.47 | C49: -2.52
A50: 49% | B50: 0.48 | C50: -1.83
A51: 50% | B51: 0.50 | C51: -1.26
A52: 51% | B52: 0.51 | C52: -0.79
A53: 52% | B53: 0.53 | C53: -0.42
A54: 53% | B54: 0.54 | C54: -0.12
A55: 54% | B55: 0.56 | C55: 0.12
A56: 55% | B56: 0.58 | C56: 0.30
A57: 56% | B57: 0.60 | C57: 0.44
A58: 57% | B58: 0.62 | C58: 0.54
A59: 58% | B59: 0.65 | C59: 0.62
A60: 59% | B60: 0.68 | C60: 0.67
A61: 60% | B61: 0.70 | C61: 0.70
A62: 61% | B62: 0.71 | C62: 0.73
A63: 62% | B63: 0.73 | C63: =$H$28+($H$29*A63)+($H$30*A63*A63)+($H$31*A63*A63*A63)+($H$32*A63*A63*A63*A63)+($H$33*A63*A63*A63*A63*A63) -> 0.74
A64: 63% | B64: 0.75 | C64: 0.76
A65: 64% | B65: 0.78 | C65: 0.77
A66: 65% | B66: 0.80 | C66: 0.79
A67: 66% | B67: 0.82 | C67: 0.80
A68: 67% | B68: 0.84 | C68: =$H$28+($H$29*A68)+($H$30*A68*A68)+($H$31*A68*A68*A68)+($H$32*A68*A68*A68*A68)+($H$33*A68*A68*A68*A68*A68) -> 0.82
A69: 68% | B69: 0.87 | C69: 0.85
A70: 69% | B70: 0.89 | C70: 0.88
A71: 70% | B71: 0.90 | C71: 0.92
A72: 71% | B72: 0.95 | C72: 0.96
A73: 72% | B73: 1.00 | C73: 1.01
A74: 73% | B74: 1.07 | C74: 1.06
A75: 74% | B75: 1.14 | C75: 1.12
A76: 75% | B76: 1.20 | C76: 1.18
A77: 76% | B77: 1.27 | C77: 1.25
A78: 77% | B78: 1.34 | C78: 1.31
A79: 78% | B79: 1.40 | C79: 1.38
A80: 79% | B80: 1.47 | C80: 1.45
A81: 80% | B81: 1.53 | C81: 1.52
A82: 81% | B82: 1.60 | C82: 1.60
A83: 82% | B83: 1.67 | C83: 1.68
A84: 83% | B84: 1.74 | C84: =$H$28+($H$29*A84)+($H$30*A84*A84)+($H$31*A84*A84*A84)+($H$32*A84*A84*A84*A84)+($H$33*A84*A84*A84*A84*A84) -> 1.76
A85: 84% | B85: 1.82 | C85: 1.86
A86: 85% | B86: 1.90 | C86: 1.96
A87: 86% | B87: 2.05 | C87: 2.07
A88: 87% | B88: 2.20 | C88: 2.20
A89: 88% | B89: 2.40 | C89: 2.34
A90: 89% | B90: 2.60 | C90: 2.51
A91: 90% | B91: 2.80 | C91: 2.72
A92: 91% | B92: 3.00 | C92: 2.95
A93: 92% | B93: 3.20 | C93: 3.24
A94: 93% | B94: 3.60 | C94: 3.57
A95: 94% | B95: 4.00 | C95: 3.97
A96: 95% | B96: 4.50 | C96: 4.45
A97: 96% | B97: 5.00 | C97: 5.01
A98: 97% | B98: 7.50 | C98: 5.66
A99: 98% | B99: 12.00 | C99: 6.43
A100: 99% | B100: 18.00 | C100: 7.33
A101: 100% | B101: 25.00 | C101: 8.38

Sheet Цикл
A2: 7 | E2: =IF(AJ2=0,0,(E12*AJ12 + E21*AJ21 + E30*AJ30 + E39*AJ39 + E48*AJ48 + E57*AJ57 ) /AJ2 ) -> 1.05 | F2: Микроцикл | N2: 1 | AE2: =AE12+AE21+AE30+AE39+AE48+AE57 -> 43740 | AF2: =IFERROR(AE2/AJ2,0) -> 88.7 | AG2: =IF(AJ2=0,0,(AG12*AJ12 + AG21*AJ21 + AG30*AJ30 + AG39*AJ39 + AG48*AJ48 + AG57*AJ57 ) /AJ2 ) -> 48.3% | AI2: =AI12+AI21+AI30+AI39+AI48+AI57 -> 25126 | AJ2: =AJ12+AJ21+AJ30+AJ39+AJ48+AJ57 -> 493 | AK2: =AK12+AK21+AK30+AK39+AK48+AK57 -> 06:50:00
A3: Дата | B3: Нагрузка | C3: Группа | D3: Упражнения | E3: Коэф | F3: Множ | G3: Вес | H3: Пов | I3: Под | J3: % | K3: Вес | L3: Пов | M3: Под | N3: % | O3: Вес | P3: Пов | Q3: Под | R3: % | S3: Вес | T3: Пов | U3: Под | V3: % | W3: Вес | X3: Пов | Y3: Под | Z3: % | AA3: Вес | AB3: Пов | AC3: Под | AD3: % | AE3: Тоннаж | AF3: Ср.вес | AG3: ОИ | AH3: ПМ | AI3: Инт.Ф+Б | AJ3: КПШ | AK3: Время | AL3: Комментарии
A4: =A5 -> 2015-10-19 | B4: Средняя | C4: ТЯГА | D4: Тяга уступающая | E4: 1.4 | G4: =IF(J4<>0, IFERROR(IF( $F4=2, MROUND($AH4*J4,1), IF( OR($F4="",$F4=1), MROUND($AH4*J4,2.5), MROUND($AH4*J4, 0.1))), "" ), "") -> 145 | H4: 4 | I4: 2 | J4: 45% | K4: =IF(N4<>0, IFERROR(IF( $F4=2, MROUND($AH4*N4,1), IF( OR($F4="",$F4=1), MROUND($AH4*N4,2.5), MROUND($AH4*N4, 0.1))), "" ), "") -> 192.5 | L4: 3 | M4: 4 | N4: 60% | O4: =IF(R4<>0, IFERROR(IF( $F4=2, MROUND($AH4*R4,1), IF( OR($F4="",$F4=1), MROUND($AH4*R4,2.5), MROUND($AH4*R4, 0.1))), "" ), "") ->  | S4: =IF(V4<>0, IFERROR(IF( $F4=2, MROUND($AH4*V4,1), IF( OR($F4="",$F4=1), MROUND($AH4*V4,2.5), MROUND($AH4*V4, 0.1))), "" ), "") ->  | W4: =IF(Z4<>0, IFERROR(IF( $F4=2, MROUND($AH4*Z4,1), IF( OR($F4="",$F4=1), MROUND($AH4*Z4,2.5), MROUND($AH4*Z4, 0.1))), "" ), "") ->  | AA4: =IF(AD4<>0, IFERROR(IF( $F4=2, MROUND($AH4*AD4,1), IF( OR($F4="",$F4=1), MROUND($AH4*AD4,2.5), MROUND($AH4*AD4, 0.1))), "" ), "") ->  | AE4: =(IF(ISNUMBER(G4),G4,0)*H4*I4+IF(ISNUMBER(K4),K4,1)*L4*M4+IF(ISNUMBER(O4),O4,1)*P4*Q4+IF(ISNUMBER(S4),S4,1)*T4*U4+IF(ISNUMBER(W4),W4,1)*X4*Y4+IF(ISNUMBER(AA4),AA4,1)*AB4*AC4)*IF(ISNUMBER(F4),F4,1) -> 3470 | AF4: =IFERROR(AE4/AJ4,0) -> 174 | AG4: =IFERROR((AF4/(AH4*IF(ISNUMBER(F4),F4,1))),0) -> 54% | AH4: =AH31 -> 320.0 | AI4: =( IF(ISNUMBER(G4), VLOOKUP(G4/$AH4,F!$A1:$B101,2,1)*G4*$H4*$I4,0)+IF(ISNUMBER(K4), VLOOKUP(K4/$AH4,F!$A1:$B101,2,1)*K4*$L4*$M4,0)+IF(ISNUMBER(O4), VLOOKUP(O4/$AH4,F!$A1:$B101,2,1)*O4*$P4*$Q4,0)+IF(ISNUMBER(S4), VLOOKUP(S4/$AH4,F!$A1:$B101,2,1)*S4*$T4*$U4,0)+IF(ISNUMBER(W4), VLOOKUP(W4/$AH4,F!$A1:$B101,2,1)*W4*$X4*$Y4,0)+IF(ISNUMBER(AA4), VLOOKUP(AA4/$AH4,F!$A1:$B101,2,1)*AA4*$AB4*$AC4,0))*IF(ISNUMBER(F4),F4,1)*IF(ISNUMBER(E4),E4,1) -> 2946 | AJ4: =H4*I4+L4*M4+P4*Q4+T4*U4+X4*Y4+AB4*AC4 -> 20 | AK4: =IFERROR(I4*INDEX(F!$P$21:$AB$33, MATCH(G4/$AH4, F!$O$21:$O$33,1), MATCH(E4, F!$P$20:$AB$20,1)), 0 ) +IFERROR( M4*INDEX(F!$P$21:$AB$33, MATCH(K4/$AH4, F!$O$21:$O$33,1), MATCH(E4, F!$P$20:$AB$20,1)),0) + IFERROR( Q4*INDEX(F!$P$21:$AB$33, MATCH(O4/$AH4, F!$O$21:$O$33,1), MATCH(E4, F!$P$20:$AB$20,1)), 0) + IFERROR( U4*INDEX(F!$P$21:$AB$33, MATCH(S4/$AH4, F!$O$21:$O$33,1), MATCH(E4, F!$P$20:$AB$20,1)),0) + IFERROR(Y4*INDEX(F!$P$21:$AB$33, MATCH(W4/$AH4, F!$O$21:$O$33,1), MATCH(E4, F!$P$20:$AB$20,1)),0) + IFERROR( AC4*INDEX(F!$P$21:$AB$33, MATCH(AA4/$AH4, F!$O$21:$O$33,1), MATCH(E4, F!$P$20:$AB$20,1)),) -> 25 | AL4: Вертикальная и гориз тяги, лодочка, пресс | AN4: ПМ в тяге | AP4: 270
A5: 2015-10-19 | B5: Легкая | C5: ЖИМ | D5: Жим лежа | E5: 1.0 | G5: =IF(J5<>0, IFERROR(IF( $F5=2, MROUND($AH5*J5,1), IF( OR($F5="",$F5=1), MROUND($AH5*J5,2.5), MROUND($AH5*J5, 0.1))), "" ), "") -> 65 | H5: 6 | I5: 5 | J5: 40% | K5: =IF(N5<>0, IFERROR(IF( $F5=2, MROUND($AH5*N5,1), IF( OR($F5="",$F5=1), MROUND($AH5*N5,2.5), MROUND($AH5*N5, 0.1))), "" ), "") ->  | O5: =IF(R5<>0, IFERROR(IF( $F5=2, MROUND($AH5*R5,1), IF( OR($F5="",$F5=1), MROUND($AH5*R5,2.5), MROUND($AH5*R5, 0.1))), "" ), "") ->  | S5: =IF(V5<>0, IFERROR(IF( $F5=2, MROUND($AH5*V5,1), IF( OR($F5="",$F5=1), MROUND($AH5*V5,2.5), MROUND($AH5*V5, 0.1))), "" ), "") ->  | W5: =IF(Z5<>0, IFERROR(IF( $F5=2, MROUND($AH5*Z5,1), IF( OR($F5="",$F5=1), MROUND($AH5*Z5,2.5), MROUND($AH5*Z5, 0.1))), "" ), "") ->  | AA5: =IF(AD5<>0, IFERROR(IF( $F5=2, MROUND($AH5*AD5,1), IF( OR($F5="",$F5=1), MROUND($AH5*AD5,2.5), MROUND($AH5*AD5, 0.1))), "" ), "") ->  | AE5: 1950 | AF5: =IFERROR(AE5/AJ5,0) -> 65 | AG5: 39% | AH5: 165.0 | AI5: =( IF(ISNUMBER(G5), VLOOKUP(G5/$AH5,F!$A1:$B101,2,1)*G5*$H5*$I5,0)+IF(ISNUMBER(K5), VLOOKUP(K5/$AH5,F!$A1:$B101,2,1)*K5*$L5*$M5,0)+IF(ISNUMBER(O5), VLOOKUP(O5/$AH5,F!$A1:$B101,2,1)*O5*$P5*$Q5,0)+IF(ISNUMBER(S5), VLOOKUP(S5/$AH5,F!$A1:$B101,2,1)*S5*$T5*$U5,0)+IF(ISNUMBER(W5), VLOOKUP(W5/$AH5,F!$A1:$B101,2,1)*W5*$X5*$Y5,0)+IF(ISNUMBER(AA5), VLOOKUP(AA5/$AH5,F!$A1:$B101,2,1)*AA5*$AB5*$AC5,0))*IF(ISNUMBER(F5),F5,1)*IF(ISNUMBER(E5),E5,1) -> 585 | AJ5: =H5*I5+L5*M5+P5*Q5+T5*U5+X5*Y5+AB5*AC5 -> 30 | AK5: =IFERROR(I5*INDEX(F!$P$21:$AB$33, MATCH(G5/$AH5, F!$O$21:$O$33,1), MATCH(E5, F!$P$20:$AB$20,1)), 0 ) +IFERROR( M5*INDEX(F!$P$21:$AB$33, MATCH(K5/$AH5, F!$O$21:$O$33,1), MATCH(E5, F!$P$20:$AB$20,1)),0) + IFERROR( Q5*INDEX(F!$P$21:$AB$33, MATCH(O5/$AH5, F!$O$21:$O$33,1), MATCH(E5, F!$P$20:$AB$20,1)), 0) + IFERROR( U5*INDEX(F!$P$21:$AB$33, MATCH(S5/$AH5, F!$O$21:$O$33,1), MATCH(E5, F!$P$20:$AB$20,1)),0) + IFERROR(Y5*INDEX(F!$P$21:$AB$33, MATCH(W5/$AH5, F!$O$21:$O$33,1), MATCH(E5, F!$P$20:$AB$20,1)),0) + IFERROR( AC5*INDEX(F!$P$21:$AB$33, MATCH(AA5/$AH5, F!$O$21:$O$33,1), MATCH(E5, F!$P$20:$AB$20,1)),) -> 10 | AN5: ПМ в жиме | AP5: 160
B6: Легкая | C6: ТЯГА | D6: Тяга до колен | E6: 1.4 | G6: 112.5 | H6: 4 | I6: 4 | J6: 35% | AE6: 1800 | AF6: =IFERROR(AE6/AJ6,0) -> 113 | AG6: 35% | AH6: =AH31 -> 320.0 | AI6: =( IF(ISNUMBER(G6), VLOOKUP(G6/$AH6,F!$A1:$B101,2,1)*G6*$H6*$I6,0)+IF(ISNUMBER(K6), VLOOKUP(K6/$AH6,F!$A1:$B101,2,1)*K6*$L6*$M6,0)+IF(ISNUMBER(O6), VLOOKUP(O6/$AH6,F!$A1:$B101,2,1)*O6*$P6*$Q6,0)+IF(ISNUMBER(S6), VLOOKUP(S6/$AH6,F!$A1:$B101,2,1)*S6*$T6*$U6,0)+IF(ISNUMBER(W6), VLOOKUP(W6/$AH6,F!$A1:$B101,2,1)*W6*$X6*$Y6,0)+IF(ISNUMBER(AA6), VLOOKUP(AA6/$AH6,F!$A1:$B101,2,1)*AA6*$AB6*$AC6,0))*IF(ISNUMBER(F6),F6,1)*IF(ISNUMBER(E6),E6,1) -> 554 | AJ6: =H6*I6+L6*M6+P6*Q6+T6*U6+X6*Y6+AB6*AC6 -> 16 | AK6: =IFERROR(I6*INDEX(F!$P$21:$AB$33, MATCH(G6/$AH6, F!$O$21:$O$33,1), MATCH(E6, F!$P$20:$AB$20,1)), 0 ) +IFERROR( M6*INDEX(F!$P$21:$AB$33, MATCH(K6/$AH6, F!$O$21:$O$33,1), MATCH(E6, F!$P$20:$AB$20,1)),0) + IFERROR( Q6*INDEX(F!$P$21:$AB$33, MATCH(O6/$AH6, F!$O$21:$O$33,1), MATCH(E6, F!$P$20:$AB$20,1)), 0) + IFERROR( U6*INDEX(F!$P$21:$AB$33, MATCH(S6/$AH6, F!$O$21:$O$33,1), MATCH(E6, F!$P$20:$AB$20,1)),0) + IFERROR(Y6*INDEX(F!$P$21:$AB$33, MATCH(W6/$AH6, F!$O$21:$O$33,1), MATCH(E6, F!$P$20:$AB$20,1)),0) + IFERROR( AC6*INDEX(F!$P$21:$AB$33, MATCH(AA6/$AH6, F!$O$21:$O$33,1), MATCH(E6, F!$P$20:$AB$20,1)),) -> 14 | AN6: ПМ в приседе | AP6: 230
B7: Легкая | C7: ЖИМ | D7: Жим гантелей лежа на гор скамье | E7: 0.8 | F7: 2 | G7: 20 | H7: 5 | I7: 5 | J7: 45% | AE7: 1000 | AF7: 40 | AG7: 45% | AH7: =0.267*AH5 -> 44.1 | AI7: =( IF(ISNUMBER(G7), VLOOKUP(G7/$AH7,F!$A1:$B101,2,1)*G7*$H7*$I7,0)+IF(ISNUMBER(K7), VLOOKUP(K7/$AH7,F!$A1:$B101,2,1)*K7*$L7*$M7,0)+IF(ISNUMBER(O7), VLOOKUP(O7/$AH7,F!$A1:$B101,2,1)*O7*$P7*$Q7,0)+IF(ISNUMBER(S7), VLOOKUP(S7/$AH7,F!$A1:$B101,2,1)*S7*$T7*$U7,0)+IF(ISNUMBER(W7), VLOOKUP(W7/$AH7,F!$A1:$B101,2,1)*W7*$X7*$Y7,0)+IF(ISNUMBER(AA7), VLOOKUP(AA7/$AH7,F!$A1:$B101,2,1)*AA7*$AB7*$AC7,0))*IF(ISNUMBER(F7),F7,1)*IF(ISNUMBER(E7),E7,1) -> 336 | AJ7: =H7*I7+L7*M7+P7*Q7+T7*U7+X7*Y7+AB7*AC7 -> 25 | AK7: =IFERROR(I7*INDEX(F!$P$21:$AB$33, MATCH(G7/$AH7, F!$O$21:$O$33,1), MATCH(E7, F!$P$20:$AB$20,1)), 0 ) +IFERROR( M7*INDEX(F!$P$21:$AB$33, MATCH(K7/$AH7, F!$O$21:$O$33,1), MATCH(E7, F!$P$20:$AB$20,1)),0) + IFERROR( Q7*INDEX(F!$P$21:$AB$33, MATCH(O7/$AH7, F!$O$21:$O$33,1), MATCH(E7, F!$P$20:$AB$20,1)), 0) + IFERROR( U7*INDEX(F!$P$21:$AB$33, MATCH(S7/$AH7, F!$O$21:$O$33,1), MATCH(E7, F!$P$20:$AB$20,1)),0) + IFERROR(Y7*INDEX(F!$P$21:$AB$33, MATCH(W7/$AH7, F!$O$21:$O$33,1), MATCH(E7, F!$P$20:$AB$20,1)),0) + IFERROR( AC7*INDEX(F!$P$21:$AB$33, MATCH(AA7/$AH7, F!$O$21:$O$33,1), MATCH(E7, F!$P$20:$AB$20,1)),) -> 9
B8: Средняя | C8: ОФП | D8: Бицепс стоя | E8: 0.5 | G8: 30 | H8: 6 | I8: 1 | J8: 50% | K8: 37.5 | L8: 5 | M8: 4 | N8: 65% | AE8: 930 | AF8: =IFERROR(AE8/AJ8,0) -> 36 | AG8: 62% | AH8: =0.35*AH5 -> 57.8 | AI8: =( IF(ISNUMBER(G8), VLOOKUP(G8/$AH8,F!$A1:$B101,2,1)*G8*$H8*$I8,0)+IF(ISNUMBER(K8), VLOOKUP(K8/$AH8,F!$A1:$B101,2,1)*K8*$L8*$M8,0)+IF(ISNUMBER(O8), VLOOKUP(O8/$AH8,F!$A1:$B101,2,1)*O8*$P8*$Q8,0)+IF(ISNUMBER(S8), VLOOKUP(S8/$AH8,F!$A1:$B101,2,1)*S8*$T8*$U8,0)+IF(ISNUMBER(W8), VLOOKUP(W8/$AH8,F!$A1:$B101,2,1)*W8*$X8*$Y8,0)+IF(ISNUMBER(AA8), VLOOKUP(AA8/$AH8,F!$A1:$B101,2,1)*AA8*$AB8*$AC8,0))*IF(ISNUMBER(F8),F8,1)*IF(ISNUMBER(E8),E8,1) -> 338 | AJ8: 26 | AK8: =IFERROR(I8*INDEX(F!$P$21:$AB$33, MATCH(G8/$AH8, F!$O$21:$O$33,1), MATCH(E8, F!$P$20:$AB$20,1)), 0 ) +IFERROR( M8*INDEX(F!$P$21:$AB$33, MATCH(K8/$AH8, F!$O$21:$O$33,1), MATCH(E8, F!$P$20:$AB$20,1)),0) + IFERROR( Q8*INDEX(F!$P$21:$AB$33, MATCH(O8/$AH8, F!$O$21:$O$33,1), MATCH(E8, F!$P$20:$AB$20,1)), 0) + IFERROR( U8*INDEX(F!$P$21:$AB$33, MATCH(S8/$AH8, F!$O$21:$O$33,1), MATCH(E8, F!$P$20:$AB$20,1)),0) + IFERROR(Y8*INDEX(F!$P$21:$AB$33, MATCH(W8/$AH8, F!$O$21:$O$33,1), MATCH(E8, F!$P$20:$AB$20,1)),0) + IFERROR( AC8*INDEX(F!$P$21:$AB$33, MATCH(AA8/$AH8, F!$O$21:$O$33,1), MATCH(E8, F!$P$20:$AB$20,1)),) -> 9
AE9: 0 | AF9: 0 | AG9: 0% | AI9: =( IF(ISNUMBER(G9), VLOOKUP(G9/$AH9,F!$A1:$B101,2,1)*G9*$H9*$I9,0)+IF(ISNUMBER(K9), VLOOKUP(K9/$AH9,F!$A1:$B101,2,1)*K9*$L9*$M9,0)+IF(ISNUMBER(O9), VLOOKUP(O9/$AH9,F!$A1:$B101,2,1)*O9*$P9*$Q9,0)+IF(ISNUMBER(S9), VLOOKUP(S9/$AH9,F!$A1:$B101,2,1)*S9*$T9*$U9,0)+IF(ISNUMBER(W9), VLOOKUP(W9/$AH9,F!$A1:$B101,2,1)*W9*$X9*$Y9,0)+IF(ISNUMBER(AA9), VLOOKUP(AA9/$AH9,F!$A1:$B101,2,1)*AA9*$AB9*$AC9,0))*IF(ISNUMBER(F9),F9,1)*IF(ISNUMBER(E9),E9,1) -> 0 | AJ9: 0 | AK9: =IFERROR(I9*INDEX(F!$P$21:$AB$33, MATCH(G9/$AH9, F!$O$21:$O$33,1), MATCH(E9, F!$P$20:$AB$20,1)), 0 ) +IFERROR( M9*INDEX(F!$P$21:$AB$33, MATCH(K9/$AH9, F!$O$21:$O$33,1), MATCH(E9, F!$P$20:$AB$20,1)),0) + IFERROR( Q9*INDEX(F!$P$21:$AB$33, MATCH(O9/$AH9, F!$O$21:$O$33,1), MATCH(E9, F!$P$20:$AB$20,1)), 0) + IFERROR( U9*INDEX(F!$P$21:$AB$33, MATCH(S9/$AH9, F!$O$21:$O$33,1), MATCH(E9, F!$P$20:$AB$20,1)),0) + IFERROR(Y9*INDEX(F!$P$21:$AB$33, MATCH(W9/$AH9, F!$O$21:$O$33,1), MATCH(E9, F!$P$20:$AB$20,1)),0) + IFERROR( AC9*INDEX(F!$P$21:$AB$33, MATCH(AA9/$AH9, F!$O$21:$O$33,1), MATCH(E9, F!$P$20:$AB$20,1)),) -> 0
AE10: 0 | AF10: 0 | AG10: 0% | AI10: =( IF(ISNUMBER(G10), VLOOKUP(G10/$AH10,F!$A1:$B101,2,1)*G10*$H10*$I10,0)+IF(ISNUMBER(K10), VLOOKUP(K10/$AH10,F!$A1:$B101,2,1)*K10*$L10*$M10,0)+IF(ISNUMBER(O10), VLOOKUP(O10/$AH10,F!$A1:$B101,2,1)*O10*$P10*$Q10,0)+IF(ISNUMBER(S10), VLOOKUP(S10/$AH10,F!$A1:$B101,2,1)*S10*$T10*$U10,0)+IF(ISNUMBER(W10), VLOOKUP(W10/$AH10,F!$A1:$B101,2,1)*W10*$X10*$Y10,0)+IF(ISNUMBER(AA10), VLOOKUP(AA10/$AH10,F!$A1:$B101,2,1)*AA10*$AB10*$AC10,0))*IF(ISNUMBER(F10),F10,1)*IF(ISNUMBER(E10),E10,1) -> 0 | AJ10: 0 | AK10: =IFERROR(I10*INDEX(F!$P$21:$AB$33, MATCH(G10/$AH10, F!$O$21:$O$33,1), MATCH(E10, F!$P$20:$AB$20,1)), 0 ) +IFERROR( M10*INDEX(F!$P$21:$AB$33, MATCH(K10/$AH10, F!$O$21:$O$33,1), MATCH(E10, F!$P$20:$AB$20,1)),0) + IFERROR( Q10*INDEX(F!$P$21:$AB$33, MATCH(O10/$AH10, F!$O$21:$O$33,1), MATCH(E10, F!$P$20:$AB$20,1)), 0) + IFERROR( U10*INDEX(F!$P$21:$AB$33, MATCH(S10/$AH10, F!$O$21:$O$33,1), MATCH(E10, F!$P$20:$AB$20,1)),0) + IFERROR(Y10*INDEX(F!$P$21:$AB$33, MATCH(W10/$AH10, F!$O$21:$O$33,1), MATCH(E10, F!$P$20:$AB$20,1)),0) + IFERROR( AC10*INDEX(F!$P$21:$AB$33, MATCH(AA10/$AH10, F!$O$21:$O$33,1), MATCH(E10, F!$P$20:$AB$20,1)),) -> 0
AE11: 0 | AF11: 0 | AG11: 0% | AI11: =( IF(ISNUMBER(G11), VLOOKUP(G11/$AH11,F!$A1:$B101,2,1)*G11*$H11*$I11,0)+IF(ISNUMBER(K11), VLOOKUP(K11/$AH11,F!$A1:$B101,2,1)*K11*$L11*$M11,0)+IF(ISNUMBER(O11), VLOOKUP(O11/$AH11,F!$A1:$B101,2,1)*O11*$P11*$Q11,0)+IF(ISNUMBER(S11), VLOOKUP(S11/$AH11,F!$A1:$B101,2,1)*S11*$T11*$U11,0)+IF(ISNUMBER(W11), VLOOKUP(W11/$AH11,F!$A1:$B101,2,1)*W11*$X11*$Y11,0)+IF(ISNUMBER(AA11), VLOOKUP(AA11/$AH11,F!$A1:$B101,2,1)*AA11*$AB11*$AC11,0))*IF(ISNUMBER(F11),F11,1)*IF(ISNUMBER(E11),E11,1) -> 0 | AJ11: 0 | AK11: =IFERROR(I11*INDEX(F!$P$21:$AB$33, MATCH(G11/$AH11, F!$O$21:$O$33,1), MATCH(E11, F!$P$20:$AB$20,1)), 0 ) +IFERROR( M11*INDEX(F!$P$21:$AB$33, MATCH(K11/$AH11, F!$O$21:$O$33,1), MATCH(E11, F!$P$20:$AB$20,1)),0) + IFERROR( Q11*INDEX(F!$P$21:$AB$33, MATCH(O11/$AH11, F!$O$21:$O$33,1), MATCH(E11, F!$P$20:$AB$20,1)), 0) + IFERROR( U11*INDEX(F!$P$21:$AB$33, MATCH(S11/$AH11, F!$O$21:$O$33,1), MATCH(E11, F!$P$20:$AB$20,1)),0) + IFERROR(Y11*INDEX(F!$P$21:$AB$33, MATCH(W11/$AH11, F!$O$21:$O$33,1), MATCH(E11, F!$P$20:$AB$20,1)),0) + IFERROR( AC11*INDEX(F!$P$21:$AB$33, MATCH(AA11/$AH11, F!$O$21:$O$33,1), MATCH(E11, F!$P$20:$AB$20,1)),) -> 0
E12: =ROUND(IFERROR(SUMPRODUCT(AJ4:AJ11,E4:E11)/AJ12,0),3) -> 0.97 | AE12: =SUM(AE4:AE11) -> 9150 | AF12: 78.2 | AG12: =IFERROR( SUMPRODUCT(AG4:AG11,AJ4:AJ11)/AJ12,0) -> 48% | AI12: =SUM(AI4:AI11) -> 4760 | AJ12: =SUM(AJ4:AJ11) -> 117 | AK12: =IF(SUM(AK4:AK11)=0,TIME(,0,),TIME(,SUM(AK4:AK11)+F!$V$37,)) -> 01:36:00
A13: =A14 -> 2015-10-20 | B13: Легкая | C13: ТЯГА | D13: Тяга из ямы на прямых ногах (клас) | E13: 1.4 | G13: =IF(J13<>0, IFERROR(IF( $F13=2, MROUND($AH13*J13,1), IF( OR($F13="",$F13=1), MROUND($AH13*J13,2.5), MROUND($AH13*J13, 0.1))), "" ), "") -> 100 | H13: 5 | I13: 5 | J13: 35% | K13: =IF(N13<>0, IFERROR(IF( $F13=2, MROUND($AH13*N13,1), IF( OR($F13="",$F13=1), MROUND($AH13*N13,2.5), MROUND($AH13*N13, 0.1))), "" ), "") ->  | O13: =IF(R13<>0, IFERROR(IF( $F13=2, MROUND($AH13*R13,1), IF( OR($F13="",$F13=1), MROUND($AH13*R13,2.5), MROUND($AH13*R13, 0.1))), "" ), "") ->  | S13: =IF(V13<>0, IFERROR(IF( $F13=2, MROUND($AH13*V13,1), IF( OR($F13="",$F13=1), MROUND($AH13*V13,2.5), MROUND($AH13*V13, 0.1))), "" ), "") ->  | W13: =IF(Z13<>0, IFERROR(IF( $F13=2, MROUND($AH13*Z13,1), IF( OR($F13="",$F13=1), MROUND($AH13*Z13,2.5), MROUND($AH13*Z13, 0.1))), "" ), "") ->  | AA13: =IF(AD13<>0, IFERROR(IF( $F13=2, MROUND($AH13*AD13,1), IF( OR($F13="",$F13=1), MROUND($AH13*AD13,2.5), MROUND($AH13*AD13, 0.1))), "" ), "") ->  | AE13: =(IF(ISNUMBER(G13),G13,0)*H13*I13+IF(ISNUMBER(K13),K13,1)*L13*M13+IF(ISNUMBER(O13),O13,1)*P13*Q13+IF(ISNUMBER(S13),S13,1)*T13*U13+IF(ISNUMBER(W13),W13,1)*X13*Y13+IF(ISNUMBER(AA13),AA13,1)*AB13*AC13)*IF(ISNUMBER(F13),F13,1) -> 2500 | AF13: 100 | AG13: =IFERROR((AF13/(AH13*IF(ISNUMBER(F13),F13,1))),0) -> 35% | AH13: =AH31*0.89 -> 284.8 | AI13: =( IF(ISNUMBER(G13), VLOOKUP(G13/$AH13,F!$A1:$B101,2,1)*G13*$H13*$I13,0)+IF(ISNUMBER(K13), VLOOKUP(K13/$AH13,F!$A1:$B101,2,1)*K13*$L13*$M13,0)+IF(ISNUMBER(O13), VLOOKUP(O13/$AH13,F!$A1:$B101,2,1)*O13*$P13*$Q13,0)+IF(ISNUMBER(S13), VLOOKUP(S13/$AH13,F!$A1:$B101,2,1)*S13*$T13*$U13,0)+IF(ISNUMBER(W13), VLOOKUP(W13/$AH13,F!$A1:$B101,2,1)*W13*$X13*$Y13,0)+IF(ISNUMBER(AA13), VLOOKUP(AA13/$AH13,F!$A1:$B101,2,1)*AA13*$AB13*$AC13,0))*IF(ISNUMBER(F13),F13,1)*IF(ISNUMBER(E13),E13,1) -> 770 | AJ13: =H13*I13+L13*M13+P13*Q13+T13*U13+X13*Y13+AB13*AC13 -> 25 | AK13: =IFERROR(I13*INDEX(F!$P$21:$AB$33, MATCH(G13/$AH13, F!$O$21:$O$33,1), MATCH(E13, F!$P$20:$AB$20,1)), 0 ) +IFERROR( M13*INDEX(F!$P$21:$AB$33, MATCH(K13/$AH13, F!$O$21:$O$33,1), MATCH(E13, F!$P$20:$AB$20,1)),0) + IFERROR( Q13*INDEX(F!$P$21:$AB$33, MATCH(O13/$AH13, F!$O$21:$O$33,1), MATCH(E13, F!$P$20:$AB$20,1)), 0) + IFERROR( U13*INDEX(F!$P$21:$AB$33, MATCH(S13/$AH13, F!$O$21:$O$33,1), MATCH(E13, F!$P$20:$AB$20,1)),0) + IFERROR(Y13*INDEX(F!$P$21:$AB$33, MATCH(W13/$AH13, F!$O$21:$O$33,1), MATCH(E13, F!$P$20:$AB$20,1)),0) + IFERROR( AC13*INDEX(F!$P$21:$AB$33, MATCH(AA13/$AH13, F!$O$21:$O$33,1), MATCH(E13, F!$P$20:$AB$20,1)),) -> 18 | AL13: Трицепс на блоке, наружное вращение
A14: =A5+1 -> 2015-10-20 | B14: Легкая | C14: ОФП | D14: Жим стоя | E14: 1.0 | G14: 50 | H14: 5 | I14: 5 | J14: 50% | AE14: 1250 | AF14: 50 | AG14: 51% | AH14: =AH5*0.6 -> 99.0 | AI14: =( IF(ISNUMBER(G14), VLOOKUP(G14/$AH14,F!$A1:$B101,2,1)*G14*$H14*$I14,0)+IF(ISNUMBER(K14), VLOOKUP(K14/$AH14,F!$A1:$B101,2,1)*K14*$L14*$M14,0)+IF(ISNUMBER(O14), VLOOKUP(O14/$AH14,F!$A1:$B101,2,1)*O14*$P14*$Q14,0)+IF(ISNUMBER(S14), VLOOKUP(S14/$AH14,F!$A1:$B101,2,1)*S14*$T14*$U14,0)+IF(ISNUMBER(W14), VLOOKUP(W14/$AH14,F!$A1:$B101,2,1)*W14*$X14*$Y14,0)+IF(ISNUMBER(AA14), VLOOKUP(AA14/$AH14,F!$A1:$B101,2,1)*AA14*$AB14*$AC14,0))*IF(ISNUMBER(F14),F14,1)*IF(ISNUMBER(E14),E14,1) -> 625 | AJ14: 25 | AK14: =IFERROR(I14*INDEX(F!$P$21:$AB$33, MATCH(G14/$AH14, F!$O$21:$O$33,1), MATCH(E14, F!$P$20:$AB$20,1)), 0 ) +IFERROR( M14*INDEX(F!$P$21:$AB$33, MATCH(K14/$AH14, F!$O$21:$O$33,1), MATCH(E14, F!$P$20:$AB$20,1)),0) + IFERROR( Q14*INDEX(F!$P$21:$AB$33, MATCH(O14/$AH14, F!$O$21:$O$33,1), MATCH(E14, F!$P$20:$AB$20,1)), 0) + IFERROR( U14*INDEX(F!$P$21:$AB$33, MATCH(S14/$AH14, F!$O$21:$O$33,1), MATCH(E14, F!$P$20:$AB$20,1)),0) + IFERROR(Y14*INDEX(F!$P$21:$AB$33, MATCH(W14/$AH14, F!$O$21:$O$33,1), MATCH(E14, F!$P$20:$AB$20,1)),0) + IFERROR( AC14*INDEX(F!$P$21:$AB$33, MATCH(AA14/$AH14, F!$O$21:$O$33,1), MATCH(E14, F!$P$20:$AB$20,1)),) -> 10
B15: Средняя | C15: ОФП | D15: Присед в широкой постановке | E15: 1.2 | G15: 125 | H15: 6 | I15: 1 | J15: 50% | K15: 162.5 | L15: 4 | M15: 4 | N15: 65% | AE15: 3350 | AF15: 152 | AG15: 61% | AH15: =0.78*AH31 -> 249.6 | AI15: =( IF(ISNUMBER(G15), VLOOKUP(G15/$AH15,F!$A1:$B101,2,1)*G15*$H15*$I15,0)+IF(ISNUMBER(K15), VLOOKUP(K15/$AH15,F!$A1:$B101,2,1)*K15*$L15*$M15,0)+IF(ISNUMBER(O15), VLOOKUP(O15/$AH15,F!$A1:$B101,2,1)*O15*$P15*$Q15,0)+IF(ISNUMBER(S15), VLOOKUP(S15/$AH15,F!$A1:$B101,2,1)*S15*$T15*$U15,0)+IF(ISNUMBER(W15), VLOOKUP(W15/$AH15,F!$A1:$B101,2,1)*W15*$X15*$Y15,0)+IF(ISNUMBER(AA15), VLOOKUP(AA15/$AH15,F!$A1:$B101,2,1)*AA15*$AB15*$AC15,0))*IF(ISNUMBER(F15),F15,1)*IF(ISNUMBER(E15),E15,1) -> 2946 | AJ15: 22 | AK15: =IFERROR(I15*INDEX(F!$P$21:$AB$33, MATCH(G15/$AH15, F!$O$21:$O$33,1), MATCH(E15, F!$P$20:$AB$20,1)), 0 ) +IFERROR( M15*INDEX(F!$P$21:$AB$33, MATCH(K15/$AH15, F!$O$21:$O$33,1), MATCH(E15, F!$P$20:$AB$20,1)),0) + IFERROR( Q15*INDEX(F!$P$21:$AB$33, MATCH(O15/$AH15, F!$O$21:$O$33,1), MATCH(E15, F!$P$20:$AB$20,1)), 0) + IFERROR( U15*INDEX(F!$P$21:$AB$33, MATCH(S15/$AH15, F!$O$21:$O$33,1), MATCH(E15, F!$P$20:$AB$20,1)),0) + IFERROR(Y15*INDEX(F!$P$21:$AB$33, MATCH(W15/$AH15, F!$O$21:$O$33,1), MATCH(E15, F!$P$20:$AB$20,1)),0) + IFERROR( AC15*INDEX(F!$P$21:$AB$33, MATCH(AA15/$AH15, F!$O$21:$O$33,1), MATCH(E15, F!$P$20:$AB$20,1)),) -> 19
B16: Средняя | C16: ЖИМ | D16: Жим средним хватом | E16: 1.0 | G16: 70 | H16: 5 | I16: 1 | J16: 50% | K16: 87.5 | L16: 4 | M16: 4 | N16: 62% | AE16: 1750 | AF16: 83 | AG16: 59% | AH16: =AH5*0.85 -> 140.3 | AI16: =( IF(ISNUMBER(G16), VLOOKUP(G16/$AH16,F!$A1:$B101,2,1)*G16*$H16*$I16,0)+IF(ISNUMBER(K16), VLOOKUP(K16/$AH16,F!$A1:$B101,2,1)*K16*$L16*$M16,0)+IF(ISNUMBER(O16), VLOOKUP(O16/$AH16,F!$A1:$B101,2,1)*O16*$P16*$Q16,0)+IF(ISNUMBER(S16), VLOOKUP(S16/$AH16,F!$A1:$B101,2,1)*S16*$T16*$U16,0)+IF(ISNUMBER(W16), VLOOKUP(W16/$AH16,F!$A1:$B101,2,1)*W16*$X16*$Y16,0)+IF(ISNUMBER(AA16), VLOOKUP(AA16/$AH16,F!$A1:$B101,2,1)*AA16*$AB16*$AC16,0))*IF(ISNUMBER(F16),F16,1)*IF(ISNUMBER(E16),E16,1) -> 1190 | AJ16: =H16*I16+L16*M16+P16*Q16+T16*U16+X16*Y16+AB16*AC16 -> 21 | AK16: =IFERROR(I16*INDEX(F!$P$21:$AB$33, MATCH(G16/$AH16, F!$O$21:$O$33,1), MATCH(E16, F!$P$20:$AB$20,1)), 0 ) +IFERROR( M16*INDEX(F!$P$21:$AB$33, MATCH(K16/$AH16, F!$O$21:$O$33,1), MATCH(E16, F!$P$20:$AB$20,1)),0) + IFERROR( Q16*INDEX(F!$P$21:$AB$33, MATCH(O16/$AH16, F!$O$21:$O$33,1), MATCH(E16, F!$P$20:$AB$20,1)), 0) + IFERROR( U16*INDEX(F!$P$21:$AB$33, MATCH(S16/$AH16, F!$O$21:$O$33,1), MATCH(E16, F!$P$20:$AB$20,1)),0) + IFERROR(Y16*INDEX(F!$P$21:$AB$33, MATCH(W16/$AH16, F!$O$21:$O$33,1), MATCH(E16, F!$P$20:$AB$20,1)),0) + IFERROR( AC16*INDEX(F!$P$21:$AB$33, MATCH(AA16/$AH16, F!$O$21:$O$33,1), MATCH(E16, F!$P$20:$AB$20,1)),) -> 14
B17: Легкая | C17: ОФП | D17: Наклоны стоя | E17: 0.8 | G17: 70 | H17: 5 | I17: 5 | J17: 40% | AE17: 1750 | AF17: 70 | AG17: 40% | AH17: =AH4*0.55 -> 176.0 | AI17: =( IF(ISNUMBER(G17), VLOOKUP(G17/$AH17,F!$A1:$B101,2,1)*G17*$H17*$I17,0)+IF(ISNUMBER(K17), VLOOKUP(K17/$AH17,F!$A1:$B101,2,1)*K17*$L17*$M17,0)+IF(ISNUMBER(O17), VLOOKUP(O17/$AH17,F!$A1:$B101,2,1)*O17*$P17*$Q17,0)+IF(ISNUMBER(S17), VLOOKUP(S17/$AH17,F!$A1:$B101,2,1)*S17*$T17*$U17,0)+IF(ISNUMBER(W17), VLOOKUP(W17/$AH17,F!$A1:$B101,2,1)*W17*$X17*$Y17,0)+IF(ISNUMBER(AA17), VLOOKUP(AA17/$AH17,F!$A1:$B101,2,1)*AA17*$AB17*$AC17,0))*IF(ISNUMBER(F17),F17,1)*IF(ISNUMBER(E17),E17,1) -> 420 | AJ17: =H17*I17+L17*M17+P17*Q17+T17*U17+X17*Y17+AB17*AC17 -> 25 | AK17: =IFERROR(I17*INDEX(F!$P$21:$AB$33, MATCH(G17/$AH17, F!$O$21:$O$33,1), MATCH(E17, F!$P$20:$AB$20,1)), 0 ) +IFERROR( M17*INDEX(F!$P$21:$AB$33, MATCH(K17/$AH17, F!$O$21:$O$33,1), MATCH(E17, F!$P$20:$AB$20,1)),0) + IFERROR( Q17*INDEX(F!$P$21:$AB$33, MATCH(O17/$AH17, F!$O$21:$O$33,1), MATCH(E17, F!$P$20:$AB$20,1)), 0) + IFERROR( U17*INDEX(F!$P$21:$AB$33, MATCH(S17/$AH17, F!$O$21:$O$33,1), MATCH(E17, F!$P$20:$AB$20,1)),0) + IFERROR(Y17*INDEX(F!$P$21:$AB$33, MATCH(W17/$AH17, F!$O$21:$O$33,1), MATCH(E17, F!$P$20:$AB$20,1)),0) + IFERROR( AC17*INDEX(F!$P$21:$AB$33, MATCH(AA17/$AH17, F!$O$21:$O$33,1), MATCH(E17, F!$P$20:$AB$20,1)),) -> 9
AE18: 0 | AF18: 0 | AG18: 0% | AI18: =( IF(ISNUMBER(G18), VLOOKUP(G18/$AH18,F!$A1:$B101,2,1)*G18*$H18*$I18,0)+IF(ISNUMBER(K18), VLOOKUP(K18/$AH18,F!$A1:$B101,2,1)*K18*$L18*$M18,0)+IF(ISNUMBER(O18), VLOOKUP(O18/$AH18,F!$A1:$B101,2,1)*O18*$P18*$Q18,0)+IF(ISNUMBER(S18), VLOOKUP(S18/$AH18,F!$A1:$B101,2,1)*S18*$T18*$U18,0)+IF(ISNUMBER(W18), VLOOKUP(W18/$AH18,F!$A1:$B101,2,1)*W18*$X18*$Y18,0)+IF(ISNUMBER(AA18), VLOOKUP(AA18/$AH18,F!$A1:$B101,2,1)*AA18*$AB18*$AC18,0))*IF(ISNUMBER(F18),F18,1)*IF(ISNUMBER(E18),E18,1) -> 0 | AJ18: 0 | AK18: =IFERROR(I18*INDEX(F!$P$21:$AB$33, MATCH(G18/$AH18, F!$O$21:$O$33,1), MATCH(E18, F!$P$20:$AB$20,1)), 0 ) +IFERROR( M18*INDEX(F!$P$21:$AB$33, MATCH(K18/$AH18, F!$O$21:$O$33,1), MATCH(E18, F!$P$20:$AB$20,1)),0) + IFERROR( Q18*INDEX(F!$P$21:$AB$33, MATCH(O18/$AH18, F!$O$21:$O$33,1), MATCH(E18, F!$P$20:$AB$20,1)), 0) + IFERROR( U18*INDEX(F!$P$21:$AB$33, MATCH(S18/$AH18, F!$O$21:$O$33,1), MATCH(E18, F!$P$20:$AB$20,1)),0) + IFERROR(Y18*INDEX(F!$P$21:$AB$33, MATCH(W18/$AH18, F!$O$21:$O$33,1), MATCH(E18, F!$P$20:$AB$20,1)),0) + IFERROR( AC18*INDEX(F!$P$21:$AB$33, MATCH(AA18/$AH18, F!$O$21:$O$33,1), MATCH(E18, F!$P$20:$AB$20,1)),) -> 0
AE19: 0 | AF19: 0 | AG19: 0% | AI19: =( IF(ISNUMBER(G19), VLOOKUP(G19/$AH19,F!$A1:$B101,2,1)*G19*$H19*$I19,0)+IF(ISNUMBER(K19), VLOOKUP(K19/$AH19,F!$A1:$B101,2,1)*K19*$L19*$M19,0)+IF(ISNUMBER(O19), VLOOKUP(O19/$AH19,F!$A1:$B101,2,1)*O19*$P19*$Q19,0)+IF(ISNUMBER(S19), VLOOKUP(S19/$AH19,F!$A1:$B101,2,1)*S19*$T19*$U19,0)+IF(ISNUMBER(W19), VLOOKUP(W19/$AH19,F!$A1:$B101,2,1)*W19*$X19*$Y19,0)+IF(ISNUMBER(AA19), VLOOKUP(AA19/$AH19,F!$A1:$B101,2,1)*AA19*$AB19*$AC19,0))*IF(ISNUMBER(F19),F19,1)*IF(ISNUMBER(E19),E19,1) -> 0 | AJ19: 0 | AK19: =IFERROR(I19*INDEX(F!$P$21:$AB$33, MATCH(G19/$AH19, F!$O$21:$O$33,1), MATCH(E19, F!$P$20:$AB$20,1)), 0 ) +IFERROR( M19*INDEX(F!$P$21:$AB$33, MATCH(K19/$AH19, F!$O$21:$O$33,1), MATCH(E19, F!$P$20:$AB$20,1)),0) + IFERROR( Q19*INDEX(F!$P$21:$AB$33, MATCH(O19/$AH19, F!$O$21:$O$33,1), MATCH(E19, F!$P$20:$AB$20,1)), 0) + IFERROR( U19*INDEX(F!$P$21:$AB$33, MATCH(S19/$AH19, F!$O$21:$O$33,1), MATCH(E19, F!$P$20:$AB$20,1)),0) + IFERROR(Y19*INDEX(F!$P$21:$AB$33, MATCH(W19/$AH19, F!$O$21:$O$33,1), MATCH(E19, F!$P$20:$AB$20,1)),0) + IFERROR( AC19*INDEX(F!$P$21:$AB$33, MATCH(AA19/$AH19, F!$O$21:$O$33,1), MATCH(E19, F!$P$20:$AB$20,1)),) -> 0
AE20: 0 | AF20: 0 | AG20: 0% | AI20: =( IF(ISNUMBER(G20), VLOOKUP(G20/$AH20,F!$A1:$B101,2,1)*G20*$H20*$I20,0)+IF(ISNUMBER(K20), VLOOKUP(K20/$AH20,F!$A1:$B101,2,1)*K20*$L20*$M20,0)+IF(ISNUMBER(O20), VLOOKUP(O20/$AH20,F!$A1:$B101,2,1)*O20*$P20*$Q20,0)+IF(ISNUMBER(S20), VLOOKUP(S20/$AH20,F!$A1:$B101,2,1)*S20*$T20*$U20,0)+IF(ISNUMBER(W20), VLOOKUP(W20/$AH20,F!$A1:$B101,2,1)*W20*$X20*$Y20,0)+IF(ISNUMBER(AA20), VLOOKUP(AA20/$AH20,F!$A1:$B101,2,1)*AA20*$AB20*$AC20,0))*IF(ISNUMBER(F20),F20,1)*IF(ISNUMBER(E20),E20,1) -> 0 | AJ20: 0 | AK20: =IFERROR(I20*INDEX(F!$P$21:$AB$33, MATCH(G20/$AH20, F!$O$21:$O$33,1), MATCH(E20, F!$P$20:$AB$20,1)), 0 ) +IFERROR( M20*INDEX(F!$P$21:$AB$33, MATCH(K20/$AH20, F!$O$21:$O$33,1), MATCH(E20, F!$P$20:$AB$20,1)),0) + IFERROR( Q20*INDEX(F!$P$21:$AB$33, MATCH(O20/$AH20, F!$O$21:$O$33,1), MATCH(E20, F!$P$20:$AB$20,1)), 0) + IFERROR( U20*INDEX(F!$P$21:$AB$33, MATCH(S20/$AH20, F!$O$21:$O$33,1), MATCH(E20, F!$P$20:$AB$20,1)),0) + IFERROR(Y20*INDEX(F!$P$21:$AB$33, MATCH(W20/$AH20, F!$O$21:$O$33,1), MATCH(E20, F!$P$20:$AB$20,1)),0) + IFERROR( AC20*INDEX(F!$P$21:$AB$33, MATCH(AA20/$AH20, F!$O$21:$O$33,1), MATCH(E20, F!$P$20:$AB$20,1)),) -> 0
E21: =ROUND(IFERROR(SUMPRODUCT(AJ13:AJ20,E13:E20)/AJ21,0),3) -> 1.08 | AE21: =SUM(AE13:AE20) -> 10600 | AF21: 89.8 | AG21: =IFERROR( SUMPRODUCT(AG13:AG20,AJ13:AJ20)/AJ21,0) -> 49% | AI21: =SUM(AI13:AI20) -> 5951 | AJ21: =SUM(AJ13:AJ20) -> 118 | AK21: =IF(SUM(AK13:AK20)=0,TIME(,0,),TIME(,SUM(AK13:AK20)+F!$V$37,)) -> 01:39:00
A22: =A23 -> 2015-10-21 | G22: =IF(J22<>0, IFERROR(IF( $F22=2, MROUND($AH22*J22,1), IF( OR($F22="",$F22=1), MROUND($AH22*J22,2.5), MROUND($AH22*J22, 0.1))), "" ), "") ->  | K22: =IF(N22<>0, IFERROR(IF( $F22=2, MROUND($AH22*N22,1), IF( OR($F22="",$F22=1), MROUND($AH22*N22,2.5), MROUND($AH22*N22, 0.1))), "" ), "") ->  | O22: =IF(R22<>0, IFERROR(IF( $F22=2, MROUND($AH22*R22,1), IF( OR($F22="",$F22=1), MROUND($AH22*R22,2.5), MROUND($AH22*R22, 0.1))), "" ), "") ->  | S22: =IF(V22<>0, IFERROR(IF( $F22=2, MROUND($AH22*V22,1), IF( OR($F22="",$F22=1), MROUND($AH22*V22,2.5), MROUND($AH22*V22, 0.1))), "" ), "") ->  | W22: =IF(Z22<>0, IFERROR(IF( $F22=2, MROUND($AH22*Z22,1), IF( OR($F22="",$F22=1), MROUND($AH22*Z22,2.5), MROUND($AH22*Z22, 0.1))), "" ), "") ->  | AA22: =IF(AD22<>0, IFERROR(IF( $F22=2, MROUND($AH22*AD22,1), IF( OR($F22="",$F22=1), MROUND($AH22*AD22,2.5), MROUND($AH22*AD22, 0.1))), "" ), "") ->  | AE22: =(IF(ISNUMBER(G22),G22,0)*H22*I22+IF(ISNUMBER(K22),K22,1)*L22*M22+IF(ISNUMBER(O22),O22,1)*P22*Q22+IF(ISNUMBER(S22),S22,1)*T22*U22+IF(ISNUMBER(W22),W22,1)*X22*Y22+IF(ISNUMBER(AA22),AA22,1)*AB22*AC22)*IF(ISNUMBER(F22),F22,1) -> 0 | AF22: 0 | AG22: =IFERROR((AF22/(AH22*IF(ISNUMBER(F22),F22,1))),0) -> 0% | AI22: =( IF(ISNUMBER(G22), VLOOKUP(G22/$AH22,F!$A1:$B101,2,1)*G22*$H22*$I22,0)+IF(ISNUMBER(K22), VLOOKUP(K22/$AH22,F!$A1:$B101,2,1)*K22*$L22*$M22,0)+IF(ISNUMBER(O22), VLOOKUP(O22/$AH22,F!$A1:$B101,2,1)*O22*$P22*$Q22,0)+IF(ISNUMBER(S22), VLOOKUP(S22/$AH22,F!$A1:$B101,2,1)*S22*$T22*$U22,0)+IF(ISNUMBER(W22), VLOOKUP(W22/$AH22,F!$A1:$B101,2,1)*W22*$X22*$Y22,0)+IF(ISNUMBER(AA22), VLOOKUP(AA22/$AH22,F!$A1:$B101,2,1)*AA22*$AB22*$AC22,0))*IF(ISNUMBER(F22),F22,1)*IF(ISNUMBER(E22),E22,1) -> 0 | AJ22: =H22*I22+L22*M22+P22*Q22+T22*U22+X22*Y22+AB22*AC22 -> 0 | AK22: =IFERROR(I22*INDEX(F!$P$21:$AB$33, MATCH(G22/$AH22, F!$O$21:$O$33,1), MATCH(E22, F!$P$20:$AB$20,1)), 0 ) +IFERROR( M22*INDEX(F!$P$21:$AB$33, MATCH(K22/$AH22, F!$O$21:$O$33,1), MATCH(E22, F!$P$20:$AB$20,1)),0) + IFERROR( Q22*INDEX(F!$P$21:$AB$33, MATCH(O22/$AH22, F!$O$21:$O$33,1), MATCH(E22, F!$P$20:$AB$20,1)), 0) + IFERROR( U22*INDEX(F!$P$21:$AB$33, MATCH(S22/$AH22, F!$O$21:$O$33,1), MATCH(E22, F!$P$20:$AB$20,1)),0) + IFERROR(Y22*INDEX(F!$P$21:$AB$33, MATCH(W22/$AH22, F!$O$21:$O$33,1), MATCH(E22, F!$P$20:$AB$20,1)),0) + IFERROR( AC22*INDEX(F!$P$21:$AB$33, MATCH(AA22/$AH22, F!$O$21:$O$33,1), MATCH(E22, F!$P$20:$AB$20,1)),) -> 0
A23: =A14+1 -> 2015-10-21 | AE23: 0 | AF23: 0 | AG23: 0% | AI23: =( IF(ISNUMBER(G23), VLOOKUP(G23/$AH23,F!$A1:$B101,2,1)*G23*$H23*$I23,0)+IF(ISNUMBER(K23), VLOOKUP(K23/$AH23,F!$A1:$B101,2,1)*K23*$L23*$M23,0)+IF(ISNUMBER(O23), VLOOKUP(O23/$AH23,F!$A1:$B101,2,1)*O23*$P23*$Q23,0)+IF(ISNUMBER(S23), VLOOKUP(S23/$AH23,F!$A1:$B101,2,1)*S23*$T23*$U23,0)+IF(ISNUMBER(W23), VLOOKUP(W23/$AH23,F!$A1:$B101,2,1)*W23*$X23*$Y23,0)+IF(ISNUMBER(AA23), VLOOKUP(AA23/$AH23,F!$A1:$B101,2,1)*AA23*$AB23*$AC23,0))*IF(ISNUMBER(F23),F23,1)*IF(ISNUMBER(E23),E23,1) -> 0 | AJ23: 0 | AK23: =IFERROR(I23*INDEX(F!$P$21:$AB$33, MATCH(G23/$AH23, F!$O$21:$O$33,1), MATCH(E23, F!$P$20:$AB$20,1)), 0 ) +IFERROR( M23*INDEX(F!$P$21:$AB$33, MATCH(K23/$AH23, F!$O$21:$O$33,1), MATCH(E23, F!$P$20:$AB$20,1)),0) + IFERROR( Q23*INDEX(F!$P$21:$AB$33, MATCH(O23/$AH23, F!$O$21:$O$33,1), MATCH(E23, F!$P$20:$AB$20,1)), 0) + IFERROR( U23*INDEX(F!$P$21:$AB$33, MATCH(S23/$AH23, F!$O$21:$O$33,1), MATCH(E23, F!$P$20:$AB$20,1)),0) + IFERROR(Y23*INDEX(F!$P$21:$AB$33, MATCH(W23/$AH23, F!$O$21:$O$33,1), MATCH(E23, F!$P$20:$AB$20,1)),0) + IFERROR( AC23*INDEX(F!$P$21:$AB$33, MATCH(AA23/$AH23, F!$O$21:$O$33,1), MATCH(E23, F!$P$20:$AB$20,1)),) -> 0
AE24: 0 | AF24: 0 | AG24: 0% | AI24: =( IF(ISNUMBER(G24), VLOOKUP(G24/$AH24,F!$A1:$B101,2,1)*G24*$H24*$I24,0)+IF(ISNUMBER(K24), VLOOKUP(K24/$AH24,F!$A1:$B101,2,1)*K24*$L24*$M24,0)+IF(ISNUMBER(O24), VLOOKUP(O24/$AH24,F!$A1:$B101,2,1)*O24*$P24*$Q24,0)+IF(ISNUMBER(S24), VLOOKUP(S24/$AH24,F!$A1:$B101,2,1)*S24*$T24*$U24,0)+IF(ISNUMBER(W24), VLOOKUP(W24/$AH24,F!$A1:$B101,2,1)*W24*$X24*$Y24,0)+IF(ISNUMBER(AA24), VLOOKUP(AA24/$AH24,F!$A1:$B101,2,1)*AA24*$AB24*$AC24,0))*IF(ISNUMBER(F24),F24,1)*IF(ISNUMBER(E24),E24,1) -> 0 | AJ24: 0 | AK24: =IFERROR(I24*INDEX(F!$P$21:$AB$33, MATCH(G24/$AH24, F!$O$21:$O$33,1), MATCH(E24, F!$P$20:$AB$20,1)), 0 ) +IFERROR( M24*INDEX(F!$P$21:$AB$33, MATCH(K24/$AH24, F!$O$21:$O$33,1), MATCH(E24, F!$P$20:$AB$20,1)),0) + IFERROR( Q24*INDEX(F!$P$21:$AB$33, MATCH(O24/$AH24, F!$O$21:$O$33,1), MATCH(E24, F!$P$20:$AB$20,1)), 0) + IFERROR( U24*INDEX(F!$P$21:$AB$33, MATCH(S24/$AH24, F!$O$21:$O$33,1), MATCH(E24, F!$P$20:$AB$20,1)),0) + IFERROR(Y24*INDEX(F!$P$21:$AB$33, MATCH(W24/$AH24, F!$O$21:$O$33,1), MATCH(E24, F!$P$20:$AB$20,1)),0) + IFERROR( AC24*INDEX(F!$P$21:$AB$33, MATCH(AA24/$AH24, F!$O$21:$O$33,1), MATCH(E24, F!$P$20:$AB$20,1)),) -> 0
AE25: 0 | AF25: 0 | AG25: 0% | AI25: =( IF(ISNUMBER(G25), VLOOKUP(G25/$AH25,F!$A1:$B101,2,1)*G25*$H25*$I25,0)+IF(ISNUMBER(K25), VLOOKUP(K25/$AH25,F!$A1:$B101,2,1)*K25*$L25*$M25,0)+IF(ISNUMBER(O25), VLOOKUP(O25/$AH25,F!$A1:$B101,2,1)*O25*$P25*$Q25,0)+IF(ISNUMBER(S25), VLOOKUP(S25/$AH25,F!$A1:$B101,2,1)*S25*$T25*$U25,0)+IF(ISNUMBER(W25), VLOOKUP(W25/$AH25,F!$A1:$B101,2,1)*W25*$X25*$Y25,0)+IF(ISNUMBER(AA25), VLOOKUP(AA25/$AH25,F!$A1:$B101,2,1)*AA25*$AB25*$AC25,0))*IF(ISNUMBER(F25),F25,1)*IF(ISNUMBER(E25),E25,1) -> 0 | AJ25: =H25*I25+L25*M25+P25*Q25+T25*U25+X25*Y25+AB25*AC25 -> 0 | AK25: =IFERROR(I25*INDEX(F!$P$21:$AB$33, MATCH(G25/$AH25, F!$O$21:$O$33,1), MATCH(E25, F!$P$20:$AB$20,1)), 0 ) +IFERROR( M25*INDEX(F!$P$21:$AB$33, MATCH(K25/$AH25, F!$O$21:$O$33,1), MATCH(E25, F!$P$20:$AB$20,1)),0) + IFERROR( Q25*INDEX(F!$P$21:$AB$33, MATCH(O25/$AH25, F!$O$21:$O$33,1), MATCH(E25, F!$P$20:$AB$20,1)), 0) + IFERROR( U25*INDEX(F!$P$21:$AB$33, MATCH(S25/$AH25, F!$O$21:$O$33,1), MATCH(E25, F!$P$20:$AB$20,1)),0) + IFERROR(Y25*INDEX(F!$P$21:$AB$33, MATCH(W25/$AH25, F!$O$21:$O$33,1), MATCH(E25, F!$P$20:$AB$20,1)),0) + IFERROR( AC25*INDEX(F!$P$21:$AB$33, MATCH(AA25/$AH25, F!$O$21:$O$33,1), MATCH(E25, F!$P$20:$AB$20,1)),) -> 0
AE26: 0 | AF26: 0 | AG26: 0% | AI26: =( IF(ISNUMBER(G26), VLOOKUP(G26/$AH26,F!$A1:$B101,2,1)*G26*$H26*$I26,0)+IF(ISNUMBER(K26), VLOOKUP(K26/$AH26,F!$A1:$B101,2,1)*K26*$L26*$M26,0)+IF(ISNUMBER(O26), VLOOKUP(O26/$AH26,F!$A1:$B101,2,1)*O26*$P26*$Q26,0)+IF(ISNUMBER(S26), VLOOKUP(S26/$AH26,F!$A1:$B101,2,1)*S26*$T26*$U26,0)+IF(ISNUMBER(W26), VLOOKUP(W26/$AH26,F!$A1:$B101,2,1)*W26*$X26*$Y26,0)+IF(ISNUMBER(AA26), VLOOKUP(AA26/$AH26,F!$A1:$B101,2,1)*AA26*$AB26*$AC26,0))*IF(ISNUMBER(F26),F26,1)*IF(ISNUMBER(E26),E26,1) -> 0 | AJ26: =H26*I26+L26*M26+P26*Q26+T26*U26+X26*Y26+AB26*AC26 -> 0 | AK26: =IFERROR(I26*INDEX(F!$P$21:$AB$33, MATCH(G26/$AH26, F!$O$21:$O$33,1), MATCH(E26, F!$P$20:$AB$20,1)), 0 ) +IFERROR( M26*INDEX(F!$P$21:$AB$33, MATCH(K26/$AH26, F!$O$21:$O$33,1), MATCH(E26, F!$P$20:$AB$20,1)),0) + IFERROR( Q26*INDEX(F!$P$21:$AB$33, MATCH(O26/$AH26, F!$O$21:$O$33,1), MATCH(E26, F!$P$20:$AB$20,1)), 0) + IFERROR( U26*INDEX(F!$P$21:$AB$33, MATCH(S26/$AH26, F!$O$21:$O$33,1), MATCH(E26, F!$P$20:$AB$20,1)),0) + IFERROR(Y26*INDEX(F!$P$21:$AB$33, MATCH(W26/$AH26, F!$O$21:$O$33,1), MATCH(E26, F!$P$20:$AB$20,1)),0) + IFERROR( AC26*INDEX(F!$P$21:$AB$33, MATCH(AA26/$AH26, F!$O$21:$O$33,1), MATCH(E26, F!$P$20:$AB$20,1)),) -> 0
AE27: 0 | AF27: 0 | AG27: 0% | AI27: =( IF(ISNUMBER(G27), VLOOKUP(G27/$AH27,F!$A1:$B101,2,1)*G27*$H27*$I27,0)+IF(ISNUMBER(K27), VLOOKUP(K27/$AH27,F!$A1:$B101,2,1)*K27*$L27*$M27,0)+IF(ISNUMBER(O27), VLOOKUP(O27/$AH27,F!$A1:$B101,2,1)*O27*$P27*$Q27,0)+IF(ISNUMBER(S27), VLOOKUP(S27/$AH27,F!$A1:$B101,2,1)*S27*$T27*$U27,0)+IF(ISNUMBER(W27), VLOOKUP(W27/$AH27,F!$A1:$B101,2,1)*W27*$X27*$Y27,0)+IF(ISNUMBER(AA27), VLOOKUP(AA27/$AH27,F!$A1:$B101,2,1)*AA27*$AB27*$AC27,0))*IF(ISNUMBER(F27),F27,1)*IF(ISNUMBER(E27),E27,1) -> 0 | AJ27: 0 | AK27: =IFERROR(I27*INDEX(F!$P$21:$AB$33, MATCH(G27/$AH27, F!$O$21:$O$33,1), MATCH(E27, F!$P$20:$AB$20,1)), 0 ) +IFERROR( M27*INDEX(F!$P$21:$AB$33, MATCH(K27/$AH27, F!$O$21:$O$33,1), MATCH(E27, F!$P$20:$AB$20,1)),0) + IFERROR( Q27*INDEX(F!$P$21:$AB$33, MATCH(O27/$AH27, F!$O$21:$O$33,1), MATCH(E27, F!$P$20:$AB$20,1)), 0) + IFERROR( U27*INDEX(F!$P$21:$AB$33, MATCH(S27/$AH27, F!$O$21:$O$33,1), MATCH(E27, F!$P$20:$AB$20,1)),0) + IFERROR(Y27*INDEX(F!$P$21:$AB$33, MATCH(W27/$AH27, F!$O$21:$O$33,1), MATCH(E27, F!$P$20:$AB$20,1)),0) + IFERROR( AC27*INDEX(F!$P$21:$AB$33, MATCH(AA27/$AH27, F!$O$21:$O$33,1), MATCH(E27, F!$P$20:$AB$20,1)),) -> 0
AE28: 0 | AF28: 0 | AG28: 0% | AI28: =( IF(ISNUMBER(G28), VLOOKUP(G28/$AH28,F!$A1:$B101,2,1)*G28*$H28*$I28,0)+IF(ISNUMBER(K28), VLOOKUP(K28/$AH28,F!$A1:$B101,2,1)*K28*$L28*$M28,0)+IF(ISNUMBER(O28), VLOOKUP(O28/$AH28,F!$A1:$B101,2,1)*O28*$P28*$Q28,0)+IF(ISNUMBER(S28), VLOOKUP(S28/$AH28,F!$A1:$B101,2,1)*S28*$T28*$U28,0)+IF(ISNUMBER(W28), VLOOKUP(W28/$AH28,F!$A1:$B101,2,1)*W28*$X28*$Y28,0)+IF(ISNUMBER(AA28), VLOOKUP(AA28/$AH28,F!$A1:$B101,2,1)*AA28*$AB28*$AC28,0))*IF(ISNUMBER(F28),F28,1)*IF(ISNUMBER(E28),E28,1) -> 0 | AJ28: 0 | AK28: =IFERROR(I28*INDEX(F!$P$21:$AB$33, MATCH(G28/$AH28, F!$O$21:$O$33,1), MATCH(E28, F!$P$20:$AB$20,1)), 0 ) +IFERROR( M28*INDEX(F!$P$21:$AB$33, MATCH(K28/$AH28, F!$O$21:$O$33,1), MATCH(E28, F!$P$20:$AB$20,1)),0) + IFERROR( Q28*INDEX(F!$P$21:$AB$33, MATCH(O28/$AH28, F!$O$21:$O$33,1), MATCH(E28, F!$P$20:$AB$20,1)), 0) + IFERROR( U28*INDEX(F!$P$21:$AB$33, MATCH(S28/$AH28, F!$O$21:$O$33,1), MATCH(E28, F!$P$20:$AB$20,1)),0) + IFERROR(Y28*INDEX(F!$P$21:$AB$33, MATCH(W28/$AH28, F!$O$21:$O$33,1), MATCH(E28, F!$P$20:$AB$20,1)),0) + IFERROR( AC28*INDEX(F!$P$21:$AB$33, MATCH(AA28/$AH28, F!$O$21:$O$33,1), MATCH(E28, F!$P$20:$AB$20,1)),) -> 0
AE29: 0 | AF29: 0 | AG29: 0% | AI29: =( IF(ISNUMBER(G29), VLOOKUP(G29/$AH29,F!$A1:$B101,2,1)*G29*$H29*$I29,0)+IF(ISNUMBER(K29), VLOOKUP(K29/$AH29,F!$A1:$B101,2,1)*K29*$L29*$M29,0)+IF(ISNUMBER(O29), VLOOKUP(O29/$AH29,F!$A1:$B101,2,1)*O29*$P29*$Q29,0)+IF(ISNUMBER(S29), VLOOKUP(S29/$AH29,F!$A1:$B101,2,1)*S29*$T29*$U29,0)+IF(ISNUMBER(W29), VLOOKUP(W29/$AH29,F!$A1:$B101,2,1)*W29*$X29*$Y29,0)+IF(ISNUMBER(AA29), VLOOKUP(AA29/$AH29,F!$A1:$B101,2,1)*AA29*$AB29*$AC29,0))*IF(ISNUMBER(F29),F29,1)*IF(ISNUMBER(E29),E29,1) -> 0 | AJ29: 0 | AK29: =IFERROR(I29*INDEX(F!$P$21:$AB$33, MATCH(G29/$AH29, F!$O$21:$O$33,1), MATCH(E29, F!$P$20:$AB$20,1)), 0 ) +IFERROR( M29*INDEX(F!$P$21:$AB$33, MATCH(K29/$AH29, F!$O$21:$O$33,1), MATCH(E29, F!$P$20:$AB$20,1)),0) + IFERROR( Q29*INDEX(F!$P$21:$AB$33, MATCH(O29/$AH29, F!$O$21:$O$33,1), MATCH(E29, F!$P$20:$AB$20,1)), 0) + IFERROR( U29*INDEX(F!$P$21:$AB$33, MATCH(S29/$AH29, F!$O$21:$O$33,1), MATCH(E29, F!$P$20:$AB$20,1)),0) + IFERROR(Y29*INDEX(F!$P$21:$AB$33, MATCH(W29/$AH29, F!$O$21:$O$33,1), MATCH(E29, F!$P$20:$AB$20,1)),0) + IFERROR( AC29*INDEX(F!$P$21:$AB$33, MATCH(AA29/$AH29, F!$O$21:$O$33,1), MATCH(E29, F!$P$20:$AB$20,1)),) -> 0
E30: =ROUND(IFERROR(SUMPRODUCT(AJ22:AJ29,E22:E29)/AJ30,0),3) -> 0.00 | AE30: =SUM(AE22:AE29) -> 0 | AF30: 0.0 | AG30: =IFERROR( SUMPRODUCT(AG22:AG29,AJ22:AJ29)/AJ30,0) -> 0% | AI30: =SUM(AI22:AI29) -> 0 | AJ30: =SUM(AJ22:AJ29) -> 0 | AK30: =IF(SUM(AK22:AK29)=0,TIME(,0,),TIME(,SUM(AK22:AK29)+F!$V$37,)) -> 00:00:00
A31: =A32 -> 2015-10-22 | B31: Средняя | C31: ТЯГА | D31: Становая тяга | E31: 1.4 | G31: =IF(J31<>0, IFERROR(IF( $F31=2, MROUND($AH31*J31,1), IF( OR($F31="",$F31=1), MROUND($AH31*J31,2.5), MROUND($AH31*J31, 0.1))), "" ), "") -> 160 | H31: 6 | I31: 2 | J31: 50% | K31: =IF(N31<>0, IFERROR(IF( $F31=2, MROUND($AH31*N31,1), IF( OR($F31="",$F31=1), MROUND($AH31*N31,2.5), MROUND($AH31*N31, 0.1))), "" ), "") -> 207.5 | L31: 4 | M31: 4 | N31: 65% | O31: =IF(R31<>0, IFERROR(IF( $F31=2, MROUND($AH31*R31,1), IF( OR($F31="",$F31=1), MROUND($AH31*R31,2.5), MROUND($AH31*R31, 0.1))), "" ), "") ->  | S31: =IF(V31<>0, IFERROR(IF( $F31=2, MROUND($AH31*V31,1), IF( OR($F31="",$F31=1), MROUND($AH31*V31,2.5), MROUND($AH31*V31, 0.1))), "" ), "") ->  | W31: =IF(Z31<>0, IFERROR(IF( $F31=2, MROUND($AH31*Z31,1), IF( OR($F31="",$F31=1), MROUND($AH31*Z31,2.5), MROUND($AH31*Z31, 0.1))), "" ), "") ->  | AA31: =IF(AD31<>0, IFERROR(IF( $F31=2, MROUND($AH31*AD31,1), IF( OR($F31="",$F31=1), MROUND($AH31*AD31,2.5), MROUND($AH31*AD31, 0.1))), "" ), "") ->  | AE31: =(IF(ISNUMBER(G31),G31,0)*H31*I31+IF(ISNUMBER(K31),K31,1)*L31*M31+IF(ISNUMBER(O31),O31,1)*P31*Q31+IF(ISNUMBER(S31),S31,1)*T31*U31+IF(ISNUMBER(W31),W31,1)*X31*Y31+IF(ISNUMBER(AA31),AA31,1)*AB31*AC31)*IF(ISNUMBER(F31),F31,1) -> 5240 | AF31: 187 | AG31: =IFERROR((AF31/(AH31*IF(ISNUMBER(F31),F31,1))),0) -> 58% | AH31: 320.0 | AI31: =( IF(ISNUMBER(G31), VLOOKUP(G31/$AH31,F!$A1:$B101,2,1)*G31*$H31*$I31,0)+IF(ISNUMBER(K31), VLOOKUP(K31/$AH31,F!$A1:$B101,2,1)*K31*$L31*$M31,0)+IF(ISNUMBER(O31), VLOOKUP(O31/$AH31,F!$A1:$B101,2,1)*O31*$P31*$Q31,0)+IF(ISNUMBER(S31), VLOOKUP(S31/$AH31,F!$A1:$B101,2,1)*S31*$T31*$U31,0)+IF(ISNUMBER(W31), VLOOKUP(W31/$AH31,F!$A1:$B101,2,1)*W31*$X31*$Y31,0)+IF(ISNUMBER(AA31), VLOOKUP(AA31/$AH31,F!$A1:$B101,2,1)*AA31*$AB31*$AC31,0))*IF(ISNUMBER(F31),F31,1)*IF(ISNUMBER(E31),E31,1) -> 4969 | AJ31: =H31*I31+L31*M31+P31*Q31+T31*U31+X31*Y31+AB31*AC31 -> 28 | AK31: =IFERROR(I31*INDEX(F!$P$21:$AB$33, MATCH(G31/$AH31, F!$O$21:$O$33,1), MATCH(E31, F!$P$20:$AB$20,1)), 0 ) +IFERROR( M31*INDEX(F!$P$21:$AB$33, MATCH(K31/$AH31, F!$O$21:$O$33,1), MATCH(E31, F!$P$20:$AB$20,1)),0) + IFERROR( Q31*INDEX(F!$P$21:$AB$33, MATCH(O31/$AH31, F!$O$21:$O$33,1), MATCH(E31, F!$P$20:$AB$20,1)), 0) + IFERROR( U31*INDEX(F!$P$21:$AB$33, MATCH(S31/$AH31, F!$O$21:$O$33,1), MATCH(E31, F!$P$20:$AB$20,1)),0) + IFERROR(Y31*INDEX(F!$P$21:$AB$33, MATCH(W31/$AH31, F!$O$21:$O$33,1), MATCH(E31, F!$P$20:$AB$20,1)),0) + IFERROR( AC31*INDEX(F!$P$21:$AB$33, MATCH(AA31/$AH31, F!$O$21:$O$33,1), MATCH(E31, F!$P$20:$AB$20,1)),) -> 25 | AL31: Вертикальная и гориз тяги, лодочка, пресс
A32: =A23+1 -> 2015-10-22 | B32: Средняя | C32: ЖИМ | D32: Жим лежа | E32: 1.0 | G32: 82.5 | H32: 6 | I32: 1 | J32: 50% | K32: 107.5 | L32: 5 | M32: 5 | N32: 65% | AE32: 3182.5 | AF32: 103 | AG32: 62% | AH32: =AH5 -> 165.0 | AI32: =( IF(ISNUMBER(G32), VLOOKUP(G32/$AH32,F!$A1:$B101,2,1)*G32*$H32*$I32,0)+IF(ISNUMBER(K32), VLOOKUP(K32/$AH32,F!$A1:$B101,2,1)*K32*$L32*$M32,0)+IF(ISNUMBER(O32), VLOOKUP(O32/$AH32,F!$A1:$B101,2,1)*O32*$P32*$Q32,0)+IF(ISNUMBER(S32), VLOOKUP(S32/$AH32,F!$A1:$B101,2,1)*S32*$T32*$U32,0)+IF(ISNUMBER(W32), VLOOKUP(W32/$AH32,F!$A1:$B101,2,1)*W32*$X32*$Y32,0)+IF(ISNUMBER(AA32), VLOOKUP(AA32/$AH32,F!$A1:$B101,2,1)*AA32*$AB32*$AC32,0))*IF(ISNUMBER(F32),F32,1)*IF(ISNUMBER(E32),E32,1) -> 2398 | AJ32: 31 | AK32: =IFERROR(I32*INDEX(F!$P$21:$AB$33, MATCH(G32/$AH32, F!$O$21:$O$33,1), MATCH(E32, F!$P$20:$AB$20,1)), 0 ) +IFERROR( M32*INDEX(F!$P$21:$AB$33, MATCH(K32/$AH32, F!$O$21:$O$33,1), MATCH(E32, F!$P$20:$AB$20,1)),0) + IFERROR( Q32*INDEX(F!$P$21:$AB$33, MATCH(O32/$AH32, F!$O$21:$O$33,1), MATCH(E32, F!$P$20:$AB$20,1)), 0) + IFERROR( U32*INDEX(F!$P$21:$AB$33, MATCH(S32/$AH32, F!$O$21:$O$33,1), MATCH(E32, F!$P$20:$AB$20,1)),0) + IFERROR(Y32*INDEX(F!$P$21:$AB$33, MATCH(W32/$AH32, F!$O$21:$O$33,1), MATCH(E32, F!$P$20:$AB$20,1)),0) + IFERROR( AC32*INDEX(F!$P$21:$AB$33, MATCH(AA32/$AH32, F!$O$21:$O$33,1), MATCH(E32, F!$P$20:$AB$20,1)),) -> 17
B33: Легкая | C33: ТЯГА | D33: Тяга уступающая | E33: 1.4 | G33: 127.5 | H33: 3 | I33: 6 | J33: 40% | AE33: 2295 | AF33: 128 | AG33: 40% | AH33: =AH31 -> 320.0 | AI33: =( IF(ISNUMBER(G33), VLOOKUP(G33/$AH33,F!$A1:$B101,2,1)*G33*$H33*$I33,0)+IF(ISNUMBER(K33), VLOOKUP(K33/$AH33,F!$A1:$B101,2,1)*K33*$L33*$M33,0)+IF(ISNUMBER(O33), VLOOKUP(O33/$AH33,F!$A1:$B101,2,1)*O33*$P33*$Q33,0)+IF(ISNUMBER(S33), VLOOKUP(S33/$AH33,F!$A1:$B101,2,1)*S33*$T33*$U33,0)+IF(ISNUMBER(W33), VLOOKUP(W33/$AH33,F!$A1:$B101,2,1)*W33*$X33*$Y33,0)+IF(ISNUMBER(AA33), VLOOKUP(AA33/$AH33,F!$A1:$B101,2,1)*AA33*$AB33*$AC33,0))*IF(ISNUMBER(F33),F33,1)*IF(ISNUMBER(E33),E33,1) -> 964 | AJ33: 18 | AK33: =IFERROR(I33*INDEX(F!$P$21:$AB$33, MATCH(G33/$AH33, F!$O$21:$O$33,1), MATCH(E33, F!$P$20:$AB$20,1)), 0 ) +IFERROR( M33*INDEX(F!$P$21:$AB$33, MATCH(K33/$AH33, F!$O$21:$O$33,1), MATCH(E33, F!$P$20:$AB$20,1)),0) + IFERROR( Q33*INDEX(F!$P$21:$AB$33, MATCH(O33/$AH33, F!$O$21:$O$33,1), MATCH(E33, F!$P$20:$AB$20,1)), 0) + IFERROR( U33*INDEX(F!$P$21:$AB$33, MATCH(S33/$AH33, F!$O$21:$O$33,1), MATCH(E33, F!$P$20:$AB$20,1)),0) + IFERROR(Y33*INDEX(F!$P$21:$AB$33, MATCH(W33/$AH33, F!$O$21:$O$33,1), MATCH(E33, F!$P$20:$AB$20,1)),0) + IFERROR( AC33*INDEX(F!$P$21:$AB$33, MATCH(AA33/$AH33, F!$O$21:$O$33,1), MATCH(E33, F!$P$20:$AB$20,1)),) -> 21
B34: Легкая | C34: ЖИМ | D34: Жим на наклонной скамье | E34: 1.0 | G34: 45 | H34: 5 | I34: 5 | J34: 35% | AE34: 1125 | AF34: 45 | AG34: 34% | AH34: =AH5*0.8 -> 132.0 | AI34: =( IF(ISNUMBER(G34), VLOOKUP(G34/$AH34,F!$A1:$B101,2,1)*G34*$H34*$I34,0)+IF(ISNUMBER(K34), VLOOKUP(K34/$AH34,F!$A1:$B101,2,1)*K34*$L34*$M34,0)+IF(ISNUMBER(O34), VLOOKUP(O34/$AH34,F!$A1:$B101,2,1)*O34*$P34*$Q34,0)+IF(ISNUMBER(S34), VLOOKUP(S34/$AH34,F!$A1:$B101,2,1)*S34*$T34*$U34,0)+IF(ISNUMBER(W34), VLOOKUP(W34/$AH34,F!$A1:$B101,2,1)*W34*$X34*$Y34,0)+IF(ISNUMBER(AA34), VLOOKUP(AA34/$AH34,F!$A1:$B101,2,1)*AA34*$AB34*$AC34,0))*IF(ISNUMBER(F34),F34,1)*IF(ISNUMBER(E34),E34,1) -> 225 | AJ34: =H34*I34+L34*M34+P34*Q34+T34*U34+X34*Y34+AB34*AC34 -> 25 | AK34: =IFERROR(I34*INDEX(F!$P$21:$AB$33, MATCH(G34/$AH34, F!$O$21:$O$33,1), MATCH(E34, F!$P$20:$AB$20,1)), 0 ) +IFERROR( M34*INDEX(F!$P$21:$AB$33, MATCH(K34/$AH34, F!$O$21:$O$33,1), MATCH(E34, F!$P$20:$AB$20,1)),0) + IFERROR( Q34*INDEX(F!$P$21:$AB$33, MATCH(O34/$AH34, F!$O$21:$O$33,1), MATCH(E34, F!$P$20:$AB$20,1)), 0) + IFERROR( U34*INDEX(F!$P$21:$AB$33, MATCH(S34/$AH34, F!$O$21:$O$33,1), MATCH(E34, F!$P$20:$AB$20,1)),0) + IFERROR(Y34*INDEX(F!$P$21:$AB$33, MATCH(W34/$AH34, F!$O$21:$O$33,1), MATCH(E34, F!$P$20:$AB$20,1)),0) + IFERROR( AC34*INDEX(F!$P$21:$AB$33, MATCH(AA34/$AH34, F!$O$21:$O$33,1), MATCH(E34, F!$P$20:$AB$20,1)),) -> 10
B35: Легкая | C35: ЖИМ | D35: Жим гантелей лежа на накл скамье | E35: 0.8 | F35: 2 | G35: 15 | H35: 5 | I35: 5 | J35: 35% | AE35: 750 | AF35: 30 | AG35: 34% | AH35: =0.267*AH5 -> 44.1 | AI35: =( IF(ISNUMBER(G35), VLOOKUP(G35/$AH35,F!$A1:$B101,2,1)*G35*$H35*$I35,0)+IF(ISNUMBER(K35), VLOOKUP(K35/$AH35,F!$A1:$B101,2,1)*K35*$L35*$M35,0)+IF(ISNUMBER(O35), VLOOKUP(O35/$AH35,F!$A1:$B101,2,1)*O35*$P35*$Q35,0)+IF(ISNUMBER(S35), VLOOKUP(S35/$AH35,F!$A1:$B101,2,1)*S35*$T35*$U35,0)+IF(ISNUMBER(W35), VLOOKUP(W35/$AH35,F!$A1:$B101,2,1)*W35*$X35*$Y35,0)+IF(ISNUMBER(AA35), VLOOKUP(AA35/$AH35,F!$A1:$B101,2,1)*AA35*$AB35*$AC35,0))*IF(ISNUMBER(F35),F35,1)*IF(ISNUMBER(E35),E35,1) -> 120 | AJ35: =H35*I35+L35*M35+P35*Q35+T35*U35+X35*Y35+AB35*AC35 -> 25 | AK35: =IFERROR(I35*INDEX(F!$P$21:$AB$33, MATCH(G35/$AH35, F!$O$21:$O$33,1), MATCH(E35, F!$P$20:$AB$20,1)), 0 ) +IFERROR( M35*INDEX(F!$P$21:$AB$33, MATCH(K35/$AH35, F!$O$21:$O$33,1), MATCH(E35, F!$P$20:$AB$20,1)),0) + IFERROR( Q35*INDEX(F!$P$21:$AB$33, MATCH(O35/$AH35, F!$O$21:$O$33,1), MATCH(E35, F!$P$20:$AB$20,1)), 0) + IFERROR( U35*INDEX(F!$P$21:$AB$33, MATCH(S35/$AH35, F!$O$21:$O$33,1), MATCH(E35, F!$P$20:$AB$20,1)),0) + IFERROR(Y35*INDEX(F!$P$21:$AB$33, MATCH(W35/$AH35, F!$O$21:$O$33,1), MATCH(E35, F!$P$20:$AB$20,1)),0) + IFERROR( AC35*INDEX(F!$P$21:$AB$33, MATCH(AA35/$AH35, F!$O$21:$O$33,1), MATCH(E35, F!$P$20:$AB$20,1)),) -> 9
AE36: 0 | AF36: 0 | AG36: 0% | AI36: =( IF(ISNUMBER(G36), VLOOKUP(G36/$AH36,F!$A1:$B101,2,1)*G36*$H36*$I36,0)+IF(ISNUMBER(K36), VLOOKUP(K36/$AH36,F!$A1:$B101,2,1)*K36*$L36*$M36,0)+IF(ISNUMBER(O36), VLOOKUP(O36/$AH36,F!$A1:$B101,2,1)*O36*$P36*$Q36,0)+IF(ISNUMBER(S36), VLOOKUP(S36/$AH36,F!$A1:$B101,2,1)*S36*$T36*$U36,0)+IF(ISNUMBER(W36), VLOOKUP(W36/$AH36,F!$A1:$B101,2,1)*W36*$X36*$Y36,0)+IF(ISNUMBER(AA36), VLOOKUP(AA36/$AH36,F!$A1:$B101,2,1)*AA36*$AB36*$AC36,0))*IF(ISNUMBER(F36),F36,1)*IF(ISNUMBER(E36),E36,1) -> 0 | AJ36: 0 | AK36: =IFERROR(I36*INDEX(F!$P$21:$AB$33, MATCH(G36/$AH36, F!$O$21:$O$33,1), MATCH(E36, F!$P$20:$AB$20,1)), 0 ) +IFERROR( M36*INDEX(F!$P$21:$AB$33, MATCH(K36/$AH36, F!$O$21:$O$33,1), MATCH(E36, F!$P$20:$AB$20,1)),0) + IFERROR( Q36*INDEX(F!$P$21:$AB$33, MATCH(O36/$AH36, F!$O$21:$O$33,1), MATCH(E36, F!$P$20:$AB$20,1)), 0) + IFERROR( U36*INDEX(F!$P$21:$AB$33, MATCH(S36/$AH36, F!$O$21:$O$33,1), MATCH(E36, F!$P$20:$AB$20,1)),0) + IFERROR(Y36*INDEX(F!$P$21:$AB$33, MATCH(W36/$AH36, F!$O$21:$O$33,1), MATCH(E36, F!$P$20:$AB$20,1)),0) + IFERROR( AC36*INDEX(F!$P$21:$AB$33, MATCH(AA36/$AH36, F!$O$21:$O$33,1), MATCH(E36, F!$P$20:$AB$20,1)),) -> 0
AE37: 0 | AF37: 0 | AG37: 0% | AI37: =( IF(ISNUMBER(G37), VLOOKUP(G37/$AH37,F!$A1:$B101,2,1)*G37*$H37*$I37,0)+IF(ISNUMBER(K37), VLOOKUP(K37/$AH37,F!$A1:$B101,2,1)*K37*$L37*$M37,0)+IF(ISNUMBER(O37), VLOOKUP(O37/$AH37,F!$A1:$B101,2,1)*O37*$P37*$Q37,0)+IF(ISNUMBER(S37), VLOOKUP(S37/$AH37,F!$A1:$B101,2,1)*S37*$T37*$U37,0)+IF(ISNUMBER(W37), VLOOKUP(W37/$AH37,F!$A1:$B101,2,1)*W37*$X37*$Y37,0)+IF(ISNUMBER(AA37), VLOOKUP(AA37/$AH37,F!$A1:$B101,2,1)*AA37*$AB37*$AC37,0))*IF(ISNUMBER(F37),F37,1)*IF(ISNUMBER(E37),E37,1) -> 0 | AJ37: 0 | AK37: =IFERROR(I37*INDEX(F!$P$21:$AB$33, MATCH(G37/$AH37, F!$O$21:$O$33,1), MATCH(E37, F!$P$20:$AB$20,1)), 0 ) +IFERROR( M37*INDEX(F!$P$21:$AB$33, MATCH(K37/$AH37, F!$O$21:$O$33,1), MATCH(E37, F!$P$20:$AB$20,1)),0) + IFERROR( Q37*INDEX(F!$P$21:$AB$33, MATCH(O37/$AH37, F!$O$21:$O$33,1), MATCH(E37, F!$P$20:$AB$20,1)), 0) + IFERROR( U37*INDEX(F!$P$21:$AB$33, MATCH(S37/$AH37, F!$O$21:$O$33,1), MATCH(E37, F!$P$20:$AB$20,1)),0) + IFERROR(Y37*INDEX(F!$P$21:$AB$33, MATCH(W37/$AH37, F!$O$21:$O$33,1), MATCH(E37, F!$P$20:$AB$20,1)),0) + IFERROR( AC37*INDEX(F!$P$21:$AB$33, MATCH(AA37/$AH37, F!$O$21:$O$33,1), MATCH(E37, F!$P$20:$AB$20,1)),) -> 0
AE38: 0 | AF38: 0 | AG38: 0% | AI38: =( IF(ISNUMBER(G38), VLOOKUP(G38/$AH38,F!$A1:$B101,2,1)*G38*$H38*$I38,0)+IF(ISNUMBER(K38), VLOOKUP(K38/$AH38,F!$A1:$B101,2,1)*K38*$L38*$M38,0)+IF(ISNUMBER(O38), VLOOKUP(O38/$AH38,F!$A1:$B101,2,1)*O38*$P38*$Q38,0)+IF(ISNUMBER(S38), VLOOKUP(S38/$AH38,F!$A1:$B101,2,1)*S38*$T38*$U38,0)+IF(ISNUMBER(W38), VLOOKUP(W38/$AH38,F!$A1:$B101,2,1)*W38*$X38*$Y38,0)+IF(ISNUMBER(AA38), VLOOKUP(AA38/$AH38,F!$A1:$B101,2,1)*AA38*$AB38*$AC38,0))*IF(ISNUMBER(F38),F38,1)*IF(ISNUMBER(E38),E38,1) -> 0 | AJ38: 0 | AK38: =IFERROR(I38*INDEX(F!$P$21:$AB$33, MATCH(G38/$AH38, F!$O$21:$O$33,1), MATCH(E38, F!$P$20:$AB$20,1)), 0 ) +IFERROR( M38*INDEX(F!$P$21:$AB$33, MATCH(K38/$AH38, F!$O$21:$O$33,1), MATCH(E38, F!$P$20:$AB$20,1)),0) + IFERROR( Q38*INDEX(F!$P$21:$AB$33, MATCH(O38/$AH38, F!$O$21:$O$33,1), MATCH(E38, F!$P$20:$AB$20,1)), 0) + IFERROR( U38*INDEX(F!$P$21:$AB$33, MATCH(S38/$AH38, F!$O$21:$O$33,1), MATCH(E38, F!$P$20:$AB$20,1)),0) + IFERROR(Y38*INDEX(F!$P$21:$AB$33, MATCH(W38/$AH38, F!$O$21:$O$33,1), MATCH(E38, F!$P$20:$AB$20,1)),0) + IFERROR( AC38*INDEX(F!$P$21:$AB$33, MATCH(AA38/$AH38, F!$O$21:$O$33,1), MATCH(E38, F!$P$20:$AB$20,1)),) -> 0
E39: =ROUND(IFERROR(SUMPRODUCT(AJ31:AJ38,E31:E38)/AJ39,0),3) -> 1.11 | AE39: =SUM(AE31:AE38) -> 12592.5 | AF39: 99.2 | AG39: =IFERROR( SUMPRODUCT(AG31:AG38,AJ31:AJ38)/AJ39,0) -> 47% | AI39: =SUM(AI31:AI38) -> 8676 | AJ39: =SUM(AJ31:AJ38) -> 127 | AK39: =IF(SUM(AK31:AK38)=0,TIME(,0,),TIME(,SUM(AK31:AK38)+F!$V$37,)) -> 01:52:00
A40: =A41 -> 2015-10-23 | B40: Легкая | C40: ТЯГА | D40: Тяга с подчеркнутым стартом | E40: 1.4 | G40: =IF(J40<>0, IFERROR(IF( $F40=2, MROUND($AH40*J40,1), IF( OR($F40="",$F40=1), MROUND($AH40*J40,2.5), MROUND($AH40*J40, 0.1))), "" ), "") -> 127.5 | H40: 3 | I40: 5 | J40: 40% | K40: =IF(N40<>0, IFERROR(IF( $F40=2, MROUND($AH40*N40,1), IF( OR($F40="",$F40=1), MROUND($AH40*N40,2.5), MROUND($AH40*N40, 0.1))), "" ), "") ->  | O40: =IF(R40<>0, IFERROR(IF( $F40=2, MROUND($AH40*R40,1), IF( OR($F40="",$F40=1), MROUND($AH40*R40,2.5), MROUND($AH40*R40, 0.1))), "" ), "") ->  | S40: =IF(V40<>0, IFERROR(IF( $F40=2, MROUND($AH40*V40,1), IF( OR($F40="",$F40=1), MROUND($AH40*V40,2.5), MROUND($AH40*V40, 0.1))), "" ), "") ->  | W40: =IF(Z40<>0, IFERROR(IF( $F40=2, MROUND($AH40*Z40,1), IF( OR($F40="",$F40=1), MROUND($AH40*Z40,2.5), MROUND($AH40*Z40, 0.1))), "" ), "") ->  | AA40: =IF(AD40<>0, IFERROR(IF( $F40=2, MROUND($AH40*AD40,1), IF( OR($F40="",$F40=1), MROUND($AH40*AD40,2.5), MROUND($AH40*AD40, 0.1))), "" ), "") ->  | AE40: =(IF(ISNUMBER(G40),G40,0)*H40*I40+IF(ISNUMBER(K40),K40,1)*L40*M40+IF(ISNUMBER(O40),O40,1)*P40*Q40+IF(ISNUMBER(S40),S40,1)*T40*U40+IF(ISNUMBER(W40),W40,1)*X40*Y40+IF(ISNUMBER(AA40),AA40,1)*AB40*AC40)*IF(ISNUMBER(F40),F40,1) -> 1912.5 | AF40: 128 | AG40: =IFERROR((AF40/(AH40*IF(ISNUMBER(F40),F40,1))),0) -> 40% | AH40: =AH31 -> 320.0 | AI40: =( IF(ISNUMBER(G40), VLOOKUP(G40/$AH40,F!$A1:$B101,2,1)*G40*$H40*$I40,0)+IF(ISNUMBER(K40), VLOOKUP(K40/$AH40,F!$A1:$B101,2,1)*K40*$L40*$M40,0)+IF(ISNUMBER(O40), VLOOKUP(O40/$AH40,F!$A1:$B101,2,1)*O40*$P40*$Q40,0)+IF(ISNUMBER(S40), VLOOKUP(S40/$AH40,F!$A1:$B101,2,1)*S40*$T40*$U40,0)+IF(ISNUMBER(W40), VLOOKUP(W40/$AH40,F!$A1:$B101,2,1)*W40*$X40*$Y40,0)+IF(ISNUMBER(AA40), VLOOKUP(AA40/$AH40,F!$A1:$B101,2,1)*AA40*$AB40*$AC40,0))*IF(ISNUMBER(F40),F40,1)*IF(ISNUMBER(E40),E40,1) -> 803 | AJ40: =H40*I40+L40*M40+P40*Q40+T40*U40+X40*Y40+AB40*AC40 -> 15 | AK40: =IFERROR(I40*INDEX(F!$P$21:$AB$33, MATCH(G40/$AH40, F!$O$21:$O$33,1), MATCH(E40, F!$P$20:$AB$20,1)), 0 ) +IFERROR( M40*INDEX(F!$P$21:$AB$33, MATCH(K40/$AH40, F!$O$21:$O$33,1), MATCH(E40, F!$P$20:$AB$20,1)),0) + IFERROR( Q40*INDEX(F!$P$21:$AB$33, MATCH(O40/$AH40, F!$O$21:$O$33,1), MATCH(E40, F!$P$20:$AB$20,1)), 0) + IFERROR( U40*INDEX(F!$P$21:$AB$33, MATCH(S40/$AH40, F!$O$21:$O$33,1), MATCH(E40, F!$P$20:$AB$20,1)),0) + IFERROR(Y40*INDEX(F!$P$21:$AB$33, MATCH(W40/$AH40, F!$O$21:$O$33,1), MATCH(E40, F!$P$20:$AB$20,1)),0) + IFERROR( AC40*INDEX(F!$P$21:$AB$33, MATCH(AA40/$AH40, F!$O$21:$O$33,1), MATCH(E40, F!$P$20:$AB$20,1)),) -> 18 | AL40: Наружное вращение, махи гантелями, грудь в кроссовере
A41: =A32+1 -> 2015-10-23 | B41: Средняя | C41: ОФП | D41: Жим стоя | E41: 1.0 | G41: 45 | H41: 6 | I41: 1 | J41: 45% | K41: 57.5 | L41: 5 | M41: 5 | N41: 57% | AE41: 1707.5 | AF41: 55 | AG41: 56% | AH41: =AH14 -> 99.0 | AI41: =( IF(ISNUMBER(G41), VLOOKUP(G41/$AH41,F!$A1:$B101,2,1)*G41*$H41*$I41,0)+IF(ISNUMBER(K41), VLOOKUP(K41/$AH41,F!$A1:$B101,2,1)*K41*$L41*$M41,0)+IF(ISNUMBER(O41), VLOOKUP(O41/$AH41,F!$A1:$B101,2,1)*O41*$P41*$Q41,0)+IF(ISNUMBER(S41), VLOOKUP(S41/$AH41,F!$A1:$B101,2,1)*S41*$T41*$U41,0)+IF(ISNUMBER(W41), VLOOKUP(W41/$AH41,F!$A1:$B101,2,1)*W41*$X41*$Y41,0)+IF(ISNUMBER(AA41), VLOOKUP(AA41/$AH41,F!$A1:$B101,2,1)*AA41*$AB41*$AC41,0))*IF(ISNUMBER(F41),F41,1)*IF(ISNUMBER(E41),E41,1) -> 1048 | AJ41: 31 | AK41: =IFERROR(I41*INDEX(F!$P$21:$AB$33, MATCH(G41/$AH41, F!$O$21:$O$33,1), MATCH(E41, F!$P$20:$AB$20,1)), 0 ) +IFERROR( M41*INDEX(F!$P$21:$AB$33, MATCH(K41/$AH41, F!$O$21:$O$33,1), MATCH(E41, F!$P$20:$AB$20,1)),0) + IFERROR( Q41*INDEX(F!$P$21:$AB$33, MATCH(O41/$AH41, F!$O$21:$O$33,1), MATCH(E41, F!$P$20:$AB$20,1)), 0) + IFERROR( U41*INDEX(F!$P$21:$AB$33, MATCH(S41/$AH41, F!$O$21:$O$33,1), MATCH(E41, F!$P$20:$AB$20,1)),0) + IFERROR(Y41*INDEX(F!$P$21:$AB$33, MATCH(W41/$AH41, F!$O$21:$O$33,1), MATCH(E41, F!$P$20:$AB$20,1)),0) + IFERROR( AC41*INDEX(F!$P$21:$AB$33, MATCH(AA41/$AH41, F!$O$21:$O$33,1), MATCH(E41, F!$P$20:$AB$20,1)),) -> 17
B42: Легкая | C42: ОФП | D42: Присед в широкой постановке | E42: 1.2 | G42: 112.5 | H42: 6 | I42: 5 | J42: 45% | AE42: 3375 | AF42: 113 | AG42: 45% | AH42: =AH15 -> 249.6 | AI42: =( IF(ISNUMBER(G42), VLOOKUP(G42/$AH42,F!$A1:$B101,2,1)*G42*$H42*$I42,0)+IF(ISNUMBER(K42), VLOOKUP(K42/$AH42,F!$A1:$B101,2,1)*K42*$L42*$M42,0)+IF(ISNUMBER(O42), VLOOKUP(O42/$AH42,F!$A1:$B101,2,1)*O42*$P42*$Q42,0)+IF(ISNUMBER(S42), VLOOKUP(S42/$AH42,F!$A1:$B101,2,1)*S42*$T42*$U42,0)+IF(ISNUMBER(W42), VLOOKUP(W42/$AH42,F!$A1:$B101,2,1)*W42*$X42*$Y42,0)+IF(ISNUMBER(AA42), VLOOKUP(AA42/$AH42,F!$A1:$B101,2,1)*AA42*$AB42*$AC42,0))*IF(ISNUMBER(F42),F42,1)*IF(ISNUMBER(E42),E42,1) -> 1701 | AJ42: 30 | AK42: =IFERROR(I42*INDEX(F!$P$21:$AB$33, MATCH(G42/$AH42, F!$O$21:$O$33,1), MATCH(E42, F!$P$20:$AB$20,1)), 0 ) +IFERROR( M42*INDEX(F!$P$21:$AB$33, MATCH(K42/$AH42, F!$O$21:$O$33,1), MATCH(E42, F!$P$20:$AB$20,1)),0) + IFERROR( Q42*INDEX(F!$P$21:$AB$33, MATCH(O42/$AH42, F!$O$21:$O$33,1), MATCH(E42, F!$P$20:$AB$20,1)), 0) + IFERROR( U42*INDEX(F!$P$21:$AB$33, MATCH(S42/$AH42, F!$O$21:$O$33,1), MATCH(E42, F!$P$20:$AB$20,1)),0) + IFERROR(Y42*INDEX(F!$P$21:$AB$33, MATCH(W42/$AH42, F!$O$21:$O$33,1), MATCH(E42, F!$P$20:$AB$20,1)),0) + IFERROR( AC42*INDEX(F!$P$21:$AB$33, MATCH(AA42/$AH42, F!$O$21:$O$33,1), MATCH(E42, F!$P$20:$AB$20,1)),) -> 15
B43: Средняя | C43: ЖИМ | D43: Жим средним хватом | E43: 1.0 | G43: 70 | H43: 6 | I43: 1 | J43: 50% | K43: 82.5 | L43: 5 | M43: 5 | N43: 59% | AE43: 2482.5 | AF43: 80 | AG43: 57% | AH43: =AH16 -> 140.3 | AI43: =( IF(ISNUMBER(G43), VLOOKUP(G43/$AH43,F!$A1:$B101,2,1)*G43*$H43*$I43,0)+IF(ISNUMBER(K43), VLOOKUP(K43/$AH43,F!$A1:$B101,2,1)*K43*$L43*$M43,0)+IF(ISNUMBER(O43), VLOOKUP(O43/$AH43,F!$A1:$B101,2,1)*O43*$P43*$Q43,0)+IF(ISNUMBER(S43), VLOOKUP(S43/$AH43,F!$A1:$B101,2,1)*S43*$T43*$U43,0)+IF(ISNUMBER(W43), VLOOKUP(W43/$AH43,F!$A1:$B101,2,1)*W43*$X43*$Y43,0)+IF(ISNUMBER(AA43), VLOOKUP(AA43/$AH43,F!$A1:$B101,2,1)*AA43*$AB43*$AC43,0))*IF(ISNUMBER(F43),F43,1)*IF(ISNUMBER(E43),E43,1) -> 1542 | AJ43: =H43*I43+L43*M43+P43*Q43+T43*U43+X43*Y43+AB43*AC43 -> 31 | AK43: =IFERROR(I43*INDEX(F!$P$21:$AB$33, MATCH(G43/$AH43, F!$O$21:$O$33,1), MATCH(E43, F!$P$20:$AB$20,1)), 0 ) +IFERROR( M43*INDEX(F!$P$21:$AB$33, MATCH(K43/$AH43, F!$O$21:$O$33,1), MATCH(E43, F!$P$20:$AB$20,1)),0) + IFERROR( Q43*INDEX(F!$P$21:$AB$33, MATCH(O43/$AH43, F!$O$21:$O$33,1), MATCH(E43, F!$P$20:$AB$20,1)), 0) + IFERROR( U43*INDEX(F!$P$21:$AB$33, MATCH(S43/$AH43, F!$O$21:$O$33,1), MATCH(E43, F!$P$20:$AB$20,1)),0) + IFERROR(Y43*INDEX(F!$P$21:$AB$33, MATCH(W43/$AH43, F!$O$21:$O$33,1), MATCH(E43, F!$P$20:$AB$20,1)),0) + IFERROR( AC43*INDEX(F!$P$21:$AB$33, MATCH(AA43/$AH43, F!$O$21:$O$33,1), MATCH(E43, F!$P$20:$AB$20,1)),) -> 17
B44: Легкая | C44: ОФП | D44: Наклоны стоя | E44: 0.8 | G44: 80 | H44: 6 | I44: 4 | J44: 46% | AE44: 1920 | AF44: 80 | AG44: 45% | AH44: =AH17 -> 176.0 | AI44: =( IF(ISNUMBER(G44), VLOOKUP(G44/$AH44,F!$A1:$B101,2,1)*G44*$H44*$I44,0)+IF(ISNUMBER(K44), VLOOKUP(K44/$AH44,F!$A1:$B101,2,1)*K44*$L44*$M44,0)+IF(ISNUMBER(O44), VLOOKUP(O44/$AH44,F!$A1:$B101,2,1)*O44*$P44*$Q44,0)+IF(ISNUMBER(S44), VLOOKUP(S44/$AH44,F!$A1:$B101,2,1)*S44*$T44*$U44,0)+IF(ISNUMBER(W44), VLOOKUP(W44/$AH44,F!$A1:$B101,2,1)*W44*$X44*$Y44,0)+IF(ISNUMBER(AA44), VLOOKUP(AA44/$AH44,F!$A1:$B101,2,1)*AA44*$AB44*$AC44,0))*IF(ISNUMBER(F44),F44,1)*IF(ISNUMBER(E44),E44,1) -> 645 | AJ44: =H44*I44+L44*M44+P44*Q44+T44*U44+X44*Y44+AB44*AC44 -> 24 | AK44: =IFERROR(I44*INDEX(F!$P$21:$AB$33, MATCH(G44/$AH44, F!$O$21:$O$33,1), MATCH(E44, F!$P$20:$AB$20,1)), 0 ) +IFERROR( M44*INDEX(F!$P$21:$AB$33, MATCH(K44/$AH44, F!$O$21:$O$33,1), MATCH(E44, F!$P$20:$AB$20,1)),0) + IFERROR( Q44*INDEX(F!$P$21:$AB$33, MATCH(O44/$AH44, F!$O$21:$O$33,1), MATCH(E44, F!$P$20:$AB$20,1)), 0) + IFERROR( U44*INDEX(F!$P$21:$AB$33, MATCH(S44/$AH44, F!$O$21:$O$33,1), MATCH(E44, F!$P$20:$AB$20,1)),0) + IFERROR(Y44*INDEX(F!$P$21:$AB$33, MATCH(W44/$AH44, F!$O$21:$O$33,1), MATCH(E44, F!$P$20:$AB$20,1)),0) + IFERROR( AC44*INDEX(F!$P$21:$AB$33, MATCH(AA44/$AH44, F!$O$21:$O$33,1), MATCH(E44, F!$P$20:$AB$20,1)),) -> 7
AE45: 0 | AF45: 0 | AG45: 0% | AI45: =( IF(ISNUMBER(G45), VLOOKUP(G45/$AH45,F!$A1:$B101,2,1)*G45*$H45*$I45,0)+IF(ISNUMBER(K45), VLOOKUP(K45/$AH45,F!$A1:$B101,2,1)*K45*$L45*$M45,0)+IF(ISNUMBER(O45), VLOOKUP(O45/$AH45,F!$A1:$B101,2,1)*O45*$P45*$Q45,0)+IF(ISNUMBER(S45), VLOOKUP(S45/$AH45,F!$A1:$B101,2,1)*S45*$T45*$U45,0)+IF(ISNUMBER(W45), VLOOKUP(W45/$AH45,F!$A1:$B101,2,1)*W45*$X45*$Y45,0)+IF(ISNUMBER(AA45), VLOOKUP(AA45/$AH45,F!$A1:$B101,2,1)*AA45*$AB45*$AC45,0))*IF(ISNUMBER(F45),F45,1)*IF(ISNUMBER(E45),E45,1) -> 0 | AJ45: 0 | AK45: =IFERROR(I45*INDEX(F!$P$21:$AB$33, MATCH(G45/$AH45, F!$O$21:$O$33,1), MATCH(E45, F!$P$20:$AB$20,1)), 0 ) +IFERROR( M45*INDEX(F!$P$21:$AB$33, MATCH(K45/$AH45, F!$O$21:$O$33,1), MATCH(E45, F!$P$20:$AB$20,1)),0) + IFERROR( Q45*INDEX(F!$P$21:$AB$33, MATCH(O45/$AH45, F!$O$21:$O$33,1), MATCH(E45, F!$P$20:$AB$20,1)), 0) + IFERROR( U45*INDEX(F!$P$21:$AB$33, MATCH(S45/$AH45, F!$O$21:$O$33,1), MATCH(E45, F!$P$20:$AB$20,1)),0) + IFERROR(Y45*INDEX(F!$P$21:$AB$33, MATCH(W45/$AH45, F!$O$21:$O$33,1), MATCH(E45, F!$P$20:$AB$20,1)),0) + IFERROR( AC45*INDEX(F!$P$21:$AB$33, MATCH(AA45/$AH45, F!$O$21:$O$33,1), MATCH(E45, F!$P$20:$AB$20,1)),) -> 0
AE46: 0 | AF46: 0 | AG46: 0% | AI46: =( IF(ISNUMBER(G46), VLOOKUP(G46/$AH46,F!$A1:$B101,2,1)*G46*$H46*$I46,0)+IF(ISNUMBER(K46), VLOOKUP(K46/$AH46,F!$A1:$B101,2,1)*K46*$L46*$M46,0)+IF(ISNUMBER(O46), VLOOKUP(O46/$AH46,F!$A1:$B101,2,1)*O46*$P46*$Q46,0)+IF(ISNUMBER(S46), VLOOKUP(S46/$AH46,F!$A1:$B101,2,1)*S46*$T46*$U46,0)+IF(ISNUMBER(W46), VLOOKUP(W46/$AH46,F!$A1:$B101,2,1)*W46*$X46*$Y46,0)+IF(ISNUMBER(AA46), VLOOKUP(AA46/$AH46,F!$A1:$B101,2,1)*AA46*$AB46*$AC46,0))*IF(ISNUMBER(F46),F46,1)*IF(ISNUMBER(E46),E46,1) -> 0 | AJ46: 0 | AK46: =IFERROR(I46*INDEX(F!$P$21:$AB$33, MATCH(G46/$AH46, F!$O$21:$O$33,1), MATCH(E46, F!$P$20:$AB$20,1)), 0 ) +IFERROR( M46*INDEX(F!$P$21:$AB$33, MATCH(K46/$AH46, F!$O$21:$O$33,1), MATCH(E46, F!$P$20:$AB$20,1)),0) + IFERROR( Q46*INDEX(F!$P$21:$AB$33, MATCH(O46/$AH46, F!$O$21:$O$33,1), MATCH(E46, F!$P$20:$AB$20,1)), 0) + IFERROR( U46*INDEX(F!$P$21:$AB$33, MATCH(S46/$AH46, F!$O$21:$O$33,1), MATCH(E46, F!$P$20:$AB$20,1)),0) + IFERROR(Y46*INDEX(F!$P$21:$AB$33, MATCH(W46/$AH46, F!$O$21:$O$33,1), MATCH(E46, F!$P$20:$AB$20,1)),0) + IFERROR( AC46*INDEX(F!$P$21:$AB$33, MATCH(AA46/$AH46, F!$O$21:$O$33,1), MATCH(E46, F!$P$20:$AB$20,1)),) -> 0
AE47: 0 | AF47: 0 | AG47: 0% | AI47: =( IF(ISNUMBER(G47), VLOOKUP(G47/$AH47,F!$A1:$B101,2,1)*G47*$H47*$I47,0)+IF(ISNUMBER(K47), VLOOKUP(K47/$AH47,F!$A1:$B101,2,1)*K47*$L47*$M47,0)+IF(ISNUMBER(O47), VLOOKUP(O47/$AH47,F!$A1:$B101,2,1)*O47*$P47*$Q47,0)+IF(ISNUMBER(S47), VLOOKUP(S47/$AH47,F!$A1:$B101,2,1)*S47*$T47*$U47,0)+IF(ISNUMBER(W47), VLOOKUP(W47/$AH47,F!$A1:$B101,2,1)*W47*$X47*$Y47,0)+IF(ISNUMBER(AA47), VLOOKUP(AA47/$AH47,F!$A1:$B101,2,1)*AA47*$AB47*$AC47,0))*IF(ISNUMBER(F47),F47,1)*IF(ISNUMBER(E47),E47,1) -> 0 | AJ47: 0 | AK47: =IFERROR(I47*INDEX(F!$P$21:$AB$33, MATCH(G47/$AH47, F!$O$21:$O$33,1), MATCH(E47, F!$P$20:$AB$20,1)), 0 ) +IFERROR( M47*INDEX(F!$P$21:$AB$33, MATCH(K47/$AH47, F!$O$21:$O$33,1), MATCH(E47, F!$P$20:$AB$20,1)),0) + IFERROR( Q47*INDEX(F!$P$21:$AB$33, MATCH(O47/$AH47, F!$O$21:$O$33,1), MATCH(E47, F!$P$20:$AB$20,1)), 0) + IFERROR( U47*INDEX(F!$P$21:$AB$33, MATCH(S47/$AH47, F!$O$21:$O$33,1), MATCH(E47, F!$P$20:$AB$20,1)),0) + IFERROR(Y47*INDEX(F!$P$21:$AB$33, MATCH(W47/$AH47, F!$O$21:$O$33,1), MATCH(E47, F!$P$20:$AB$20,1)),0) + IFERROR( AC47*INDEX(F!$P$21:$AB$33, MATCH(AA47/$AH47, F!$O$21:$O$33,1), MATCH(E47, F!$P$20:$AB$20,1)),) -> 0
E48: =ROUND(IFERROR(SUMPRODUCT(AJ40:AJ47,E40:E47)/AJ48,0),3) -> 1.06 | AE48: =SUM(AE40:AE47) -> 11397.5 | AF48: 87.0 | AG48: =IFERROR( SUMPRODUCT(AG40:AG47,AJ40:AJ47)/AJ48,0) -> 50% | AI48: =SUM(AI40:AI47) -> 5739 | AJ48: =SUM(AJ40:AJ47) -> 131 | AK48: =IF(SUM(AK40:AK47)=0,TIME(,0,),TIME(,SUM(AK40:AK47)+F!$V$37,)) -> 01:43:00
A49: =A50 -> 2015-10-24 | G49: =IF(J49<>0, IFERROR(IF( $F49=2, MROUND($AH49*J49,1), IF( OR($F49="",$F49=1), MROUND($AH49*J49,2.5), MROUND($AH49*J49, 0.1))), "" ), "") ->  | K49: =IF(N49<>0, IFERROR(IF( $F49=2, MROUND($AH49*N49,1), IF( OR($F49="",$F49=1), MROUND($AH49*N49,2.5), MROUND($AH49*N49, 0.1))), "" ), "") ->  | O49: =IF(R49<>0, IFERROR(IF( $F49=2, MROUND($AH49*R49,1), IF( OR($F49="",$F49=1), MROUND($AH49*R49,2.5), MROUND($AH49*R49, 0.1))), "" ), "") ->  | S49: =IF(V49<>0, IFERROR(IF( $F49=2, MROUND($AH49*V49,1), IF( OR($F49="",$F49=1), MROUND($AH49*V49,2.5), MROUND($AH49*V49, 0.1))), "" ), "") ->  | W49: =IF(Z49<>0, IFERROR(IF( $F49=2, MROUND($AH49*Z49,1), IF( OR($F49="",$F49=1), MROUND($AH49*Z49,2.5), MROUND($AH49*Z49, 0.1))), "" ), "") ->  | AA49: =IF(AD49<>0, IFERROR(IF( $F49=2, MROUND($AH49*AD49,1), IF( OR($F49="",$F49=1), MROUND($AH49*AD49,2.5), MROUND($AH49*AD49, 0.1))), "" ), "") ->  | AE49: =(IF(ISNUMBER(G49),G49,0)*H49*I49+IF(ISNUMBER(K49),K49,1)*L49*M49+IF(ISNUMBER(O49),O49,1)*P49*Q49+IF(ISNUMBER(S49),S49,1)*T49*U49+IF(ISNUMBER(W49),W49,1)*X49*Y49+IF(ISNUMBER(AA49),AA49,1)*AB49*AC49)*IF(ISNUMBER(F49),F49,1) -> 0 | AF49: 0 | AG49: =IFERROR((AF49/(AH49*IF(ISNUMBER(F49),F49,1))),0) -> 0% | AI49: =( IF(ISNUMBER(G49), VLOOKUP(G49/$AH49,F!$A1:$B101,2,1)*G49*$H49*$I49,0)+IF(ISNUMBER(K49), VLOOKUP(K49/$AH49,F!$A1:$B101,2,1)*K49*$L49*$M49,0)+IF(ISNUMBER(O49), VLOOKUP(O49/$AH49,F!$A1:$B101,2,1)*O49*$P49*$Q49,0)+IF(ISNUMBER(S49), VLOOKUP(S49/$AH49,F!$A1:$B101,2,1)*S49*$T49*$U49,0)+IF(ISNUMBER(W49), VLOOKUP(W49/$AH49,F!$A1:$B101,2,1)*W49*$X49*$Y49,0)+IF(ISNUMBER(AA49), VLOOKUP(AA49/$AH49,F!$A1:$B101,2,1)*AA49*$AB49*$AC49,0))*IF(ISNUMBER(F49),F49,1)*IF(ISNUMBER(E49),E49,1) -> 0 | AJ49: =H49*I49+L49*M49+P49*Q49+T49*U49+X49*Y49+AB49*AC49 -> 0 | AK49: =IFERROR(I49*INDEX(F!$P$21:$AB$33, MATCH(G49/$AH49, F!$O$21:$O$33,1), MATCH(E49, F!$P$20:$AB$20,1)), 0 ) +IFERROR( M49*INDEX(F!$P$21:$AB$33, MATCH(K49/$AH49, F!$O$21:$O$33,1), MATCH(E49, F!$P$20:$AB$20,1)),0) + IFERROR( Q49*INDEX(F!$P$21:$AB$33, MATCH(O49/$AH49, F!$O$21:$O$33,1), MATCH(E49, F!$P$20:$AB$20,1)), 0) + IFERROR( U49*INDEX(F!$P$21:$AB$33, MATCH(S49/$AH49, F!$O$21:$O$33,1), MATCH(E49, F!$P$20:$AB$20,1)),0) + IFERROR(Y49*INDEX(F!$P$21:$AB$33, MATCH(W49/$AH49, F!$O$21:$O$33,1), MATCH(E49, F!$P$20:$AB$20,1)),0) + IFERROR( AC49*INDEX(F!$P$21:$AB$33, MATCH(AA49/$AH49, F!$O$21:$O$33,1), MATCH(E49, F!$P$20:$AB$20,1)),) -> 0
A50: =A41+1 -> 2015-10-24 | AE50: 0 | AF50: 0 | AG50: 0% | AI50: =( IF(ISNUMBER(G50), VLOOKUP(G50/$AH50,F!$A1:$B101,2,1)*G50*$H50*$I50,0)+IF(ISNUMBER(K50), VLOOKUP(K50/$AH50,F!$A1:$B101,2,1)*K50*$L50*$M50,0)+IF(ISNUMBER(O50), VLOOKUP(O50/$AH50,F!$A1:$B101,2,1)*O50*$P50*$Q50,0)+IF(ISNUMBER(S50), VLOOKUP(S50/$AH50,F!$A1:$B101,2,1)*S50*$T50*$U50,0)+IF(ISNUMBER(W50), VLOOKUP(W50/$AH50,F!$A1:$B101,2,1)*W50*$X50*$Y50,0)+IF(ISNUMBER(AA50), VLOOKUP(AA50/$AH50,F!$A1:$B101,2,1)*AA50*$AB50*$AC50,0))*IF(ISNUMBER(F50),F50,1)*IF(ISNUMBER(E50),E50,1) -> 0 | AJ50: 0 | AK50: =IFERROR(I50*INDEX(F!$P$21:$AB$33, MATCH(G50/$AH50, F!$O$21:$O$33,1), MATCH(E50, F!$P$20:$AB$20,1)), 0 ) +IFERROR( M50*INDEX(F!$P$21:$AB$33, MATCH(K50/$AH50, F!$O$21:$O$33,1), MATCH(E50, F!$P$20:$AB$20,1)),0) + IFERROR( Q50*INDEX(F!$P$21:$AB$33, MATCH(O50/$AH50, F!$O$21:$O$33,1), MATCH(E50, F!$P$20:$AB$20,1)), 0) + IFERROR( U50*INDEX(F!$P$21:$AB$33, MATCH(S50/$AH50, F!$O$21:$O$33,1), MATCH(E50, F!$P$20:$AB$20,1)),0) + IFERROR(Y50*INDEX(F!$P$21:$AB$33, MATCH(W50/$AH50, F!$O$21:$O$33,1), MATCH(E50, F!$P$20:$AB$20,1)),0) + IFERROR( AC50*INDEX(F!$P$21:$AB$33, MATCH(AA50/$AH50, F!$O$21:$O$33,1), MATCH(E50, F!$P$20:$AB$20,1)),) -> 0
AE51: =(IF(ISNUMBER(G51),G51,0)*H51*I51+IF(ISNUMBER(K51),K51,1)*L51*M51+IF(ISNUMBER(O51),O51,1)*P51*Q51+IF(ISNUMBER(S51),S51,1)*T51*U51+IF(ISNUMBER(W51),W51,1)*X51*Y51+IF(ISNUMBER(AA51),AA51,1)*AB51*AC51)*IF(ISNUMBER(F51),F51,1) -> 0 | AF51: 0 | AG51: 0% | AI51: =( IF(ISNUMBER(G51), VLOOKUP(G51/$AH51,F!$A1:$B101,2,1)*G51*$H51*$I51,0)+IF(ISNUMBER(K51), VLOOKUP(K51/$AH51,F!$A1:$B101,2,1)*K51*$L51*$M51,0)+IF(ISNUMBER(O51), VLOOKUP(O51/$AH51,F!$A1:$B101,2,1)*O51*$P51*$Q51,0)+IF(ISNUMBER(S51), VLOOKUP(S51/$AH51,F!$A1:$B101,2,1)*S51*$T51*$U51,0)+IF(ISNUMBER(W51), VLOOKUP(W51/$AH51,F!$A1:$B101,2,1)*W51*$X51*$Y51,0)+IF(ISNUMBER(AA51), VLOOKUP(AA51/$AH51,F!$A1:$B101,2,1)*AA51*$AB51*$AC51,0))*IF(ISNUMBER(F51),F51,1)*IF(ISNUMBER(E51),E51,1) -> 0 | AJ51: 0 | AK51: =IFERROR(I51*INDEX(F!$P$21:$AB$33, MATCH(G51/$AH51, F!$O$21:$O$33,1), MATCH(E51, F!$P$20:$AB$20,1)), 0 ) +IFERROR( M51*INDEX(F!$P$21:$AB$33, MATCH(K51/$AH51, F!$O$21:$O$33,1), MATCH(E51, F!$P$20:$AB$20,1)),0) + IFERROR( Q51*INDEX(F!$P$21:$AB$33, MATCH(O51/$AH51, F!$O$21:$O$33,1), MATCH(E51, F!$P$20:$AB$20,1)), 0) + IFERROR( U51*INDEX(F!$P$21:$AB$33, MATCH(S51/$AH51, F!$O$21:$O$33,1), MATCH(E51, F!$P$20:$AB$20,1)),0) + IFERROR(Y51*INDEX(F!$P$21:$AB$33, MATCH(W51/$AH51, F!$O$21:$O$33,1), MATCH(E51, F!$P$20:$AB$20,1)),0) + IFERROR( AC51*INDEX(F!$P$21:$AB$33, MATCH(AA51/$AH51, F!$O$21:$O$33,1), MATCH(E51, F!$P$20:$AB$20,1)),) -> 0
AE52: 0 | AF52: 0 | AG52: 0% | AI52: =( IF(ISNUMBER(G52), VLOOKUP(G52/$AH52,F!$A1:$B101,2,1)*G52*$H52*$I52,0)+IF(ISNUMBER(K52), VLOOKUP(K52/$AH52,F!$A1:$B101,2,1)*K52*$L52*$M52,0)+IF(ISNUMBER(O52), VLOOKUP(O52/$AH52,F!$A1:$B101,2,1)*O52*$P52*$Q52,0)+IF(ISNUMBER(S52), VLOOKUP(S52/$AH52,F!$A1:$B101,2,1)*S52*$T52*$U52,0)+IF(ISNUMBER(W52), VLOOKUP(W52/$AH52,F!$A1:$B101,2,1)*W52*$X52*$Y52,0)+IF(ISNUMBER(AA52), VLOOKUP(AA52/$AH52,F!$A1:$B101,2,1)*AA52*$AB52*$AC52,0))*IF(ISNUMBER(F52),F52,1)*IF(ISNUMBER(E52),E52,1) -> 0 | AJ52: =H52*I52+L52*M52+P52*Q52+T52*U52+X52*Y52+AB52*AC52 -> 0 | AK52: =IFERROR(I52*INDEX(F!$P$21:$AB$33, MATCH(G52/$AH52, F!$O$21:$O$33,1), MATCH(E52, F!$P$20:$AB$20,1)), 0 ) +IFERROR( M52*INDEX(F!$P$21:$AB$33, MATCH(K52/$AH52, F!$O$21:$O$33,1), MATCH(E52, F!$P$20:$AB$20,1)),0) + IFERROR( Q52*INDEX(F!$P$21:$AB$33, MATCH(O52/$AH52, F!$O$21:$O$33,1), MATCH(E52, F!$P$20:$AB$20,1)), 0) + IFERROR( U52*INDEX(F!$P$21:$AB$33, MATCH(S52/$AH52, F!$O$21:$O$33,1), MATCH(E52, F!$P$20:$AB$20,1)),0) + IFERROR(Y52*INDEX(F!$P$21:$AB$33, MATCH(W52/$AH52, F!$O$21:$O$33,1), MATCH(E52, F!$P$20:$AB$20,1)),0) + IFERROR( AC52*INDEX(F!$P$21:$AB$33, MATCH(AA52/$AH52, F!$O$21:$O$33,1), MATCH(E52, F!$P$20:$AB$20,1)),) -> 0
AE53: 0 | AF53: 0 | AG53: 0% | AI53: =( IF(ISNUMBER(G53), VLOOKUP(G53/$AH53,F!$A1:$B101,2,1)*G53*$H53*$I53,0)+IF(ISNUMBER(K53), VLOOKUP(K53/$AH53,F!$A1:$B101,2,1)*K53*$L53*$M53,0)+IF(ISNUMBER(O53), VLOOKUP(O53/$AH53,F!$A1:$B101,2,1)*O53*$P53*$Q53,0)+IF(ISNUMBER(S53), VLOOKUP(S53/$AH53,F!$A1:$B101,2,1)*S53*$T53*$U53,0)+IF(ISNUMBER(W53), VLOOKUP(W53/$AH53,F!$A1:$B101,2,1)*W53*$X53*$Y53,0)+IF(ISNUMBER(AA53), VLOOKUP(AA53/$AH53,F!$A1:$B101,2,1)*AA53*$AB53*$AC53,0))*IF(ISNUMBER(F53),F53,1)*IF(ISNUMBER(E53),E53,1) -> 0 | AJ53: =H53*I53+L53*M53+P53*Q53+T53*U53+X53*Y53+AB53*AC53 -> 0 | AK53: =IFERROR(I53*INDEX(F!$P$21:$AB$33, MATCH(G53/$AH53, F!$O$21:$O$33,1), MATCH(E53, F!$P$20:$AB$20,1)), 0 ) +IFERROR( M53*INDEX(F!$P$21:$AB$33, MATCH(K53/$AH53, F!$O$21:$O$33,1), MATCH(E53, F!$P$20:$AB$20,1)),0) + IFERROR( Q53*INDEX(F!$P$21:$AB$33, MATCH(O53/$AH53, F!$O$21:$O$33,1), MATCH(E53, F!$P$20:$AB$20,1)), 0) + IFERROR( U53*INDEX(F!$P$21:$AB$33, MATCH(S53/$AH53, F!$O$21:$O$33,1), MATCH(E53, F!$P$20:$AB$20,1)),0) + IFERROR(Y53*INDEX(F!$P$21:$AB$33, MATCH(W53/$AH53, F!$O$21:$O$33,1), MATCH(E53, F!$P$20:$AB$20,1)),0) + IFERROR( AC53*INDEX(F!$P$21:$AB$33, MATCH(AA53/$AH53, F!$O$21:$O$33,1), MATCH(E53, F!$P$20:$AB$20,1)),) -> 0
AE54: 0 | AF54: 0 | AG54: 0% | AI54: =( IF(ISNUMBER(G54), VLOOKUP(G54/$AH54,F!$A1:$B101,2,1)*G54*$H54*$I54,0)+IF(ISNUMBER(K54), VLOOKUP(K54/$AH54,F!$A1:$B101,2,1)*K54*$L54*$M54,0)+IF(ISNUMBER(O54), VLOOKUP(O54/$AH54,F!$A1:$B101,2,1)*O54*$P54*$Q54,0)+IF(ISNUMBER(S54), VLOOKUP(S54/$AH54,F!$A1:$B101,2,1)*S54*$T54*$U54,0)+IF(ISNUMBER(W54), VLOOKUP(W54/$AH54,F!$A1:$B101,2,1)*W54*$X54*$Y54,0)+IF(ISNUMBER(AA54), VLOOKUP(AA54/$AH54,F!$A1:$B101,2,1)*AA54*$AB54*$AC54,0))*IF(ISNUMBER(F54),F54,1)*IF(ISNUMBER(E54),E54,1) -> 0 | AJ54: 0 | AK54: =IFERROR(I54*INDEX(F!$P$21:$AB$33, MATCH(G54/$AH54, F!$O$21:$O$33,1), MATCH(E54, F!$P$20:$AB$20,1)), 0 ) +IFERROR( M54*INDEX(F!$P$21:$AB$33, MATCH(K54/$AH54, F!$O$21:$O$33,1), MATCH(E54, F!$P$20:$AB$20,1)),0) + IFERROR( Q54*INDEX(F!$P$21:$AB$33, MATCH(O54/$AH54, F!$O$21:$O$33,1), MATCH(E54, F!$P$20:$AB$20,1)), 0) + IFERROR( U54*INDEX(F!$P$21:$AB$33, MATCH(S54/$AH54, F!$O$21:$O$33,1), MATCH(E54, F!$P$20:$AB$20,1)),0) + IFERROR(Y54*INDEX(F!$P$21:$AB$33, MATCH(W54/$AH54, F!$O$21:$O$33,1), MATCH(E54, F!$P$20:$AB$20,1)),0) + IFERROR( AC54*INDEX(F!$P$21:$AB$33, MATCH(AA54/$AH54, F!$O$21:$O$33,1), MATCH(E54, F!$P$20:$AB$20,1)),) -> 0
AE55: 0 | AF55: 0 | AG55: 0% | AI55: =( IF(ISNUMBER(G55), VLOOKUP(G55/$AH55,F!$A1:$B101,2,1)*G55*$H55*$I55,0)+IF(ISNUMBER(K55), VLOOKUP(K55/$AH55,F!$A1:$B101,2,1)*K55*$L55*$M55,0)+IF(ISNUMBER(O55), VLOOKUP(O55/$AH55,F!$A1:$B101,2,1)*O55*$P55*$Q55,0)+IF(ISNUMBER(S55), VLOOKUP(S55/$AH55,F!$A1:$B101,2,1)*S55*$T55*$U55,0)+IF(ISNUMBER(W55), VLOOKUP(W55/$AH55,F!$A1:$B101,2,1)*W55*$X55*$Y55,0)+IF(ISNUMBER(AA55), VLOOKUP(AA55/$AH55,F!$A1:$B101,2,1)*AA55*$AB55*$AC55,0))*IF(ISNUMBER(F55),F55,1)*IF(ISNUMBER(E55),E55,1) -> 0 | AJ55: 0 | AK55: =IFERROR(I55*INDEX(F!$P$21:$AB$33, MATCH(G55/$AH55, F!$O$21:$O$33,1), MATCH(E55, F!$P$20:$AB$20,1)), 0 ) +IFERROR( M55*INDEX(F!$P$21:$AB$33, MATCH(K55/$AH55, F!$O$21:$O$33,1), MATCH(E55, F!$P$20:$AB$20,1)),0) + IFERROR( Q55*INDEX(F!$P$21:$AB$33, MATCH(O55/$AH55, F!$O$21:$O$33,1), MATCH(E55, F!$P$20:$AB$20,1)), 0) + IFERROR( U55*INDEX(F!$P$21:$AB$33, MATCH(S55/$AH55, F!$O$21:$O$33,1), MATCH(E55, F!$P$20:$AB$20,1)),0) + IFERROR(Y55*INDEX(F!$P$21:$AB$33, MATCH(W55/$AH55, F!$O$21:$O$33,1), MATCH(E55, F!$P$20:$AB$20,1)),0) + IFERROR( AC55*INDEX(F!$P$21:$AB$33, MATCH(AA55/$AH55, F!$O$21:$O$33,1), MATCH(E55, F!$P$20:$AB$20,1)),) -> 0
AE56: 0 | AF56: 0 | AG56: 0% | AI56: =( IF(ISNUMBER(G56), VLOOKUP(G56/$AH56,F!$A1:$B101,2,1)*G56*$H56*$I56,0)+IF(ISNUMBER(K56), VLOOKUP(K56/$AH56,F!$A1:$B101,2,1)*K56*$L56*$M56,0)+IF(ISNUMBER(O56), VLOOKUP(O56/$AH56,F!$A1:$B101,2,1)*O56*$P56*$Q56,0)+IF(ISNUMBER(S56), VLOOKUP(S56/$AH56,F!$A1:$B101,2,1)*S56*$T56*$U56,0)+IF(ISNUMBER(W56), VLOOKUP(W56/$AH56,F!$A1:$B101,2,1)*W56*$X56*$Y56,0)+IF(ISNUMBER(AA56), VLOOKUP(AA56/$AH56,F!$A1:$B101,2,1)*AA56*$AB56*$AC56,0))*IF(ISNUMBER(F56),F56,1)*IF(ISNUMBER(E56),E56,1) -> 0 | AJ56: 0 | AK56: =IFERROR(I56*INDEX(F!$P$21:$AB$33, MATCH(G56/$AH56, F!$O$21:$O$33,1), MATCH(E56, F!$P$20:$AB$20,1)), 0 ) +IFERROR( M56*INDEX(F!$P$21:$AB$33, MATCH(K56/$AH56, F!$O$21:$O$33,1), MATCH(E56, F!$P$20:$AB$20,1)),0) + IFERROR( Q56*INDEX(F!$P$21:$AB$33, MATCH(O56/$AH56, F!$O$21:$O$33,1), MATCH(E56, F!$P$20:$AB$20,1)), 0) + IFERROR( U56*INDEX(F!$P$21:$AB$33, MATCH(S56/$AH56, F!$O$21:$O$33,1), MATCH(E56, F!$P$20:$AB$20,1)),0) + IFERROR(Y56*INDEX(F!$P$21:$AB$33, MATCH(W56/$AH56, F!$O$21:$O$33,1), MATCH(E56, F!$P$20:$AB$20,1)),0) + IFERROR( AC56*INDEX(F!$P$21:$AB$33, MATCH(AA56/$AH56, F!$O$21:$O$33,1), MATCH(E56, F!$P$20:$AB$20,1)),) -> 0
E57: =ROUND(IFERROR(SUMPRODUCT(AJ49:AJ56,E49:E56)/AJ57,0),3) -> 0.00 | AE57: =SUM(AE49:AE56) -> 0 | AF57: 0.0 | AG57: =IFERROR( SUMPRODUCT(AG49:AG56,AJ49:AJ56)/AJ57,0) -> 0% | AI57: =SUM(AI49:AI56) -> 0 | AJ57: =SUM(AJ49:AJ56) -> 0 | AK57: =IF(SUM(AK49:AK56)=0,TIME(,0,),TIME(,SUM(AK49:AK56)+F!$V$37,)) -> 00:00:00
A58: =A2 -> 7 | E58: =IF(AJ58=0,0,(E68*AJ68 + E77*AJ77 + E86*AJ86 + E95*AJ95 + E104*AJ104 + E113*AJ113 ) /AJ58 ) -> 1.05 | F58: Микроцикл | N58: =N2+1 -> 2 | AE58: =AE68+AE77+AE86+AE95+AE104+AE113 -> 42617 | AF58: =IFERROR(AE58/AJ58,0) -> 92.2 | AG58: =IF(AJ58=0,0,(AG68*AJ68 + AG77*AJ77 + AG86*AJ86 + AG95*AJ95 + AG104*AJ104 + AG113*AJ113 ) /AJ58 ) -> 49.2% | AH58: 1.0% | AI58: =AI68+AI77+AI86+AI95+AI104+AI113 -> 26758 | AJ58: =AJ68+AJ77+AJ86+AJ95+AJ104+AJ113 -> 462 | AK58: =AK68+AK77+AK86+AK95+AK104+AK113 -> 06:49:00
A59: Дата | B59: Нагрузка | C59: Группа | D59: Упражнения | E59: Коэф | F59: Множ | G59: Вес | H59: Пов | I59: Под | J59: % | K59: Вес | L59: Пов | M59: Под | N59: % | O59: Вес | P59: Пов | Q59: Под | R59: % | S59: Вес | T59: Пов | U59: Под | V59: % | W59: Вес | X59: Пов | Y59: Под | Z59: % | AA59: Вес | AB59: Пов | AC59: Под | AD59: % | AE59: Тоннаж | AF59: Ср.вес | AG59: ОИ | AH59: ПМ | AI59: Инт.Ф+Б | AJ59: КПШ | AK59: Время | AL59: Комментарии
A60: =A61 -> 2015-10-26 | B60: =IF(B4="","",B4) -> Средняя | C60: ТЯГА | D60: Тяга уступающая | E60: 1.4 | G60: =IF(J60<>0, IFERROR(IF( $F60=2, MROUND($AH60*J60,1), IF( OR($F60="",$F60=1), MROUND($AH60*J60,2.5), MROUND($AH60*J60, 0.1))), "" ), "") -> 162.5 | H60: 4 | I60: 2 | J60: 50% | K60: =IF(N60<>0, IFERROR(IF( $F60=2, MROUND($AH60*N60,1), IF( OR($F60="",$F60=1), MROUND($AH60*N60,2.5), MROUND($AH60*N60, 0.1))), "" ), "") -> 210 | L60: 3 | M60: 4 | N60: 65% | O60: =IF(R60<>0, IFERROR(IF( $F60=2, MROUND($AH60*R60,1), IF( OR($F60="",$F60=1), MROUND($AH60*R60,2.5), MROUND($AH60*R60, 0.1))), "" ), "") ->  | S60: =IF(V60<>0, IFERROR(IF( $F60=2, MROUND($AH60*V60,1), IF( OR($F60="",$F60=1), MROUND($AH60*V60,2.5), MROUND($AH60*V60, 0.1))), "" ), "") ->  | W60: =IF(Z60<>0, IFERROR(IF( $F60=2, MROUND($AH60*Z60,1), IF( OR($F60="",$F60=1), MROUND($AH60*Z60,2.5), MROUND($AH60*Z60, 0.1))), "" ), "") ->  | AA60: =IF(AD60<>0, IFERROR(IF( $F60=2, MROUND($AH60*AD60,1), IF( OR($F60="",$F60=1), MROUND($AH60*AD60,2.5), MROUND($AH60*AD60, 0.1))), "" ), "") ->  | AE60: =(IF(ISNUMBER(G60),G60,0)*H60*I60+IF(ISNUMBER(K60),K60,1)*L60*M60+IF(ISNUMBER(O60),O60,1)*P60*Q60+IF(ISNUMBER(S60),S60,1)*T60*U60+IF(ISNUMBER(W60),W60,1)*X60*Y60+IF(ISNUMBER(AA60),AA60,1)*AB60*AC60)*IF(ISNUMBER(F60),F60,1) -> 3820 | AF60: =IFERROR(AE60/AJ60,0) -> 191 | AG60: =IFERROR((AF60/(AH60*IF(ISNUMBER(F60),F60,1))),0) -> 59% | AH60: =IF(ISNUMBER(AH4), AH4+(AH4*$AH$58),"") -> 323.2 | AI60: =( IF(ISNUMBER(G60), VLOOKUP(G60/$AH60,F!$A1:$B101,2,1)*G60*$H60*$I60,0)+IF(ISNUMBER(K60), VLOOKUP(K60/$AH60,F!$A1:$B101,2,1)*K60*$L60*$M60,0)+IF(ISNUMBER(O60), VLOOKUP(O60/$AH60,F!$A1:$B101,2,1)*O60*$P60*$Q60,0)+IF(ISNUMBER(S60), VLOOKUP(S60/$AH60,F!$A1:$B101,2,1)*S60*$T60*$U60,0)+IF(ISNUMBER(W60), VLOOKUP(W60/$AH60,F!$A1:$B101,2,1)*W60*$X60*$Y60,0)+IF(ISNUMBER(AA60), VLOOKUP(AA60/$AH60,F!$A1:$B101,2,1)*AA60*$AB60*$AC60,0))*IF(ISNUMBER(F60),F60,1)*IF(ISNUMBER(E60),E60,1) -> 3662 | AJ60: =H60*I60+L60*M60+P60*Q60+T60*U60+X60*Y60+AB60*AC60 -> 20 | AK60: =IFERROR(I60*INDEX(F!$P$21:$AB$33, MATCH(G60/$AH60, F!$O$21:$O$33,1), MATCH(E60, F!$P$20:$AB$20,1)), 0 ) +IFERROR( M60*INDEX(F!$P$21:$AB$33, MATCH(K60/$AH60, F!$O$21:$O$33,1), MATCH(E60, F!$P$20:$AB$20,1)),0) + IFERROR( Q60*INDEX(F!$P$21:$AB$33, MATCH(O60/$AH60, F!$O$21:$O$33,1), MATCH(E60, F!$P$20:$AB$20,1)), 0) + IFERROR( U60*INDEX(F!$P$21:$AB$33, MATCH(S60/$AH60, F!$O$21:$O$33,1), MATCH(E60, F!$P$20:$AB$20,1)),0) + IFERROR(Y60*INDEX(F!$P$21:$AB$33, MATCH(W60/$AH60, F!$O$21:$O$33,1), MATCH(E60, F!$P$20:$AB$20,1)),0) + IFERROR( AC60*INDEX(F!$P$21:$AB$33, MATCH(AA60/$AH60, F!$O$21:$O$33,1), MATCH(E60, F!$P$20:$AB$20,1)),) -> 25
A61: =A5+A2 -> 2015-10-26 | B61: Легкая | C61: ЖИМ | D61: Жим лежа | E61: 1.0 | G61: 75 | H61: 5 | I61: 4 | J61: 45% | AE61: 1500 | AF61: 75 | AG61: 45% | AH61: 166.7 | AI61: =( IF(ISNUMBER(G61), VLOOKUP(G61/$AH61,F!$A1:$B101,2,1)*G61*$H61*$I61,0)+IF(ISNUMBER(K61), VLOOKUP(K61/$AH61,F!$A1:$B101,2,1)*K61*$L61*$M61,0)+IF(ISNUMBER(O61), VLOOKUP(O61/$AH61,F!$A1:$B101,2,1)*O61*$P61*$Q61,0)+IF(ISNUMBER(S61), VLOOKUP(S61/$AH61,F!$A1:$B101,2,1)*S61*$T61*$U61,0)+IF(ISNUMBER(W61), VLOOKUP(W61/$AH61,F!$A1:$B101,2,1)*W61*$X61*$Y61,0)+IF(ISNUMBER(AA61), VLOOKUP(AA61/$AH61,F!$A1:$B101,2,1)*AA61*$AB61*$AC61,0))*IF(ISNUMBER(F61),F61,1)*IF(ISNUMBER(E61),E61,1) -> 630 | AJ61: 20 | AK61: =IFERROR(I61*INDEX(F!$P$21:$AB$33, MATCH(G61/$AH61, F!$O$21:$O$33,1), MATCH(E61, F!$P$20:$AB$20,1)), 0 ) +IFERROR( M61*INDEX(F!$P$21:$AB$33, MATCH(K61/$AH61, F!$O$21:$O$33,1), MATCH(E61, F!$P$20:$AB$20,1)),0) + IFERROR( Q61*INDEX(F!$P$21:$AB$33, MATCH(O61/$AH61, F!$O$21:$O$33,1), MATCH(E61, F!$P$20:$AB$20,1)), 0) + IFERROR( U61*INDEX(F!$P$21:$AB$33, MATCH(S61/$AH61, F!$O$21:$O$33,1), MATCH(E61, F!$P$20:$AB$20,1)),0) + IFERROR(Y61*INDEX(F!$P$21:$AB$33, MATCH(W61/$AH61, F!$O$21:$O$33,1), MATCH(E61, F!$P$20:$AB$20,1)),0) + IFERROR( AC61*INDEX(F!$P$21:$AB$33, MATCH(AA61/$AH61, F!$O$21:$O$33,1), MATCH(E61, F!$P$20:$AB$20,1)),) -> 8
B62: Легкая | C62: ТЯГА | D62: Тяга до колен | E62: 1.4 | G62: 122.5 | H62: 4 | I62: 4 | J62: 38% | AE62: 1960 | AF62: 123 | AG62: 38% | AH62: 323.2 | AI62: =( IF(ISNUMBER(G62), VLOOKUP(G62/$AH62,F!$A1:$B101,2,1)*G62*$H62*$I62,0)+IF(ISNUMBER(K62), VLOOKUP(K62/$AH62,F!$A1:$B101,2,1)*K62*$L62*$M62,0)+IF(ISNUMBER(O62), VLOOKUP(O62/$AH62,F!$A1:$B101,2,1)*O62*$P62*$Q62,0)+IF(ISNUMBER(S62), VLOOKUP(S62/$AH62,F!$A1:$B101,2,1)*S62*$T62*$U62,0)+IF(ISNUMBER(W62), VLOOKUP(W62/$AH62,F!$A1:$B101,2,1)*W62*$X62*$Y62,0)+IF(ISNUMBER(AA62), VLOOKUP(AA62/$AH62,F!$A1:$B101,2,1)*AA62*$AB62*$AC62,0))*IF(ISNUMBER(F62),F62,1)*IF(ISNUMBER(E62),E62,1) -> 713 | AJ62: 16 | AK62: =IFERROR(I62*INDEX(F!$P$21:$AB$33, MATCH(G62/$AH62, F!$O$21:$O$33,1), MATCH(E62, F!$P$20:$AB$20,1)), 0 ) +IFERROR( M62*INDEX(F!$P$21:$AB$33, MATCH(K62/$AH62, F!$O$21:$O$33,1), MATCH(E62, F!$P$20:$AB$20,1)),0) + IFERROR( Q62*INDEX(F!$P$21:$AB$33, MATCH(O62/$AH62, F!$O$21:$O$33,1), MATCH(E62, F!$P$20:$AB$20,1)), 0) + IFERROR( U62*INDEX(F!$P$21:$AB$33, MATCH(S62/$AH62, F!$O$21:$O$33,1), MATCH(E62, F!$P$20:$AB$20,1)),0) + IFERROR(Y62*INDEX(F!$P$21:$AB$33, MATCH(W62/$AH62, F!$O$21:$O$33,1), MATCH(E62, F!$P$20:$AB$20,1)),0) + IFERROR( AC62*INDEX(F!$P$21:$AB$33, MATCH(AA62/$AH62, F!$O$21:$O$33,1), MATCH(E62, F!$P$20:$AB$20,1)),) -> 14
B63: Легкая | C63: ЖИМ | D63: Жим гантелей лежа на гор скамье | E63: 0.8 | F63: 2 | G63: 18 | H63: 6 | I63: 4 | J63: 40% | AE63: 864 | AF63: 36 | AG63: 40% | AH63: 44.5 | AI63: =( IF(ISNUMBER(G63), VLOOKUP(G63/$AH63,F!$A1:$B101,2,1)*G63*$H63*$I63,0)+IF(ISNUMBER(K63), VLOOKUP(K63/$AH63,F!$A1:$B101,2,1)*K63*$L63*$M63,0)+IF(ISNUMBER(O63), VLOOKUP(O63/$AH63,F!$A1:$B101,2,1)*O63*$P63*$Q63,0)+IF(ISNUMBER(S63), VLOOKUP(S63/$AH63,F!$A1:$B101,2,1)*S63*$T63*$U63,0)+IF(ISNUMBER(W63), VLOOKUP(W63/$AH63,F!$A1:$B101,2,1)*W63*$X63*$Y63,0)+IF(ISNUMBER(AA63), VLOOKUP(AA63/$AH63,F!$A1:$B101,2,1)*AA63*$AB63*$AC63,0))*IF(ISNUMBER(F63),F63,1)*IF(ISNUMBER(E63),E63,1) -> 221 | AJ63: =H63*I63+L63*M63+P63*Q63+T63*U63+X63*Y63+AB63*AC63 -> 24 | AK63: =IFERROR(I63*INDEX(F!$P$21:$AB$33, MATCH(G63/$AH63, F!$O$21:$O$33,1), MATCH(E63, F!$P$20:$AB$20,1)), 0 ) +IFERROR( M63*INDEX(F!$P$21:$AB$33, MATCH(K63/$AH63, F!$O$21:$O$33,1), MATCH(E63, F!$P$20:$AB$20,1)),0) + IFERROR( Q63*INDEX(F!$P$21:$AB$33, MATCH(O63/$AH63, F!$O$21:$O$33,1), MATCH(E63, F!$P$20:$AB$20,1)), 0) + IFERROR( U63*INDEX(F!$P$21:$AB$33, MATCH(S63/$AH63, F!$O$21:$O$33,1), MATCH(E63, F!$P$20:$AB$20,1)),0) + IFERROR(Y63*INDEX(F!$P$21:$AB$33, MATCH(W63/$AH63, F!$O$21:$O$33,1), MATCH(E63, F!$P$20:$AB$20,1)),0) + IFERROR( AC63*INDEX(F!$P$21:$AB$33, MATCH(AA63/$AH63, F!$O$21:$O$33,1), MATCH(E63, F!$P$20:$AB$20,1)),) -> 7
B64: Средняя | C64: ОФП | D64: Бицепс стоя | E64: 0.5 | G64: 25 | H64: 6 | I64: 1 | J64: 45% | K64: 35 | L64: 5 | M64: 4 | N64: 60% | AE64: 850 | AF64: 33 | AG64: 56% | AH64: 58.3 | AI64: =( IF(ISNUMBER(G64), VLOOKUP(G64/$AH64,F!$A1:$B101,2,1)*G64*$H64*$I64,0)+IF(ISNUMBER(K64), VLOOKUP(K64/$AH64,F!$A1:$B101,2,1)*K64*$L64*$M64,0)+IF(ISNUMBER(O64), VLOOKUP(O64/$AH64,F!$A1:$B101,2,1)*O64*$P64*$Q64,0)+IF(ISNUMBER(S64), VLOOKUP(S64/$AH64,F!$A1:$B101,2,1)*S64*$T64*$U64,0)+IF(ISNUMBER(W64), VLOOKUP(W64/$AH64,F!$A1:$B101,2,1)*W64*$X64*$Y64,0)+IF(ISNUMBER(AA64), VLOOKUP(AA64/$AH64,F!$A1:$B101,2,1)*AA64*$AB64*$AC64,0))*IF(ISNUMBER(F64),F64,1)*IF(ISNUMBER(E64),E64,1) -> 272 | AJ64: =H64*I64+L64*M64+P64*Q64+T64*U64+X64*Y64+AB64*AC64 -> 26 | AK64: =IFERROR(I64*INDEX(F!$P$21:$AB$33, MATCH(G64/$AH64, F!$O$21:$O$33,1), MATCH(E64, F!$P$20:$AB$20,1)), 0 ) +IFERROR( M64*INDEX(F!$P$21:$AB$33, MATCH(K64/$AH64, F!$O$21:$O$33,1), MATCH(E64, F!$P$20:$AB$20,1)),0) + IFERROR( Q64*INDEX(F!$P$21:$AB$33, MATCH(O64/$AH64, F!$O$21:$O$33,1), MATCH(E64, F!$P$20:$AB$20,1)), 0) + IFERROR( U64*INDEX(F!$P$21:$AB$33, MATCH(S64/$AH64, F!$O$21:$O$33,1), MATCH(E64, F!$P$20:$AB$20,1)),0) + IFERROR(Y64*INDEX(F!$P$21:$AB$33, MATCH(W64/$AH64, F!$O$21:$O$33,1), MATCH(E64, F!$P$20:$AB$20,1)),0) + IFERROR( AC64*INDEX(F!$P$21:$AB$33, MATCH(AA64/$AH64, F!$O$21:$O$33,1), MATCH(E64, F!$P$20:$AB$20,1)),) -> 9
AE65: 0 | AF65: 0 | AG65: 0% | AI65: =( IF(ISNUMBER(G65), VLOOKUP(G65/$AH65,F!$A1:$B101,2,1)*G65*$H65*$I65,0)+IF(ISNUMBER(K65), VLOOKUP(K65/$AH65,F!$A1:$B101,2,1)*K65*$L65*$M65,0)+IF(ISNUMBER(O65), VLOOKUP(O65/$AH65,F!$A1:$B101,2,1)*O65*$P65*$Q65,0)+IF(ISNUMBER(S65), VLOOKUP(S65/$AH65,F!$A1:$B101,2,1)*S65*$T65*$U65,0)+IF(ISNUMBER(W65), VLOOKUP(W65/$AH65,F!$A1:$B101,2,1)*W65*$X65*$Y65,0)+IF(ISNUMBER(AA65), VLOOKUP(AA65/$AH65,F!$A1:$B101,2,1)*AA65*$AB65*$AC65,0))*IF(ISNUMBER(F65),F65,1)*IF(ISNUMBER(E65),E65,1) -> 0 | AJ65: 0 | AK65: =IFERROR(I65*INDEX(F!$P$21:$AB$33, MATCH(G65/$AH65, F!$O$21:$O$33,1), MATCH(E65, F!$P$20:$AB$20,1)), 0 ) +IFERROR( M65*INDEX(F!$P$21:$AB$33, MATCH(K65/$AH65, F!$O$21:$O$33,1), MATCH(E65, F!$P$20:$AB$20,1)),0) + IFERROR( Q65*INDEX(F!$P$21:$AB$33, MATCH(O65/$AH65, F!$O$21:$O$33,1), MATCH(E65, F!$P$20:$AB$20,1)), 0) + IFERROR( U65*INDEX(F!$P$21:$AB$33, MATCH(S65/$AH65, F!$O$21:$O$33,1), MATCH(E65, F!$P$20:$AB$20,1)),0) + IFERROR(Y65*INDEX(F!$P$21:$AB$33, MATCH(W65/$AH65, F!$O$21:$O$33,1), MATCH(E65, F!$P$20:$AB$20,1)),0) + IFERROR( AC65*INDEX(F!$P$21:$AB$33, MATCH(AA65/$AH65, F!$O$21:$O$33,1), MATCH(E65, F!$P$20:$AB$20,1)),) -> 0
AE66: 0 | AF66: 0 | AG66: 0% | AI66: =( IF(ISNUMBER(G66), VLOOKUP(G66/$AH66,F!$A1:$B101,2,1)*G66*$H66*$I66,0)+IF(ISNUMBER(K66), VLOOKUP(K66/$AH66,F!$A1:$B101,2,1)*K66*$L66*$M66,0)+IF(ISNUMBER(O66), VLOOKUP(O66/$AH66,F!$A1:$B101,2,1)*O66*$P66*$Q66,0)+IF(ISNUMBER(S66), VLOOKUP(S66/$AH66,F!$A1:$B101,2,1)*S66*$T66*$U66,0)+IF(ISNUMBER(W66), VLOOKUP(W66/$AH66,F!$A1:$B101,2,1)*W66*$X66*$Y66,0)+IF(ISNUMBER(AA66), VLOOKUP(AA66/$AH66,F!$A1:$B101,2,1)*AA66*$AB66*$AC66,0))*IF(ISNUMBER(F66),F66,1)*IF(ISNUMBER(E66),E66,1) -> 0 | AJ66: 0 | AK66: =IFERROR(I66*INDEX(F!$P$21:$AB$33, MATCH(G66/$AH66, F!$O$21:$O$33,1), MATCH(E66, F!$P$20:$AB$20,1)), 0 ) +IFERROR( M66*INDEX(F!$P$21:$AB$33, MATCH(K66/$AH66, F!$O$21:$O$33,1), MATCH(E66, F!$P$20:$AB$20,1)),0) + IFERROR( Q66*INDEX(F!$P$21:$AB$33, MATCH(O66/$AH66, F!$O$21:$O$33,1), MATCH(E66, F!$P$20:$AB$20,1)), 0) + IFERROR( U66*INDEX(F!$P$21:$AB$33, MATCH(S66/$AH66, F!$O$21:$O$33,1), MATCH(E66, F!$P$20:$AB$20,1)),0) + IFERROR(Y66*INDEX(F!$P$21:$AB$33, MATCH(W66/$AH66, F!$O$21:$O$33,1), MATCH(E66, F!$P$20:$AB$20,1)),0) + IFERROR( AC66*INDEX(F!$P$21:$AB$33, MATCH(AA66/$AH66, F!$O$21:$O$33,1), MATCH(E66, F!$P$20:$AB$20,1)),) -> 0
AE67: 0 | AF67: 0 | AG67: 0% | AI67: =( IF(ISNUMBER(G67), VLOOKUP(G67/$AH67,F!$A1:$B101,2,1)*G67*$H67*$I67,0)+IF(ISNUMBER(K67), VLOOKUP(K67/$AH67,F!$A1:$B101,2,1)*K67*$L67*$M67,0)+IF(ISNUMBER(O67), VLOOKUP(O67/$AH67,F!$A1:$B101,2,1)*O67*$P67*$Q67,0)+IF(ISNUMBER(S67), VLOOKUP(S67/$AH67,F!$A1:$B101,2,1)*S67*$T67*$U67,0)+IF(ISNUMBER(W67), VLOOKUP(W67/$AH67,F!$A1:$B101,2,1)*W67*$X67*$Y67,0)+IF(ISNUMBER(AA67), VLOOKUP(AA67/$AH67,F!$A1:$B101,2,1)*AA67*$AB67*$AC67,0))*IF(ISNUMBER(F67),F67,1)*IF(ISNUMBER(E67),E67,1) -> 0 | AJ67: 0 | AK67: =IFERROR(I67*INDEX(F!$P$21:$AB$33, MATCH(G67/$AH67, F!$O$21:$O$33,1), MATCH(E67, F!$P$20:$AB$20,1)), 0 ) +IFERROR( M67*INDEX(F!$P$21:$AB$33, MATCH(K67/$AH67, F!$O$21:$O$33,1), MATCH(E67, F!$P$20:$AB$20,1)),0) + IFERROR( Q67*INDEX(F!$P$21:$AB$33, MATCH(O67/$AH67, F!$O$21:$O$33,1), MATCH(E67, F!$P$20:$AB$20,1)), 0) + IFERROR( U67*INDEX(F!$P$21:$AB$33, MATCH(S67/$AH67, F!$O$21:$O$33,1), MATCH(E67, F!$P$20:$AB$20,1)),0) + IFERROR(Y67*INDEX(F!$P$21:$AB$33, MATCH(W67/$AH67, F!$O$21:$O$33,1), MATCH(E67, F!$P$20:$AB$20,1)),0) + IFERROR( AC67*INDEX(F!$P$21:$AB$33, MATCH(AA67/$AH67, F!$O$21:$O$33,1), MATCH(E67, F!$P$20:$AB$20,1)),) -> 0
E68: =ROUND(IFERROR(SUMPRODUCT(AJ60:AJ67,E60:E67)/AJ68,0),3) -> 0.97 | AE68: =SUM(AE60:AE67) -> 8994 | AF68: 84.8 | AG68: =IFERROR( SUMPRODUCT(AG60:AG67,AJ60:AJ67)/AJ68,0) -> 48% | AI68: =SUM(AI60:AI67) -> 5498 | AJ68: =SUM(AJ60:AJ67) -> 106 | AK68: =IF(SUM(AK60:AK67)=0,TIME(,0,),TIME(,SUM(AK60:AK67)+F!$V$37,)) -> 01:32:00
A69: =A70 -> 2015-10-27 | B69: =IF(B13="","",B13) -> Легкая | C69: ТЯГА | D69: Тяга из ямы на прямых ногах (клас) | E69: 1.4 | G69: =IF(J69<>0, IFERROR(IF( $F69=2, MROUND($AH69*J69,1), IF( OR($F69="",$F69=1), MROUND($AH69*J69,2.5), MROUND($AH69*J69, 0.1))), "" ), "") -> 115 | H69: 5 | I69: 4 | J69: 40% | K69: =IF(N69<>0, IFERROR(IF( $F69=2, MROUND($AH69*N69,1), IF( OR($F69="",$F69=1), MROUND($AH69*N69,2.5), MROUND($AH69*N69, 0.1))), "" ), "") ->  | O69: =IF(R69<>0, IFERROR(IF( $F69=2, MROUND($AH69*R69,1), IF( OR($F69="",$F69=1), MROUND($AH69*R69,2.5), MROUND($AH69*R69, 0.1))), "" ), "") ->  | S69: =IF(V69<>0, IFERROR(IF( $F69=2, MROUND($AH69*V69,1), IF( OR($F69="",$F69=1), MROUND($AH69*V69,2.5), MROUND($AH69*V69, 0.1))), "" ), "") ->  | W69: =IF(Z69<>0, IFERROR(IF( $F69=2, MROUND($AH69*Z69,1), IF( OR($F69="",$F69=1), MROUND($AH69*Z69,2.5), MROUND($AH69*Z69, 0.1))), "" ), "") ->  | AA69: =IF(AD69<>0, IFERROR(IF( $F69=2, MROUND($AH69*AD69,1), IF( OR($F69="",$F69=1), MROUND($AH69*AD69,2.5), MROUND($AH69*AD69, 0.1))), "" ), "") ->  | AE69: =(IF(ISNUMBER(G69),G69,0)*H69*I69+IF(ISNUMBER(K69),K69,1)*L69*M69+IF(ISNUMBER(O69),O69,1)*P69*Q69+IF(ISNUMBER(S69),S69,1)*T69*U69+IF(ISNUMBER(W69),W69,1)*X69*Y69+IF(ISNUMBER(AA69),AA69,1)*AB69*AC69)*IF(ISNUMBER(F69),F69,1) -> 2300 | AF69: 115 | AG69: =IFERROR((AF69/(AH69*IF(ISNUMBER(F69),F69,1))),0) -> 40% | AH69: =IF(ISNUMBER(AH13), AH13+(AH13*$AH$58),"") -> 287.6 | AI69: =( IF(ISNUMBER(G69), VLOOKUP(G69/$AH69,F!$A1:$B101,2,1)*G69*$H69*$I69,0)+IF(ISNUMBER(K69), VLOOKUP(K69/$AH69,F!$A1:$B101,2,1)*K69*$L69*$M69,0)+IF(ISNUMBER(O69), VLOOKUP(O69/$AH69,F!$A1:$B101,2,1)*O69*$P69*$Q69,0)+IF(ISNUMBER(S69), VLOOKUP(S69/$AH69,F!$A1:$B101,2,1)*S69*$T69*$U69,0)+IF(ISNUMBER(W69), VLOOKUP(W69/$AH69,F!$A1:$B101,2,1)*W69*$X69*$Y69,0)+IF(ISNUMBER(AA69), VLOOKUP(AA69/$AH69,F!$A1:$B101,2,1)*AA69*$AB69*$AC69,0))*IF(ISNUMBER(F69),F69,1)*IF(ISNUMBER(E69),E69,1) -> 966 | AJ69: =H69*I69+L69*M69+P69*Q69+T69*U69+X69*Y69+AB69*AC69 -> 20 | AK69: =IFERROR(I69*INDEX(F!$P$21:$AB$33, MATCH(G69/$AH69, F!$O$21:$O$33,1), MATCH(E69, F!$P$20:$AB$20,1)), 0 ) +IFERROR( M69*INDEX(F!$P$21:$AB$33, MATCH(K69/$AH69, F!$O$21:$O$33,1), MATCH(E69, F!$P$20:$AB$20,1)),0) + IFERROR( Q69*INDEX(F!$P$21:$AB$33, MATCH(O69/$AH69, F!$O$21:$O$33,1), MATCH(E69, F!$P$20:$AB$20,1)), 0) + IFERROR( U69*INDEX(F!$P$21:$AB$33, MATCH(S69/$AH69, F!$O$21:$O$33,1), MATCH(E69, F!$P$20:$AB$20,1)),0) + IFERROR(Y69*INDEX(F!$P$21:$AB$33, MATCH(W69/$AH69, F!$O$21:$O$33,1), MATCH(E69, F!$P$20:$AB$20,1)),0) + IFERROR( AC69*INDEX(F!$P$21:$AB$33, MATCH(AA69/$AH69, F!$O$21:$O$33,1), MATCH(E69, F!$P$20:$AB$20,1)),) -> 14
A70: =A14+A2 -> 2015-10-27 | B70: Легкая | C70: ОФП | D70: Жим стоя | E70: 1.0 | G70: 50 | H70: 6 | I70: 4 | J70: 49% | AE70: 1200 | AF70: 50 | AG70: 50% | AH70: 100.0 | AI70: =( IF(ISNUMBER(G70), VLOOKUP(G70/$AH70,F!$A1:$B101,2,1)*G70*$H70*$I70,0)+IF(ISNUMBER(K70), VLOOKUP(K70/$AH70,F!$A1:$B101,2,1)*K70*$L70*$M70,0)+IF(ISNUMBER(O70), VLOOKUP(O70/$AH70,F!$A1:$B101,2,1)*O70*$P70*$Q70,0)+IF(ISNUMBER(S70), VLOOKUP(S70/$AH70,F!$A1:$B101,2,1)*S70*$T70*$U70,0)+IF(ISNUMBER(W70), VLOOKUP(W70/$AH70,F!$A1:$B101,2,1)*W70*$X70*$Y70,0)+IF(ISNUMBER(AA70), VLOOKUP(AA70/$AH70,F!$A1:$B101,2,1)*AA70*$AB70*$AC70,0))*IF(ISNUMBER(F70),F70,1)*IF(ISNUMBER(E70),E70,1) -> 600 | AJ70: 24 | AK70: =IFERROR(I70*INDEX(F!$P$21:$AB$33, MATCH(G70/$AH70, F!$O$21:$O$33,1), MATCH(E70, F!$P$20:$AB$20,1)), 0 ) +IFERROR( M70*INDEX(F!$P$21:$AB$33, MATCH(K70/$AH70, F!$O$21:$O$33,1), MATCH(E70, F!$P$20:$AB$20,1)),0) + IFERROR( Q70*INDEX(F!$P$21:$AB$33, MATCH(O70/$AH70, F!$O$21:$O$33,1), MATCH(E70, F!$P$20:$AB$20,1)), 0) + IFERROR( U70*INDEX(F!$P$21:$AB$33, MATCH(S70/$AH70, F!$O$21:$O$33,1), MATCH(E70, F!$P$20:$AB$20,1)),0) + IFERROR(Y70*INDEX(F!$P$21:$AB$33, MATCH(W70/$AH70, F!$O$21:$O$33,1), MATCH(E70, F!$P$20:$AB$20,1)),0) + IFERROR( AC70*INDEX(F!$P$21:$AB$33, MATCH(AA70/$AH70, F!$O$21:$O$33,1), MATCH(E70, F!$P$20:$AB$20,1)),) -> 8
B71: Средняя | C71: ОФП | D71: Присед в широкой постановке | E71: 1.2 | G71: 125 | H71: 6 | I71: 1 | J71: 50% | K71: 175 | L71: 4 | M71: 4 | N71: 69% | AE71: 3550 | AF71: 161 | AG71: 64% | AH71: 252.1 | AI71: =( IF(ISNUMBER(G71), VLOOKUP(G71/$AH71,F!$A1:$B101,2,1)*G71*$H71*$I71,0)+IF(ISNUMBER(K71), VLOOKUP(K71/$AH71,F!$A1:$B101,2,1)*K71*$L71*$M71,0)+IF(ISNUMBER(O71), VLOOKUP(O71/$AH71,F!$A1:$B101,2,1)*O71*$P71*$Q71,0)+IF(ISNUMBER(S71), VLOOKUP(S71/$AH71,F!$A1:$B101,2,1)*S71*$T71*$U71,0)+IF(ISNUMBER(W71), VLOOKUP(W71/$AH71,F!$A1:$B101,2,1)*W71*$X71*$Y71,0)+IF(ISNUMBER(AA71), VLOOKUP(AA71/$AH71,F!$A1:$B101,2,1)*AA71*$AB71*$AC71,0))*IF(ISNUMBER(F71),F71,1)*IF(ISNUMBER(E71),E71,1) -> 3422 | AJ71: 22 | AK71: =IFERROR(I71*INDEX(F!$P$21:$AB$33, MATCH(G71/$AH71, F!$O$21:$O$33,1), MATCH(E71, F!$P$20:$AB$20,1)), 0 ) +IFERROR( M71*INDEX(F!$P$21:$AB$33, MATCH(K71/$AH71, F!$O$21:$O$33,1), MATCH(E71, F!$P$20:$AB$20,1)),0) + IFERROR( Q71*INDEX(F!$P$21:$AB$33, MATCH(O71/$AH71, F!$O$21:$O$33,1), MATCH(E71, F!$P$20:$AB$20,1)), 0) + IFERROR( U71*INDEX(F!$P$21:$AB$33, MATCH(S71/$AH71, F!$O$21:$O$33,1), MATCH(E71, F!$P$20:$AB$20,1)),0) + IFERROR(Y71*INDEX(F!$P$21:$AB$33, MATCH(W71/$AH71, F!$O$21:$O$33,1), MATCH(E71, F!$P$20:$AB$20,1)),0) + IFERROR( AC71*INDEX(F!$P$21:$AB$33, MATCH(AA71/$AH71, F!$O$21:$O$33,1), MATCH(E71, F!$P$20:$AB$20,1)),) -> 19
B72: Средняя | C72: ЖИМ | D72: Жим средним хватом | E72: 1.0 | G72: 62.5 | H72: 5 | I72: 1 | J72: 45% | K72: 97.5 | L72: 4 | M72: 4 | N72: 68% | AE72: 1872.5 | AF72: 89 | AG72: 63% | AH72: 141.7 | AI72: =( IF(ISNUMBER(G72), VLOOKUP(G72/$AH72,F!$A1:$B101,2,1)*G72*$H72*$I72,0)+IF(ISNUMBER(K72), VLOOKUP(K72/$AH72,F!$A1:$B101,2,1)*K72*$L72*$M72,0)+IF(ISNUMBER(O72), VLOOKUP(O72/$AH72,F!$A1:$B101,2,1)*O72*$P72*$Q72,0)+IF(ISNUMBER(S72), VLOOKUP(S72/$AH72,F!$A1:$B101,2,1)*S72*$T72*$U72,0)+IF(ISNUMBER(W72), VLOOKUP(W72/$AH72,F!$A1:$B101,2,1)*W72*$X72*$Y72,0)+IF(ISNUMBER(AA72), VLOOKUP(AA72/$AH72,F!$A1:$B101,2,1)*AA72*$AB72*$AC72,0))*IF(ISNUMBER(F72),F72,1)*IF(ISNUMBER(E72),E72,1) -> 1482 | AJ72: =H72*I72+L72*M72+P72*Q72+T72*U72+X72*Y72+AB72*AC72 -> 21 | AK72: =IFERROR(I72*INDEX(F!$P$21:$AB$33, MATCH(G72/$AH72, F!$O$21:$O$33,1), MATCH(E72, F!$P$20:$AB$20,1)), 0 ) +IFERROR( M72*INDEX(F!$P$21:$AB$33, MATCH(K72/$AH72, F!$O$21:$O$33,1), MATCH(E72, F!$P$20:$AB$20,1)),0) + IFERROR( Q72*INDEX(F!$P$21:$AB$33, MATCH(O72/$AH72, F!$O$21:$O$33,1), MATCH(E72, F!$P$20:$AB$20,1)), 0) + IFERROR( U72*INDEX(F!$P$21:$AB$33, MATCH(S72/$AH72, F!$O$21:$O$33,1), MATCH(E72, F!$P$20:$AB$20,1)),0) + IFERROR(Y72*INDEX(F!$P$21:$AB$33, MATCH(W72/$AH72, F!$O$21:$O$33,1), MATCH(E72, F!$P$20:$AB$20,1)),0) + IFERROR( AC72*INDEX(F!$P$21:$AB$33, MATCH(AA72/$AH72, F!$O$21:$O$33,1), MATCH(E72, F!$P$20:$AB$20,1)),) -> 14
B73: Легкая | C73: ОФП | D73: Наклоны стоя | E73: 0.8 | G73: 82.5 | H73: 5 | I73: 4 | J73: 47% | AE73: 1650 | AF73: 83 | AG73: 46% | AH73: 177.8 | AI73: =( IF(ISNUMBER(G73), VLOOKUP(G73/$AH73,F!$A1:$B101,2,1)*G73*$H73*$I73,0)+IF(ISNUMBER(K73), VLOOKUP(K73/$AH73,F!$A1:$B101,2,1)*K73*$L73*$M73,0)+IF(ISNUMBER(O73), VLOOKUP(O73/$AH73,F!$A1:$B101,2,1)*O73*$P73*$Q73,0)+IF(ISNUMBER(S73), VLOOKUP(S73/$AH73,F!$A1:$B101,2,1)*S73*$T73*$U73,0)+IF(ISNUMBER(W73), VLOOKUP(W73/$AH73,F!$A1:$B101,2,1)*W73*$X73*$Y73,0)+IF(ISNUMBER(AA73), VLOOKUP(AA73/$AH73,F!$A1:$B101,2,1)*AA73*$AB73*$AC73,0))*IF(ISNUMBER(F73),F73,1)*IF(ISNUMBER(E73),E73,1) -> 581 | AJ73: =H73*I73+L73*M73+P73*Q73+T73*U73+X73*Y73+AB73*AC73 -> 20 | AK73: =IFERROR(I73*INDEX(F!$P$21:$AB$33, MATCH(G73/$AH73, F!$O$21:$O$33,1), MATCH(E73, F!$P$20:$AB$20,1)), 0 ) +IFERROR( M73*INDEX(F!$P$21:$AB$33, MATCH(K73/$AH73, F!$O$21:$O$33,1), MATCH(E73, F!$P$20:$AB$20,1)),0) + IFERROR( Q73*INDEX(F!$P$21:$AB$33, MATCH(O73/$AH73, F!$O$21:$O$33,1), MATCH(E73, F!$P$20:$AB$20,1)), 0) + IFERROR( U73*INDEX(F!$P$21:$AB$33, MATCH(S73/$AH73, F!$O$21:$O$33,1), MATCH(E73, F!$P$20:$AB$20,1)),0) + IFERROR(Y73*INDEX(F!$P$21:$AB$33, MATCH(W73/$AH73, F!$O$21:$O$33,1), MATCH(E73, F!$P$20:$AB$20,1)),0) + IFERROR( AC73*INDEX(F!$P$21:$AB$33, MATCH(AA73/$AH73, F!$O$21:$O$33,1), MATCH(E73, F!$P$20:$AB$20,1)),) -> 7
AE74: 0 | AF74: 0 | AG74: 0% | AI74: =( IF(ISNUMBER(G74), VLOOKUP(G74/$AH74,F!$A1:$B101,2,1)*G74*$H74*$I74,0)+IF(ISNUMBER(K74), VLOOKUP(K74/$AH74,F!$A1:$B101,2,1)*K74*$L74*$M74,0)+IF(ISNUMBER(O74), VLOOKUP(O74/$AH74,F!$A1:$B101,2,1)*O74*$P74*$Q74,0)+IF(ISNUMBER(S74), VLOOKUP(S74/$AH74,F!$A1:$B101,2,1)*S74*$T74*$U74,0)+IF(ISNUMBER(W74), VLOOKUP(W74/$AH74,F!$A1:$B101,2,1)*W74*$X74*$Y74,0)+IF(ISNUMBER(AA74), VLOOKUP(AA74/$AH74,F!$A1:$B101,2,1)*AA74*$AB74*$AC74,0))*IF(ISNUMBER(F74),F74,1)*IF(ISNUMBER(E74),E74,1) -> 0 | AJ74: 0 | AK74: =IFERROR(I74*INDEX(F!$P$21:$AB$33, MATCH(G74/$AH74, F!$O$21:$O$33,1), MATCH(E74, F!$P$20:$AB$20,1)), 0 ) +IFERROR( M74*INDEX(F!$P$21:$AB$33, MATCH(K74/$AH74, F!$O$21:$O$33,1), MATCH(E74, F!$P$20:$AB$20,1)),0) + IFERROR( Q74*INDEX(F!$P$21:$AB$33, MATCH(O74/$AH74, F!$O$21:$O$33,1), MATCH(E74, F!$P$20:$AB$20,1)), 0) + IFERROR( U74*INDEX(F!$P$21:$AB$33, MATCH(S74/$AH74, F!$O$21:$O$33,1), MATCH(E74, F!$P$20:$AB$20,1)),0) + IFERROR(Y74*INDEX(F!$P$21:$AB$33, MATCH(W74/$AH74, F!$O$21:$O$33,1), MATCH(E74, F!$P$20:$AB$20,1)),0) + IFERROR( AC74*INDEX(F!$P$21:$AB$33, MATCH(AA74/$AH74, F!$O$21:$O$33,1), MATCH(E74, F!$P$20:$AB$20,1)),) -> 0
AE75: 0 | AF75: 0 | AG75: 0% | AI75: =( IF(ISNUMBER(G75), VLOOKUP(G75/$AH75,F!$A1:$B101,2,1)*G75*$H75*$I75,0)+IF(ISNUMBER(K75), VLOOKUP(K75/$AH75,F!$A1:$B101,2,1)*K75*$L75*$M75,0)+IF(ISNUMBER(O75), VLOOKUP(O75/$AH75,F!$A1:$B101,2,1)*O75*$P75*$Q75,0)+IF(ISNUMBER(S75), VLOOKUP(S75/$AH75,F!$A1:$B101,2,1)*S75*$T75*$U75,0)+IF(ISNUMBER(W75), VLOOKUP(W75/$AH75,F!$A1:$B101,2,1)*W75*$X75*$Y75,0)+IF(ISNUMBER(AA75), VLOOKUP(AA75/$AH75,F!$A1:$B101,2,1)*AA75*$AB75*$AC75,0))*IF(ISNUMBER(F75),F75,1)*IF(ISNUMBER(E75),E75,1) -> 0 | AJ75: 0 | AK75: =IFERROR(I75*INDEX(F!$P$21:$AB$33, MATCH(G75/$AH75, F!$O$21:$O$33,1), MATCH(E75, F!$P$20:$AB$20,1)), 0 ) +IFERROR( M75*INDEX(F!$P$21:$AB$33, MATCH(K75/$AH75, F!$O$21:$O$33,1), MATCH(E75, F!$P$20:$AB$20,1)),0) + IFERROR( Q75*INDEX(F!$P$21:$AB$33, MATCH(O75/$AH75, F!$O$21:$O$33,1), MATCH(E75, F!$P$20:$AB$20,1)), 0) + IFERROR( U75*INDEX(F!$P$21:$AB$33, MATCH(S75/$AH75, F!$O$21:$O$33,1), MATCH(E75, F!$P$20:$AB$20,1)),0) + IFERROR(Y75*INDEX(F!$P$21:$AB$33, MATCH(W75/$AH75, F!$O$21:$O$33,1), MATCH(E75, F!$P$20:$AB$20,1)),0) + IFERROR( AC75*INDEX(F!$P$21:$AB$33, MATCH(AA75/$AH75, F!$O$21:$O$33,1), MATCH(E75, F!$P$20:$AB$20,1)),) -> 0
AE76: 0 | AF76: 0 | AG76: 0% | AI76: =( IF(ISNUMBER(G76), VLOOKUP(G76/$AH76,F!$A1:$B101,2,1)*G76*$H76*$I76,0)+IF(ISNUMBER(K76), VLOOKUP(K76/$AH76,F!$A1:$B101,2,1)*K76*$L76*$M76,0)+IF(ISNUMBER(O76), VLOOKUP(O76/$AH76,F!$A1:$B101,2,1)*O76*$P76*$Q76,0)+IF(ISNUMBER(S76), VLOOKUP(S76/$AH76,F!$A1:$B101,2,1)*S76*$T76*$U76,0)+IF(ISNUMBER(W76), VLOOKUP(W76/$AH76,F!$A1:$B101,2,1)*W76*$X76*$Y76,0)+IF(ISNUMBER(AA76), VLOOKUP(AA76/$AH76,F!$A1:$B101,2,1)*AA76*$AB76*$AC76,0))*IF(ISNUMBER(F76),F76,1)*IF(ISNUMBER(E76),E76,1) -> 0 | AJ76: 0 | AK76: =IFERROR(I76*INDEX(F!$P$21:$AB$33, MATCH(G76/$AH76, F!$O$21:$O$33,1), MATCH(E76, F!$P$20:$AB$20,1)), 0 ) +IFERROR( M76*INDEX(F!$P$21:$AB$33, MATCH(K76/$AH76, F!$O$21:$O$33,1), MATCH(E76, F!$P$20:$AB$20,1)),0) + IFERROR( Q76*INDEX(F!$P$21:$AB$33, MATCH(O76/$AH76, F!$O$21:$O$33,1), MATCH(E76, F!$P$20:$AB$20,1)), 0) + IFERROR( U76*INDEX(F!$P$21:$AB$33, MATCH(S76/$AH76, F!$O$21:$O$33,1), MATCH(E76, F!$P$20:$AB$20,1)),0) + IFERROR(Y76*INDEX(F!$P$21:$AB$33, MATCH(W76/$AH76, F!$O$21:$O$33,1), MATCH(E76, F!$P$20:$AB$20,1)),0) + IFERROR( AC76*INDEX(F!$P$21:$AB$33, MATCH(AA76/$AH76, F!$O$21:$O$33,1), MATCH(E76, F!$P$20:$AB$20,1)),) -> 0
E77: =ROUND(IFERROR(SUMPRODUCT(AJ69:AJ76,E69:E76)/AJ77,0),3) -> 1.08 | AE77: =SUM(AE69:AE76) -> 10572.5 | AF77: 98.8 | AG77: =IFERROR( SUMPRODUCT(AG69:AG76,AJ69:AJ76)/AJ77,0) -> 53% | AI77: =SUM(AI69:AI76) -> 7051 | AJ77: =SUM(AJ69:AJ76) -> 107 | AK77: =IF(SUM(AK69:AK76)=0,TIME(,0,),TIME(,SUM(AK69:AK76)+F!$V$37,)) -> 01:32:00
A78: =A79 -> 2015-10-28 | B78: =IF(B22="","",B22) ->  | G78: =IF(J78<>0, IFERROR(IF( $F78=2, MROUND($AH78*J78,1), IF( OR($F78="",$F78=1), MROUND($AH78*J78,2.5), MROUND($AH78*J78, 0.1))), "" ), "") ->  | K78: =IF(N78<>0, IFERROR(IF( $F78=2, MROUND($AH78*N78,1), IF( OR($F78="",$F78=1), MROUND($AH78*N78,2.5), MROUND($AH78*N78, 0.1))), "" ), "") ->  | O78: =IF(R78<>0, IFERROR(IF( $F78=2, MROUND($AH78*R78,1), IF( OR($F78="",$F78=1), MROUND($AH78*R78,2.5), MROUND($AH78*R78, 0.1))), "" ), "") ->  | S78: =IF(V78<>0, IFERROR(IF( $F78=2, MROUND($AH78*V78,1), IF( OR($F78="",$F78=1), MROUND($AH78*V78,2.5), MROUND($AH78*V78, 0.1))), "" ), "") ->  | W78: =IF(Z78<>0, IFERROR(IF( $F78=2, MROUND($AH78*Z78,1), IF( OR($F78="",$F78=1), MROUND($AH78*Z78,2.5), MROUND($AH78*Z78, 0.1))), "" ), "") ->  | AA78: =IF(AD78<>0, IFERROR(IF( $F78=2, MROUND($AH78*AD78,1), IF( OR($F78="",$F78=1), MROUND($AH78*AD78,2.5), MROUND($AH78*AD78, 0.1))), "" ), "") ->  | AE78: =(IF(ISNUMBER(G78),G78,0)*H78*I78+IF(ISNUMBER(K78),K78,1)*L78*M78+IF(ISNUMBER(O78),O78,1)*P78*Q78+IF(ISNUMBER(S78),S78,1)*T78*U78+IF(ISNUMBER(W78),W78,1)*X78*Y78+IF(ISNUMBER(AA78),AA78,1)*AB78*AC78)*IF(ISNUMBER(F78),F78,1) -> 0 | AF78: 0 | AG78: =IFERROR((AF78/(AH78*IF(ISNUMBER(F78),F78,1))),0) -> 0% | AH78: =IF(ISNUMBER(AH22), AH22+(AH22*$AH$58),"") ->  | AI78: =( IF(ISNUMBER(G78), VLOOKUP(G78/$AH78,F!$A1:$B101,2,1)*G78*$H78*$I78,0)+IF(ISNUMBER(K78), VLOOKUP(K78/$AH78,F!$A1:$B101,2,1)*K78*$L78*$M78,0)+IF(ISNUMBER(O78), VLOOKUP(O78/$AH78,F!$A1:$B101,2,1)*O78*$P78*$Q78,0)+IF(ISNUMBER(S78), VLOOKUP(S78/$AH78,F!$A1:$B101,2,1)*S78*$T78*$U78,0)+IF(ISNUMBER(W78), VLOOKUP(W78/$AH78,F!$A1:$B101,2,1)*W78*$X78*$Y78,0)+IF(ISNUMBER(AA78), VLOOKUP(AA78/$AH78,F!$A1:$B101,2,1)*AA78*$AB78*$AC78,0))*IF(ISNUMBER(F78),F78,1)*IF(ISNUMBER(E78),E78,1) -> 0 | AJ78: =H78*I78+L78*M78+P78*Q78+T78*U78+X78*Y78+AB78*AC78 -> 0 | AK78: =IFERROR(I78*INDEX(F!$P$21:$AB$33, MATCH(G78/$AH78, F!$O$21:$O$33,1), MATCH(E78, F!$P$20:$AB$20,1)), 0 ) +IFERROR( M78*INDEX(F!$P$21:$AB$33, MATCH(K78/$AH78, F!$O$21:$O$33,1), MATCH(E78, F!$P$20:$AB$20,1)),0) + IFERROR( Q78*INDEX(F!$P$21:$AB$33, MATCH(O78/$AH78, F!$O$21:$O$33,1), MATCH(E78, F!$P$20:$AB$20,1)), 0) + IFERROR( U78*INDEX(F!$P$21:$AB$33, MATCH(S78/$AH78, F!$O$21:$O$33,1), MATCH(E78, F!$P$20:$AB$20,1)),0) + IFERROR(Y78*INDEX(F!$P$21:$AB$33, MATCH(W78/$AH78, F!$O$21:$O$33,1), MATCH(E78, F!$P$20:$AB$20,1)),0) + IFERROR( AC78*INDEX(F!$P$21:$AB$33, MATCH(AA78/$AH78, F!$O$21:$O$33,1), MATCH(E78, F!$P$20:$AB$20,1)),) -> 0
A79: =A23+A2 -> 2015-10-28 | AE79: 0 | AF79: 0 | AG79: 0% | AI79: =( IF(ISNUMBER(G79), VLOOKUP(G79/$AH79,F!$A1:$B101,2,1)*G79*$H79*$I79,0)+IF(ISNUMBER(K79), VLOOKUP(K79/$AH79,F!$A1:$B101,2,1)*K79*$L79*$M79,0)+IF(ISNUMBER(O79), VLOOKUP(O79/$AH79,F!$A1:$B101,2,1)*O79*$P79*$Q79,0)+IF(ISNUMBER(S79), VLOOKUP(S79/$AH79,F!$A1:$B101,2,1)*S79*$T79*$U79,0)+IF(ISNUMBER(W79), VLOOKUP(W79/$AH79,F!$A1:$B101,2,1)*W79*$X79*$Y79,0)+IF(ISNUMBER(AA79), VLOOKUP(AA79/$AH79,F!$A1:$B101,2,1)*AA79*$AB79*$AC79,0))*IF(ISNUMBER(F79),F79,1)*IF(ISNUMBER(E79),E79,1) -> 0 | AJ79: 0 | AK79: =IFERROR(I79*INDEX(F!$P$21:$AB$33, MATCH(G79/$AH79, F!$O$21:$O$33,1), MATCH(E79, F!$P$20:$AB$20,1)), 0 ) +IFERROR( M79*INDEX(F!$P$21:$AB$33, MATCH(K79/$AH79, F!$O$21:$O$33,1), MATCH(E79, F!$P$20:$AB$20,1)),0) + IFERROR( Q79*INDEX(F!$P$21:$AB$33, MATCH(O79/$AH79, F!$O$21:$O$33,1), MATCH(E79, F!$P$20:$AB$20,1)), 0) + IFERROR( U79*INDEX(F!$P$21:$AB$33, MATCH(S79/$AH79, F!$O$21:$O$33,1), MATCH(E79, F!$P$20:$AB$20,1)),0) + IFERROR(Y79*INDEX(F!$P$21:$AB$33, MATCH(W79/$AH79, F!$O$21:$O$33,1), MATCH(E79, F!$P$20:$AB$20,1)),0) + IFERROR( AC79*INDEX(F!$P$21:$AB$33, MATCH(AA79/$AH79, F!$O$21:$O$33,1), MATCH(E79, F!$P$20:$AB$20,1)),) -> 0
AE80: 0 | AF80: 0 | AG80: 0% | AI80: =( IF(ISNUMBER(G80), VLOOKUP(G80/$AH80,F!$A1:$B101,2,1)*G80*$H80*$I80,0)+IF(ISNUMBER(K80), VLOOKUP(K80/$AH80,F!$A1:$B101,2,1)*K80*$L80*$M80,0)+IF(ISNUMBER(O80), VLOOKUP(O80/$AH80,F!$A1:$B101,2,1)*O80*$P80*$Q80,0)+IF(ISNUMBER(S80), VLOOKUP(S80/$AH80,F!$A1:$B101,2,1)*S80*$T80*$U80,0)+IF(ISNUMBER(W80), VLOOKUP(W80/$AH80,F!$A1:$B101,2,1)*W80*$X80*$Y80,0)+IF(ISNUMBER(AA80), VLOOKUP(AA80/$AH80,F!$A1:$B101,2,1)*AA80*$AB80*$AC80,0))*IF(ISNUMBER(F80),F80,1)*IF(ISNUMBER(E80),E80,1) -> 0 | AJ80: =H80*I80+L80*M80+P80*Q80+T80*U80+X80*Y80+AB80*AC80 -> 0 | AK80: =IFERROR(I80*INDEX(F!$P$21:$AB$33, MATCH(G80/$AH80, F!$O$21:$O$33,1), MATCH(E80, F!$P$20:$AB$20,1)), 0 ) +IFERROR( M80*INDEX(F!$P$21:$AB$33, MATCH(K80/$AH80, F!$O$21:$O$33,1), MATCH(E80, F!$P$20:$AB$20,1)),0) + IFERROR( Q80*INDEX(F!$P$21:$AB$33, MATCH(O80/$AH80, F!$O$21:$O$33,1), MATCH(E80, F!$P$20:$AB$20,1)), 0) + IFERROR( U80*INDEX(F!$P$21:$AB$33, MATCH(S80/$AH80, F!$O$21:$O$33,1), MATCH(E80, F!$P$20:$AB$20,1)),0) + IFERROR(Y80*INDEX(F!$P$21:$AB$33, MATCH(W80/$AH80, F!$O$21:$O$33,1), MATCH(E80, F!$P$20:$AB$20,1)),0) + IFERROR( AC80*INDEX(F!$P$21:$AB$33, MATCH(AA80/$AH80, F!$O$21:$O$33,1), MATCH(E80, F!$P$20:$AB$20,1)),) -> 0
AE81: 0 | AF81: 0 | AG81: 0% | AI81: =( IF(ISNUMBER(G81), VLOOKUP(G81/$AH81,F!$A1:$B101,2,1)*G81*$H81*$I81,0)+IF(ISNUMBER(K81), VLOOKUP(K81/$AH81,F!$A1:$B101,2,1)*K81*$L81*$M81,0)+IF(ISNUMBER(O81), VLOOKUP(O81/$AH81,F!$A1:$B101,2,1)*O81*$P81*$Q81,0)+IF(ISNUMBER(S81), VLOOKUP(S81/$AH81,F!$A1:$B101,2,1)*S81*$T81*$U81,0)+IF(ISNUMBER(W81), VLOOKUP(W81/$AH81,F!$A1:$B101,2,1)*W81*$X81*$Y81,0)+IF(ISNUMBER(AA81), VLOOKUP(AA81/$AH81,F!$A1:$B101,2,1)*AA81*$AB81*$AC81,0))*IF(ISNUMBER(F81),F81,1)*IF(ISNUMBER(E81),E81,1) -> 0 | AJ81: =H81*I81+L81*M81+P81*Q81+T81*U81+X81*Y81+AB81*AC81 -> 0 | AK81: =IFERROR(I81*INDEX(F!$P$21:$AB$33, MATCH(G81/$AH81, F!$O$21:$O$33,1), MATCH(E81, F!$P$20:$AB$20,1)), 0 ) +IFERROR( M81*INDEX(F!$P$21:$AB$33, MATCH(K81/$AH81, F!$O$21:$O$33,1), MATCH(E81, F!$P$20:$AB$20,1)),0) + IFERROR( Q81*INDEX(F!$P$21:$AB$33, MATCH(O81/$AH81, F!$O$21:$O$33,1), MATCH(E81, F!$P$20:$AB$20,1)), 0) + IFERROR( U81*INDEX(F!$P$21:$AB$33, MATCH(S81/$AH81, F!$O$21:$O$33,1), MATCH(E81, F!$P$20:$AB$20,1)),0) + IFERROR(Y81*INDEX(F!$P$21:$AB$33, MATCH(W81/$AH81, F!$O$21:$O$33,1), MATCH(E81, F!$P$20:$AB$20,1)),0) + IFERROR( AC81*INDEX(F!$P$21:$AB$33, MATCH(AA81/$AH81, F!$O$21:$O$33,1), MATCH(E81, F!$P$20:$AB$20,1)),) -> 0
AE82: 0 | AF82: 0 | AG82: 0% | AI82: =( IF(ISNUMBER(G82), VLOOKUP(G82/$AH82,F!$A1:$B101,2,1)*G82*$H82*$I82,0)+IF(ISNUMBER(K82), VLOOKUP(K82/$AH82,F!$A1:$B101,2,1)*K82*$L82*$M82,0)+IF(ISNUMBER(O82), VLOOKUP(O82/$AH82,F!$A1:$B101,2,1)*O82*$P82*$Q82,0)+IF(ISNUMBER(S82), VLOOKUP(S82/$AH82,F!$A1:$B101,2,1)*S82*$T82*$U82,0)+IF(ISNUMBER(W82), VLOOKUP(W82/$AH82,F!$A1:$B101,2,1)*W82*$X82*$Y82,0)+IF(ISNUMBER(AA82), VLOOKUP(AA82/$AH82,F!$A1:$B101,2,1)*AA82*$AB82*$AC82,0))*IF(ISNUMBER(F82),F82,1)*IF(ISNUMBER(E82),E82,1) -> 0 | AJ82: =H82*I82+L82*M82+P82*Q82+T82*U82+X82*Y82+AB82*AC82 -> 0 | AK82: =IFERROR(I82*INDEX(F!$P$21:$AB$33, MATCH(G82/$AH82, F!$O$21:$O$33,1), MATCH(E82, F!$P$20:$AB$20,1)), 0 ) +IFERROR( M82*INDEX(F!$P$21:$AB$33, MATCH(K82/$AH82, F!$O$21:$O$33,1), MATCH(E82, F!$P$20:$AB$20,1)),0) + IFERROR( Q82*INDEX(F!$P$21:$AB$33, MATCH(O82/$AH82, F!$O$21:$O$33,1), MATCH(E82, F!$P$20:$AB$20,1)), 0) + IFERROR( U82*INDEX(F!$P$21:$AB$33, MATCH(S82/$AH82, F!$O$21:$O$33,1), MATCH(E82, F!$P$20:$AB$20,1)),0) + IFERROR(Y82*INDEX(F!$P$21:$AB$33, MATCH(W82/$AH82, F!$O$21:$O$33,1), MATCH(E82, F!$P$20:$AB$20,1)),0) + IFERROR( AC82*INDEX(F!$P$21:$AB$33, MATCH(AA82/$AH82, F!$O$21:$O$33,1), MATCH(E82, F!$P$20:$AB$20,1)),) -> 0
AE83: 0 | AF83: 0 | AG83: 0% | AI83: =( IF(ISNUMBER(G83), VLOOKUP(G83/$AH83,F!$A1:$B101,2,1)*G83*$H83*$I83,0)+IF(ISNUMBER(K83), VLOOKUP(K83/$AH83,F!$A1:$B101,2,1)*K83*$L83*$M83,0)+IF(ISNUMBER(O83), VLOOKUP(O83/$AH83,F!$A1:$B101,2,1)*O83*$P83*$Q83,0)+IF(ISNUMBER(S83), VLOOKUP(S83/$AH83,F!$A1:$B101,2,1)*S83*$T83*$U83,0)+IF(ISNUMBER(W83), VLOOKUP(W83/$AH83,F!$A1:$B101,2,1)*W83*$X83*$Y83,0)+IF(ISNUMBER(AA83), VLOOKUP(AA83/$AH83,F!$A1:$B101,2,1)*AA83*$AB83*$AC83,0))*IF(ISNUMBER(F83),F83,1)*IF(ISNUMBER(E83),E83,1) -> 0 | AJ83: 0 | AK83: =IFERROR(I83*INDEX(F!$P$21:$AB$33, MATCH(G83/$AH83, F!$O$21:$O$33,1), MATCH(E83, F!$P$20:$AB$20,1)), 0 ) +IFERROR( M83*INDEX(F!$P$21:$AB$33, MATCH(K83/$AH83, F!$O$21:$O$33,1), MATCH(E83, F!$P$20:$AB$20,1)),0) + IFERROR( Q83*INDEX(F!$P$21:$AB$33, MATCH(O83/$AH83, F!$O$21:$O$33,1), MATCH(E83, F!$P$20:$AB$20,1)), 0) + IFERROR( U83*INDEX(F!$P$21:$AB$33, MATCH(S83/$AH83, F!$O$21:$O$33,1), MATCH(E83, F!$P$20:$AB$20,1)),0) + IFERROR(Y83*INDEX(F!$P$21:$AB$33, MATCH(W83/$AH83, F!$O$21:$O$33,1), MATCH(E83, F!$P$20:$AB$20,1)),0) + IFERROR( AC83*INDEX(F!$P$21:$AB$33, MATCH(AA83/$AH83, F!$O$21:$O$33,1), MATCH(E83, F!$P$20:$AB$20,1)),) -> 0
AE84: 0 | AF84: 0 | AG84: 0% | AI84: =( IF(ISNUMBER(G84), VLOOKUP(G84/$AH84,F!$A1:$B101,2,1)*G84*$H84*$I84,0)+IF(ISNUMBER(K84), VLOOKUP(K84/$AH84,F!$A1:$B101,2,1)*K84*$L84*$M84,0)+IF(ISNUMBER(O84), VLOOKUP(O84/$AH84,F!$A1:$B101,2,1)*O84*$P84*$Q84,0)+IF(ISNUMBER(S84), VLOOKUP(S84/$AH84,F!$A1:$B101,2,1)*S84*$T84*$U84,0)+IF(ISNUMBER(W84), VLOOKUP(W84/$AH84,F!$A1:$B101,2,1)*W84*$X84*$Y84,0)+IF(ISNUMBER(AA84), VLOOKUP(AA84/$AH84,F!$A1:$B101,2,1)*AA84*$AB84*$AC84,0))*IF(ISNUMBER(F84),F84,1)*IF(ISNUMBER(E84),E84,1) -> 0 | AJ84: 0 | AK84: =IFERROR(I84*INDEX(F!$P$21:$AB$33, MATCH(G84/$AH84, F!$O$21:$O$33,1), MATCH(E84, F!$P$20:$AB$20,1)), 0 ) +IFERROR( M84*INDEX(F!$P$21:$AB$33, MATCH(K84/$AH84, F!$O$21:$O$33,1), MATCH(E84, F!$P$20:$AB$20,1)),0) + IFERROR( Q84*INDEX(F!$P$21:$AB$33, MATCH(O84/$AH84, F!$O$21:$O$33,1), MATCH(E84, F!$P$20:$AB$20,1)), 0) + IFERROR( U84*INDEX(F!$P$21:$AB$33, MATCH(S84/$AH84, F!$O$21:$O$33,1), MATCH(E84, F!$P$20:$AB$20,1)),0) + IFERROR(Y84*INDEX(F!$P$21:$AB$33, MATCH(W84/$AH84, F!$O$21:$O$33,1), MATCH(E84, F!$P$20:$AB$20,1)),0) + IFERROR( AC84*INDEX(F!$P$21:$AB$33, MATCH(AA84/$AH84, F!$O$21:$O$33,1), MATCH(E84, F!$P$20:$AB$20,1)),) -> 0
AE85: 0 | AF85: 0 | AG85: 0% | AI85: =( IF(ISNUMBER(G85), VLOOKUP(G85/$AH85,F!$A1:$B101,2,1)*G85*$H85*$I85,0)+IF(ISNUMBER(K85), VLOOKUP(K85/$AH85,F!$A1:$B101,2,1)*K85*$L85*$M85,0)+IF(ISNUMBER(O85), VLOOKUP(O85/$AH85,F!$A1:$B101,2,1)*O85*$P85*$Q85,0)+IF(ISNUMBER(S85), VLOOKUP(S85/$AH85,F!$A1:$B101,2,1)*S85*$T85*$U85,0)+IF(ISNUMBER(W85), VLOOKUP(W85/$AH85,F!$A1:$B101,2,1)*W85*$X85*$Y85,0)+IF(ISNUMBER(AA85), VLOOKUP(AA85/$AH85,F!$A1:$B101,2,1)*AA85*$AB85*$AC85,0))*IF(ISNUMBER(F85),F85,1)*IF(ISNUMBER(E85),E85,1) -> 0 | AJ85: 0 | AK85: =IFERROR(I85*INDEX(F!$P$21:$AB$33, MATCH(G85/$AH85, F!$O$21:$O$33,1), MATCH(E85, F!$P$20:$AB$20,1)), 0 ) +IFERROR( M85*INDEX(F!$P$21:$AB$33, MATCH(K85/$AH85, F!$O$21:$O$33,1), MATCH(E85, F!$P$20:$AB$20,1)),0) + IFERROR( Q85*INDEX(F!$P$21:$AB$33, MATCH(O85/$AH85, F!$O$21:$O$33,1), MATCH(E85, F!$P$20:$AB$20,1)), 0) + IFERROR( U85*INDEX(F!$P$21:$AB$33, MATCH(S85/$AH85, F!$O$21:$O$33,1), MATCH(E85, F!$P$20:$AB$20,1)),0) + IFERROR(Y85*INDEX(F!$P$21:$AB$33, MATCH(W85/$AH85, F!$O$21:$O$33,1), MATCH(E85, F!$P$20:$AB$20,1)),0) + IFERROR( AC85*INDEX(F!$P$21:$AB$33, MATCH(AA85/$AH85, F!$O$21:$O$33,1), MATCH(E85, F!$P$20:$AB$20,1)),) -> 0
E86: =ROUND(IFERROR(SUMPRODUCT(AJ78:AJ85,E78:E85)/AJ86,0),3) -> 0.00 | AE86: =SUM(AE78:AE85) -> 0 | AF86: 0.0 | AG86: =IFERROR( SUMPRODUCT(AG78:AG85,AJ78:AJ85)/AJ86,0) -> 0% | AI86: =SUM(AI78:AI85) -> 0 | AJ86: =SUM(AJ78:AJ85) -> 0 | AK86: =IF(SUM(AK78:AK85)=0,TIME(,0,),TIME(,SUM(AK78:AK85)+F!$V$37,)) -> 00:00:00
A87: =A88 -> 2015-10-29 | B87: =IF(B31="","",B31) -> Средняя | C87: ТЯГА | D87: Становая тяга | E87: 1.4 | G87: =IF(J87<>0, IFERROR(IF( $F87=2, MROUND($AH87*J87,1), IF( OR($F87="",$F87=1), MROUND($AH87*J87,2.5), MROUND($AH87*J87, 0.1))), "" ), "") -> 145 | H87: 6 | I87: 1 | J87: 45% | K87: =IF(N87<>0, IFERROR(IF( $F87=2, MROUND($AH87*N87,1), IF( OR($F87="",$F87=1), MROUND($AH87*N87,2.5), MROUND($AH87*N87, 0.1))), "" ), "") -> 177.5 | L87: 5 | M87: 1 | N87: 55% | O87: =IF(R87<>0, IFERROR(IF( $F87=2, MROUND($AH87*R87,1), IF( OR($F87="",$F87=1), MROUND($AH87*R87,2.5), MROUND($AH87*R87, 0.1))), "" ), "") -> 210 | P87: 4 | Q87: 4 | R87: 65% | S87: =IF(V87<>0, IFERROR(IF( $F87=2, MROUND($AH87*V87,1), IF( OR($F87="",$F87=1), MROUND($AH87*V87,2.5), MROUND($AH87*V87, 0.1))), "" ), "") -> 222.5 | T87: 3 | U87: 1 | V87: 69% | W87: =IF(Z87<>0, IFERROR(IF( $F87=2, MROUND($AH87*Z87,1), IF( OR($F87="",$F87=1), MROUND($AH87*Z87,2.5), MROUND($AH87*Z87, 0.1))), "" ), "") -> 242.5 | X87: 1 | Y87: 1 | Z87: 75% | AA87: =IF(AD87<>0, IFERROR(IF( $F87=2, MROUND($AH87*AD87,1), IF( OR($F87="",$F87=1), MROUND($AH87*AD87,2.5), MROUND($AH87*AD87, 0.1))), "" ), "") ->  | AE87: =(IF(ISNUMBER(G87),G87,0)*H87*I87+IF(ISNUMBER(K87),K87,1)*L87*M87+IF(ISNUMBER(O87),O87,1)*P87*Q87+IF(ISNUMBER(S87),S87,1)*T87*U87+IF(ISNUMBER(W87),W87,1)*X87*Y87+IF(ISNUMBER(AA87),AA87,1)*AB87*AC87)*IF(ISNUMBER(F87),F87,1) -> 6027.5 | AF87: 194 | AG87: =IFERROR((AF87/(AH87*IF(ISNUMBER(F87),F87,1))),0) -> 60% | AH87: =IF(ISNUMBER(AH31), AH31+(AH31*$AH$58),"") -> 323.2 | AI87: =( IF(ISNUMBER(G87), VLOOKUP(G87/$AH87,F!$A1:$B101,2,1)*G87*$H87*$I87,0)+IF(ISNUMBER(K87), VLOOKUP(K87/$AH87,F!$A1:$B101,2,1)*K87*$L87*$M87,0)+IF(ISNUMBER(O87), VLOOKUP(O87/$AH87,F!$A1:$B101,2,1)*O87*$P87*$Q87,0)+IF(ISNUMBER(S87), VLOOKUP(S87/$AH87,F!$A1:$B101,2,1)*S87*$T87*$U87,0)+IF(ISNUMBER(W87), VLOOKUP(W87/$AH87,F!$A1:$B101,2,1)*W87*$X87*$Y87,0)+IF(ISNUMBER(AA87), VLOOKUP(AA87/$AH87,F!$A1:$B101,2,1)*AA87*$AB87*$AC87,0))*IF(ISNUMBER(F87),F87,1)*IF(ISNUMBER(E87),E87,1) -> 6073 | AJ87: =H87*I87+L87*M87+P87*Q87+T87*U87+X87*Y87+AB87*AC87 -> 31 | AK87: =IFERROR(I87*INDEX(F!$P$21:$AB$33, MATCH(G87/$AH87, F!$O$21:$O$33,1), MATCH(E87, F!$P$20:$AB$20,1)), 0 ) +IFERROR( M87*INDEX(F!$P$21:$AB$33, MATCH(K87/$AH87, F!$O$21:$O$33,1), MATCH(E87, F!$P$20:$AB$20,1)),0) + IFERROR( Q87*INDEX(F!$P$21:$AB$33, MATCH(O87/$AH87, F!$O$21:$O$33,1), MATCH(E87, F!$P$20:$AB$20,1)), 0) + IFERROR( U87*INDEX(F!$P$21:$AB$33, MATCH(S87/$AH87, F!$O$21:$O$33,1), MATCH(E87, F!$P$20:$AB$20,1)),0) + IFERROR(Y87*INDEX(F!$P$21:$AB$33, MATCH(W87/$AH87, F!$O$21:$O$33,1), MATCH(E87, F!$P$20:$AB$20,1)),0) + IFERROR( AC87*INDEX(F!$P$21:$AB$33, MATCH(AA87/$AH87, F!$O$21:$O$33,1), MATCH(E87, F!$P$20:$AB$20,1)),) -> 35
A88: =A32+A2 -> 2015-10-29 | B88: Средняя | C88: ЖИМ | D88: Жим лежа | E88: 1.0 | G88: 82.5 | H88: 6 | I88: 1 | J88: 50% | K88: 100 | L88: 6 | M88: 5 | N88: 60% | AE88: 3495 | AF88: 97 | AG88: 58% | AH88: 166.7 | AI88: =( IF(ISNUMBER(G88), VLOOKUP(G88/$AH88,F!$A1:$B101,2,1)*G88*$H88*$I88,0)+IF(ISNUMBER(K88), VLOOKUP(K88/$AH88,F!$A1:$B101,2,1)*K88*$L88*$M88,0)+IF(ISNUMBER(O88), VLOOKUP(O88/$AH88,F!$A1:$B101,2,1)*O88*$P88*$Q88,0)+IF(ISNUMBER(S88), VLOOKUP(S88/$AH88,F!$A1:$B101,2,1)*S88*$T88*$U88,0)+IF(ISNUMBER(W88), VLOOKUP(W88/$AH88,F!$A1:$B101,2,1)*W88*$X88*$Y88,0)+IF(ISNUMBER(AA88), VLOOKUP(AA88/$AH88,F!$A1:$B101,2,1)*AA88*$AB88*$AC88,0))*IF(ISNUMBER(F88),F88,1)*IF(ISNUMBER(E88),E88,1) -> 2338 | AJ88: 36 | AK88: =IFERROR(I88*INDEX(F!$P$21:$AB$33, MATCH(G88/$AH88, F!$O$21:$O$33,1), MATCH(E88, F!$P$20:$AB$20,1)), 0 ) +IFERROR( M88*INDEX(F!$P$21:$AB$33, MATCH(K88/$AH88, F!$O$21:$O$33,1), MATCH(E88, F!$P$20:$AB$20,1)),0) + IFERROR( Q88*INDEX(F!$P$21:$AB$33, MATCH(O88/$AH88, F!$O$21:$O$33,1), MATCH(E88, F!$P$20:$AB$20,1)), 0) + IFERROR( U88*INDEX(F!$P$21:$AB$33, MATCH(S88/$AH88, F!$O$21:$O$33,1), MATCH(E88, F!$P$20:$AB$20,1)),0) + IFERROR(Y88*INDEX(F!$P$21:$AB$33, MATCH(W88/$AH88, F!$O$21:$O$33,1), MATCH(E88, F!$P$20:$AB$20,1)),0) + IFERROR( AC88*INDEX(F!$P$21:$AB$33, MATCH(AA88/$AH88, F!$O$21:$O$33,1), MATCH(E88, F!$P$20:$AB$20,1)),) -> 17
B89: Легкая | C89: ТЯГА | D89: Тяга уступающая | E89: 1.4 | G89: 145 | H89: 3 | I89: 6 | J89: 45% | AE89: 2610 | AF89: 145 | AG89: 45% | AH89: 323.2 | AI89: =( IF(ISNUMBER(G89), VLOOKUP(G89/$AH89,F!$A1:$B101,2,1)*G89*$H89*$I89,0)+IF(ISNUMBER(K89), VLOOKUP(K89/$AH89,F!$A1:$B101,2,1)*K89*$L89*$M89,0)+IF(ISNUMBER(O89), VLOOKUP(O89/$AH89,F!$A1:$B101,2,1)*O89*$P89*$Q89,0)+IF(ISNUMBER(S89), VLOOKUP(S89/$AH89,F!$A1:$B101,2,1)*S89*$T89*$U89,0)+IF(ISNUMBER(W89), VLOOKUP(W89/$AH89,F!$A1:$B101,2,1)*W89*$X89*$Y89,0)+IF(ISNUMBER(AA89), VLOOKUP(AA89/$AH89,F!$A1:$B101,2,1)*AA89*$AB89*$AC89,0))*IF(ISNUMBER(F89),F89,1)*IF(ISNUMBER(E89),E89,1) -> 1462 | AJ89: 18 | AK89: =IFERROR(I89*INDEX(F!$P$21:$AB$33, MATCH(G89/$AH89, F!$O$21:$O$33,1), MATCH(E89, F!$P$20:$AB$20,1)), 0 ) +IFERROR( M89*INDEX(F!$P$21:$AB$33, MATCH(K89/$AH89, F!$O$21:$O$33,1), MATCH(E89, F!$P$20:$AB$20,1)),0) + IFERROR( Q89*INDEX(F!$P$21:$AB$33, MATCH(O89/$AH89, F!$O$21:$O$33,1), MATCH(E89, F!$P$20:$AB$20,1)), 0) + IFERROR( U89*INDEX(F!$P$21:$AB$33, MATCH(S89/$AH89, F!$O$21:$O$33,1), MATCH(E89, F!$P$20:$AB$20,1)),0) + IFERROR(Y89*INDEX(F!$P$21:$AB$33, MATCH(W89/$AH89, F!$O$21:$O$33,1), MATCH(E89, F!$P$20:$AB$20,1)),0) + IFERROR( AC89*INDEX(F!$P$21:$AB$33, MATCH(AA89/$AH89, F!$O$21:$O$33,1), MATCH(E89, F!$P$20:$AB$20,1)),) -> 21
B90: Легкая | C90: ЖИМ | D90: Жим на наклонной скамье | E90: 1.0 | G90: 52.5 | H90: 4 | I90: 4 | J90: 40% | AE90: 840 | AF90: 53 | AG90: 39% | AH90: 133.3 | AI90: =( IF(ISNUMBER(G90), VLOOKUP(G90/$AH90,F!$A1:$B101,2,1)*G90*$H90*$I90,0)+IF(ISNUMBER(K90), VLOOKUP(K90/$AH90,F!$A1:$B101,2,1)*K90*$L90*$M90,0)+IF(ISNUMBER(O90), VLOOKUP(O90/$AH90,F!$A1:$B101,2,1)*O90*$P90*$Q90,0)+IF(ISNUMBER(S90), VLOOKUP(S90/$AH90,F!$A1:$B101,2,1)*S90*$T90*$U90,0)+IF(ISNUMBER(W90), VLOOKUP(W90/$AH90,F!$A1:$B101,2,1)*W90*$X90*$Y90,0)+IF(ISNUMBER(AA90), VLOOKUP(AA90/$AH90,F!$A1:$B101,2,1)*AA90*$AB90*$AC90,0))*IF(ISNUMBER(F90),F90,1)*IF(ISNUMBER(E90),E90,1) -> 252 | AJ90: =H90*I90+L90*M90+P90*Q90+T90*U90+X90*Y90+AB90*AC90 -> 16 | AK90: =IFERROR(I90*INDEX(F!$P$21:$AB$33, MATCH(G90/$AH90, F!$O$21:$O$33,1), MATCH(E90, F!$P$20:$AB$20,1)), 0 ) +IFERROR( M90*INDEX(F!$P$21:$AB$33, MATCH(K90/$AH90, F!$O$21:$O$33,1), MATCH(E90, F!$P$20:$AB$20,1)),0) + IFERROR( Q90*INDEX(F!$P$21:$AB$33, MATCH(O90/$AH90, F!$O$21:$O$33,1), MATCH(E90, F!$P$20:$AB$20,1)), 0) + IFERROR( U90*INDEX(F!$P$21:$AB$33, MATCH(S90/$AH90, F!$O$21:$O$33,1), MATCH(E90, F!$P$20:$AB$20,1)),0) + IFERROR(Y90*INDEX(F!$P$21:$AB$33, MATCH(W90/$AH90, F!$O$21:$O$33,1), MATCH(E90, F!$P$20:$AB$20,1)),0) + IFERROR( AC90*INDEX(F!$P$21:$AB$33, MATCH(AA90/$AH90, F!$O$21:$O$33,1), MATCH(E90, F!$P$20:$AB$20,1)),) -> 8
B91: Легкая | C91: ЖИМ | D91: Жим гантелей лежа на накл скамье | E91: 0.8 | F91: 2 | G91: 18 | H91: 5 | I91: 5 | J91: 40% | AE91: 900 | AF91: 36 | AG91: 40% | AH91: 44.5 | AI91: =( IF(ISNUMBER(G91), VLOOKUP(G91/$AH91,F!$A1:$B101,2,1)*G91*$H91*$I91,0)+IF(ISNUMBER(K91), VLOOKUP(K91/$AH91,F!$A1:$B101,2,1)*K91*$L91*$M91,0)+IF(ISNUMBER(O91), VLOOKUP(O91/$AH91,F!$A1:$B101,2,1)*O91*$P91*$Q91,0)+IF(ISNUMBER(S91), VLOOKUP(S91/$AH91,F!$A1:$B101,2,1)*S91*$T91*$U91,0)+IF(ISNUMBER(W91), VLOOKUP(W91/$AH91,F!$A1:$B101,2,1)*W91*$X91*$Y91,0)+IF(ISNUMBER(AA91), VLOOKUP(AA91/$AH91,F!$A1:$B101,2,1)*AA91*$AB91*$AC91,0))*IF(ISNUMBER(F91),F91,1)*IF(ISNUMBER(E91),E91,1) -> 230 | AJ91: =H91*I91+L91*M91+P91*Q91+T91*U91+X91*Y91+AB91*AC91 -> 25 | AK91: =IFERROR(I91*INDEX(F!$P$21:$AB$33, MATCH(G91/$AH91, F!$O$21:$O$33,1), MATCH(E91, F!$P$20:$AB$20,1)), 0 ) +IFERROR( M91*INDEX(F!$P$21:$AB$33, MATCH(K91/$AH91, F!$O$21:$O$33,1), MATCH(E91, F!$P$20:$AB$20,1)),0) + IFERROR( Q91*INDEX(F!$P$21:$AB$33, MATCH(O91/$AH91, F!$O$21:$O$33,1), MATCH(E91, F!$P$20:$AB$20,1)), 0) + IFERROR( U91*INDEX(F!$P$21:$AB$33, MATCH(S91/$AH91, F!$O$21:$O$33,1), MATCH(E91, F!$P$20:$AB$20,1)),0) + IFERROR(Y91*INDEX(F!$P$21:$AB$33, MATCH(W91/$AH91, F!$O$21:$O$33,1), MATCH(E91, F!$P$20:$AB$20,1)),0) + IFERROR( AC91*INDEX(F!$P$21:$AB$33, MATCH(AA91/$AH91, F!$O$21:$O$33,1), MATCH(E91, F!$P$20:$AB$20,1)),) -> 9
AE92: 0 | AF92: 0 | AG92: 0% | AI92: =( IF(ISNUMBER(G92), VLOOKUP(G92/$AH92,F!$A1:$B101,2,1)*G92*$H92*$I92,0)+IF(ISNUMBER(K92), VLOOKUP(K92/$AH92,F!$A1:$B101,2,1)*K92*$L92*$M92,0)+IF(ISNUMBER(O92), VLOOKUP(O92/$AH92,F!$A1:$B101,2,1)*O92*$P92*$Q92,0)+IF(ISNUMBER(S92), VLOOKUP(S92/$AH92,F!$A1:$B101,2,1)*S92*$T92*$U92,0)+IF(ISNUMBER(W92), VLOOKUP(W92/$AH92,F!$A1:$B101,2,1)*W92*$X92*$Y92,0)+IF(ISNUMBER(AA92), VLOOKUP(AA92/$AH92,F!$A1:$B101,2,1)*AA92*$AB92*$AC92,0))*IF(ISNUMBER(F92),F92,1)*IF(ISNUMBER(E92),E92,1) -> 0 | AJ92: 0 | AK92: =IFERROR(I92*INDEX(F!$P$21:$AB$33, MATCH(G92/$AH92, F!$O$21:$O$33,1), MATCH(E92, F!$P$20:$AB$20,1)), 0 ) +IFERROR( M92*INDEX(F!$P$21:$AB$33, MATCH(K92/$AH92, F!$O$21:$O$33,1), MATCH(E92, F!$P$20:$AB$20,1)),0) + IFERROR( Q92*INDEX(F!$P$21:$AB$33, MATCH(O92/$AH92, F!$O$21:$O$33,1), MATCH(E92, F!$P$20:$AB$20,1)), 0) + IFERROR( U92*INDEX(F!$P$21:$AB$33, MATCH(S92/$AH92, F!$O$21:$O$33,1), MATCH(E92, F!$P$20:$AB$20,1)),0) + IFERROR(Y92*INDEX(F!$P$21:$AB$33, MATCH(W92/$AH92, F!$O$21:$O$33,1), MATCH(E92, F!$P$20:$AB$20,1)),0) + IFERROR( AC92*INDEX(F!$P$21:$AB$33, MATCH(AA92/$AH92, F!$O$21:$O$33,1), MATCH(E92, F!$P$20:$AB$20,1)),) -> 0
AE93: 0 | AF93: 0 | AG93: 0% | AI93: =( IF(ISNUMBER(G93), VLOOKUP(G93/$AH93,F!$A1:$B101,2,1)*G93*$H93*$I93,0)+IF(ISNUMBER(K93), VLOOKUP(K93/$AH93,F!$A1:$B101,2,1)*K93*$L93*$M93,0)+IF(ISNUMBER(O93), VLOOKUP(O93/$AH93,F!$A1:$B101,2,1)*O93*$P93*$Q93,0)+IF(ISNUMBER(S93), VLOOKUP(S93/$AH93,F!$A1:$B101,2,1)*S93*$T93*$U93,0)+IF(ISNUMBER(W93), VLOOKUP(W93/$AH93,F!$A1:$B101,2,1)*W93*$X93*$Y93,0)+IF(ISNUMBER(AA93), VLOOKUP(AA93/$AH93,F!$A1:$B101,2,1)*AA93*$AB93*$AC93,0))*IF(ISNUMBER(F93),F93,1)*IF(ISNUMBER(E93),E93,1) -> 0 | AJ93: 0 | AK93: =IFERROR(I93*INDEX(F!$P$21:$AB$33, MATCH(G93/$AH93, F!$O$21:$O$33,1), MATCH(E93, F!$P$20:$AB$20,1)), 0 ) +IFERROR( M93*INDEX(F!$P$21:$AB$33, MATCH(K93/$AH93, F!$O$21:$O$33,1), MATCH(E93, F!$P$20:$AB$20,1)),0) + IFERROR( Q93*INDEX(F!$P$21:$AB$33, MATCH(O93/$AH93, F!$O$21:$O$33,1), MATCH(E93, F!$P$20:$AB$20,1)), 0) + IFERROR( U93*INDEX(F!$P$21:$AB$33, MATCH(S93/$AH93, F!$O$21:$O$33,1), MATCH(E93, F!$P$20:$AB$20,1)),0) + IFERROR(Y93*INDEX(F!$P$21:$AB$33, MATCH(W93/$AH93, F!$O$21:$O$33,1), MATCH(E93, F!$P$20:$AB$20,1)),0) + IFERROR( AC93*INDEX(F!$P$21:$AB$33, MATCH(AA93/$AH93, F!$O$21:$O$33,1), MATCH(E93, F!$P$20:$AB$20,1)),) -> 0
AE94: 0 | AF94: 0 | AG94: 0% | AI94: =( IF(ISNUMBER(G94), VLOOKUP(G94/$AH94,F!$A1:$B101,2,1)*G94*$H94*$I94,0)+IF(ISNUMBER(K94), VLOOKUP(K94/$AH94,F!$A1:$B101,2,1)*K94*$L94*$M94,0)+IF(ISNUMBER(O94), VLOOKUP(O94/$AH94,F!$A1:$B101,2,1)*O94*$P94*$Q94,0)+IF(ISNUMBER(S94), VLOOKUP(S94/$AH94,F!$A1:$B101,2,1)*S94*$T94*$U94,0)+IF(ISNUMBER(W94), VLOOKUP(W94/$AH94,F!$A1:$B101,2,1)*W94*$X94*$Y94,0)+IF(ISNUMBER(AA94), VLOOKUP(AA94/$AH94,F!$A1:$B101,2,1)*AA94*$AB94*$AC94,0))*IF(ISNUMBER(F94),F94,1)*IF(ISNUMBER(E94),E94,1) -> 0 | AJ94: 0 | AK94: =IFERROR(I94*INDEX(F!$P$21:$AB$33, MATCH(G94/$AH94, F!$O$21:$O$33,1), MATCH(E94, F!$P$20:$AB$20,1)), 0 ) +IFERROR( M94*INDEX(F!$P$21:$AB$33, MATCH(K94/$AH94, F!$O$21:$O$33,1), MATCH(E94, F!$P$20:$AB$20,1)),0) + IFERROR( Q94*INDEX(F!$P$21:$AB$33, MATCH(O94/$AH94, F!$O$21:$O$33,1), MATCH(E94, F!$P$20:$AB$20,1)), 0) + IFERROR( U94*INDEX(F!$P$21:$AB$33, MATCH(S94/$AH94, F!$O$21:$O$33,1), MATCH(E94, F!$P$20:$AB$20,1)),0) + IFERROR(Y94*INDEX(F!$P$21:$AB$33, MATCH(W94/$AH94, F!$O$21:$O$33,1), MATCH(E94, F!$P$20:$AB$20,1)),0) + IFERROR( AC94*INDEX(F!$P$21:$AB$33, MATCH(AA94/$AH94, F!$O$21:$O$33,1), MATCH(E94, F!$P$20:$AB$20,1)),) -> 0
E95: =ROUND(IFERROR(SUMPRODUCT(AJ87:AJ94,E87:E94)/AJ95,0),3) -> 1.12 | AE95: =SUM(AE87:AE94) -> 13872.5 | AF95: 110.1 | AG95: =IFERROR( SUMPRODUCT(AG87:AG94,AJ87:AJ94)/AJ95,0) -> 51% | AI95: =SUM(AI87:AI94) -> 10354 | AJ95: =SUM(AJ87:AJ94) -> 126 | AK95: =IF(SUM(AK87:AK94)=0,TIME(,0,),TIME(,SUM(AK87:AK94)+F!$V$37,)) -> 02:00:00
A96: =A97 -> 2015-10-30 | B96: =IF(B40="","",B40) -> Легкая | C96: ТЯГА | D96: Тяга с подчеркнутым стартом | E96: 1.4 | G96: =IF(J96<>0, IFERROR(IF( $F96=2, MROUND($AH96*J96,1), IF( OR($F96="",$F96=1), MROUND($AH96*J96,2.5), MROUND($AH96*J96, 0.1))), "" ), "") -> 135 | H96: 2 | I96: 5 | J96: 42% | K96: =IF(N96<>0, IFERROR(IF( $F96=2, MROUND($AH96*N96,1), IF( OR($F96="",$F96=1), MROUND($AH96*N96,2.5), MROUND($AH96*N96, 0.1))), "" ), "") -> 145 | L96: 1 | M96: 1 | N96: 45% | O96: =IF(R96<>0, IFERROR(IF( $F96=2, MROUND($AH96*R96,1), IF( OR($F96="",$F96=1), MROUND($AH96*R96,2.5), MROUND($AH96*R96, 0.1))), "" ), "") -> 177.5 | P96: 1 | Q96: 1 | R96: 55% | S96: =IF(V96<>0, IFERROR(IF( $F96=2, MROUND($AH96*V96,1), IF( OR($F96="",$F96=1), MROUND($AH96*V96,2.5), MROUND($AH96*V96, 0.1))), "" ), "") ->  | W96: =IF(Z96<>0, IFERROR(IF( $F96=2, MROUND($AH96*Z96,1), IF( OR($F96="",$F96=1), MROUND($AH96*Z96,2.5), MROUND($AH96*Z96, 0.1))), "" ), "") ->  | AA96: =IF(AD96<>0, IFERROR(IF( $F96=2, MROUND($AH96*AD96,1), IF( OR($F96="",$F96=1), MROUND($AH96*AD96,2.5), MROUND($AH96*AD96, 0.1))), "" ), "") ->  | AE96: =(IF(ISNUMBER(G96),G96,0)*H96*I96+IF(ISNUMBER(K96),K96,1)*L96*M96+IF(ISNUMBER(O96),O96,1)*P96*Q96+IF(ISNUMBER(S96),S96,1)*T96*U96+IF(ISNUMBER(W96),W96,1)*X96*Y96+IF(ISNUMBER(AA96),AA96,1)*AB96*AC96)*IF(ISNUMBER(F96),F96,1) -> 1672.5 | AF96: 139 | AG96: =IFERROR((AF96/(AH96*IF(ISNUMBER(F96),F96,1))),0) -> 43% | AH96: =IF(ISNUMBER(AH40), AH40+(AH40*$AH$58),"") -> 323.2 | AI96: =( IF(ISNUMBER(G96), VLOOKUP(G96/$AH96,F!$A1:$B101,2,1)*G96*$H96*$I96,0)+IF(ISNUMBER(K96), VLOOKUP(K96/$AH96,F!$A1:$B101,2,1)*K96*$L96*$M96,0)+IF(ISNUMBER(O96), VLOOKUP(O96/$AH96,F!$A1:$B101,2,1)*O96*$P96*$Q96,0)+IF(ISNUMBER(S96), VLOOKUP(S96/$AH96,F!$A1:$B101,2,1)*S96*$T96*$U96,0)+IF(ISNUMBER(W96), VLOOKUP(W96/$AH96,F!$A1:$B101,2,1)*W96*$X96*$Y96,0)+IF(ISNUMBER(AA96), VLOOKUP(AA96/$AH96,F!$A1:$B101,2,1)*AA96*$AB96*$AC96,0))*IF(ISNUMBER(F96),F96,1)*IF(ISNUMBER(E96),E96,1) -> 863 | AJ96: =H96*I96+L96*M96+P96*Q96+T96*U96+X96*Y96+AB96*AC96 -> 12 | AK96: =IFERROR(I96*INDEX(F!$P$21:$AB$33, MATCH(G96/$AH96, F!$O$21:$O$33,1), MATCH(E96, F!$P$20:$AB$20,1)), 0 ) +IFERROR( M96*INDEX(F!$P$21:$AB$33, MATCH(K96/$AH96, F!$O$21:$O$33,1), MATCH(E96, F!$P$20:$AB$20,1)),0) + IFERROR( Q96*INDEX(F!$P$21:$AB$33, MATCH(O96/$AH96, F!$O$21:$O$33,1), MATCH(E96, F!$P$20:$AB$20,1)), 0) + IFERROR( U96*INDEX(F!$P$21:$AB$33, MATCH(S96/$AH96, F!$O$21:$O$33,1), MATCH(E96, F!$P$20:$AB$20,1)),0) + IFERROR(Y96*INDEX(F!$P$21:$AB$33, MATCH(W96/$AH96, F!$O$21:$O$33,1), MATCH(E96, F!$P$20:$AB$20,1)),0) + IFERROR( AC96*INDEX(F!$P$21:$AB$33, MATCH(AA96/$AH96, F!$O$21:$O$33,1), MATCH(E96, F!$P$20:$AB$20,1)),) -> 25
A97: =A41+A2 -> 2015-10-30 | B97: Средняя | C97: ОФП | D97: Жим стоя | E97: 1.0 | G97: 45 | H97: 6 | I97: 1 | J97: 45% | K97: 62.5 | L97: 5 | M97: 5 | N97: 62% | AE97: 1832.5 | AF97: 59 | AG97: 59% | AH97: 100.0 | AI97: =( IF(ISNUMBER(G97), VLOOKUP(G97/$AH97,F!$A1:$B101,2,1)*G97*$H97*$I97,0)+IF(ISNUMBER(K97), VLOOKUP(K97/$AH97,F!$A1:$B101,2,1)*K97*$L97*$M97,0)+IF(ISNUMBER(O97), VLOOKUP(O97/$AH97,F!$A1:$B101,2,1)*O97*$P97*$Q97,0)+IF(ISNUMBER(S97), VLOOKUP(S97/$AH97,F!$A1:$B101,2,1)*S97*$T97*$U97,0)+IF(ISNUMBER(W97), VLOOKUP(W97/$AH97,F!$A1:$B101,2,1)*W97*$X97*$Y97,0)+IF(ISNUMBER(AA97), VLOOKUP(AA97/$AH97,F!$A1:$B101,2,1)*AA97*$AB97*$AC97,0))*IF(ISNUMBER(F97),F97,1)*IF(ISNUMBER(E97),E97,1) -> 1254 | AJ97: 31 | AK97: =IFERROR(I97*INDEX(F!$P$21:$AB$33, MATCH(G97/$AH97, F!$O$21:$O$33,1), MATCH(E97, F!$P$20:$AB$20,1)), 0 ) +IFERROR( M97*INDEX(F!$P$21:$AB$33, MATCH(K97/$AH97, F!$O$21:$O$33,1), MATCH(E97, F!$P$20:$AB$20,1)),0) + IFERROR( Q97*INDEX(F!$P$21:$AB$33, MATCH(O97/$AH97, F!$O$21:$O$33,1), MATCH(E97, F!$P$20:$AB$20,1)), 0) + IFERROR( U97*INDEX(F!$P$21:$AB$33, MATCH(S97/$AH97, F!$O$21:$O$33,1), MATCH(E97, F!$P$20:$AB$20,1)),0) + IFERROR(Y97*INDEX(F!$P$21:$AB$33, MATCH(W97/$AH97, F!$O$21:$O$33,1), MATCH(E97, F!$P$20:$AB$20,1)),0) + IFERROR( AC97*INDEX(F!$P$21:$AB$33, MATCH(AA97/$AH97, F!$O$21:$O$33,1), MATCH(E97, F!$P$20:$AB$20,1)),) -> 17
B98: Легкая | C98: ОФП | D98: Присед в широкой постановке | E98: 1.2 | G98: 75 | H98: 5 | I98: 5 | J98: 30% | AE98: 1875 | AF98: 75 | AG98: 30% | AH98: 252.1 | AI98: =( IF(ISNUMBER(G98), VLOOKUP(G98/$AH98,F!$A1:$B101,2,1)*G98*$H98*$I98,0)+IF(ISNUMBER(K98), VLOOKUP(K98/$AH98,F!$A1:$B101,2,1)*K98*$L98*$M98,0)+IF(ISNUMBER(O98), VLOOKUP(O98/$AH98,F!$A1:$B101,2,1)*O98*$P98*$Q98,0)+IF(ISNUMBER(S98), VLOOKUP(S98/$AH98,F!$A1:$B101,2,1)*S98*$T98*$U98,0)+IF(ISNUMBER(W98), VLOOKUP(W98/$AH98,F!$A1:$B101,2,1)*W98*$X98*$Y98,0)+IF(ISNUMBER(AA98), VLOOKUP(AA98/$AH98,F!$A1:$B101,2,1)*AA98*$AB98*$AC98,0))*IF(ISNUMBER(F98),F98,1)*IF(ISNUMBER(E98),E98,1) -> 270 | AJ98: 25 | AK98: =IFERROR(I98*INDEX(F!$P$21:$AB$33, MATCH(G98/$AH98, F!$O$21:$O$33,1), MATCH(E98, F!$P$20:$AB$20,1)), 0 ) +IFERROR( M98*INDEX(F!$P$21:$AB$33, MATCH(K98/$AH98, F!$O$21:$O$33,1), MATCH(E98, F!$P$20:$AB$20,1)),0) + IFERROR( Q98*INDEX(F!$P$21:$AB$33, MATCH(O98/$AH98, F!$O$21:$O$33,1), MATCH(E98, F!$P$20:$AB$20,1)), 0) + IFERROR( U98*INDEX(F!$P$21:$AB$33, MATCH(S98/$AH98, F!$O$21:$O$33,1), MATCH(E98, F!$P$20:$AB$20,1)),0) + IFERROR(Y98*INDEX(F!$P$21:$AB$33, MATCH(W98/$AH98, F!$O$21:$O$33,1), MATCH(E98, F!$P$20:$AB$20,1)),0) + IFERROR( AC98*INDEX(F!$P$21:$AB$33, MATCH(AA98/$AH98, F!$O$21:$O$33,1), MATCH(E98, F!$P$20:$AB$20,1)),) -> 15
B99: Средняя | C99: ЖИМ | D99: Жим средним хватом | E99: 1.0 | G99: 62.5 | H99: 6 | I99: 1 | J99: 45% | K99: 77.5 | L99: 6 | M99: 4 | N99: 55% | AE99: 2235 | AF99: 75 | AG99: 53% | AH99: 141.7 | AI99: =( IF(ISNUMBER(G99), VLOOKUP(G99/$AH99,F!$A1:$B101,2,1)*G99*$H99*$I99,0)+IF(ISNUMBER(K99), VLOOKUP(K99/$AH99,F!$A1:$B101,2,1)*K99*$L99*$M99,0)+IF(ISNUMBER(O99), VLOOKUP(O99/$AH99,F!$A1:$B101,2,1)*O99*$P99*$Q99,0)+IF(ISNUMBER(S99), VLOOKUP(S99/$AH99,F!$A1:$B101,2,1)*S99*$T99*$U99,0)+IF(ISNUMBER(W99), VLOOKUP(W99/$AH99,F!$A1:$B101,2,1)*W99*$X99*$Y99,0)+IF(ISNUMBER(AA99), VLOOKUP(AA99/$AH99,F!$A1:$B101,2,1)*AA99*$AB99*$AC99,0))*IF(ISNUMBER(F99),F99,1)*IF(ISNUMBER(E99),E99,1) -> 1192 | AJ99: =H99*I99+L99*M99+P99*Q99+T99*U99+X99*Y99+AB99*AC99 -> 30 | AK99: =IFERROR(I99*INDEX(F!$P$21:$AB$33, MATCH(G99/$AH99, F!$O$21:$O$33,1), MATCH(E99, F!$P$20:$AB$20,1)), 0 ) +IFERROR( M99*INDEX(F!$P$21:$AB$33, MATCH(K99/$AH99, F!$O$21:$O$33,1), MATCH(E99, F!$P$20:$AB$20,1)),0) + IFERROR( Q99*INDEX(F!$P$21:$AB$33, MATCH(O99/$AH99, F!$O$21:$O$33,1), MATCH(E99, F!$P$20:$AB$20,1)), 0) + IFERROR( U99*INDEX(F!$P$21:$AB$33, MATCH(S99/$AH99, F!$O$21:$O$33,1), MATCH(E99, F!$P$20:$AB$20,1)),0) + IFERROR(Y99*INDEX(F!$P$21:$AB$33, MATCH(W99/$AH99, F!$O$21:$O$33,1), MATCH(E99, F!$P$20:$AB$20,1)),0) + IFERROR( AC99*INDEX(F!$P$21:$AB$33, MATCH(AA99/$AH99, F!$O$21:$O$33,1), MATCH(E99, F!$P$20:$AB$20,1)),) -> 10
B100: Легкая | C100: ОФП | D100: Наклоны стоя | E100: 0.8 | G100: 62.5 | H100: 5 | I100: 5 | J100: 35% | AE100: 1562.5 | AF100: 63 | AG100: 35% | AH100: 177.8 | AI100: =( IF(ISNUMBER(G100), VLOOKUP(G100/$AH100,F!$A1:$B101,2,1)*G100*$H100*$I100,0)+IF(ISNUMBER(K100), VLOOKUP(K100/$AH100,F!$A1:$B101,2,1)*K100*$L100*$M100,0)+IF(ISNUMBER(O100), VLOOKUP(O100/$AH100,F!$A1:$B101,2,1)*O100*$P100*$Q100,0)+IF(ISNUMBER(S100), VLOOKUP(S100/$AH100,F!$A1:$B101,2,1)*S100*$T100*$U100,0)+IF(ISNUMBER(W100), VLOOKUP(W100/$AH100,F!$A1:$B101,2,1)*W100*$X100*$Y100,0)+IF(ISNUMBER(AA100), VLOOKUP(AA100/$AH100,F!$A1:$B101,2,1)*AA100*$AB100*$AC100,0))*IF(ISNUMBER(F100),F100,1)*IF(ISNUMBER(E100),E100,1) -> 275 | AJ100: =H100*I100+L100*M100+P100*Q100+T100*U100+X100*Y100+AB100*AC100 -> 25 | AK100: =IFERROR(I100*INDEX(F!$P$21:$AB$33, MATCH(G100/$AH100, F!$O$21:$O$33,1), MATCH(E100, F!$P$20:$AB$20,1)), 0 ) +IFERROR( M100*INDEX(F!$P$21:$AB$33, MATCH(K100/$AH100, F!$O$21:$O$33,1), MATCH(E100, F!$P$20:$AB$20,1)),0) + IFERROR( Q100*INDEX(F!$P$21:$AB$33, MATCH(O100/$AH100, F!$O$21:$O$33,1), MATCH(E100, F!$P$20:$AB$20,1)), 0) + IFERROR( U100*INDEX(F!$P$21:$AB$33, MATCH(S100/$AH100, F!$O$21:$O$33,1), MATCH(E100, F!$P$20:$AB$20,1)),0) + IFERROR(Y100*INDEX(F!$P$21:$AB$33, MATCH(W100/$AH100, F!$O$21:$O$33,1), MATCH(E100, F!$P$20:$AB$20,1)),0) + IFERROR( AC100*INDEX(F!$P$21:$AB$33, MATCH(AA100/$AH100, F!$O$21:$O$33,1), MATCH(E100, F!$P$20:$AB$20,1)),) -> 9
AE101: 0 | AF101: 0 | AG101: 0% | AI101: =( IF(ISNUMBER(G101), VLOOKUP(G101/$AH101,F!$A1:$B101,2,1)*G101*$H101*$I101,0)+IF(ISNUMBER(K101), VLOOKUP(K101/$AH101,F!$A1:$B101,2,1)*K101*$L101*$M101,0)+IF(ISNUMBER(O101), VLOOKUP(O101/$AH101,F!$A1:$B101,2,1)*O101*$P101*$Q101,0)+IF(ISNUMBER(S101), VLOOKUP(S101/$AH101,F!$A1:$B101,2,1)*S101*$T101*$U101,0)+IF(ISNUMBER(W101), VLOOKUP(W101/$AH101,F!$A1:$B101,2,1)*W101*$X101*$Y101,0)+IF(ISNUMBER(AA101), VLOOKUP(AA101/$AH101,F!$A1:$B101,2,1)*AA101*$AB101*$AC101,0))*IF(ISNUMBER(F101),F101,1)*IF(ISNUMBER(E101),E101,1) -> 0 | AJ101: 0 | AK101: =IFERROR(I101*INDEX(F!$P$21:$AB$33, MATCH(G101/$AH101, F!$O$21:$O$33,1), MATCH(E101, F!$P$20:$AB$20,1)), 0 ) +IFERROR( M101*INDEX(F!$P$21:$AB$33, MATCH(K101/$AH101, F!$O$21:$O$33,1), MATCH(E101, F!$P$20:$AB$20,1)),0) + IFERROR( Q101*INDEX(F!$P$21:$AB$33, MATCH(O101/$AH101, F!$O$21:$O$33,1), MATCH(E101, F!$P$20:$AB$20,1)), 0) + IFERROR( U101*INDEX(F!$P$21:$AB$33, MATCH(S101/$AH101, F!$O$21:$O$33,1), MATCH(E101, F!$P$20:$AB$20,1)),0) + IFERROR(Y101*INDEX(F!$P$21:$AB$33, MATCH(W101/$AH101, F!$O$21:$O$33,1), MATCH(E101, F!$P$20:$AB$20,1)),0) + IFERROR( AC101*INDEX(F!$P$21:$AB$33, MATCH(AA101/$AH101, F!$O$21:$O$33,1), MATCH(E101, F!$P$20:$AB$20,1)),) -> 0
AE102: 0 | AF102: 0 | AG102: 0% | AI102: =( IF(ISNUMBER(G102), VLOOKUP(G102/$AH102,F!$A1:$B101,2,1)*G102*$H102*$I102,0)+IF(ISNUMBER(K102), VLOOKUP(K102/$AH102,F!$A1:$B101,2,1)*K102*$L102*$M102,0)+IF(ISNUMBER(O102), VLOOKUP(O102/$AH102,F!$A1:$B101,2,1)*O102*$P102*$Q102,0)+IF(ISNUMBER(S102), VLOOKUP(S102/$AH102,F!$A1:$B101,2,1)*S102*$T102*$U102,0)+IF(ISNUMBER(W102), VLOOKUP(W102/$AH102,F!$A1:$B101,2,1)*W102*$X102*$Y102,0)+IF(ISNUMBER(AA102), VLOOKUP(AA102/$AH102,F!$A1:$B101,2,1)*AA102*$AB102*$AC102,0))*IF(ISNUMBER(F102),F102,1)*IF(ISNUMBER(E102),E102,1) -> 0 | AJ102: 0 | AK102: =IFERROR(I102*INDEX(F!$P$21:$AB$33, MATCH(G102/$AH102, F!$O$21:$O$33,1), MATCH(E102, F!$P$20:$AB$20,1)), 0 ) +IFERROR( M102*INDEX(F!$P$21:$AB$33, MATCH(K102/$AH102, F!$O$21:$O$33,1), MATCH(E102, F!$P$20:$AB$20,1)),0) + IFERROR( Q102*INDEX(F!$P$21:$AB$33, MATCH(O102/$AH102, F!$O$21:$O$33,1), MATCH(E102, F!$P$20:$AB$20,1)), 0) + IFERROR( U102*INDEX(F!$P$21:$AB$33, MATCH(S102/$AH102, F!$O$21:$O$33,1), MATCH(E102, F!$P$20:$AB$20,1)),0) + IFERROR(Y102*INDEX(F!$P$21:$AB$33, MATCH(W102/$AH102, F!$O$21:$O$33,1), MATCH(E102, F!$P$20:$AB$20,1)),0) + IFERROR( AC102*INDEX(F!$P$21:$AB$33, MATCH(AA102/$AH102, F!$O$21:$O$33,1), MATCH(E102, F!$P$20:$AB$20,1)),) -> 0
AE103: 0 | AF103: 0 | AG103: 0% | AI103: =( IF(ISNUMBER(G103), VLOOKUP(G103/$AH103,F!$A1:$B101,2,1)*G103*$H103*$I103,0)+IF(ISNUMBER(K103), VLOOKUP(K103/$AH103,F!$A1:$B101,2,1)*K103*$L103*$M103,0)+IF(ISNUMBER(O103), VLOOKUP(O103/$AH103,F!$A1:$B101,2,1)*O103*$P103*$Q103,0)+IF(ISNUMBER(S103), VLOOKUP(S103/$AH103,F!$A1:$B101,2,1)*S103*$T103*$U103,0)+IF(ISNUMBER(W103), VLOOKUP(W103/$AH103,F!$A1:$B101,2,1)*W103*$X103*$Y103,0)+IF(ISNUMBER(AA103), VLOOKUP(AA103/$AH103,F!$A1:$B101,2,1)*AA103*$AB103*$AC103,0))*IF(ISNUMBER(F103),F103,1)*IF(ISNUMBER(E103),E103,1) -> 0 | AJ103: 0 | AK103: =IFERROR(I103*INDEX(F!$P$21:$AB$33, MATCH(G103/$AH103, F!$O$21:$O$33,1), MATCH(E103, F!$P$20:$AB$20,1)), 0 ) +IFERROR( M103*INDEX(F!$P$21:$AB$33, MATCH(K103/$AH103, F!$O$21:$O$33,1), MATCH(E103, F!$P$20:$AB$20,1)),0) + IFERROR( Q103*INDEX(F!$P$21:$AB$33, MATCH(O103/$AH103, F!$O$21:$O$33,1), MATCH(E103, F!$P$20:$AB$20,1)), 0) + IFERROR( U103*INDEX(F!$P$21:$AB$33, MATCH(S103/$AH103, F!$O$21:$O$33,1), MATCH(E103, F!$P$20:$AB$20,1)),0) + IFERROR(Y103*INDEX(F!$P$21:$AB$33, MATCH(W103/$AH103, F!$O$21:$O$33,1), MATCH(E103, F!$P$20:$AB$20,1)),0) + IFERROR( AC103*INDEX(F!$P$21:$AB$33, MATCH(AA103/$AH103, F!$O$21:$O$33,1), MATCH(E103, F!$P$20:$AB$20,1)),) -> 0
E104: =ROUND(IFERROR(SUMPRODUCT(AJ96:AJ103,E96:E103)/AJ104,0),3) -> 1.04 | AE104: =SUM(AE96:AE103) -> 9177.5 | AF104: 74.6 | AG104: =IFERROR( SUMPRODUCT(AG96:AG103,AJ96:AJ103)/AJ104,0) -> 45% | AI104: =SUM(AI96:AI103) -> 3854 | AJ104: =SUM(AJ96:AJ103) -> 123 | AK104: =IF(SUM(AK96:AK103)=0,TIME(,0,),TIME(,SUM(AK96:AK103)+F!$V$37,)) -> 01:45:00
A105: =A106 -> 2015-10-31 | B105: =IF(B49="","",B49) ->  | G105: =IF(J105<>0, IFERROR(IF( $F105=2, MROUND($AH105*J105,1), IF( OR($F105="",$F105=1), MROUND($AH105*J105,2.5), MROUND($AH105*J105, 0.1))), "" ), "") ->  | K105: =IF(N105<>0, IFERROR(IF( $F105=2, MROUND($AH105*N105,1), IF( OR($F105="",$F105=1), MROUND($AH105*N105,2.5), MROUND($AH105*N105, 0.1))), "" ), "") ->  | O105: =IF(R105<>0, IFERROR(IF( $F105=2, MROUND($AH105*R105,1), IF( OR($F105="",$F105=1), MROUND($AH105*R105,2.5), MROUND($AH105*R105, 0.1))), "" ), "") ->  | S105: =IF(V105<>0, IFERROR(IF( $F105=2, MROUND($AH105*V105,1), IF( OR($F105="",$F105=1), MROUND($AH105*V105,2.5), MROUND($AH105*V105, 0.1))), "" ), "") ->  | W105: =IF(Z105<>0, IFERROR(IF( $F105=2, MROUND($AH105*Z105,1), IF( OR($F105="",$F105=1), MROUND($AH105*Z105,2.5), MROUND($AH105*Z105, 0.1))), "" ), "") ->  | AA105: =IF(AD105<>0, IFERROR(IF( $F105=2, MROUND($AH105*AD105,1), IF( OR($F105="",$F105=1), MROUND($AH105*AD105,2.5), MROUND($AH105*AD105, 0.1))), "" ), "") ->  | AE105: =(IF(ISNUMBER(G105),G105,0)*H105*I105+IF(ISNUMBER(K105),K105,1)*L105*M105+IF(ISNUMBER(O105),O105,1)*P105*Q105+IF(ISNUMBER(S105),S105,1)*T105*U105+IF(ISNUMBER(W105),W105,1)*X105*Y105+IF(ISNUMBER(AA105),AA105,1)*AB105*AC105)*IF(ISNUMBER(F105),F105,1) -> 0 | AF105: 0 | AG105: =IFERROR((AF105/(AH105*IF(ISNUMBER(F105),F105,1))),0) -> 0% | AH105: =IF(ISNUMBER(AH49), AH49+(AH49*$AH$58),"") ->  | AI105: =( IF(ISNUMBER(G105), VLOOKUP(G105/$AH105,F!$A1:$B101,2,1)*G105*$H105*$I105,0)+IF(ISNUMBER(K105), VLOOKUP(K105/$AH105,F!$A1:$B101,2,1)*K105*$L105*$M105,0)+IF(ISNUMBER(O105), VLOOKUP(O105/$AH105,F!$A1:$B101,2,1)*O105*$P105*$Q105,0)+IF(ISNUMBER(S105), VLOOKUP(S105/$AH105,F!$A1:$B101,2,1)*S105*$T105*$U105,0)+IF(ISNUMBER(W105), VLOOKUP(W105/$AH105,F!$A1:$B101,2,1)*W105*$X105*$Y105,0)+IF(ISNUMBER(AA105), VLOOKUP(AA105/$AH105,F!$A1:$B101,2,1)*AA105*$AB105*$AC105,0))*IF(ISNUMBER(F105),F105,1)*IF(ISNUMBER(E105),E105,1) -> 0 | AJ105: =H105*I105+L105*M105+P105*Q105+T105*U105+X105*Y105+AB105*AC105 -> 0 | AK105: =IFERROR(I105*INDEX(F!$P$21:$AB$33, MATCH(G105/$AH105, F!$O$21:$O$33,1), MATCH(E105, F!$P$20:$AB$20,1)), 0 ) +IFERROR( M105*INDEX(F!$P$21:$AB$33, MATCH(K105/$AH105, F!$O$21:$O$33,1), MATCH(E105, F!$P$20:$AB$20,1)),0) + IFERROR( Q105*INDEX(F!$P$21:$AB$33, MATCH(O105/$AH105, F!$O$21:$O$33,1), MATCH(E105, F!$P$20:$AB$20,1)), 0) + IFERROR( U105*INDEX(F!$P$21:$AB$33, MATCH(S105/$AH105, F!$O$21:$O$33,1), MATCH(E105, F!$P$20:$AB$20,1)),0) + IFERROR(Y105*INDEX(F!$P$21:$AB$33, MATCH(W105/$AH105, F!$O$21:$O$33,1), MATCH(E105, F!$P$20:$AB$20,1)),0) + IFERROR( AC105*INDEX(F!$P$21:$AB$33, MATCH(AA105/$AH105, F!$O$21:$O$33,1), MATCH(E105, F!$P$20:$AB$20,1)),) -> 0
A106: =A50+A2 -> 2015-10-31 | AE106: 0 | AF106: 0 | AG106: 0% | AI106: =( IF(ISNUMBER(G106), VLOOKUP(G106/$AH106,F!$A1:$B101,2,1)*G106*$H106*$I106,0)+IF(ISNUMBER(K106), VLOOKUP(K106/$AH106,F!$A1:$B101,2,1)*K106*$L106*$M106,0)+IF(ISNUMBER(O106), VLOOKUP(O106/$AH106,F!$A1:$B101,2,1)*O106*$P106*$Q106,0)+IF(ISNUMBER(S106), VLOOKUP(S106/$AH106,F!$A1:$B101,2,1)*S106*$T106*$U106,0)+IF(ISNUMBER(W106), VLOOKUP(W106/$AH106,F!$A1:$B101,2,1)*W106*$X106*$Y106,0)+IF(ISNUMBER(AA106), VLOOKUP(AA106/$AH106,F!$A1:$B101,2,1)*AA106*$AB106*$AC106,0))*IF(ISNUMBER(F106),F106,1)*IF(ISNUMBER(E106),E106,1) -> 0 | AJ106: 0 | AK106: =IFERROR(I106*INDEX(F!$P$21:$AB$33, MATCH(G106/$AH106, F!$O$21:$O$33,1), MATCH(E106, F!$P$20:$AB$20,1)), 0 ) +IFERROR( M106*INDEX(F!$P$21:$AB$33, MATCH(K106/$AH106, F!$O$21:$O$33,1), MATCH(E106, F!$P$20:$AB$20,1)),0) + IFERROR( Q106*INDEX(F!$P$21:$AB$33, MATCH(O106/$AH106, F!$O$21:$O$33,1), MATCH(E106, F!$P$20:$AB$20,1)), 0) + IFERROR( U106*INDEX(F!$P$21:$AB$33, MATCH(S106/$AH106, F!$O$21:$O$33,1), MATCH(E106, F!$P$20:$AB$20,1)),0) + IFERROR(Y106*INDEX(F!$P$21:$AB$33, MATCH(W106/$AH106, F!$O$21:$O$33,1), MATCH(E106, F!$P$20:$AB$20,1)),0) + IFERROR( AC106*INDEX(F!$P$21:$AB$33, MATCH(AA106/$AH106, F!$O$21:$O$33,1), MATCH(E106, F!$P$20:$AB$20,1)),) -> 0
AE107: 0 | AF107: 0 | AG107: 0% | AI107: =( IF(ISNUMBER(G107), VLOOKUP(G107/$AH107,F!$A1:$B101,2,1)*G107*$H107*$I107,0)+IF(ISNUMBER(K107), VLOOKUP(K107/$AH107,F!$A1:$B101,2,1)*K107*$L107*$M107,0)+IF(ISNUMBER(O107), VLOOKUP(O107/$AH107,F!$A1:$B101,2,1)*O107*$P107*$Q107,0)+IF(ISNUMBER(S107), VLOOKUP(S107/$AH107,F!$A1:$B101,2,1)*S107*$T107*$U107,0)+IF(ISNUMBER(W107), VLOOKUP(W107/$AH107,F!$A1:$B101,2,1)*W107*$X107*$Y107,0)+IF(ISNUMBER(AA107), VLOOKUP(AA107/$AH107,F!$A1:$B101,2,1)*AA107*$AB107*$AC107,0))*IF(ISNUMBER(F107),F107,1)*IF(ISNUMBER(E107),E107,1) -> 0 | AJ107: 0 | AK107: =IFERROR(I107*INDEX(F!$P$21:$AB$33, MATCH(G107/$AH107, F!$O$21:$O$33,1), MATCH(E107, F!$P$20:$AB$20,1)), 0 ) +IFERROR( M107*INDEX(F!$P$21:$AB$33, MATCH(K107/$AH107, F!$O$21:$O$33,1), MATCH(E107, F!$P$20:$AB$20,1)),0) + IFERROR( Q107*INDEX(F!$P$21:$AB$33, MATCH(O107/$AH107, F!$O$21:$O$33,1), MATCH(E107, F!$P$20:$AB$20,1)), 0) + IFERROR( U107*INDEX(F!$P$21:$AB$33, MATCH(S107/$AH107, F!$O$21:$O$33,1), MATCH(E107, F!$P$20:$AB$20,1)),0) + IFERROR(Y107*INDEX(F!$P$21:$AB$33, MATCH(W107/$AH107, F!$O$21:$O$33,1), MATCH(E107, F!$P$20:$AB$20,1)),0) + IFERROR( AC107*INDEX(F!$P$21:$AB$33, MATCH(AA107/$AH107, F!$O$21:$O$33,1), MATCH(E107, F!$P$20:$AB$20,1)),) -> 0
AE108: 0 | AF108: 0 | AG108: 0% | AI108: =( IF(ISNUMBER(G108), VLOOKUP(G108/$AH108,F!$A1:$B101,2,1)*G108*$H108*$I108,0)+IF(ISNUMBER(K108), VLOOKUP(K108/$AH108,F!$A1:$B101,2,1)*K108*$L108*$M108,0)+IF(ISNUMBER(O108), VLOOKUP(O108/$AH108,F!$A1:$B101,2,1)*O108*$P108*$Q108,0)+IF(ISNUMBER(S108), VLOOKUP(S108/$AH108,F!$A1:$B101,2,1)*S108*$T108*$U108,0)+IF(ISNUMBER(W108), VLOOKUP(W108/$AH108,F!$A1:$B101,2,1)*W108*$X108*$Y108,0)+IF(ISNUMBER(AA108), VLOOKUP(AA108/$AH108,F!$A1:$B101,2,1)*AA108*$AB108*$AC108,0))*IF(ISNUMBER(F108),F108,1)*IF(ISNUMBER(E108),E108,1) -> 0 | AJ108: =H108*I108+L108*M108+P108*Q108+T108*U108+X108*Y108+AB108*AC108 -> 0 | AK108: =IFERROR(I108*INDEX(F!$P$21:$AB$33, MATCH(G108/$AH108, F!$O$21:$O$33,1), MATCH(E108, F!$P$20:$AB$20,1)), 0 ) +IFERROR( M108*INDEX(F!$P$21:$AB$33, MATCH(K108/$AH108, F!$O$21:$O$33,1), MATCH(E108, F!$P$20:$AB$20,1)),0) + IFERROR( Q108*INDEX(F!$P$21:$AB$33, MATCH(O108/$AH108, F!$O$21:$O$33,1), MATCH(E108, F!$P$20:$AB$20,1)), 0) + IFERROR( U108*INDEX(F!$P$21:$AB$33, MATCH(S108/$AH108, F!$O$21:$O$33,1), MATCH(E108, F!$P$20:$AB$20,1)),0) + IFERROR(Y108*INDEX(F!$P$21:$AB$33, MATCH(W108/$AH108, F!$O$21:$O$33,1), MATCH(E108, F!$P$20:$AB$20,1)),0) + IFERROR( AC108*INDEX(F!$P$21:$AB$33, MATCH(AA108/$AH108, F!$O$21:$O$33,1), MATCH(E108, F!$P$20:$AB$20,1)),) -> 0
AE109: 0 | AF109: 0 | AG109: 0% | AI109: =( IF(ISNUMBER(G109), VLOOKUP(G109/$AH109,F!$A1:$B101,2,1)*G109*$H109*$I109,0)+IF(ISNUMBER(K109), VLOOKUP(K109/$AH109,F!$A1:$B101,2,1)*K109*$L109*$M109,0)+IF(ISNUMBER(O109), VLOOKUP(O109/$AH109,F!$A1:$B101,2,1)*O109*$P109*$Q109,0)+IF(ISNUMBER(S109), VLOOKUP(S109/$AH109,F!$A1:$B101,2,1)*S109*$T109*$U109,0)+IF(ISNUMBER(W109), VLOOKUP(W109/$AH109,F!$A1:$B101,2,1)*W109*$X109*$Y109,0)+IF(ISNUMBER(AA109), VLOOKUP(AA109/$AH109,F!$A1:$B101,2,1)*AA109*$AB109*$AC109,0))*IF(ISNUMBER(F109),F109,1)*IF(ISNUMBER(E109),E109,1) -> 0 | AJ109: =H109*I109+L109*M109+P109*Q109+T109*U109+X109*Y109+AB109*AC109 -> 0 | AK109: =IFERROR(I109*INDEX(F!$P$21:$AB$33, MATCH(G109/$AH109, F!$O$21:$O$33,1), MATCH(E109, F!$P$20:$AB$20,1)), 0 ) +IFERROR( M109*INDEX(F!$P$21:$AB$33, MATCH(K109/$AH109, F!$O$21:$O$33,1), MATCH(E109, F!$P$20:$AB$20,1)),0) + IFERROR( Q109*INDEX(F!$P$21:$AB$33, MATCH(O109/$AH109, F!$O$21:$O$33,1), MATCH(E109, F!$P$20:$AB$20,1)), 0) + IFERROR( U109*INDEX(F!$P$21:$AB$33, MATCH(S109/$AH109, F!$O$21:$O$33,1), MATCH(E109, F!$P$20:$AB$20,1)),0) + IFERROR(Y109*INDEX(F!$P$21:$AB$33, MATCH(W109/$AH109, F!$O$21:$O$33,1), MATCH(E109, F!$P$20:$AB$20,1)),0) + IFERROR( AC109*INDEX(F!$P$21:$AB$33, MATCH(AA109/$AH109, F!$O$21:$O$33,1), MATCH(E109, F!$P$20:$AB$20,1)),) -> 0
AE110: 0 | AF110: 0 | AG110: 0% | AI110: =( IF(ISNUMBER(G110), VLOOKUP(G110/$AH110,F!$A1:$B101,2,1)*G110*$H110*$I110,0)+IF(ISNUMBER(K110), VLOOKUP(K110/$AH110,F!$A1:$B101,2,1)*K110*$L110*$M110,0)+IF(ISNUMBER(O110), VLOOKUP(O110/$AH110,F!$A1:$B101,2,1)*O110*$P110*$Q110,0)+IF(ISNUMBER(S110), VLOOKUP(S110/$AH110,F!$A1:$B101,2,1)*S110*$T110*$U110,0)+IF(ISNUMBER(W110), VLOOKUP(W110/$AH110,F!$A1:$B101,2,1)*W110*$X110*$Y110,0)+IF(ISNUMBER(AA110), VLOOKUP(AA110/$AH110,F!$A1:$B101,2,1)*AA110*$AB110*$AC110,0))*IF(ISNUMBER(F110),F110,1)*IF(ISNUMBER(E110),E110,1) -> 0 | AJ110: 0 | AK110: =IFERROR(I110*INDEX(F!$P$21:$AB$33, MATCH(G110/$AH110, F!$O$21:$O$33,1), MATCH(E110, F!$P$20:$AB$20,1)), 0 ) +IFERROR( M110*INDEX(F!$P$21:$AB$33, MATCH(K110/$AH110, F!$O$21:$O$33,1), MATCH(E110, F!$P$20:$AB$20,1)),0) + IFERROR( Q110*INDEX(F!$P$21:$AB$33, MATCH(O110/$AH110, F!$O$21:$O$33,1), MATCH(E110, F!$P$20:$AB$20,1)), 0) + IFERROR( U110*INDEX(F!$P$21:$AB$33, MATCH(S110/$AH110, F!$O$21:$O$33,1), MATCH(E110, F!$P$20:$AB$20,1)),0) + IFERROR(Y110*INDEX(F!$P$21:$AB$33, MATCH(W110/$AH110, F!$O$21:$O$33,1), MATCH(E110, F!$P$20:$AB$20,1)),0) + IFERROR( AC110*INDEX(F!$P$21:$AB$33, MATCH(AA110/$AH110, F!$O$21:$O$33,1), MATCH(E110, F!$P$20:$AB$20,1)),) -> 0
AE111: 0 | AF111: 0 | AG111: 0% | AI111: =( IF(ISNUMBER(G111), VLOOKUP(G111/$AH111,F!$A1:$B101,2,1)*G111*$H111*$I111,0)+IF(ISNUMBER(K111), VLOOKUP(K111/$AH111,F!$A1:$B101,2,1)*K111*$L111*$M111,0)+IF(ISNUMBER(O111), VLOOKUP(O111/$AH111,F!$A1:$B101,2,1)*O111*$P111*$Q111,0)+IF(ISNUMBER(S111), VLOOKUP(S111/$AH111,F!$A1:$B101,2,1)*S111*$T111*$U111,0)+IF(ISNUMBER(W111), VLOOKUP(W111/$AH111,F!$A1:$B101,2,1)*W111*$X111*$Y111,0)+IF(ISNUMBER(AA111), VLOOKUP(AA111/$AH111,F!$A1:$B101,2,1)*AA111*$AB111*$AC111,0))*IF(ISNUMBER(F111),F111,1)*IF(ISNUMBER(E111),E111,1) -> 0 | AJ111: 0 | AK111: =IFERROR(I111*INDEX(F!$P$21:$AB$33, MATCH(G111/$AH111, F!$O$21:$O$33,1), MATCH(E111, F!$P$20:$AB$20,1)), 0 ) +IFERROR( M111*INDEX(F!$P$21:$AB$33, MATCH(K111/$AH111, F!$O$21:$O$33,1), MATCH(E111, F!$P$20:$AB$20,1)),0) + IFERROR( Q111*INDEX(F!$P$21:$AB$33, MATCH(O111/$AH111, F!$O$21:$O$33,1), MATCH(E111, F!$P$20:$AB$20,1)), 0) + IFERROR( U111*INDEX(F!$P$21:$AB$33, MATCH(S111/$AH111, F!$O$21:$O$33,1), MATCH(E111, F!$P$20:$AB$20,1)),0) + IFERROR(Y111*INDEX(F!$P$21:$AB$33, MATCH(W111/$AH111, F!$O$21:$O$33,1), MATCH(E111, F!$P$20:$AB$20,1)),0) + IFERROR( AC111*INDEX(F!$P$21:$AB$33, MATCH(AA111/$AH111, F!$O$21:$O$33,1), MATCH(E111, F!$P$20:$AB$20,1)),) -> 0
AE112: 0 | AF112: 0 | AG112: 0% | AI112: =( IF(ISNUMBER(G112), VLOOKUP(G112/$AH112,F!$A1:$B101,2,1)*G112*$H112*$I112,0)+IF(ISNUMBER(K112), VLOOKUP(K112/$AH112,F!$A1:$B101,2,1)*K112*$L112*$M112,0)+IF(ISNUMBER(O112), VLOOKUP(O112/$AH112,F!$A1:$B101,2,1)*O112*$P112*$Q112,0)+IF(ISNUMBER(S112), VLOOKUP(S112/$AH112,F!$A1:$B101,2,1)*S112*$T112*$U112,0)+IF(ISNUMBER(W112), VLOOKUP(W112/$AH112,F!$A1:$B101,2,1)*W112*$X112*$Y112,0)+IF(ISNUMBER(AA112), VLOOKUP(AA112/$AH112,F!$A1:$B101,2,1)*AA112*$AB112*$AC112,0))*IF(ISNUMBER(F112),F112,1)*IF(ISNUMBER(E112),E112,1) -> 0 | AJ112: 0 | AK112: =IFERROR(I112*INDEX(F!$P$21:$AB$33, MATCH(G112/$AH112, F!$O$21:$O$33,1), MATCH(E112, F!$P$20:$AB$20,1)), 0 ) +IFERROR( M112*INDEX(F!$P$21:$AB$33, MATCH(K112/$AH112, F!$O$21:$O$33,1), MATCH(E112, F!$P$20:$AB$20,1)),0) + IFERROR( Q112*INDEX(F!$P$21:$AB$33, MATCH(O112/$AH112, F!$O$21:$O$33,1), MATCH(E112, F!$P$20:$AB$20,1)), 0) + IFERROR( U112*INDEX(F!$P$21:$AB$33, MATCH(S112/$AH112, F!$O$21:$O$33,1), MATCH(E112, F!$P$20:$AB$20,1)),0) + IFERROR(Y112*INDEX(F!$P$21:$AB$33, MATCH(W112/$AH112, F!$O$21:$O$33,1), MATCH(E112, F!$P$20:$AB$20,1)),0) + IFERROR( AC112*INDEX(F!$P$21:$AB$33, MATCH(AA112/$AH112, F!$O$21:$O$33,1), MATCH(E112, F!$P$20:$AB$20,1)),) -> 0
E113: =ROUND(IFERROR(SUMPRODUCT(AJ105:AJ112,E105:E112)/AJ113,0),3) -> 0.00 | AE113: =SUM(AE105:AE112) -> 0 | AF113: 0.0 | AG113: =IFERROR( SUMPRODUCT(AG105:AG112,AJ105:AJ112)/AJ113,0) -> 0% | AI113: =SUM(AI105:AI112) -> 0 | AJ113: =SUM(AJ105:AJ112) -> 0 | AK113: =IF(SUM(AK105:AK112)=0,TIME(,0,),TIME(,SUM(AK105:AK112)+F!$V$37,)) -> 00:00:00
A114: =A58 -> 7 | E114: =IF(AJ114=0,0,(E124*AJ124 + E133*AJ133 + E142*AJ142 + E151*AJ151 + E160*AJ160 + E169*AJ169 ) /AJ114 ) -> 1.09 | F114: Микроцикл | N114: =N58+1 -> 3 | AE114: =AE124+AE133+AE142+AE151+AE160+AE169 -> 41015 | AF114: =IFERROR(AE114/AJ114,0) -> 96.1 | AG114: =IF(AJ114=0,0,(AG124*AJ124 + AG133*AJ133 + AG142*AJ142 + AG151*AJ151 + AG160*AJ160 + AG169*AJ169 ) /AJ114 ) -> 49.6% | AH114: =AH58 -> 1.0% | AI114: =AI124+AI133+AI142+AI151+AI160+AI169 -> 27273 | AJ114: =AJ124+AJ133+AJ142+AJ151+AJ160+AJ169 -> 427 | AK114: =AK124+AK133+AK142+AK151+AK160+AK169 -> 07:25:00
A115: Дата | B115: Нагрузка | C115: Группа | D115: Упражнения | E115: Коэф | F115: Множ | G115: Вес | H115: Пов | I115: Под | J115: % | K115: Вес | L115: Пов | M115: Под | N115: % | O115: Вес | P115: Пов | Q115: Под | R115: % | S115: Вес | T115: Пов | U115: Под | V115: % | W115: Вес | X115: Пов | Y115: Под | Z115: % | AA115: Вес | AB115: Пов | AC115: Под | AD115: % | AE115: Тоннаж | AF115: Ср.вес | AG115: ОИ | AH115: ПМ | AI115: Инт.Ф+Б | AJ115: КПШ | AK115: Время | AL115: Комментарии
A116: =A117 -> 2015-11-02 | B116: =IF(B60="","",B60) -> Средняя | C116: ТЯГА | D116: Тяга уступающая | E116: 1.4 | G116: =IF(J116<>0, IFERROR(IF( $F116=2, MROUND($AH116*J116,1), IF( OR($F116="",$F116=1), MROUND($AH116*J116,2.5), MROUND($AH116*J116, 0.1))), "" ), "") -> 147.5 | H116: 4 | I116: 2 | J116: 45% | K116: =IF(N116<>0, IFERROR(IF( $F116=2, MROUND($AH116*N116,1), IF( OR($F116="",$F116=1), MROUND($AH116*N116,2.5), MROUND($AH116*N116, 0.1))), "" ), "") -> 180 | L116: 3 | M116: 2 | N116: 55% | O116: =IF(R116<>0, IFERROR(IF( $F116=2, MROUND($AH116*R116,1), IF( OR($F116="",$F116=1), MROUND($AH116*R116,2.5), MROUND($AH116*R116, 0.1))), "" ), "") -> 202.5 | P116: 2 | Q116: 2 | R116: 62% | S116: =IF(V116<>0, IFERROR(IF( $F116=2, MROUND($AH116*V116,1), IF( OR($F116="",$F116=1), MROUND($AH116*V116,2.5), MROUND($AH116*V116, 0.1))), "" ), "") -> 222.5 | T116: 1 | U116: 2 | V116: 68% | W116: =IF(Z116<>0, IFERROR(IF( $F116=2, MROUND($AH116*Z116,1), IF( OR($F116="",$F116=1), MROUND($AH116*Z116,2.5), MROUND($AH116*Z116, 0.1))), "" ), "") ->  | AA116: =IF(AD116<>0, IFERROR(IF( $F116=2, MROUND($AH116*AD116,1), IF( OR($F116="",$F116=1), MROUND($AH116*AD116,2.5), MROUND($AH116*AD116, 0.1))), "" ), "") ->  | AE116: =(IF(ISNUMBER(G116),G116,0)*H116*I116+IF(ISNUMBER(K116),K116,1)*L116*M116+IF(ISNUMBER(O116),O116,1)*P116*Q116+IF(ISNUMBER(S116),S116,1)*T116*U116+IF(ISNUMBER(W116),W116,1)*X116*Y116+IF(ISNUMBER(AA116),AA116,1)*AB116*AC116)*IF(ISNUMBER(F116),F116,1) -> 3515 | AF116: =IFERROR(AE116/AJ116,0) -> 176 | AG116: =IFERROR((AF116/(AH116*IF(ISNUMBER(F116),F116,1))),0) -> 54% | AH116: =IF(ISNUMBER(AH60), AH60+(AH60*$AH$114),"") -> 326.4 | AI116: =( IF(ISNUMBER(G116), VLOOKUP(G116/$AH116,F!$A1:$B101,2,1)*G116*$H116*$I116,0)+IF(ISNUMBER(K116), VLOOKUP(K116/$AH116,F!$A1:$B101,2,1)*K116*$L116*$M116,0)+IF(ISNUMBER(O116), VLOOKUP(O116/$AH116,F!$A1:$B101,2,1)*O116*$P116*$Q116,0)+IF(ISNUMBER(S116), VLOOKUP(S116/$AH116,F!$A1:$B101,2,1)*S116*$T116*$U116,0)+IF(ISNUMBER(W116), VLOOKUP(W116/$AH116,F!$A1:$B101,2,1)*W116*$X116*$Y116,0)+IF(ISNUMBER(AA116), VLOOKUP(AA116/$AH116,F!$A1:$B101,2,1)*AA116*$AB116*$AC116,0))*IF(ISNUMBER(F116),F116,1)*IF(ISNUMBER(E116),E116,1) -> 2941 | AJ116: =H116*I116+L116*M116+P116*Q116+T116*U116+X116*Y116+AB116*AC116 -> 20 | AK116: =IFERROR(I116*INDEX(F!$P$21:$AB$33, MATCH(G116/$AH116, F!$O$21:$O$33,1), MATCH(E116, F!$P$20:$AB$20,1)), 0 ) +IFERROR( M116*INDEX(F!$P$21:$AB$33, MATCH(K116/$AH116, F!$O$21:$O$33,1), MATCH(E116, F!$P$20:$AB$20,1)),0) + IFERROR( Q116*INDEX(F!$P$21:$AB$33, MATCH(O116/$AH116, F!$O$21:$O$33,1), MATCH(E116, F!$P$20:$AB$20,1)), 0) + IFERROR( U116*INDEX(F!$P$21:$AB$33, MATCH(S116/$AH116, F!$O$21:$O$33,1), MATCH(E116, F!$P$20:$AB$20,1)),0) + IFERROR(Y116*INDEX(F!$P$21:$AB$33, MATCH(W116/$AH116, F!$O$21:$O$33,1), MATCH(E116, F!$P$20:$AB$20,1)),0) + IFERROR( AC116*INDEX(F!$P$21:$AB$33, MATCH(AA116/$AH116, F!$O$21:$O$33,1), MATCH(E116, F!$P$20:$AB$20,1)),) -> 34
A117: =A61+A58 -> 2015-11-02 | B117: Легкая | C117: ЖИМ | D117: Жим лежа | E117: 1.0 | G117: 60 | H117: 5 | I117: 5 | J117: 35% | AE117: 1500 | AF117: 60 | AG117: 36% | AH117: 168.3 | AI117: =( IF(ISNUMBER(G117), VLOOKUP(G117/$AH117,F!$A1:$B101,2,1)*G117*$H117*$I117,0)+IF(ISNUMBER(K117), VLOOKUP(K117/$AH117,F!$A1:$B101,2,1)*K117*$L117*$M117,0)+IF(ISNUMBER(O117), VLOOKUP(O117/$AH117,F!$A1:$B101,2,1)*O117*$P117*$Q117,0)+IF(ISNUMBER(S117), VLOOKUP(S117/$AH117,F!$A1:$B101,2,1)*S117*$T117*$U117,0)+IF(ISNUMBER(W117), VLOOKUP(W117/$AH117,F!$A1:$B101,2,1)*W117*$X117*$Y117,0)+IF(ISNUMBER(AA117), VLOOKUP(AA117/$AH117,F!$A1:$B101,2,1)*AA117*$AB117*$AC117,0))*IF(ISNUMBER(F117),F117,1)*IF(ISNUMBER(E117),E117,1) -> 330 | AJ117: 25 | AK117: =IFERROR(I117*INDEX(F!$P$21:$AB$33, MATCH(G117/$AH117, F!$O$21:$O$33,1), MATCH(E117, F!$P$20:$AB$20,1)), 0 ) +IFERROR( M117*INDEX(F!$P$21:$AB$33, MATCH(K117/$AH117, F!$O$21:$O$33,1), MATCH(E117, F!$P$20:$AB$20,1)),0) + IFERROR( Q117*INDEX(F!$P$21:$AB$33, MATCH(O117/$AH117, F!$O$21:$O$33,1), MATCH(E117, F!$P$20:$AB$20,1)), 0) + IFERROR( U117*INDEX(F!$P$21:$AB$33, MATCH(S117/$AH117, F!$O$21:$O$33,1), MATCH(E117, F!$P$20:$AB$20,1)),0) + IFERROR(Y117*INDEX(F!$P$21:$AB$33, MATCH(W117/$AH117, F!$O$21:$O$33,1), MATCH(E117, F!$P$20:$AB$20,1)),0) + IFERROR( AC117*INDEX(F!$P$21:$AB$33, MATCH(AA117/$AH117, F!$O$21:$O$33,1), MATCH(E117, F!$P$20:$AB$20,1)),) -> 10
B118: Легкая | C118: ТЯГА | D118: Тяга до колен | E118: 1.4 | G118: 97.5 | H118: 4 | I118: 2 | J118: 30% | K118: 115 | L118: 3 | M118: 2 | N118: 35% | AE118: 1470 | AF118: 105 | AG118: 32% | AH118: 326.4 | AI118: =( IF(ISNUMBER(G118), VLOOKUP(G118/$AH118,F!$A1:$B101,2,1)*G118*$H118*$I118,0)+IF(ISNUMBER(K118), VLOOKUP(K118/$AH118,F!$A1:$B101,2,1)*K118*$L118*$M118,0)+IF(ISNUMBER(O118), VLOOKUP(O118/$AH118,F!$A1:$B101,2,1)*O118*$P118*$Q118,0)+IF(ISNUMBER(S118), VLOOKUP(S118/$AH118,F!$A1:$B101,2,1)*S118*$T118*$U118,0)+IF(ISNUMBER(W118), VLOOKUP(W118/$AH118,F!$A1:$B101,2,1)*W118*$X118*$Y118,0)+IF(ISNUMBER(AA118), VLOOKUP(AA118/$AH118,F!$A1:$B101,2,1)*AA118*$AB118*$AC118,0))*IF(ISNUMBER(F118),F118,1)*IF(ISNUMBER(E118),E118,1) -> 344 | AJ118: 14 | AK118: =IFERROR(I118*INDEX(F!$P$21:$AB$33, MATCH(G118/$AH118, F!$O$21:$O$33,1), MATCH(E118, F!$P$20:$AB$20,1)), 0 ) +IFERROR( M118*INDEX(F!$P$21:$AB$33, MATCH(K118/$AH118, F!$O$21:$O$33,1), MATCH(E118, F!$P$20:$AB$20,1)),0) + IFERROR( Q118*INDEX(F!$P$21:$AB$33, MATCH(O118/$AH118, F!$O$21:$O$33,1), MATCH(E118, F!$P$20:$AB$20,1)), 0) + IFERROR( U118*INDEX(F!$P$21:$AB$33, MATCH(S118/$AH118, F!$O$21:$O$33,1), MATCH(E118, F!$P$20:$AB$20,1)),0) + IFERROR(Y118*INDEX(F!$P$21:$AB$33, MATCH(W118/$AH118, F!$O$21:$O$33,1), MATCH(E118, F!$P$20:$AB$20,1)),0) + IFERROR( AC118*INDEX(F!$P$21:$AB$33, MATCH(AA118/$AH118, F!$O$21:$O$33,1), MATCH(E118, F!$P$20:$AB$20,1)),) -> 14
B119: Легкая | C119: ЖИМ | D119: Жим гантелей лежа на гор скамье | E119: 0.8 | F119: 2 | G119: 20 | H119: 5 | I119: 4 | J119: 45% | AE119: 800 | AF119: 40 | AG119: 45% | AH119: 44.9 | AI119: =( IF(ISNUMBER(G119), VLOOKUP(G119/$AH119,F!$A1:$B101,2,1)*G119*$H119*$I119,0)+IF(ISNUMBER(K119), VLOOKUP(K119/$AH119,F!$A1:$B101,2,1)*K119*$L119*$M119,0)+IF(ISNUMBER(O119), VLOOKUP(O119/$AH119,F!$A1:$B101,2,1)*O119*$P119*$Q119,0)+IF(ISNUMBER(S119), VLOOKUP(S119/$AH119,F!$A1:$B101,2,1)*S119*$T119*$U119,0)+IF(ISNUMBER(W119), VLOOKUP(W119/$AH119,F!$A1:$B101,2,1)*W119*$X119*$Y119,0)+IF(ISNUMBER(AA119), VLOOKUP(AA119/$AH119,F!$A1:$B101,2,1)*AA119*$AB119*$AC119,0))*IF(ISNUMBER(F119),F119,1)*IF(ISNUMBER(E119),E119,1) -> 256 | AJ119: =H119*I119+L119*M119+P119*Q119+T119*U119+X119*Y119+AB119*AC119 -> 20 | AK119: =IFERROR(I119*INDEX(F!$P$21:$AB$33, MATCH(G119/$AH119, F!$O$21:$O$33,1), MATCH(E119, F!$P$20:$AB$20,1)), 0 ) +IFERROR( M119*INDEX(F!$P$21:$AB$33, MATCH(K119/$AH119, F!$O$21:$O$33,1), MATCH(E119, F!$P$20:$AB$20,1)),0) + IFERROR( Q119*INDEX(F!$P$21:$AB$33, MATCH(O119/$AH119, F!$O$21:$O$33,1), MATCH(E119, F!$P$20:$AB$20,1)), 0) + IFERROR( U119*INDEX(F!$P$21:$AB$33, MATCH(S119/$AH119, F!$O$21:$O$33,1), MATCH(E119, F!$P$20:$AB$20,1)),0) + IFERROR(Y119*INDEX(F!$P$21:$AB$33, MATCH(W119/$AH119, F!$O$21:$O$33,1), MATCH(E119, F!$P$20:$AB$20,1)),0) + IFERROR( AC119*INDEX(F!$P$21:$AB$33, MATCH(AA119/$AH119, F!$O$21:$O$33,1), MATCH(E119, F!$P$20:$AB$20,1)),) -> 7
B120: Средняя | C120: ОФП | D120: Бицепс стоя | E120: 0.5 | G120: 27.5 | H120: 5 | I120: 1 | J120: 45% | K120: 37.5 | L120: 4 | M120: 4 | N120: 65% | AE120: 737.5 | AF120: 35 | AG120: 60% | AH120: 58.9 | AI120: =( IF(ISNUMBER(G120), VLOOKUP(G120/$AH120,F!$A1:$B101,2,1)*G120*$H120*$I120,0)+IF(ISNUMBER(K120), VLOOKUP(K120/$AH120,F!$A1:$B101,2,1)*K120*$L120*$M120,0)+IF(ISNUMBER(O120), VLOOKUP(O120/$AH120,F!$A1:$B101,2,1)*O120*$P120*$Q120,0)+IF(ISNUMBER(S120), VLOOKUP(S120/$AH120,F!$A1:$B101,2,1)*S120*$T120*$U120,0)+IF(ISNUMBER(W120), VLOOKUP(W120/$AH120,F!$A1:$B101,2,1)*W120*$X120*$Y120,0)+IF(ISNUMBER(AA120), VLOOKUP(AA120/$AH120,F!$A1:$B101,2,1)*AA120*$AB120*$AC120,0))*IF(ISNUMBER(F120),F120,1)*IF(ISNUMBER(E120),E120,1) -> 255 | AJ120: =H120*I120+L120*M120+P120*Q120+T120*U120+X120*Y120+AB120*AC120 -> 21 | AK120: =IFERROR(I120*INDEX(F!$P$21:$AB$33, MATCH(G120/$AH120, F!$O$21:$O$33,1), MATCH(E120, F!$P$20:$AB$20,1)), 0 ) +IFERROR( M120*INDEX(F!$P$21:$AB$33, MATCH(K120/$AH120, F!$O$21:$O$33,1), MATCH(E120, F!$P$20:$AB$20,1)),0) + IFERROR( Q120*INDEX(F!$P$21:$AB$33, MATCH(O120/$AH120, F!$O$21:$O$33,1), MATCH(E120, F!$P$20:$AB$20,1)), 0) + IFERROR( U120*INDEX(F!$P$21:$AB$33, MATCH(S120/$AH120, F!$O$21:$O$33,1), MATCH(E120, F!$P$20:$AB$20,1)),0) + IFERROR(Y120*INDEX(F!$P$21:$AB$33, MATCH(W120/$AH120, F!$O$21:$O$33,1), MATCH(E120, F!$P$20:$AB$20,1)),0) + IFERROR( AC120*INDEX(F!$P$21:$AB$33, MATCH(AA120/$AH120, F!$O$21:$O$33,1), MATCH(E120, F!$P$20:$AB$20,1)),) -> 9
AE121: 0 | AF121: 0 | AG121: 0% | AI121: =( IF(ISNUMBER(G121), VLOOKUP(G121/$AH121,F!$A1:$B101,2,1)*G121*$H121*$I121,0)+IF(ISNUMBER(K121), VLOOKUP(K121/$AH121,F!$A1:$B101,2,1)*K121*$L121*$M121,0)+IF(ISNUMBER(O121), VLOOKUP(O121/$AH121,F!$A1:$B101,2,1)*O121*$P121*$Q121,0)+IF(ISNUMBER(S121), VLOOKUP(S121/$AH121,F!$A1:$B101,2,1)*S121*$T121*$U121,0)+IF(ISNUMBER(W121), VLOOKUP(W121/$AH121,F!$A1:$B101,2,1)*W121*$X121*$Y121,0)+IF(ISNUMBER(AA121), VLOOKUP(AA121/$AH121,F!$A1:$B101,2,1)*AA121*$AB121*$AC121,0))*IF(ISNUMBER(F121),F121,1)*IF(ISNUMBER(E121),E121,1) -> 0 | AJ121: 0 | AK121: =IFERROR(I121*INDEX(F!$P$21:$AB$33, MATCH(G121/$AH121, F!$O$21:$O$33,1), MATCH(E121, F!$P$20:$AB$20,1)), 0 ) +IFERROR( M121*INDEX(F!$P$21:$AB$33, MATCH(K121/$AH121, F!$O$21:$O$33,1), MATCH(E121, F!$P$20:$AB$20,1)),0) + IFERROR( Q121*INDEX(F!$P$21:$AB$33, MATCH(O121/$AH121, F!$O$21:$O$33,1), MATCH(E121, F!$P$20:$AB$20,1)), 0) + IFERROR( U121*INDEX(F!$P$21:$AB$33, MATCH(S121/$AH121, F!$O$21:$O$33,1), MATCH(E121, F!$P$20:$AB$20,1)),0) + IFERROR(Y121*INDEX(F!$P$21:$AB$33, MATCH(W121/$AH121, F!$O$21:$O$33,1), MATCH(E121, F!$P$20:$AB$20,1)),0) + IFERROR( AC121*INDEX(F!$P$21:$AB$33, MATCH(AA121/$AH121, F!$O$21:$O$33,1), MATCH(E121, F!$P$20:$AB$20,1)),) -> 0
AE122: 0 | AF122: 0 | AG122: 0% | AI122: =( IF(ISNUMBER(G122), VLOOKUP(G122/$AH122,F!$A1:$B101,2,1)*G122*$H122*$I122,0)+IF(ISNUMBER(K122), VLOOKUP(K122/$AH122,F!$A1:$B101,2,1)*K122*$L122*$M122,0)+IF(ISNUMBER(O122), VLOOKUP(O122/$AH122,F!$A1:$B101,2,1)*O122*$P122*$Q122,0)+IF(ISNUMBER(S122), VLOOKUP(S122/$AH122,F!$A1:$B101,2,1)*S122*$T122*$U122,0)+IF(ISNUMBER(W122), VLOOKUP(W122/$AH122,F!$A1:$B101,2,1)*W122*$X122*$Y122,0)+IF(ISNUMBER(AA122), VLOOKUP(AA122/$AH122,F!$A1:$B101,2,1)*AA122*$AB122*$AC122,0))*IF(ISNUMBER(F122),F122,1)*IF(ISNUMBER(E122),E122,1) -> 0 | AJ122: 0 | AK122: =IFERROR(I122*INDEX(F!$P$21:$AB$33, MATCH(G122/$AH122, F!$O$21:$O$33,1), MATCH(E122, F!$P$20:$AB$20,1)), 0 ) +IFERROR( M122*INDEX(F!$P$21:$AB$33, MATCH(K122/$AH122, F!$O$21:$O$33,1), MATCH(E122, F!$P$20:$AB$20,1)),0) + IFERROR( Q122*INDEX(F!$P$21:$AB$33, MATCH(O122/$AH122, F!$O$21:$O$33,1), MATCH(E122, F!$P$20:$AB$20,1)), 0) + IFERROR( U122*INDEX(F!$P$21:$AB$33, MATCH(S122/$AH122, F!$O$21:$O$33,1), MATCH(E122, F!$P$20:$AB$20,1)),0) + IFERROR(Y122*INDEX(F!$P$21:$AB$33, MATCH(W122/$AH122, F!$O$21:$O$33,1), MATCH(E122, F!$P$20:$AB$20,1)),0) + IFERROR( AC122*INDEX(F!$P$21:$AB$33, MATCH(AA122/$AH122, F!$O$21:$O$33,1), MATCH(E122, F!$P$20:$AB$20,1)),) -> 0
AE123: 0 | AF123: 0 | AG123: 0% | AI123: =( IF(ISNUMBER(G123), VLOOKUP(G123/$AH123,F!$A1:$B101,2,1)*G123*$H123*$I123,0)+IF(ISNUMBER(K123), VLOOKUP(K123/$AH123,F!$A1:$B101,2,1)*K123*$L123*$M123,0)+IF(ISNUMBER(O123), VLOOKUP(O123/$AH123,F!$A1:$B101,2,1)*O123*$P123*$Q123,0)+IF(ISNUMBER(S123), VLOOKUP(S123/$AH123,F!$A1:$B101,2,1)*S123*$T123*$U123,0)+IF(ISNUMBER(W123), VLOOKUP(W123/$AH123,F!$A1:$B101,2,1)*W123*$X123*$Y123,0)+IF(ISNUMBER(AA123), VLOOKUP(AA123/$AH123,F!$A1:$B101,2,1)*AA123*$AB123*$AC123,0))*IF(ISNUMBER(F123),F123,1)*IF(ISNUMBER(E123),E123,1) -> 0 | AJ123: 0 | AK123: =IFERROR(I123*INDEX(F!$P$21:$AB$33, MATCH(G123/$AH123, F!$O$21:$O$33,1), MATCH(E123, F!$P$20:$AB$20,1)), 0 ) +IFERROR( M123*INDEX(F!$P$21:$AB$33, MATCH(K123/$AH123, F!$O$21:$O$33,1), MATCH(E123, F!$P$20:$AB$20,1)),0) + IFERROR( Q123*INDEX(F!$P$21:$AB$33, MATCH(O123/$AH123, F!$O$21:$O$33,1), MATCH(E123, F!$P$20:$AB$20,1)), 0) + IFERROR( U123*INDEX(F!$P$21:$AB$33, MATCH(S123/$AH123, F!$O$21:$O$33,1), MATCH(E123, F!$P$20:$AB$20,1)),0) + IFERROR(Y123*INDEX(F!$P$21:$AB$33, MATCH(W123/$AH123, F!$O$21:$O$33,1), MATCH(E123, F!$P$20:$AB$20,1)),0) + IFERROR( AC123*INDEX(F!$P$21:$AB$33, MATCH(AA123/$AH123, F!$O$21:$O$33,1), MATCH(E123, F!$P$20:$AB$20,1)),) -> 0
E124: =ROUND(IFERROR(SUMPRODUCT(AJ116:AJ123,E116:E123)/AJ124,0),3) -> 0.99 | AE124: =SUM(AE116:AE123) -> 8022.5 | AF124: 80.2 | AG124: =IFERROR( SUMPRODUCT(AG116:AG123,AJ116:AJ123)/AJ124,0) -> 46% | AI124: =SUM(AI116:AI123) -> 4125 | AJ124: =SUM(AJ116:AJ123) -> 100 | AK124: =IF(SUM(AK116:AK123)=0,TIME(,0,),TIME(,SUM(AK116:AK123)+F!$V$37,)) -> 01:43:00
A125: =A126 -> 2015-11-03 | B125: =IF(B69="","",B69) -> Легкая | C125: ТЯГА | D125: Тяга из ямы на прямых ногах (клас) | E125: 1.4 | G125: =IF(J125<>0, IFERROR(IF( $F125=2, MROUND($AH125*J125,1), IF( OR($F125="",$F125=1), MROUND($AH125*J125,2.5), MROUND($AH125*J125, 0.1))), "" ), "") -> 130 | H125: 4 | I125: 4 | J125: 45% | K125: =IF(N125<>0, IFERROR(IF( $F125=2, MROUND($AH125*N125,1), IF( OR($F125="",$F125=1), MROUND($AH125*N125,2.5), MROUND($AH125*N125, 0.1))), "" ), "") -> 145 | L125: 3 | M125: 1 | N125: 50% | O125: =IF(R125<>0, IFERROR(IF( $F125=2, MROUND($AH125*R125,1), IF( OR($F125="",$F125=1), MROUND($AH125*R125,2.5), MROUND($AH125*R125, 0.1))), "" ), "") -> 160 | P125: 2 | Q125: 1 | R125: 55% | S125: =IF(V125<>0, IFERROR(IF( $F125=2, MROUND($AH125*V125,1), IF( OR($F125="",$F125=1), MROUND($AH125*V125,2.5), MROUND($AH125*V125, 0.1))), "" ), "") ->  | W125: =IF(Z125<>0, IFERROR(IF( $F125=2, MROUND($AH125*Z125,1), IF( OR($F125="",$F125=1), MROUND($AH125*Z125,2.5), MROUND($AH125*Z125, 0.1))), "" ), "") ->  | AA125: =IF(AD125<>0, IFERROR(IF( $F125=2, MROUND($AH125*AD125,1), IF( OR($F125="",$F125=1), MROUND($AH125*AD125,2.5), MROUND($AH125*AD125, 0.1))), "" ), "") ->  | AE125: =(IF(ISNUMBER(G125),G125,0)*H125*I125+IF(ISNUMBER(K125),K125,1)*L125*M125+IF(ISNUMBER(O125),O125,1)*P125*Q125+IF(ISNUMBER(S125),S125,1)*T125*U125+IF(ISNUMBER(W125),W125,1)*X125*Y125+IF(ISNUMBER(AA125),AA125,1)*AB125*AC125)*IF(ISNUMBER(F125),F125,1) -> 2835 | AF125: 135 | AG125: =IFERROR((AF125/(AH125*IF(ISNUMBER(F125),F125,1))),0) -> 46% | AH125: =IF(ISNUMBER(AH69), AH69+(AH69*$AH$114),"") -> 290.5 | AI125: =( IF(ISNUMBER(G125), VLOOKUP(G125/$AH125,F!$A1:$B101,2,1)*G125*$H125*$I125,0)+IF(ISNUMBER(K125), VLOOKUP(K125/$AH125,F!$A1:$B101,2,1)*K125*$L125*$M125,0)+IF(ISNUMBER(O125), VLOOKUP(O125/$AH125,F!$A1:$B101,2,1)*O125*$P125*$Q125,0)+IF(ISNUMBER(S125), VLOOKUP(S125/$AH125,F!$A1:$B101,2,1)*S125*$T125*$U125,0)+IF(ISNUMBER(W125), VLOOKUP(W125/$AH125,F!$A1:$B101,2,1)*W125*$X125*$Y125,0)+IF(ISNUMBER(AA125), VLOOKUP(AA125/$AH125,F!$A1:$B101,2,1)*AA125*$AB125*$AC125,0))*IF(ISNUMBER(F125),F125,1)*IF(ISNUMBER(E125),E125,1) -> 1717 | AJ125: =H125*I125+L125*M125+P125*Q125+T125*U125+X125*Y125+AB125*AC125 -> 21 | AK125: =IFERROR(I125*INDEX(F!$P$21:$AB$33, MATCH(G125/$AH125, F!$O$21:$O$33,1), MATCH(E125, F!$P$20:$AB$20,1)), 0 ) +IFERROR( M125*INDEX(F!$P$21:$AB$33, MATCH(K125/$AH125, F!$O$21:$O$33,1), MATCH(E125, F!$P$20:$AB$20,1)),0) + IFERROR( Q125*INDEX(F!$P$21:$AB$33, MATCH(O125/$AH125, F!$O$21:$O$33,1), MATCH(E125, F!$P$20:$AB$20,1)), 0) + IFERROR( U125*INDEX(F!$P$21:$AB$33, MATCH(S125/$AH125, F!$O$21:$O$33,1), MATCH(E125, F!$P$20:$AB$20,1)),0) + IFERROR(Y125*INDEX(F!$P$21:$AB$33, MATCH(W125/$AH125, F!$O$21:$O$33,1), MATCH(E125, F!$P$20:$AB$20,1)),0) + IFERROR( AC125*INDEX(F!$P$21:$AB$33, MATCH(AA125/$AH125, F!$O$21:$O$33,1), MATCH(E125, F!$P$20:$AB$20,1)),) -> 22
A126: =A70+A58 -> 2015-11-03 | B126: Легкая | C126: ОФП | D126: Жим стоя | E126: 1.0 | G126: 40 | H126: 5 | I126: 4 | J126: 40% | AE126: 800 | AF126: 40 | AG126: 40% | AH126: 101.0 | AI126: =( IF(ISNUMBER(G126), VLOOKUP(G126/$AH126,F!$A1:$B101,2,1)*G126*$H126*$I126,0)+IF(ISNUMBER(K126), VLOOKUP(K126/$AH126,F!$A1:$B101,2,1)*K126*$L126*$M126,0)+IF(ISNUMBER(O126), VLOOKUP(O126/$AH126,F!$A1:$B101,2,1)*O126*$P126*$Q126,0)+IF(ISNUMBER(S126), VLOOKUP(S126/$AH126,F!$A1:$B101,2,1)*S126*$T126*$U126,0)+IF(ISNUMBER(W126), VLOOKUP(W126/$AH126,F!$A1:$B101,2,1)*W126*$X126*$Y126,0)+IF(ISNUMBER(AA126), VLOOKUP(AA126/$AH126,F!$A1:$B101,2,1)*AA126*$AB126*$AC126,0))*IF(ISNUMBER(F126),F126,1)*IF(ISNUMBER(E126),E126,1) -> 240 | AJ126: 20 | AK126: =IFERROR(I126*INDEX(F!$P$21:$AB$33, MATCH(G126/$AH126, F!$O$21:$O$33,1), MATCH(E126, F!$P$20:$AB$20,1)), 0 ) +IFERROR( M126*INDEX(F!$P$21:$AB$33, MATCH(K126/$AH126, F!$O$21:$O$33,1), MATCH(E126, F!$P$20:$AB$20,1)),0) + IFERROR( Q126*INDEX(F!$P$21:$AB$33, MATCH(O126/$AH126, F!$O$21:$O$33,1), MATCH(E126, F!$P$20:$AB$20,1)), 0) + IFERROR( U126*INDEX(F!$P$21:$AB$33, MATCH(S126/$AH126, F!$O$21:$O$33,1), MATCH(E126, F!$P$20:$AB$20,1)),0) + IFERROR(Y126*INDEX(F!$P$21:$AB$33, MATCH(W126/$AH126, F!$O$21:$O$33,1), MATCH(E126, F!$P$20:$AB$20,1)),0) + IFERROR( AC126*INDEX(F!$P$21:$AB$33, MATCH(AA126/$AH126, F!$O$21:$O$33,1), MATCH(E126, F!$P$20:$AB$20,1)),) -> 8
B127: Средняя | C127: ОФП | D127: Присед в широкой постановке | E127: 1.2 | G127: 115 | H127: 5 | I127: 1 | J127: 45% | K127: 165 | L127: 4 | M127: 4 | N127: 65% | O127: 190 | P127: 3 | Q127: 1 | R127: 75% | AE127: 3785 | AF127: 158 | AG127: 62% | AH127: 254.6 | AI127: =( IF(ISNUMBER(G127), VLOOKUP(G127/$AH127,F!$A1:$B101,2,1)*G127*$H127*$I127,0)+IF(ISNUMBER(K127), VLOOKUP(K127/$AH127,F!$A1:$B101,2,1)*K127*$L127*$M127,0)+IF(ISNUMBER(O127), VLOOKUP(O127/$AH127,F!$A1:$B101,2,1)*O127*$P127*$Q127,0)+IF(ISNUMBER(S127), VLOOKUP(S127/$AH127,F!$A1:$B101,2,1)*S127*$T127*$U127,0)+IF(ISNUMBER(W127), VLOOKUP(W127/$AH127,F!$A1:$B101,2,1)*W127*$X127*$Y127,0)+IF(ISNUMBER(AA127), VLOOKUP(AA127/$AH127,F!$A1:$B101,2,1)*AA127*$AB127*$AC127,0))*IF(ISNUMBER(F127),F127,1)*IF(ISNUMBER(E127),E127,1) -> 3541 | AJ127: 24 | AK127: =IFERROR(I127*INDEX(F!$P$21:$AB$33, MATCH(G127/$AH127, F!$O$21:$O$33,1), MATCH(E127, F!$P$20:$AB$20,1)), 0 ) +IFERROR( M127*INDEX(F!$P$21:$AB$33, MATCH(K127/$AH127, F!$O$21:$O$33,1), MATCH(E127, F!$P$20:$AB$20,1)),0) + IFERROR( Q127*INDEX(F!$P$21:$AB$33, MATCH(O127/$AH127, F!$O$21:$O$33,1), MATCH(E127, F!$P$20:$AB$20,1)), 0) + IFERROR( U127*INDEX(F!$P$21:$AB$33, MATCH(S127/$AH127, F!$O$21:$O$33,1), MATCH(E127, F!$P$20:$AB$20,1)),0) + IFERROR(Y127*INDEX(F!$P$21:$AB$33, MATCH(W127/$AH127, F!$O$21:$O$33,1), MATCH(E127, F!$P$20:$AB$20,1)),0) + IFERROR( AC127*INDEX(F!$P$21:$AB$33, MATCH(AA127/$AH127, F!$O$21:$O$33,1), MATCH(E127, F!$P$20:$AB$20,1)),) -> 24
B128: Средняя | C128: ЖИМ | D128: Жим средним хватом | E128: 1.0 | G128: 57.5 | H128: 6 | I128: 1 | J128: 40% | K128: 72.5 | L128: 5 | M128: 1 | N128: 50% | O128: 92.5 | P128: 4 | Q128: 4 | R128: 65% | AE128: 2187.5 | AF128: 81 | AG128: 57% | AH128: 143.1 | AI128: =( IF(ISNUMBER(G128), VLOOKUP(G128/$AH128,F!$A1:$B101,2,1)*G128*$H128*$I128,0)+IF(ISNUMBER(K128), VLOOKUP(K128/$AH128,F!$A1:$B101,2,1)*K128*$L128*$M128,0)+IF(ISNUMBER(O128), VLOOKUP(O128/$AH128,F!$A1:$B101,2,1)*O128*$P128*$Q128,0)+IF(ISNUMBER(S128), VLOOKUP(S128/$AH128,F!$A1:$B101,2,1)*S128*$T128*$U128,0)+IF(ISNUMBER(W128), VLOOKUP(W128/$AH128,F!$A1:$B101,2,1)*W128*$X128*$Y128,0)+IF(ISNUMBER(AA128), VLOOKUP(AA128/$AH128,F!$A1:$B101,2,1)*AA128*$AB128*$AC128,0))*IF(ISNUMBER(F128),F128,1)*IF(ISNUMBER(E128),E128,1) -> 1446 | AJ128: =H128*I128+L128*M128+P128*Q128+T128*U128+X128*Y128+AB128*AC128 -> 27 | AK128: =IFERROR(I128*INDEX(F!$P$21:$AB$33, MATCH(G128/$AH128, F!$O$21:$O$33,1), MATCH(E128, F!$P$20:$AB$20,1)), 0 ) +IFERROR( M128*INDEX(F!$P$21:$AB$33, MATCH(K128/$AH128, F!$O$21:$O$33,1), MATCH(E128, F!$P$20:$AB$20,1)),0) + IFERROR( Q128*INDEX(F!$P$21:$AB$33, MATCH(O128/$AH128, F!$O$21:$O$33,1), MATCH(E128, F!$P$20:$AB$20,1)), 0) + IFERROR( U128*INDEX(F!$P$21:$AB$33, MATCH(S128/$AH128, F!$O$21:$O$33,1), MATCH(E128, F!$P$20:$AB$20,1)),0) + IFERROR(Y128*INDEX(F!$P$21:$AB$33, MATCH(W128/$AH128, F!$O$21:$O$33,1), MATCH(E128, F!$P$20:$AB$20,1)),0) + IFERROR( AC128*INDEX(F!$P$21:$AB$33, MATCH(AA128/$AH128, F!$O$21:$O$33,1), MATCH(E128, F!$P$20:$AB$20,1)),) -> 16
B129: Легкая | C129: ОФП | D129: Наклоны стоя | E129: 0.8 | AE129: 0 | AF129: 0 | AG129: 0% | AH129: 179.5 | AI129: =( IF(ISNUMBER(G129), VLOOKUP(G129/$AH129,F!$A1:$B101,2,1)*G129*$H129*$I129,0)+IF(ISNUMBER(K129), VLOOKUP(K129/$AH129,F!$A1:$B101,2,1)*K129*$L129*$M129,0)+IF(ISNUMBER(O129), VLOOKUP(O129/$AH129,F!$A1:$B101,2,1)*O129*$P129*$Q129,0)+IF(ISNUMBER(S129), VLOOKUP(S129/$AH129,F!$A1:$B101,2,1)*S129*$T129*$U129,0)+IF(ISNUMBER(W129), VLOOKUP(W129/$AH129,F!$A1:$B101,2,1)*W129*$X129*$Y129,0)+IF(ISNUMBER(AA129), VLOOKUP(AA129/$AH129,F!$A1:$B101,2,1)*AA129*$AB129*$AC129,0))*IF(ISNUMBER(F129),F129,1)*IF(ISNUMBER(E129),E129,1) -> 0 | AJ129: =H129*I129+L129*M129+P129*Q129+T129*U129+X129*Y129+AB129*AC129 -> 0 | AK129: =IFERROR(I129*INDEX(F!$P$21:$AB$33, MATCH(G129/$AH129, F!$O$21:$O$33,1), MATCH(E129, F!$P$20:$AB$20,1)), 0 ) +IFERROR( M129*INDEX(F!$P$21:$AB$33, MATCH(K129/$AH129, F!$O$21:$O$33,1), MATCH(E129, F!$P$20:$AB$20,1)),0) + IFERROR( Q129*INDEX(F!$P$21:$AB$33, MATCH(O129/$AH129, F!$O$21:$O$33,1), MATCH(E129, F!$P$20:$AB$20,1)), 0) + IFERROR( U129*INDEX(F!$P$21:$AB$33, MATCH(S129/$AH129, F!$O$21:$O$33,1), MATCH(E129, F!$P$20:$AB$20,1)),0) + IFERROR(Y129*INDEX(F!$P$21:$AB$33, MATCH(W129/$AH129, F!$O$21:$O$33,1), MATCH(E129, F!$P$20:$AB$20,1)),0) + IFERROR( AC129*INDEX(F!$P$21:$AB$33, MATCH(AA129/$AH129, F!$O$21:$O$33,1), MATCH(E129, F!$P$20:$AB$20,1)),) -> 0
AE130: 0 | AF130: 0 | AG130: 0% | AI130: =( IF(ISNUMBER(G130), VLOOKUP(G130/$AH130,F!$A1:$B101,2,1)*G130*$H130*$I130,0)+IF(ISNUMBER(K130), VLOOKUP(K130/$AH130,F!$A1:$B101,2,1)*K130*$L130*$M130,0)+IF(ISNUMBER(O130), VLOOKUP(O130/$AH130,F!$A1:$B101,2,1)*O130*$P130*$Q130,0)+IF(ISNUMBER(S130), VLOOKUP(S130/$AH130,F!$A1:$B101,2,1)*S130*$T130*$U130,0)+IF(ISNUMBER(W130), VLOOKUP(W130/$AH130,F!$A1:$B101,2,1)*W130*$X130*$Y130,0)+IF(ISNUMBER(AA130), VLOOKUP(AA130/$AH130,F!$A1:$B101,2,1)*AA130*$AB130*$AC130,0))*IF(ISNUMBER(F130),F130,1)*IF(ISNUMBER(E130),E130,1) -> 0 | AJ130: 0 | AK130: =IFERROR(I130*INDEX(F!$P$21:$AB$33, MATCH(G130/$AH130, F!$O$21:$O$33,1), MATCH(E130, F!$P$20:$AB$20,1)), 0 ) +IFERROR( M130*INDEX(F!$P$21:$AB$33, MATCH(K130/$AH130, F!$O$21:$O$33,1), MATCH(E130, F!$P$20:$AB$20,1)),0) + IFERROR( Q130*INDEX(F!$P$21:$AB$33, MATCH(O130/$AH130, F!$O$21:$O$33,1), MATCH(E130, F!$P$20:$AB$20,1)), 0) + IFERROR( U130*INDEX(F!$P$21:$AB$33, MATCH(S130/$AH130, F!$O$21:$O$33,1), MATCH(E130, F!$P$20:$AB$20,1)),0) + IFERROR(Y130*INDEX(F!$P$21:$AB$33, MATCH(W130/$AH130, F!$O$21:$O$33,1), MATCH(E130, F!$P$20:$AB$20,1)),0) + IFERROR( AC130*INDEX(F!$P$21:$AB$33, MATCH(AA130/$AH130, F!$O$21:$O$33,1), MATCH(E130, F!$P$20:$AB$20,1)),) -> 0
AE131: 0 | AF131: 0 | AG131: 0% | AI131: =( IF(ISNUMBER(G131), VLOOKUP(G131/$AH131,F!$A1:$B101,2,1)*G131*$H131*$I131,0)+IF(ISNUMBER(K131), VLOOKUP(K131/$AH131,F!$A1:$B101,2,1)*K131*$L131*$M131,0)+IF(ISNUMBER(O131), VLOOKUP(O131/$AH131,F!$A1:$B101,2,1)*O131*$P131*$Q131,0)+IF(ISNUMBER(S131), VLOOKUP(S131/$AH131,F!$A1:$B101,2,1)*S131*$T131*$U131,0)+IF(ISNUMBER(W131), VLOOKUP(W131/$AH131,F!$A1:$B101,2,1)*W131*$X131*$Y131,0)+IF(ISNUMBER(AA131), VLOOKUP(AA131/$AH131,F!$A1:$B101,2,1)*AA131*$AB131*$AC131,0))*IF(ISNUMBER(F131),F131,1)*IF(ISNUMBER(E131),E131,1) -> 0 | AJ131: 0 | AK131: =IFERROR(I131*INDEX(F!$P$21:$AB$33, MATCH(G131/$AH131, F!$O$21:$O$33,1), MATCH(E131, F!$P$20:$AB$20,1)), 0 ) +IFERROR( M131*INDEX(F!$P$21:$AB$33, MATCH(K131/$AH131, F!$O$21:$O$33,1), MATCH(E131, F!$P$20:$AB$20,1)),0) + IFERROR( Q131*INDEX(F!$P$21:$AB$33, MATCH(O131/$AH131, F!$O$21:$O$33,1), MATCH(E131, F!$P$20:$AB$20,1)), 0) + IFERROR( U131*INDEX(F!$P$21:$AB$33, MATCH(S131/$AH131, F!$O$21:$O$33,1), MATCH(E131, F!$P$20:$AB$20,1)),0) + IFERROR(Y131*INDEX(F!$P$21:$AB$33, MATCH(W131/$AH131, F!$O$21:$O$33,1), MATCH(E131, F!$P$20:$AB$20,1)),0) + IFERROR( AC131*INDEX(F!$P$21:$AB$33, MATCH(AA131/$AH131, F!$O$21:$O$33,1), MATCH(E131, F!$P$20:$AB$20,1)),) -> 0
AE132: 0 | AF132: 0 | AG132: 0% | AI132: =( IF(ISNUMBER(G132), VLOOKUP(G132/$AH132,F!$A1:$B101,2,1)*G132*$H132*$I132,0)+IF(ISNUMBER(K132), VLOOKUP(K132/$AH132,F!$A1:$B101,2,1)*K132*$L132*$M132,0)+IF(ISNUMBER(O132), VLOOKUP(O132/$AH132,F!$A1:$B101,2,1)*O132*$P132*$Q132,0)+IF(ISNUMBER(S132), VLOOKUP(S132/$AH132,F!$A1:$B101,2,1)*S132*$T132*$U132,0)+IF(ISNUMBER(W132), VLOOKUP(W132/$AH132,F!$A1:$B101,2,1)*W132*$X132*$Y132,0)+IF(ISNUMBER(AA132), VLOOKUP(AA132/$AH132,F!$A1:$B101,2,1)*AA132*$AB132*$AC132,0))*IF(ISNUMBER(F132),F132,1)*IF(ISNUMBER(E132),E132,1) -> 0 | AJ132: 0 | AK132: =IFERROR(I132*INDEX(F!$P$21:$AB$33, MATCH(G132/$AH132, F!$O$21:$O$33,1), MATCH(E132, F!$P$20:$AB$20,1)), 0 ) +IFERROR( M132*INDEX(F!$P$21:$AB$33, MATCH(K132/$AH132, F!$O$21:$O$33,1), MATCH(E132, F!$P$20:$AB$20,1)),0) + IFERROR( Q132*INDEX(F!$P$21:$AB$33, MATCH(O132/$AH132, F!$O$21:$O$33,1), MATCH(E132, F!$P$20:$AB$20,1)), 0) + IFERROR( U132*INDEX(F!$P$21:$AB$33, MATCH(S132/$AH132, F!$O$21:$O$33,1), MATCH(E132, F!$P$20:$AB$20,1)),0) + IFERROR(Y132*INDEX(F!$P$21:$AB$33, MATCH(W132/$AH132, F!$O$21:$O$33,1), MATCH(E132, F!$P$20:$AB$20,1)),0) + IFERROR( AC132*INDEX(F!$P$21:$AB$33, MATCH(AA132/$AH132, F!$O$21:$O$33,1), MATCH(E132, F!$P$20:$AB$20,1)),) -> 0
E133: =ROUND(IFERROR(SUMPRODUCT(AJ125:AJ132,E125:E132)/AJ133,0),3) -> 1.14 | AE133: =SUM(AE125:AE132) -> 9607.5 | AF133: 104.4 | AG133: =IFERROR( SUMPRODUCT(AG125:AG132,AJ125:AJ132)/AJ133,0) -> 52% | AI133: =SUM(AI125:AI132) -> 6944 | AJ133: =SUM(AJ125:AJ132) -> 92 | AK133: =IF(SUM(AK125:AK132)=0,TIME(,0,),TIME(,SUM(AK125:AK132)+F!$V$37,)) -> 01:40:00
A134: =A135 -> 2015-11-04 | B134: =IF(B78="","",B78) ->  | G134: =IF(J134<>0, IFERROR(IF( $F134=2, MROUND($AH134*J134,1), IF( OR($F134="",$F134=1), MROUND($AH134*J134,2.5), MROUND($AH134*J134, 0.1))), "" ), "") ->  | K134: =IF(N134<>0, IFERROR(IF( $F134=2, MROUND($AH134*N134,1), IF( OR($F134="",$F134=1), MROUND($AH134*N134,2.5), MROUND($AH134*N134, 0.1))), "" ), "") ->  | O134: =IF(R134<>0, IFERROR(IF( $F134=2, MROUND($AH134*R134,1), IF( OR($F134="",$F134=1), MROUND($AH134*R134,2.5), MROUND($AH134*R134, 0.1))), "" ), "") ->  | S134: =IF(V134<>0, IFERROR(IF( $F134=2, MROUND($AH134*V134,1), IF( OR($F134="",$F134=1), MROUND($AH134*V134,2.5), MROUND($AH134*V134, 0.1))), "" ), "") ->  | W134: =IF(Z134<>0, IFERROR(IF( $F134=2, MROUND($AH134*Z134,1), IF( OR($F134="",$F134=1), MROUND($AH134*Z134,2.5), MROUND($AH134*Z134, 0.1))), "" ), "") ->  | AA134: =IF(AD134<>0, IFERROR(IF( $F134=2, MROUND($AH134*AD134,1), IF( OR($F134="",$F134=1), MROUND($AH134*AD134,2.5), MROUND($AH134*AD134, 0.1))), "" ), "") ->  | AE134: =(IF(ISNUMBER(G134),G134,0)*H134*I134+IF(ISNUMBER(K134),K134,1)*L134*M134+IF(ISNUMBER(O134),O134,1)*P134*Q134+IF(ISNUMBER(S134),S134,1)*T134*U134+IF(ISNUMBER(W134),W134,1)*X134*Y134+IF(ISNUMBER(AA134),AA134,1)*AB134*AC134)*IF(ISNUMBER(F134),F134,1) -> 0 | AF134: 0 | AG134: =IFERROR((AF134/(AH134*IF(ISNUMBER(F134),F134,1))),0) -> 0% | AH134: =IF(ISNUMBER(AH78), AH78+(AH78*$AH$114),"") ->  | AI134: =( IF(ISNUMBER(G134), VLOOKUP(G134/$AH134,F!$A1:$B101,2,1)*G134*$H134*$I134,0)+IF(ISNUMBER(K134), VLOOKUP(K134/$AH134,F!$A1:$B101,2,1)*K134*$L134*$M134,0)+IF(ISNUMBER(O134), VLOOKUP(O134/$AH134,F!$A1:$B101,2,1)*O134*$P134*$Q134,0)+IF(ISNUMBER(S134), VLOOKUP(S134/$AH134,F!$A1:$B101,2,1)*S134*$T134*$U134,0)+IF(ISNUMBER(W134), VLOOKUP(W134/$AH134,F!$A1:$B101,2,1)*W134*$X134*$Y134,0)+IF(ISNUMBER(AA134), VLOOKUP(AA134/$AH134,F!$A1:$B101,2,1)*AA134*$AB134*$AC134,0))*IF(ISNUMBER(F134),F134,1)*IF(ISNUMBER(E134),E134,1) -> 0 | AJ134: =H134*I134+L134*M134+P134*Q134+T134*U134+X134*Y134+AB134*AC134 -> 0 | AK134: =IFERROR(I134*INDEX(F!$P$21:$AB$33, MATCH(G134/$AH134, F!$O$21:$O$33,1), MATCH(E134, F!$P$20:$AB$20,1)), 0 ) +IFERROR( M134*INDEX(F!$P$21:$AB$33, MATCH(K134/$AH134, F!$O$21:$O$33,1), MATCH(E134, F!$P$20:$AB$20,1)),0) + IFERROR( Q134*INDEX(F!$P$21:$AB$33, MATCH(O134/$AH134, F!$O$21:$O$33,1), MATCH(E134, F!$P$20:$AB$20,1)), 0) + IFERROR( U134*INDEX(F!$P$21:$AB$33, MATCH(S134/$AH134, F!$O$21:$O$33,1), MATCH(E134, F!$P$20:$AB$20,1)),0) + IFERROR(Y134*INDEX(F!$P$21:$AB$33, MATCH(W134/$AH134, F!$O$21:$O$33,1), MATCH(E134, F!$P$20:$AB$20,1)),0) + IFERROR( AC134*INDEX(F!$P$21:$AB$33, MATCH(AA134/$AH134, F!$O$21:$O$33,1), MATCH(E134, F!$P$20:$AB$20,1)),) -> 0
A135: =A79+A58 -> 2015-11-04 | AE135: 0 | AF135: 0 | AG135: 0% | AI135: =( IF(ISNUMBER(G135), VLOOKUP(G135/$AH135,F!$A1:$B101,2,1)*G135*$H135*$I135,0)+IF(ISNUMBER(K135), VLOOKUP(K135/$AH135,F!$A1:$B101,2,1)*K135*$L135*$M135,0)+IF(ISNUMBER(O135), VLOOKUP(O135/$AH135,F!$A1:$B101,2,1)*O135*$P135*$Q135,0)+IF(ISNUMBER(S135), VLOOKUP(S135/$AH135,F!$A1:$B101,2,1)*S135*$T135*$U135,0)+IF(ISNUMBER(W135), VLOOKUP(W135/$AH135,F!$A1:$B101,2,1)*W135*$X135*$Y135,0)+IF(ISNUMBER(AA135), VLOOKUP(AA135/$AH135,F!$A1:$B101,2,1)*AA135*$AB135*$AC135,0))*IF(ISNUMBER(F135),F135,1)*IF(ISNUMBER(E135),E135,1) -> 0 | AJ135: 0 | AK135: =IFERROR(I135*INDEX(F!$P$21:$AB$33, MATCH(G135/$AH135, F!$O$21:$O$33,1), MATCH(E135, F!$P$20:$AB$20,1)), 0 ) +IFERROR( M135*INDEX(F!$P$21:$AB$33, MATCH(K135/$AH135, F!$O$21:$O$33,1), MATCH(E135, F!$P$20:$AB$20,1)),0) + IFERROR( Q135*INDEX(F!$P$21:$AB$33, MATCH(O135/$AH135, F!$O$21:$O$33,1), MATCH(E135, F!$P$20:$AB$20,1)), 0) + IFERROR( U135*INDEX(F!$P$21:$AB$33, MATCH(S135/$AH135, F!$O$21:$O$33,1), MATCH(E135, F!$P$20:$AB$20,1)),0) + IFERROR(Y135*INDEX(F!$P$21:$AB$33, MATCH(W135/$AH135, F!$O$21:$O$33,1), MATCH(E135, F!$P$20:$AB$20,1)),0) + IFERROR( AC135*INDEX(F!$P$21:$AB$33, MATCH(AA135/$AH135, F!$O$21:$O$33,1), MATCH(E135, F!$P$20:$AB$20,1)),) -> 0
AE136: 0 | AF136: 0 | AG136: 0% | AI136: =( IF(ISNUMBER(G136), VLOOKUP(G136/$AH136,F!$A1:$B101,2,1)*G136*$H136*$I136,0)+IF(ISNUMBER(K136), VLOOKUP(K136/$AH136,F!$A1:$B101,2,1)*K136*$L136*$M136,0)+IF(ISNUMBER(O136), VLOOKUP(O136/$AH136,F!$A1:$B101,2,1)*O136*$P136*$Q136,0)+IF(ISNUMBER(S136), VLOOKUP(S136/$AH136,F!$A1:$B101,2,1)*S136*$T136*$U136,0)+IF(ISNUMBER(W136), VLOOKUP(W136/$AH136,F!$A1:$B101,2,1)*W136*$X136*$Y136,0)+IF(ISNUMBER(AA136), VLOOKUP(AA136/$AH136,F!$A1:$B101,2,1)*AA136*$AB136*$AC136,0))*IF(ISNUMBER(F136),F136,1)*IF(ISNUMBER(E136),E136,1) -> 0 | AJ136: 0 | AK136: =IFERROR(I136*INDEX(F!$P$21:$AB$33, MATCH(G136/$AH136, F!$O$21:$O$33,1), MATCH(E136, F!$P$20:$AB$20,1)), 0 ) +IFERROR( M136*INDEX(F!$P$21:$AB$33, MATCH(K136/$AH136, F!$O$21:$O$33,1), MATCH(E136, F!$P$20:$AB$20,1)),0) + IFERROR( Q136*INDEX(F!$P$21:$AB$33, MATCH(O136/$AH136, F!$O$21:$O$33,1), MATCH(E136, F!$P$20:$AB$20,1)), 0) + IFERROR( U136*INDEX(F!$P$21:$AB$33, MATCH(S136/$AH136, F!$O$21:$O$33,1), MATCH(E136, F!$P$20:$AB$20,1)),0) + IFERROR(Y136*INDEX(F!$P$21:$AB$33, MATCH(W136/$AH136, F!$O$21:$O$33,1), MATCH(E136, F!$P$20:$AB$20,1)),0) + IFERROR( AC136*INDEX(F!$P$21:$AB$33, MATCH(AA136/$AH136, F!$O$21:$O$33,1), MATCH(E136, F!$P$20:$AB$20,1)),) -> 0
AE137: 0 | AF137: 0 | AG137: 0% | AI137: =( IF(ISNUMBER(G137), VLOOKUP(G137/$AH137,F!$A1:$B101,2,1)*G137*$H137*$I137,0)+IF(ISNUMBER(K137), VLOOKUP(K137/$AH137,F!$A1:$B101,2,1)*K137*$L137*$M137,0)+IF(ISNUMBER(O137), VLOOKUP(O137/$AH137,F!$A1:$B101,2,1)*O137*$P137*$Q137,0)+IF(ISNUMBER(S137), VLOOKUP(S137/$AH137,F!$A1:$B101,2,1)*S137*$T137*$U137,0)+IF(ISNUMBER(W137), VLOOKUP(W137/$AH137,F!$A1:$B101,2,1)*W137*$X137*$Y137,0)+IF(ISNUMBER(AA137), VLOOKUP(AA137/$AH137,F!$A1:$B101,2,1)*AA137*$AB137*$AC137,0))*IF(ISNUMBER(F137),F137,1)*IF(ISNUMBER(E137),E137,1) -> 0 | AJ137: =H137*I137+L137*M137+P137*Q137+T137*U137+X137*Y137+AB137*AC137 -> 0 | AK137: =IFERROR(I137*INDEX(F!$P$21:$AB$33, MATCH(G137/$AH137, F!$O$21:$O$33,1), MATCH(E137, F!$P$20:$AB$20,1)), 0 ) +IFERROR( M137*INDEX(F!$P$21:$AB$33, MATCH(K137/$AH137, F!$O$21:$O$33,1), MATCH(E137, F!$P$20:$AB$20,1)),0) + IFERROR( Q137*INDEX(F!$P$21:$AB$33, MATCH(O137/$AH137, F!$O$21:$O$33,1), MATCH(E137, F!$P$20:$AB$20,1)), 0) + IFERROR( U137*INDEX(F!$P$21:$AB$33, MATCH(S137/$AH137, F!$O$21:$O$33,1), MATCH(E137, F!$P$20:$AB$20,1)),0) + IFERROR(Y137*INDEX(F!$P$21:$AB$33, MATCH(W137/$AH137, F!$O$21:$O$33,1), MATCH(E137, F!$P$20:$AB$20,1)),0) + IFERROR( AC137*INDEX(F!$P$21:$AB$33, MATCH(AA137/$AH137, F!$O$21:$O$33,1), MATCH(E137, F!$P$20:$AB$20,1)),) -> 0
AE138: 0 | AF138: 0 | AG138: 0% | AI138: =( IF(ISNUMBER(G138), VLOOKUP(G138/$AH138,F!$A1:$B101,2,1)*G138*$H138*$I138,0)+IF(ISNUMBER(K138), VLOOKUP(K138/$AH138,F!$A1:$B101,2,1)*K138*$L138*$M138,0)+IF(ISNUMBER(O138), VLOOKUP(O138/$AH138,F!$A1:$B101,2,1)*O138*$P138*$Q138,0)+IF(ISNUMBER(S138), VLOOKUP(S138/$AH138,F!$A1:$B101,2,1)*S138*$T138*$U138,0)+IF(ISNUMBER(W138), VLOOKUP(W138/$AH138,F!$A1:$B101,2,1)*W138*$X138*$Y138,0)+IF(ISNUMBER(AA138), VLOOKUP(AA138/$AH138,F!$A1:$B101,2,1)*AA138*$AB138*$AC138,0))*IF(ISNUMBER(F138),F138,1)*IF(ISNUMBER(E138),E138,1) -> 0 | AJ138: =H138*I138+L138*M138+P138*Q138+T138*U138+X138*Y138+AB138*AC138 -> 0 | AK138: =IFERROR(I138*INDEX(F!$P$21:$AB$33, MATCH(G138/$AH138, F!$O$21:$O$33,1), MATCH(E138, F!$P$20:$AB$20,1)), 0 ) +IFERROR( M138*INDEX(F!$P$21:$AB$33, MATCH(K138/$AH138, F!$O$21:$O$33,1), MATCH(E138, F!$P$20:$AB$20,1)),0) + IFERROR( Q138*INDEX(F!$P$21:$AB$33, MATCH(O138/$AH138, F!$O$21:$O$33,1), MATCH(E138, F!$P$20:$AB$20,1)), 0) + IFERROR( U138*INDEX(F!$P$21:$AB$33, MATCH(S138/$AH138, F!$O$21:$O$33,1), MATCH(E138, F!$P$20:$AB$20,1)),0) + IFERROR(Y138*INDEX(F!$P$21:$AB$33, MATCH(W138/$AH138, F!$O$21:$O$33,1), MATCH(E138, F!$P$20:$AB$20,1)),0) + IFERROR( AC138*INDEX(F!$P$21:$AB$33, MATCH(AA138/$AH138, F!$O$21:$O$33,1), MATCH(E138, F!$P$20:$AB$20,1)),) -> 0
AE139: 0 | AF139: 0 | AG139: 0% | AI139: =( IF(ISNUMBER(G139), VLOOKUP(G139/$AH139,F!$A1:$B101,2,1)*G139*$H139*$I139,0)+IF(ISNUMBER(K139), VLOOKUP(K139/$AH139,F!$A1:$B101,2,1)*K139*$L139*$M139,0)+IF(ISNUMBER(O139), VLOOKUP(O139/$AH139,F!$A1:$B101,2,1)*O139*$P139*$Q139,0)+IF(ISNUMBER(S139), VLOOKUP(S139/$AH139,F!$A1:$B101,2,1)*S139*$T139*$U139,0)+IF(ISNUMBER(W139), VLOOKUP(W139/$AH139,F!$A1:$B101,2,1)*W139*$X139*$Y139,0)+IF(ISNUMBER(AA139), VLOOKUP(AA139/$AH139,F!$A1:$B101,2,1)*AA139*$AB139*$AC139,0))*IF(ISNUMBER(F139),F139,1)*IF(ISNUMBER(E139),E139,1) -> 0 | AJ139: 0 | AK139: =IFERROR(I139*INDEX(F!$P$21:$AB$33, MATCH(G139/$AH139, F!$O$21:$O$33,1), MATCH(E139, F!$P$20:$AB$20,1)), 0 ) +IFERROR( M139*INDEX(F!$P$21:$AB$33, MATCH(K139/$AH139, F!$O$21:$O$33,1), MATCH(E139, F!$P$20:$AB$20,1)),0) + IFERROR( Q139*INDEX(F!$P$21:$AB$33, MATCH(O139/$AH139, F!$O$21:$O$33,1), MATCH(E139, F!$P$20:$AB$20,1)), 0) + IFERROR( U139*INDEX(F!$P$21:$AB$33, MATCH(S139/$AH139, F!$O$21:$O$33,1), MATCH(E139, F!$P$20:$AB$20,1)),0) + IFERROR(Y139*INDEX(F!$P$21:$AB$33, MATCH(W139/$AH139, F!$O$21:$O$33,1), MATCH(E139, F!$P$20:$AB$20,1)),0) + IFERROR( AC139*INDEX(F!$P$21:$AB$33, MATCH(AA139/$AH139, F!$O$21:$O$33,1), MATCH(E139, F!$P$20:$AB$20,1)),) -> 0
AE140: 0 | AF140: 0 | AG140: 0% | AI140: =( IF(ISNUMBER(G140), VLOOKUP(G140/$AH140,F!$A1:$B101,2,1)*G140*$H140*$I140,0)+IF(ISNUMBER(K140), VLOOKUP(K140/$AH140,F!$A1:$B101,2,1)*K140*$L140*$M140,0)+IF(ISNUMBER(O140), VLOOKUP(O140/$AH140,F!$A1:$B101,2,1)*O140*$P140*$Q140,0)+IF(ISNUMBER(S140), VLOOKUP(S140/$AH140,F!$A1:$B101,2,1)*S140*$T140*$U140,0)+IF(ISNUMBER(W140), VLOOKUP(W140/$AH140,F!$A1:$B101,2,1)*W140*$X140*$Y140,0)+IF(ISNUMBER(AA140), VLOOKUP(AA140/$AH140,F!$A1:$B101,2,1)*AA140*$AB140*$AC140,0))*IF(ISNUMBER(F140),F140,1)*IF(ISNUMBER(E140),E140,1) -> 0 | AJ140: 0 | AK140: =IFERROR(I140*INDEX(F!$P$21:$AB$33, MATCH(G140/$AH140, F!$O$21:$O$33,1), MATCH(E140, F!$P$20:$AB$20,1)), 0 ) +IFERROR( M140*INDEX(F!$P$21:$AB$33, MATCH(K140/$AH140, F!$O$21:$O$33,1), MATCH(E140, F!$P$20:$AB$20,1)),0) + IFERROR( Q140*INDEX(F!$P$21:$AB$33, MATCH(O140/$AH140, F!$O$21:$O$33,1), MATCH(E140, F!$P$20:$AB$20,1)), 0) + IFERROR( U140*INDEX(F!$P$21:$AB$33, MATCH(S140/$AH140, F!$O$21:$O$33,1), MATCH(E140, F!$P$20:$AB$20,1)),0) + IFERROR(Y140*INDEX(F!$P$21:$AB$33, MATCH(W140/$AH140, F!$O$21:$O$33,1), MATCH(E140, F!$P$20:$AB$20,1)),0) + IFERROR( AC140*INDEX(F!$P$21:$AB$33, MATCH(AA140/$AH140, F!$O$21:$O$33,1), MATCH(E140, F!$P$20:$AB$20,1)),) -> 0
AE141: 0 | AF141: 0 | AG141: 0% | AI141: =( IF(ISNUMBER(G141), VLOOKUP(G141/$AH141,F!$A1:$B101,2,1)*G141*$H141*$I141,0)+IF(ISNUMBER(K141), VLOOKUP(K141/$AH141,F!$A1:$B101,2,1)*K141*$L141*$M141,0)+IF(ISNUMBER(O141), VLOOKUP(O141/$AH141,F!$A1:$B101,2,1)*O141*$P141*$Q141,0)+IF(ISNUMBER(S141), VLOOKUP(S141/$AH141,F!$A1:$B101,2,1)*S141*$T141*$U141,0)+IF(ISNUMBER(W141), VLOOKUP(W141/$AH141,F!$A1:$B101,2,1)*W141*$X141*$Y141,0)+IF(ISNUMBER(AA141), VLOOKUP(AA141/$AH141,F!$A1:$B101,2,1)*AA141*$AB141*$AC141,0))*IF(ISNUMBER(F141),F141,1)*IF(ISNUMBER(E141),E141,1) -> 0 | AJ141: 0 | AK141: =IFERROR(I141*INDEX(F!$P$21:$AB$33, MATCH(G141/$AH141, F!$O$21:$O$33,1), MATCH(E141, F!$P$20:$AB$20,1)), 0 ) +IFERROR( M141*INDEX(F!$P$21:$AB$33, MATCH(K141/$AH141, F!$O$21:$O$33,1), MATCH(E141, F!$P$20:$AB$20,1)),0) + IFERROR( Q141*INDEX(F!$P$21:$AB$33, MATCH(O141/$AH141, F!$O$21:$O$33,1), MATCH(E141, F!$P$20:$AB$20,1)), 0) + IFERROR( U141*INDEX(F!$P$21:$AB$33, MATCH(S141/$AH141, F!$O$21:$O$33,1), MATCH(E141, F!$P$20:$AB$20,1)),0) + IFERROR(Y141*INDEX(F!$P$21:$AB$33, MATCH(W141/$AH141, F!$O$21:$O$33,1), MATCH(E141, F!$P$20:$AB$20,1)),0) + IFERROR( AC141*INDEX(F!$P$21:$AB$33, MATCH(AA141/$AH141, F!$O$21:$O$33,1), MATCH(E141, F!$P$20:$AB$20,1)),) -> 0
E142: =ROUND(IFERROR(SUMPRODUCT(AJ134:AJ141,E134:E141)/AJ142,0),3) -> 0.00 | AE142: =SUM(AE134:AE141) -> 0 | AF142: 0.0 | AG142: =IFERROR( SUMPRODUCT(AG134:AG141,AJ134:AJ141)/AJ142,0) -> 0% | AI142: =SUM(AI134:AI141) -> 0 | AJ142: =SUM(AJ134:AJ141) -> 0 | AK142: =IF(SUM(AK134:AK141)=0,TIME(,0,),TIME(,SUM(AK134:AK141)+F!$V$37,)) -> 00:00:00
A143: =A144 -> 2015-11-05 | B143: =IF(B87="","",B87) -> Средняя | C143: ТЯГА | D143: Становая тяга | E143: 1.4 | G143: =IF(J143<>0, IFERROR(IF( $F143=2, MROUND($AH143*J143,1), IF( OR($F143="",$F143=1), MROUND($AH143*J143,2.5), MROUND($AH143*J143, 0.1))), "" ), "") -> 130 | H143: 6 | I143: 1 | J143: 40% | K143: =IF(N143<>0, IFERROR(IF( $F143=2, MROUND($AH143*N143,1), IF( OR($F143="",$F143=1), MROUND($AH143*N143,2.5), MROUND($AH143*N143, 0.1))), "" ), "") -> 180 | L143: 5 | M143: 1 | N143: 55% | O143: =IF(R143<>0, IFERROR(IF( $F143=2, MROUND($AH143*R143,1), IF( OR($F143="",$F143=1), MROUND($AH143*R143,2.5), MROUND($AH143*R143, 0.1))), "" ), "") -> 227.5 | P143: 3 | Q143: 6 | R143: 70% | S143: =IF(V143<>0, IFERROR(IF( $F143=2, MROUND($AH143*V143,1), IF( OR($F143="",$F143=1), MROUND($AH143*V143,2.5), MROUND($AH143*V143, 0.1))), "" ), "") ->  | W143: =IF(Z143<>0, IFERROR(IF( $F143=2, MROUND($AH143*Z143,1), IF( OR($F143="",$F143=1), MROUND($AH143*Z143,2.5), MROUND($AH143*Z143, 0.1))), "" ), "") ->  | AA143: =IF(AD143<>0, IFERROR(IF( $F143=2, MROUND($AH143*AD143,1), IF( OR($F143="",$F143=1), MROUND($AH143*AD143,2.5), MROUND($AH143*AD143, 0.1))), "" ), "") ->  | AE143: =(IF(ISNUMBER(G143),G143,0)*H143*I143+IF(ISNUMBER(K143),K143,1)*L143*M143+IF(ISNUMBER(O143),O143,1)*P143*Q143+IF(ISNUMBER(S143),S143,1)*T143*U143+IF(ISNUMBER(W143),W143,1)*X143*Y143+IF(ISNUMBER(AA143),AA143,1)*AB143*AC143)*IF(ISNUMBER(F143),F143,1) -> 5775 | AF143: 199 | AG143: =IFERROR((AF143/(AH143*IF(ISNUMBER(F143),F143,1))),0) -> 61% | AH143: =IF(ISNUMBER(AH87), AH87+(AH87*$AH$114),"") -> 326.4 | AI143: =( IF(ISNUMBER(G143), VLOOKUP(G143/$AH143,F!$A1:$B101,2,1)*G143*$H143*$I143,0)+IF(ISNUMBER(K143), VLOOKUP(K143/$AH143,F!$A1:$B101,2,1)*K143*$L143*$M143,0)+IF(ISNUMBER(O143), VLOOKUP(O143/$AH143,F!$A1:$B101,2,1)*O143*$P143*$Q143,0)+IF(ISNUMBER(S143), VLOOKUP(S143/$AH143,F!$A1:$B101,2,1)*S143*$T143*$U143,0)+IF(ISNUMBER(W143), VLOOKUP(W143/$AH143,F!$A1:$B101,2,1)*W143*$X143*$Y143,0)+IF(ISNUMBER(AA143), VLOOKUP(AA143/$AH143,F!$A1:$B101,2,1)*AA143*$AB143*$AC143,0))*IF(ISNUMBER(F143),F143,1)*IF(ISNUMBER(E143),E143,1) -> 6161 | AJ143: =H143*I143+L143*M143+P143*Q143+T143*U143+X143*Y143+AB143*AC143 -> 29 | AK143: =IFERROR(I143*INDEX(F!$P$21:$AB$33, MATCH(G143/$AH143, F!$O$21:$O$33,1), MATCH(E143, F!$P$20:$AB$20,1)), 0 ) +IFERROR( M143*INDEX(F!$P$21:$AB$33, MATCH(K143/$AH143, F!$O$21:$O$33,1), MATCH(E143, F!$P$20:$AB$20,1)),0) + IFERROR( Q143*INDEX(F!$P$21:$AB$33, MATCH(O143/$AH143, F!$O$21:$O$33,1), MATCH(E143, F!$P$20:$AB$20,1)), 0) + IFERROR( U143*INDEX(F!$P$21:$AB$33, MATCH(S143/$AH143, F!$O$21:$O$33,1), MATCH(E143, F!$P$20:$AB$20,1)),0) + IFERROR(Y143*INDEX(F!$P$21:$AB$33, MATCH(W143/$AH143, F!$O$21:$O$33,1), MATCH(E143, F!$P$20:$AB$20,1)),0) + IFERROR( AC143*INDEX(F!$P$21:$AB$33, MATCH(AA143/$AH143, F!$O$21:$O$33,1), MATCH(E143, F!$P$20:$AB$20,1)),) -> 35
A144: =A88+A58 -> 2015-11-05 | B144: Тяжелая | C144: ЖИМ | D144: Жим лежа | E144: 1.0 | G144: 85 | H144: 6 | I144: 1 | J144: 50% | K144: 110 | L144: 5 | M144: 1 | N144: 65% | O144: 135 | P144: 4 | Q144: 4 | R144: 80% | AE144: 3220 | AF144: 119 | AG144: 71% | AH144: 168.3 | AI144: =( IF(ISNUMBER(G144), VLOOKUP(G144/$AH144,F!$A1:$B101,2,1)*G144*$H144*$I144,0)+IF(ISNUMBER(K144), VLOOKUP(K144/$AH144,F!$A1:$B101,2,1)*K144*$L144*$M144,0)+IF(ISNUMBER(O144), VLOOKUP(O144/$AH144,F!$A1:$B101,2,1)*O144*$P144*$Q144,0)+IF(ISNUMBER(S144), VLOOKUP(S144/$AH144,F!$A1:$B101,2,1)*S144*$T144*$U144,0)+IF(ISNUMBER(W144), VLOOKUP(W144/$AH144,F!$A1:$B101,2,1)*W144*$X144*$Y144,0)+IF(ISNUMBER(AA144), VLOOKUP(AA144/$AH144,F!$A1:$B101,2,1)*AA144*$AB144*$AC144,0))*IF(ISNUMBER(F144),F144,1)*IF(ISNUMBER(E144),E144,1) -> 4000 | AJ144: 27 | AK144: =IFERROR(I144*INDEX(F!$P$21:$AB$33, MATCH(G144/$AH144, F!$O$21:$O$33,1), MATCH(E144, F!$P$20:$AB$20,1)), 0 ) +IFERROR( M144*INDEX(F!$P$21:$AB$33, MATCH(K144/$AH144, F!$O$21:$O$33,1), MATCH(E144, F!$P$20:$AB$20,1)),0) + IFERROR( Q144*INDEX(F!$P$21:$AB$33, MATCH(O144/$AH144, F!$O$21:$O$33,1), MATCH(E144, F!$P$20:$AB$20,1)), 0) + IFERROR( U144*INDEX(F!$P$21:$AB$33, MATCH(S144/$AH144, F!$O$21:$O$33,1), MATCH(E144, F!$P$20:$AB$20,1)),0) + IFERROR(Y144*INDEX(F!$P$21:$AB$33, MATCH(W144/$AH144, F!$O$21:$O$33,1), MATCH(E144, F!$P$20:$AB$20,1)),0) + IFERROR( AC144*INDEX(F!$P$21:$AB$33, MATCH(AA144/$AH144, F!$O$21:$O$33,1), MATCH(E144, F!$P$20:$AB$20,1)),) -> 21
B145: Легкая | C145: ТЯГА | D145: Тяга уступающая | E145: 1.4 | G145: 97.5 | H145: 3 | I145: 5 | J145: 30% | K145: 115 | L145: 2 | M145: 5 | N145: 35% | AE145: 2612.5 | AF145: 105 | AG145: 32% | AH145: 326.4 | AI145: =( IF(ISNUMBER(G145), VLOOKUP(G145/$AH145,F!$A1:$B101,2,1)*G145*$H145*$I145,0)+IF(ISNUMBER(K145), VLOOKUP(K145/$AH145,F!$A1:$B101,2,1)*K145*$L145*$M145,0)+IF(ISNUMBER(O145), VLOOKUP(O145/$AH145,F!$A1:$B101,2,1)*O145*$P145*$Q145,0)+IF(ISNUMBER(S145), VLOOKUP(S145/$AH145,F!$A1:$B101,2,1)*S145*$T145*$U145,0)+IF(ISNUMBER(W145), VLOOKUP(W145/$AH145,F!$A1:$B101,2,1)*W145*$X145*$Y145,0)+IF(ISNUMBER(AA145), VLOOKUP(AA145/$AH145,F!$A1:$B101,2,1)*AA145*$AB145*$AC145,0))*IF(ISNUMBER(F145),F145,1)*IF(ISNUMBER(E145),E145,1) -> 600 | AJ145: 25 | AK145: =IFERROR(I145*INDEX(F!$P$21:$AB$33, MATCH(G145/$AH145, F!$O$21:$O$33,1), MATCH(E145, F!$P$20:$AB$20,1)), 0 ) +IFERROR( M145*INDEX(F!$P$21:$AB$33, MATCH(K145/$AH145, F!$O$21:$O$33,1), MATCH(E145, F!$P$20:$AB$20,1)),0) + IFERROR( Q145*INDEX(F!$P$21:$AB$33, MATCH(O145/$AH145, F!$O$21:$O$33,1), MATCH(E145, F!$P$20:$AB$20,1)), 0) + IFERROR( U145*INDEX(F!$P$21:$AB$33, MATCH(S145/$AH145, F!$O$21:$O$33,1), MATCH(E145, F!$P$20:$AB$20,1)),0) + IFERROR(Y145*INDEX(F!$P$21:$AB$33, MATCH(W145/$AH145, F!$O$21:$O$33,1), MATCH(E145, F!$P$20:$AB$20,1)),0) + IFERROR( AC145*INDEX(F!$P$21:$AB$33, MATCH(AA145/$AH145, F!$O$21:$O$33,1), MATCH(E145, F!$P$20:$AB$20,1)),) -> 35
B146: Легкая | C146: ЖИМ | D146: Жим на наклонной скамье | E146: 1.0 | G146: 60 | H146: 4 | I146: 4 | J146: 45% | AE146: 960 | AF146: 60 | AG146: 45% | AH146: 134.7 | AI146: =( IF(ISNUMBER(G146), VLOOKUP(G146/$AH146,F!$A1:$B101,2,1)*G146*$H146*$I146,0)+IF(ISNUMBER(K146), VLOOKUP(K146/$AH146,F!$A1:$B101,2,1)*K146*$L146*$M146,0)+IF(ISNUMBER(O146), VLOOKUP(O146/$AH146,F!$A1:$B101,2,1)*O146*$P146*$Q146,0)+IF(ISNUMBER(S146), VLOOKUP(S146/$AH146,F!$A1:$B101,2,1)*S146*$T146*$U146,0)+IF(ISNUMBER(W146), VLOOKUP(W146/$AH146,F!$A1:$B101,2,1)*W146*$X146*$Y146,0)+IF(ISNUMBER(AA146), VLOOKUP(AA146/$AH146,F!$A1:$B101,2,1)*AA146*$AB146*$AC146,0))*IF(ISNUMBER(F146),F146,1)*IF(ISNUMBER(E146),E146,1) -> 384 | AJ146: =H146*I146+L146*M146+P146*Q146+T146*U146+X146*Y146+AB146*AC146 -> 16 | AK146: =IFERROR(I146*INDEX(F!$P$21:$AB$33, MATCH(G146/$AH146, F!$O$21:$O$33,1), MATCH(E146, F!$P$20:$AB$20,1)), 0 ) +IFERROR( M146*INDEX(F!$P$21:$AB$33, MATCH(K146/$AH146, F!$O$21:$O$33,1), MATCH(E146, F!$P$20:$AB$20,1)),0) + IFERROR( Q146*INDEX(F!$P$21:$AB$33, MATCH(O146/$AH146, F!$O$21:$O$33,1), MATCH(E146, F!$P$20:$AB$20,1)), 0) + IFERROR( U146*INDEX(F!$P$21:$AB$33, MATCH(S146/$AH146, F!$O$21:$O$33,1), MATCH(E146, F!$P$20:$AB$20,1)),0) + IFERROR(Y146*INDEX(F!$P$21:$AB$33, MATCH(W146/$AH146, F!$O$21:$O$33,1), MATCH(E146, F!$P$20:$AB$20,1)),0) + IFERROR( AC146*INDEX(F!$P$21:$AB$33, MATCH(AA146/$AH146, F!$O$21:$O$33,1), MATCH(E146, F!$P$20:$AB$20,1)),) -> 8
B147: Легкая | C147: ЖИМ | D147: Жим гантелей лежа на накл скамье | E147: 0.8 | F147: 2 | G147: 20 | H147: 4 | I147: 4 | J147: 45% | AE147: 640 | AF147: 40 | AG147: 45% | AH147: 44.9 | AI147: =( IF(ISNUMBER(G147), VLOOKUP(G147/$AH147,F!$A1:$B101,2,1)*G147*$H147*$I147,0)+IF(ISNUMBER(K147), VLOOKUP(K147/$AH147,F!$A1:$B101,2,1)*K147*$L147*$M147,0)+IF(ISNUMBER(O147), VLOOKUP(O147/$AH147,F!$A1:$B101,2,1)*O147*$P147*$Q147,0)+IF(ISNUMBER(S147), VLOOKUP(S147/$AH147,F!$A1:$B101,2,1)*S147*$T147*$U147,0)+IF(ISNUMBER(W147), VLOOKUP(W147/$AH147,F!$A1:$B101,2,1)*W147*$X147*$Y147,0)+IF(ISNUMBER(AA147), VLOOKUP(AA147/$AH147,F!$A1:$B101,2,1)*AA147*$AB147*$AC147,0))*IF(ISNUMBER(F147),F147,1)*IF(ISNUMBER(E147),E147,1) -> 205 | AJ147: =H147*I147+L147*M147+P147*Q147+T147*U147+X147*Y147+AB147*AC147 -> 16 | AK147: =IFERROR(I147*INDEX(F!$P$21:$AB$33, MATCH(G147/$AH147, F!$O$21:$O$33,1), MATCH(E147, F!$P$20:$AB$20,1)), 0 ) +IFERROR( M147*INDEX(F!$P$21:$AB$33, MATCH(K147/$AH147, F!$O$21:$O$33,1), MATCH(E147, F!$P$20:$AB$20,1)),0) + IFERROR( Q147*INDEX(F!$P$21:$AB$33, MATCH(O147/$AH147, F!$O$21:$O$33,1), MATCH(E147, F!$P$20:$AB$20,1)), 0) + IFERROR( U147*INDEX(F!$P$21:$AB$33, MATCH(S147/$AH147, F!$O$21:$O$33,1), MATCH(E147, F!$P$20:$AB$20,1)),0) + IFERROR(Y147*INDEX(F!$P$21:$AB$33, MATCH(W147/$AH147, F!$O$21:$O$33,1), MATCH(E147, F!$P$20:$AB$20,1)),0) + IFERROR( AC147*INDEX(F!$P$21:$AB$33, MATCH(AA147/$AH147, F!$O$21:$O$33,1), MATCH(E147, F!$P$20:$AB$20,1)),) -> 7
AE148: 0 | AF148: 0 | AG148: 0% | AI148: =( IF(ISNUMBER(G148), VLOOKUP(G148/$AH148,F!$A1:$B101,2,1)*G148*$H148*$I148,0)+IF(ISNUMBER(K148), VLOOKUP(K148/$AH148,F!$A1:$B101,2,1)*K148*$L148*$M148,0)+IF(ISNUMBER(O148), VLOOKUP(O148/$AH148,F!$A1:$B101,2,1)*O148*$P148*$Q148,0)+IF(ISNUMBER(S148), VLOOKUP(S148/$AH148,F!$A1:$B101,2,1)*S148*$T148*$U148,0)+IF(ISNUMBER(W148), VLOOKUP(W148/$AH148,F!$A1:$B101,2,1)*W148*$X148*$Y148,0)+IF(ISNUMBER(AA148), VLOOKUP(AA148/$AH148,F!$A1:$B101,2,1)*AA148*$AB148*$AC148,0))*IF(ISNUMBER(F148),F148,1)*IF(ISNUMBER(E148),E148,1) -> 0 | AJ148: 0 | AK148: =IFERROR(I148*INDEX(F!$P$21:$AB$33, MATCH(G148/$AH148, F!$O$21:$O$33,1), MATCH(E148, F!$P$20:$AB$20,1)), 0 ) +IFERROR( M148*INDEX(F!$P$21:$AB$33, MATCH(K148/$AH148, F!$O$21:$O$33,1), MATCH(E148, F!$P$20:$AB$20,1)),0) + IFERROR( Q148*INDEX(F!$P$21:$AB$33, MATCH(O148/$AH148, F!$O$21:$O$33,1), MATCH(E148, F!$P$20:$AB$20,1)), 0) + IFERROR( U148*INDEX(F!$P$21:$AB$33, MATCH(S148/$AH148, F!$O$21:$O$33,1), MATCH(E148, F!$P$20:$AB$20,1)),0) + IFERROR(Y148*INDEX(F!$P$21:$AB$33, MATCH(W148/$AH148, F!$O$21:$O$33,1), MATCH(E148, F!$P$20:$AB$20,1)),0) + IFERROR( AC148*INDEX(F!$P$21:$AB$33, MATCH(AA148/$AH148, F!$O$21:$O$33,1), MATCH(E148, F!$P$20:$AB$20,1)),) -> 0
AE149: 0 | AF149: 0 | AG149: 0% | AI149: =( IF(ISNUMBER(G149), VLOOKUP(G149/$AH149,F!$A1:$B101,2,1)*G149*$H149*$I149,0)+IF(ISNUMBER(K149), VLOOKUP(K149/$AH149,F!$A1:$B101,2,1)*K149*$L149*$M149,0)+IF(ISNUMBER(O149), VLOOKUP(O149/$AH149,F!$A1:$B101,2,1)*O149*$P149*$Q149,0)+IF(ISNUMBER(S149), VLOOKUP(S149/$AH149,F!$A1:$B101,2,1)*S149*$T149*$U149,0)+IF(ISNUMBER(W149), VLOOKUP(W149/$AH149,F!$A1:$B101,2,1)*W149*$X149*$Y149,0)+IF(ISNUMBER(AA149), VLOOKUP(AA149/$AH149,F!$A1:$B101,2,1)*AA149*$AB149*$AC149,0))*IF(ISNUMBER(F149),F149,1)*IF(ISNUMBER(E149),E149,1) -> 0 | AJ149: 0 | AK149: =IFERROR(I149*INDEX(F!$P$21:$AB$33, MATCH(G149/$AH149, F!$O$21:$O$33,1), MATCH(E149, F!$P$20:$AB$20,1)), 0 ) +IFERROR( M149*INDEX(F!$P$21:$AB$33, MATCH(K149/$AH149, F!$O$21:$O$33,1), MATCH(E149, F!$P$20:$AB$20,1)),0) + IFERROR( Q149*INDEX(F!$P$21:$AB$33, MATCH(O149/$AH149, F!$O$21:$O$33,1), MATCH(E149, F!$P$20:$AB$20,1)), 0) + IFERROR( U149*INDEX(F!$P$21:$AB$33, MATCH(S149/$AH149, F!$O$21:$O$33,1), MATCH(E149, F!$P$20:$AB$20,1)),0) + IFERROR(Y149*INDEX(F!$P$21:$AB$33, MATCH(W149/$AH149, F!$O$21:$O$33,1), MATCH(E149, F!$P$20:$AB$20,1)),0) + IFERROR( AC149*INDEX(F!$P$21:$AB$33, MATCH(AA149/$AH149, F!$O$21:$O$33,1), MATCH(E149, F!$P$20:$AB$20,1)),) -> 0
AE150: 0 | AF150: 0 | AG150: 0% | AI150: =( IF(ISNUMBER(G150), VLOOKUP(G150/$AH150,F!$A1:$B101,2,1)*G150*$H150*$I150,0)+IF(ISNUMBER(K150), VLOOKUP(K150/$AH150,F!$A1:$B101,2,1)*K150*$L150*$M150,0)+IF(ISNUMBER(O150), VLOOKUP(O150/$AH150,F!$A1:$B101,2,1)*O150*$P150*$Q150,0)+IF(ISNUMBER(S150), VLOOKUP(S150/$AH150,F!$A1:$B101,2,1)*S150*$T150*$U150,0)+IF(ISNUMBER(W150), VLOOKUP(W150/$AH150,F!$A1:$B101,2,1)*W150*$X150*$Y150,0)+IF(ISNUMBER(AA150), VLOOKUP(AA150/$AH150,F!$A1:$B101,2,1)*AA150*$AB150*$AC150,0))*IF(ISNUMBER(F150),F150,1)*IF(ISNUMBER(E150),E150,1) -> 0 | AJ150: 0 | AK150: =IFERROR(I150*INDEX(F!$P$21:$AB$33, MATCH(G150/$AH150, F!$O$21:$O$33,1), MATCH(E150, F!$P$20:$AB$20,1)), 0 ) +IFERROR( M150*INDEX(F!$P$21:$AB$33, MATCH(K150/$AH150, F!$O$21:$O$33,1), MATCH(E150, F!$P$20:$AB$20,1)),0) + IFERROR( Q150*INDEX(F!$P$21:$AB$33, MATCH(O150/$AH150, F!$O$21:$O$33,1), MATCH(E150, F!$P$20:$AB$20,1)), 0) + IFERROR( U150*INDEX(F!$P$21:$AB$33, MATCH(S150/$AH150, F!$O$21:$O$33,1), MATCH(E150, F!$P$20:$AB$20,1)),0) + IFERROR(Y150*INDEX(F!$P$21:$AB$33, MATCH(W150/$AH150, F!$O$21:$O$33,1), MATCH(E150, F!$P$20:$AB$20,1)),0) + IFERROR( AC150*INDEX(F!$P$21:$AB$33, MATCH(AA150/$AH150, F!$O$21:$O$33,1), MATCH(E150, F!$P$20:$AB$20,1)),) -> 0
E151: =ROUND(IFERROR(SUMPRODUCT(AJ143:AJ150,E143:E150)/AJ151,0),3) -> 1.16 | AE151: =SUM(AE143:AE150) -> 13207.5 | AF151: 116.9 | AG151: =IFERROR( SUMPRODUCT(AG143:AG150,AJ143:AJ150)/AJ151,0) -> 52% | AI151: =SUM(AI143:AI150) -> 11349 | AJ151: =SUM(AJ143:AJ150) -> 113 | AK151: =IF(SUM(AK143:AK150)=0,TIME(,0,),TIME(,SUM(AK143:AK150)+F!$V$37,)) -> 02:16:00
A152: =A153 -> 2015-11-06 | B152: =IF(B96="","",B96) -> Легкая | C152: ТЯГА | D152: Тяга с подчеркнутым стартом | E152: 1.4 | G152: =IF(J152<>0, IFERROR(IF( $F152=2, MROUND($AH152*J152,1), IF( OR($F152="",$F152=1), MROUND($AH152*J152,2.5), MROUND($AH152*J152, 0.1))), "" ), "") -> 130 | H152: 3 | I152: 3 | J152: 40% | K152: =IF(N152<>0, IFERROR(IF( $F152=2, MROUND($AH152*N152,1), IF( OR($F152="",$F152=1), MROUND($AH152*N152,2.5), MROUND($AH152*N152, 0.1))), "" ), "") -> 147.5 | L152: 2 | M152: 3 | N152: 45% | O152: =IF(R152<>0, IFERROR(IF( $F152=2, MROUND($AH152*R152,1), IF( OR($F152="",$F152=1), MROUND($AH152*R152,2.5), MROUND($AH152*R152, 0.1))), "" ), "") ->  | S152: =IF(V152<>0, IFERROR(IF( $F152=2, MROUND($AH152*V152,1), IF( OR($F152="",$F152=1), MROUND($AH152*V152,2.5), MROUND($AH152*V152, 0.1))), "" ), "") ->  | W152: =IF(Z152<>0, IFERROR(IF( $F152=2, MROUND($AH152*Z152,1), IF( OR($F152="",$F152=1), MROUND($AH152*Z152,2.5), MROUND($AH152*Z152, 0.1))), "" ), "") ->  | AA152: =IF(AD152<>0, IFERROR(IF( $F152=2, MROUND($AH152*AD152,1), IF( OR($F152="",$F152=1), MROUND($AH152*AD152,2.5), MROUND($AH152*AD152, 0.1))), "" ), "") ->  | AE152: =(IF(ISNUMBER(G152),G152,0)*H152*I152+IF(ISNUMBER(K152),K152,1)*L152*M152+IF(ISNUMBER(O152),O152,1)*P152*Q152+IF(ISNUMBER(S152),S152,1)*T152*U152+IF(ISNUMBER(W152),W152,1)*X152*Y152+IF(ISNUMBER(AA152),AA152,1)*AB152*AC152)*IF(ISNUMBER(F152),F152,1) -> 2055 | AF152: 137 | AG152: =IFERROR((AF152/(AH152*IF(ISNUMBER(F152),F152,1))),0) -> 42% | AH152: =IF(ISNUMBER(AH96), AH96+(AH96*$AH$114),"") -> 326.4 | AI152: =( IF(ISNUMBER(G152), VLOOKUP(G152/$AH152,F!$A1:$B101,2,1)*G152*$H152*$I152,0)+IF(ISNUMBER(K152), VLOOKUP(K152/$AH152,F!$A1:$B101,2,1)*K152*$L152*$M152,0)+IF(ISNUMBER(O152), VLOOKUP(O152/$AH152,F!$A1:$B101,2,1)*O152*$P152*$Q152,0)+IF(ISNUMBER(S152), VLOOKUP(S152/$AH152,F!$A1:$B101,2,1)*S152*$T152*$U152,0)+IF(ISNUMBER(W152), VLOOKUP(W152/$AH152,F!$A1:$B101,2,1)*W152*$X152*$Y152,0)+IF(ISNUMBER(AA152), VLOOKUP(AA152/$AH152,F!$A1:$B101,2,1)*AA152*$AB152*$AC152,0))*IF(ISNUMBER(F152),F152,1)*IF(ISNUMBER(E152),E152,1) -> 1012 | AJ152: =H152*I152+L152*M152+P152*Q152+T152*U152+X152*Y152+AB152*AC152 -> 15 | AK152: =IFERROR(I152*INDEX(F!$P$21:$AB$33, MATCH(G152/$AH152, F!$O$21:$O$33,1), MATCH(E152, F!$P$20:$AB$20,1)), 0 ) +IFERROR( M152*INDEX(F!$P$21:$AB$33, MATCH(K152/$AH152, F!$O$21:$O$33,1), MATCH(E152, F!$P$20:$AB$20,1)),0) + IFERROR( Q152*INDEX(F!$P$21:$AB$33, MATCH(O152/$AH152, F!$O$21:$O$33,1), MATCH(E152, F!$P$20:$AB$20,1)), 0) + IFERROR( U152*INDEX(F!$P$21:$AB$33, MATCH(S152/$AH152, F!$O$21:$O$33,1), MATCH(E152, F!$P$20:$AB$20,1)),0) + IFERROR(Y152*INDEX(F!$P$21:$AB$33, MATCH(W152/$AH152, F!$O$21:$O$33,1), MATCH(E152, F!$P$20:$AB$20,1)),0) + IFERROR( AC152*INDEX(F!$P$21:$AB$33, MATCH(AA152/$AH152, F!$O$21:$O$33,1), MATCH(E152, F!$P$20:$AB$20,1)),) -> 21
A153: =A97+A58 -> 2015-11-06 | B153: Средняя | C153: ОФП | D153: Жим стоя | E153: 1.0 | G153: 50 | H153: 6 | I153: 1 | J153: 50% | K153: 65 | L153: 5 | M153: 5 | N153: 65% | AE153: 1925 | AF153: 62 | AG153: 61% | AH153: 101.0 | AI153: =( IF(ISNUMBER(G153), VLOOKUP(G153/$AH153,F!$A1:$B101,2,1)*G153*$H153*$I153,0)+IF(ISNUMBER(K153), VLOOKUP(K153/$AH153,F!$A1:$B101,2,1)*K153*$L153*$M153,0)+IF(ISNUMBER(O153), VLOOKUP(O153/$AH153,F!$A1:$B101,2,1)*O153*$P153*$Q153,0)+IF(ISNUMBER(S153), VLOOKUP(S153/$AH153,F!$A1:$B101,2,1)*S153*$T153*$U153,0)+IF(ISNUMBER(W153), VLOOKUP(W153/$AH153,F!$A1:$B101,2,1)*W153*$X153*$Y153,0)+IF(ISNUMBER(AA153), VLOOKUP(AA153/$AH153,F!$A1:$B101,2,1)*AA153*$AB153*$AC153,0))*IF(ISNUMBER(F153),F153,1)*IF(ISNUMBER(E153),E153,1) -> 1412 | AJ153: 31 | AK153: =IFERROR(I153*INDEX(F!$P$21:$AB$33, MATCH(G153/$AH153, F!$O$21:$O$33,1), MATCH(E153, F!$P$20:$AB$20,1)), 0 ) +IFERROR( M153*INDEX(F!$P$21:$AB$33, MATCH(K153/$AH153, F!$O$21:$O$33,1), MATCH(E153, F!$P$20:$AB$20,1)),0) + IFERROR( Q153*INDEX(F!$P$21:$AB$33, MATCH(O153/$AH153, F!$O$21:$O$33,1), MATCH(E153, F!$P$20:$AB$20,1)), 0) + IFERROR( U153*INDEX(F!$P$21:$AB$33, MATCH(S153/$AH153, F!$O$21:$O$33,1), MATCH(E153, F!$P$20:$AB$20,1)),0) + IFERROR(Y153*INDEX(F!$P$21:$AB$33, MATCH(W153/$AH153, F!$O$21:$O$33,1), MATCH(E153, F!$P$20:$AB$20,1)),0) + IFERROR( AC153*INDEX(F!$P$21:$AB$33, MATCH(AA153/$AH153, F!$O$21:$O$33,1), MATCH(E153, F!$P$20:$AB$20,1)),) -> 17
B154: Легкая | C154: ОФП | D154: Присед в широкой постановке | E154: 1.2 | G154: 90 | H154: 5 | I154: 5 | J154: 35% | AE154: 2250 | AF154: 90 | AG154: 35% | AH154: 254.6 | AI154: =( IF(ISNUMBER(G154), VLOOKUP(G154/$AH154,F!$A1:$B101,2,1)*G154*$H154*$I154,0)+IF(ISNUMBER(K154), VLOOKUP(K154/$AH154,F!$A1:$B101,2,1)*K154*$L154*$M154,0)+IF(ISNUMBER(O154), VLOOKUP(O154/$AH154,F!$A1:$B101,2,1)*O154*$P154*$Q154,0)+IF(ISNUMBER(S154), VLOOKUP(S154/$AH154,F!$A1:$B101,2,1)*S154*$T154*$U154,0)+IF(ISNUMBER(W154), VLOOKUP(W154/$AH154,F!$A1:$B101,2,1)*W154*$X154*$Y154,0)+IF(ISNUMBER(AA154), VLOOKUP(AA154/$AH154,F!$A1:$B101,2,1)*AA154*$AB154*$AC154,0))*IF(ISNUMBER(F154),F154,1)*IF(ISNUMBER(E154),E154,1) -> 594 | AJ154: 25 | AK154: =IFERROR(I154*INDEX(F!$P$21:$AB$33, MATCH(G154/$AH154, F!$O$21:$O$33,1), MATCH(E154, F!$P$20:$AB$20,1)), 0 ) +IFERROR( M154*INDEX(F!$P$21:$AB$33, MATCH(K154/$AH154, F!$O$21:$O$33,1), MATCH(E154, F!$P$20:$AB$20,1)),0) + IFERROR( Q154*INDEX(F!$P$21:$AB$33, MATCH(O154/$AH154, F!$O$21:$O$33,1), MATCH(E154, F!$P$20:$AB$20,1)), 0) + IFERROR( U154*INDEX(F!$P$21:$AB$33, MATCH(S154/$AH154, F!$O$21:$O$33,1), MATCH(E154, F!$P$20:$AB$20,1)),0) + IFERROR(Y154*INDEX(F!$P$21:$AB$33, MATCH(W154/$AH154, F!$O$21:$O$33,1), MATCH(E154, F!$P$20:$AB$20,1)),0) + IFERROR( AC154*INDEX(F!$P$21:$AB$33, MATCH(AA154/$AH154, F!$O$21:$O$33,1), MATCH(E154, F!$P$20:$AB$20,1)),) -> 15
B155: Средняя | C155: ЖИМ | D155: Жим средним хватом | E155: 1.0 | G155: 72.5 | H155: 6 | I155: 1 | J155: 50% | K155: 85 | L155: 5 | M155: 4 | N155: 60% | AE155: 2135 | AF155: 82 | AG155: 57% | AH155: 143.1 | AI155: =( IF(ISNUMBER(G155), VLOOKUP(G155/$AH155,F!$A1:$B101,2,1)*G155*$H155*$I155,0)+IF(ISNUMBER(K155), VLOOKUP(K155/$AH155,F!$A1:$B101,2,1)*K155*$L155*$M155,0)+IF(ISNUMBER(O155), VLOOKUP(O155/$AH155,F!$A1:$B101,2,1)*O155*$P155*$Q155,0)+IF(ISNUMBER(S155), VLOOKUP(S155/$AH155,F!$A1:$B101,2,1)*S155*$T155*$U155,0)+IF(ISNUMBER(W155), VLOOKUP(W155/$AH155,F!$A1:$B101,2,1)*W155*$X155*$Y155,0)+IF(ISNUMBER(AA155), VLOOKUP(AA155/$AH155,F!$A1:$B101,2,1)*AA155*$AB155*$AC155,0))*IF(ISNUMBER(F155),F155,1)*IF(ISNUMBER(E155),E155,1) -> 1374 | AJ155: =H155*I155+L155*M155+P155*Q155+T155*U155+X155*Y155+AB155*AC155 -> 26 | AK155: =IFERROR(I155*INDEX(F!$P$21:$AB$33, MATCH(G155/$AH155, F!$O$21:$O$33,1), MATCH(E155, F!$P$20:$AB$20,1)), 0 ) +IFERROR( M155*INDEX(F!$P$21:$AB$33, MATCH(K155/$AH155, F!$O$21:$O$33,1), MATCH(E155, F!$P$20:$AB$20,1)),0) + IFERROR( Q155*INDEX(F!$P$21:$AB$33, MATCH(O155/$AH155, F!$O$21:$O$33,1), MATCH(E155, F!$P$20:$AB$20,1)), 0) + IFERROR( U155*INDEX(F!$P$21:$AB$33, MATCH(S155/$AH155, F!$O$21:$O$33,1), MATCH(E155, F!$P$20:$AB$20,1)),0) + IFERROR(Y155*INDEX(F!$P$21:$AB$33, MATCH(W155/$AH155, F!$O$21:$O$33,1), MATCH(E155, F!$P$20:$AB$20,1)),0) + IFERROR( AC155*INDEX(F!$P$21:$AB$33, MATCH(AA155/$AH155, F!$O$21:$O$33,1), MATCH(E155, F!$P$20:$AB$20,1)),) -> 14
B156: Легкая | C156: ОФП | D156: Наклоны стоя | E156: 0.8 | G156: 72.5 | H156: 5 | I156: 5 | J156: 40% | AE156: 1812.5 | AF156: 73 | AG156: 40% | AH156: 179.5 | AI156: =( IF(ISNUMBER(G156), VLOOKUP(G156/$AH156,F!$A1:$B101,2,1)*G156*$H156*$I156,0)+IF(ISNUMBER(K156), VLOOKUP(K156/$AH156,F!$A1:$B101,2,1)*K156*$L156*$M156,0)+IF(ISNUMBER(O156), VLOOKUP(O156/$AH156,F!$A1:$B101,2,1)*O156*$P156*$Q156,0)+IF(ISNUMBER(S156), VLOOKUP(S156/$AH156,F!$A1:$B101,2,1)*S156*$T156*$U156,0)+IF(ISNUMBER(W156), VLOOKUP(W156/$AH156,F!$A1:$B101,2,1)*W156*$X156*$Y156,0)+IF(ISNUMBER(AA156), VLOOKUP(AA156/$AH156,F!$A1:$B101,2,1)*AA156*$AB156*$AC156,0))*IF(ISNUMBER(F156),F156,1)*IF(ISNUMBER(E156),E156,1) -> 464 | AJ156: =H156*I156+L156*M156+P156*Q156+T156*U156+X156*Y156+AB156*AC156 -> 25 | AK156: =IFERROR(I156*INDEX(F!$P$21:$AB$33, MATCH(G156/$AH156, F!$O$21:$O$33,1), MATCH(E156, F!$P$20:$AB$20,1)), 0 ) +IFERROR( M156*INDEX(F!$P$21:$AB$33, MATCH(K156/$AH156, F!$O$21:$O$33,1), MATCH(E156, F!$P$20:$AB$20,1)),0) + IFERROR( Q156*INDEX(F!$P$21:$AB$33, MATCH(O156/$AH156, F!$O$21:$O$33,1), MATCH(E156, F!$P$20:$AB$20,1)), 0) + IFERROR( U156*INDEX(F!$P$21:$AB$33, MATCH(S156/$AH156, F!$O$21:$O$33,1), MATCH(E156, F!$P$20:$AB$20,1)),0) + IFERROR(Y156*INDEX(F!$P$21:$AB$33, MATCH(W156/$AH156, F!$O$21:$O$33,1), MATCH(E156, F!$P$20:$AB$20,1)),0) + IFERROR( AC156*INDEX(F!$P$21:$AB$33, MATCH(AA156/$AH156, F!$O$21:$O$33,1), MATCH(E156, F!$P$20:$AB$20,1)),) -> 9
AE157: 0 | AF157: 0 | AG157: 0% | AI157: =( IF(ISNUMBER(G157), VLOOKUP(G157/$AH157,F!$A1:$B101,2,1)*G157*$H157*$I157,0)+IF(ISNUMBER(K157), VLOOKUP(K157/$AH157,F!$A1:$B101,2,1)*K157*$L157*$M157,0)+IF(ISNUMBER(O157), VLOOKUP(O157/$AH157,F!$A1:$B101,2,1)*O157*$P157*$Q157,0)+IF(ISNUMBER(S157), VLOOKUP(S157/$AH157,F!$A1:$B101,2,1)*S157*$T157*$U157,0)+IF(ISNUMBER(W157), VLOOKUP(W157/$AH157,F!$A1:$B101,2,1)*W157*$X157*$Y157,0)+IF(ISNUMBER(AA157), VLOOKUP(AA157/$AH157,F!$A1:$B101,2,1)*AA157*$AB157*$AC157,0))*IF(ISNUMBER(F157),F157,1)*IF(ISNUMBER(E157),E157,1) -> 0 | AJ157: 0 | AK157: =IFERROR(I157*INDEX(F!$P$21:$AB$33, MATCH(G157/$AH157, F!$O$21:$O$33,1), MATCH(E157, F!$P$20:$AB$20,1)), 0 ) +IFERROR( M157*INDEX(F!$P$21:$AB$33, MATCH(K157/$AH157, F!$O$21:$O$33,1), MATCH(E157, F!$P$20:$AB$20,1)),0) + IFERROR( Q157*INDEX(F!$P$21:$AB$33, MATCH(O157/$AH157, F!$O$21:$O$33,1), MATCH(E157, F!$P$20:$AB$20,1)), 0) + IFERROR( U157*INDEX(F!$P$21:$AB$33, MATCH(S157/$AH157, F!$O$21:$O$33,1), MATCH(E157, F!$P$20:$AB$20,1)),0) + IFERROR(Y157*INDEX(F!$P$21:$AB$33, MATCH(W157/$AH157, F!$O$21:$O$33,1), MATCH(E157, F!$P$20:$AB$20,1)),0) + IFERROR( AC157*INDEX(F!$P$21:$AB$33, MATCH(AA157/$AH157, F!$O$21:$O$33,1), MATCH(E157, F!$P$20:$AB$20,1)),) -> 0
AE158: 0 | AF158: 0 | AG158: 0% | AI158: =( IF(ISNUMBER(G158), VLOOKUP(G158/$AH158,F!$A1:$B101,2,1)*G158*$H158*$I158,0)+IF(ISNUMBER(K158), VLOOKUP(K158/$AH158,F!$A1:$B101,2,1)*K158*$L158*$M158,0)+IF(ISNUMBER(O158), VLOOKUP(O158/$AH158,F!$A1:$B101,2,1)*O158*$P158*$Q158,0)+IF(ISNUMBER(S158), VLOOKUP(S158/$AH158,F!$A1:$B101,2,1)*S158*$T158*$U158,0)+IF(ISNUMBER(W158), VLOOKUP(W158/$AH158,F!$A1:$B101,2,1)*W158*$X158*$Y158,0)+IF(ISNUMBER(AA158), VLOOKUP(AA158/$AH158,F!$A1:$B101,2,1)*AA158*$AB158*$AC158,0))*IF(ISNUMBER(F158),F158,1)*IF(ISNUMBER(E158),E158,1) -> 0 | AJ158: 0 | AK158: =IFERROR(I158*INDEX(F!$P$21:$AB$33, MATCH(G158/$AH158, F!$O$21:$O$33,1), MATCH(E158, F!$P$20:$AB$20,1)), 0 ) +IFERROR( M158*INDEX(F!$P$21:$AB$33, MATCH(K158/$AH158, F!$O$21:$O$33,1), MATCH(E158, F!$P$20:$AB$20,1)),0) + IFERROR( Q158*INDEX(F!$P$21:$AB$33, MATCH(O158/$AH158, F!$O$21:$O$33,1), MATCH(E158, F!$P$20:$AB$20,1)), 0) + IFERROR( U158*INDEX(F!$P$21:$AB$33, MATCH(S158/$AH158, F!$O$21:$O$33,1), MATCH(E158, F!$P$20:$AB$20,1)),0) + IFERROR(Y158*INDEX(F!$P$21:$AB$33, MATCH(W158/$AH158, F!$O$21:$O$33,1), MATCH(E158, F!$P$20:$AB$20,1)),0) + IFERROR( AC158*INDEX(F!$P$21:$AB$33, MATCH(AA158/$AH158, F!$O$21:$O$33,1), MATCH(E158, F!$P$20:$AB$20,1)),) -> 0
AE159: 0 | AF159: 0 | AG159: 0% | AI159: =( IF(ISNUMBER(G159), VLOOKUP(G159/$AH159,F!$A1:$B101,2,1)*G159*$H159*$I159,0)+IF(ISNUMBER(K159), VLOOKUP(K159/$AH159,F!$A1:$B101,2,1)*K159*$L159*$M159,0)+IF(ISNUMBER(O159), VLOOKUP(O159/$AH159,F!$A1:$B101,2,1)*O159*$P159*$Q159,0)+IF(ISNUMBER(S159), VLOOKUP(S159/$AH159,F!$A1:$B101,2,1)*S159*$T159*$U159,0)+IF(ISNUMBER(W159), VLOOKUP(W159/$AH159,F!$A1:$B101,2,1)*W159*$X159*$Y159,0)+IF(ISNUMBER(AA159), VLOOKUP(AA159/$AH159,F!$A1:$B101,2,1)*AA159*$AB159*$AC159,0))*IF(ISNUMBER(F159),F159,1)*IF(ISNUMBER(E159),E159,1) -> 0 | AJ159: 0 | AK159: =IFERROR(I159*INDEX(F!$P$21:$AB$33, MATCH(G159/$AH159, F!$O$21:$O$33,1), MATCH(E159, F!$P$20:$AB$20,1)), 0 ) +IFERROR( M159*INDEX(F!$P$21:$AB$33, MATCH(K159/$AH159, F!$O$21:$O$33,1), MATCH(E159, F!$P$20:$AB$20,1)),0) + IFERROR( Q159*INDEX(F!$P$21:$AB$33, MATCH(O159/$AH159, F!$O$21:$O$33,1), MATCH(E159, F!$P$20:$AB$20,1)), 0) + IFERROR( U159*INDEX(F!$P$21:$AB$33, MATCH(S159/$AH159, F!$O$21:$O$33,1), MATCH(E159, F!$P$20:$AB$20,1)),0) + IFERROR(Y159*INDEX(F!$P$21:$AB$33, MATCH(W159/$AH159, F!$O$21:$O$33,1), MATCH(E159, F!$P$20:$AB$20,1)),0) + IFERROR( AC159*INDEX(F!$P$21:$AB$33, MATCH(AA159/$AH159, F!$O$21:$O$33,1), MATCH(E159, F!$P$20:$AB$20,1)),) -> 0
E160: =ROUND(IFERROR(SUMPRODUCT(AJ152:AJ159,E152:E159)/AJ160,0),3) -> 1.05 | AE160: =SUM(AE152:AE159) -> 10177.5 | AF160: 83.4 | AG160: =IFERROR( SUMPRODUCT(AG152:AG159,AJ152:AJ159)/AJ160,0) -> 49% | AI160: =SUM(AI152:AI159) -> 4855 | AJ160: =SUM(AJ152:AJ159) -> 122 | AK160: =IF(SUM(AK152:AK159)=0,TIME(,0,),TIME(,SUM(AK152:AK159)+F!$V$37,)) -> 01:46:00
A161: =A162 -> 2015-11-07 | B161: =IF(B105="","",B105) ->  | G161: =IF(J161<>0, IFERROR(IF( $F161=2, MROUND($AH161*J161,1), IF( OR($F161="",$F161=1), MROUND($AH161*J161,2.5), MROUND($AH161*J161, 0.1))), "" ), "") ->  | K161: =IF(N161<>0, IFERROR(IF( $F161=2, MROUND($AH161*N161,1), IF( OR($F161="",$F161=1), MROUND($AH161*N161,2.5), MROUND($AH161*N161, 0.1))), "" ), "") ->  | O161: =IF(R161<>0, IFERROR(IF( $F161=2, MROUND($AH161*R161,1), IF( OR($F161="",$F161=1), MROUND($AH161*R161,2.5), MROUND($AH161*R161, 0.1))), "" ), "") ->  | S161: =IF(V161<>0, IFERROR(IF( $F161=2, MROUND($AH161*V161,1), IF( OR($F161="",$F161=1), MROUND($AH161*V161,2.5), MROUND($AH161*V161, 0.1))), "" ), "") ->  | W161: =IF(Z161<>0, IFERROR(IF( $F161=2, MROUND($AH161*Z161,1), IF( OR($F161="",$F161=1), MROUND($AH161*Z161,2.5), MROUND($AH161*Z161, 0.1))), "" ), "") ->  | AA161: =IF(AD161<>0, IFERROR(IF( $F161=2, MROUND($AH161*AD161,1), IF( OR($F161="",$F161=1), MROUND($AH161*AD161,2.5), MROUND($AH161*AD161, 0.1))), "" ), "") ->  | AE161: =(IF(ISNUMBER(G161),G161,0)*H161*I161+IF(ISNUMBER(K161),K161,1)*L161*M161+IF(ISNUMBER(O161),O161,1)*P161*Q161+IF(ISNUMBER(S161),S161,1)*T161*U161+IF(ISNUMBER(W161),W161,1)*X161*Y161+IF(ISNUMBER(AA161),AA161,1)*AB161*AC161)*IF(ISNUMBER(F161),F161,1) -> 0 | AF161: 0 | AG161: =IFERROR((AF161/(AH161*IF(ISNUMBER(F161),F161,1))),0) -> 0% | AH161: =IF(ISNUMBER(AH105), AH105+(AH105*$AH$114),"") ->  | AI161: =( IF(ISNUMBER(G161), VLOOKUP(G161/$AH161,F!$A1:$B101,2,1)*G161*$H161*$I161,0)+IF(ISNUMBER(K161), VLOOKUP(K161/$AH161,F!$A1:$B101,2,1)*K161*$L161*$M161,0)+IF(ISNUMBER(O161), VLOOKUP(O161/$AH161,F!$A1:$B101,2,1)*O161*$P161*$Q161,0)+IF(ISNUMBER(S161), VLOOKUP(S161/$AH161,F!$A1:$B101,2,1)*S161*$T161*$U161,0)+IF(ISNUMBER(W161), VLOOKUP(W161/$AH161,F!$A1:$B101,2,1)*W161*$X161*$Y161,0)+IF(ISNUMBER(AA161), VLOOKUP(AA161/$AH161,F!$A1:$B101,2,1)*AA161*$AB161*$AC161,0))*IF(ISNUMBER(F161),F161,1)*IF(ISNUMBER(E161),E161,1) -> 0 | AJ161: =H161*I161+L161*M161+P161*Q161+T161*U161+X161*Y161+AB161*AC161 -> 0 | AK161: =IFERROR(I161*INDEX(F!$P$21:$AB$33, MATCH(G161/$AH161, F!$O$21:$O$33,1), MATCH(E161, F!$P$20:$AB$20,1)), 0 ) +IFERROR( M161*INDEX(F!$P$21:$AB$33, MATCH(K161/$AH161, F!$O$21:$O$33,1), MATCH(E161, F!$P$20:$AB$20,1)),0) + IFERROR( Q161*INDEX(F!$P$21:$AB$33, MATCH(O161/$AH161, F!$O$21:$O$33,1), MATCH(E161, F!$P$20:$AB$20,1)), 0) + IFERROR( U161*INDEX(F!$P$21:$AB$33, MATCH(S161/$AH161, F!$O$21:$O$33,1), MATCH(E161, F!$P$20:$AB$20,1)),0) + IFERROR(Y161*INDEX(F!$P$21:$AB$33, MATCH(W161/$AH161, F!$O$21:$O$33,1), MATCH(E161, F!$P$20:$AB$20,1)),0) + IFERROR( AC161*INDEX(F!$P$21:$AB$33, MATCH(AA161/$AH161, F!$O$21:$O$33,1), MATCH(E161, F!$P$20:$AB$20,1)),) -> 0
A162: =A106+A58 -> 2015-11-07 | AE162: 0 | AF162: 0 | AG162: 0% | AI162: =( IF(ISNUMBER(G162), VLOOKUP(G162/$AH162,F!$A1:$B101,2,1)*G162*$H162*$I162,0)+IF(ISNUMBER(K162), VLOOKUP(K162/$AH162,F!$A1:$B101,2,1)*K162*$L162*$M162,0)+IF(ISNUMBER(O162), VLOOKUP(O162/$AH162,F!$A1:$B101,2,1)*O162*$P162*$Q162,0)+IF(ISNUMBER(S162), VLOOKUP(S162/$AH162,F!$A1:$B101,2,1)*S162*$T162*$U162,0)+IF(ISNUMBER(W162), VLOOKUP(W162/$AH162,F!$A1:$B101,2,1)*W162*$X162*$Y162,0)+IF(ISNUMBER(AA162), VLOOKUP(AA162/$AH162,F!$A1:$B101,2,1)*AA162*$AB162*$AC162,0))*IF(ISNUMBER(F162),F162,1)*IF(ISNUMBER(E162),E162,1) -> 0 | AJ162: 0 | AK162: =IFERROR(I162*INDEX(F!$P$21:$AB$33, MATCH(G162/$AH162, F!$O$21:$O$33,1), MATCH(E162, F!$P$20:$AB$20,1)), 0 ) +IFERROR( M162*INDEX(F!$P$21:$AB$33, MATCH(K162/$AH162, F!$O$21:$O$33,1), MATCH(E162, F!$P$20:$AB$20,1)),0) + IFERROR( Q162*INDEX(F!$P$21:$AB$33, MATCH(O162/$AH162, F!$O$21:$O$33,1), MATCH(E162, F!$P$20:$AB$20,1)), 0) + IFERROR( U162*INDEX(F!$P$21:$AB$33, MATCH(S162/$AH162, F!$O$21:$O$33,1), MATCH(E162, F!$P$20:$AB$20,1)),0) + IFERROR(Y162*INDEX(F!$P$21:$AB$33, MATCH(W162/$AH162, F!$O$21:$O$33,1), MATCH(E162, F!$P$20:$AB$20,1)),0) + IFERROR( AC162*INDEX(F!$P$21:$AB$33, MATCH(AA162/$AH162, F!$O$21:$O$33,1), MATCH(E162, F!$P$20:$AB$20,1)),) -> 0
AE163: 0 | AF163: 0 | AG163: 0% | AI163: =( IF(ISNUMBER(G163), VLOOKUP(G163/$AH163,F!$A1:$B101,2,1)*G163*$H163*$I163,0)+IF(ISNUMBER(K163), VLOOKUP(K163/$AH163,F!$A1:$B101,2,1)*K163*$L163*$M163,0)+IF(ISNUMBER(O163), VLOOKUP(O163/$AH163,F!$A1:$B101,2,1)*O163*$P163*$Q163,0)+IF(ISNUMBER(S163), VLOOKUP(S163/$AH163,F!$A1:$B101,2,1)*S163*$T163*$U163,0)+IF(ISNUMBER(W163), VLOOKUP(W163/$AH163,F!$A1:$B101,2,1)*W163*$X163*$Y163,0)+IF(ISNUMBER(AA163), VLOOKUP(AA163/$AH163,F!$A1:$B101,2,1)*AA163*$AB163*$AC163,0))*IF(ISNUMBER(F163),F163,1)*IF(ISNUMBER(E163),E163,1) -> 0 | AJ163: 0 | AK163: =IFERROR(I163*INDEX(F!$P$21:$AB$33, MATCH(G163/$AH163, F!$O$21:$O$33,1), MATCH(E163, F!$P$20:$AB$20,1)), 0 ) +IFERROR( M163*INDEX(F!$P$21:$AB$33, MATCH(K163/$AH163, F!$O$21:$O$33,1), MATCH(E163, F!$P$20:$AB$20,1)),0) + IFERROR( Q163*INDEX(F!$P$21:$AB$33, MATCH(O163/$AH163, F!$O$21:$O$33,1), MATCH(E163, F!$P$20:$AB$20,1)), 0) + IFERROR( U163*INDEX(F!$P$21:$AB$33, MATCH(S163/$AH163, F!$O$21:$O$33,1), MATCH(E163, F!$P$20:$AB$20,1)),0) + IFERROR(Y163*INDEX(F!$P$21:$AB$33, MATCH(W163/$AH163, F!$O$21:$O$33,1), MATCH(E163, F!$P$20:$AB$20,1)),0) + IFERROR( AC163*INDEX(F!$P$21:$AB$33, MATCH(AA163/$AH163, F!$O$21:$O$33,1), MATCH(E163, F!$P$20:$AB$20,1)),) -> 0
AE164: 0 | AF164: 0 | AG164: 0% | AI164: =( IF(ISNUMBER(G164), VLOOKUP(G164/$AH164,F!$A1:$B101,2,1)*G164*$H164*$I164,0)+IF(ISNUMBER(K164), VLOOKUP(K164/$AH164,F!$A1:$B101,2,1)*K164*$L164*$M164,0)+IF(ISNUMBER(O164), VLOOKUP(O164/$AH164,F!$A1:$B101,2,1)*O164*$P164*$Q164,0)+IF(ISNUMBER(S164), VLOOKUP(S164/$AH164,F!$A1:$B101,2,1)*S164*$T164*$U164,0)+IF(ISNUMBER(W164), VLOOKUP(W164/$AH164,F!$A1:$B101,2,1)*W164*$X164*$Y164,0)+IF(ISNUMBER(AA164), VLOOKUP(AA164/$AH164,F!$A1:$B101,2,1)*AA164*$AB164*$AC164,0))*IF(ISNUMBER(F164),F164,1)*IF(ISNUMBER(E164),E164,1) -> 0 | AJ164: =H164*I164+L164*M164+P164*Q164+T164*U164+X164*Y164+AB164*AC164 -> 0 | AK164: =IFERROR(I164*INDEX(F!$P$21:$AB$33, MATCH(G164/$AH164, F!$O$21:$O$33,1), MATCH(E164, F!$P$20:$AB$20,1)), 0 ) +IFERROR( M164*INDEX(F!$P$21:$AB$33, MATCH(K164/$AH164, F!$O$21:$O$33,1), MATCH(E164, F!$P$20:$AB$20,1)),0) + IFERROR( Q164*INDEX(F!$P$21:$AB$33, MATCH(O164/$AH164, F!$O$21:$O$33,1), MATCH(E164, F!$P$20:$AB$20,1)), 0) + IFERROR( U164*INDEX(F!$P$21:$AB$33, MATCH(S164/$AH164, F!$O$21:$O$33,1), MATCH(E164, F!$P$20:$AB$20,1)),0) + IFERROR(Y164*INDEX(F!$P$21:$AB$33, MATCH(W164/$AH164, F!$O$21:$O$33,1), MATCH(E164, F!$P$20:$AB$20,1)),0) + IFERROR( AC164*INDEX(F!$P$21:$AB$33, MATCH(AA164/$AH164, F!$O$21:$O$33,1), MATCH(E164, F!$P$20:$AB$20,1)),) -> 0
AE165: 0 | AF165: 0 | AG165: 0% | AI165: =( IF(ISNUMBER(G165), VLOOKUP(G165/$AH165,F!$A1:$B101,2,1)*G165*$H165*$I165,0)+IF(ISNUMBER(K165), VLOOKUP(K165/$AH165,F!$A1:$B101,2,1)*K165*$L165*$M165,0)+IF(ISNUMBER(O165), VLOOKUP(O165/$AH165,F!$A1:$B101,2,1)*O165*$P165*$Q165,0)+IF(ISNUMBER(S165), VLOOKUP(S165/$AH165,F!$A1:$B101,2,1)*S165*$T165*$U165,0)+IF(ISNUMBER(W165), VLOOKUP(W165/$AH165,F!$A1:$B101,2,1)*W165*$X165*$Y165,0)+IF(ISNUMBER(AA165), VLOOKUP(AA165/$AH165,F!$A1:$B101,2,1)*AA165*$AB165*$AC165,0))*IF(ISNUMBER(F165),F165,1)*IF(ISNUMBER(E165),E165,1) -> 0 | AJ165: =H165*I165+L165*M165+P165*Q165+T165*U165+X165*Y165+AB165*AC165 -> 0 | AK165: =IFERROR(I165*INDEX(F!$P$21:$AB$33, MATCH(G165/$AH165, F!$O$21:$O$33,1), MATCH(E165, F!$P$20:$AB$20,1)), 0 ) +IFERROR( M165*INDEX(F!$P$21:$AB$33, MATCH(K165/$AH165, F!$O$21:$O$33,1), MATCH(E165, F!$P$20:$AB$20,1)),0) + IFERROR( Q165*INDEX(F!$P$21:$AB$33, MATCH(O165/$AH165, F!$O$21:$O$33,1), MATCH(E165, F!$P$20:$AB$20,1)), 0) + IFERROR( U165*INDEX(F!$P$21:$AB$33, MATCH(S165/$AH165, F!$O$21:$O$33,1), MATCH(E165, F!$P$20:$AB$20,1)),0) + IFERROR(Y165*INDEX(F!$P$21:$AB$33, MATCH(W165/$AH165, F!$O$21:$O$33,1), MATCH(E165, F!$P$20:$AB$20,1)),0) + IFERROR( AC165*INDEX(F!$P$21:$AB$33, MATCH(AA165/$AH165, F!$O$21:$O$33,1), MATCH(E165, F!$P$20:$AB$20,1)),) -> 0
AE166: 0 | AF166: 0 | AG166: 0% | AI166: =( IF(ISNUMBER(G166), VLOOKUP(G166/$AH166,F!$A1:$B101,2,1)*G166*$H166*$I166,0)+IF(ISNUMBER(K166), VLOOKUP(K166/$AH166,F!$A1:$B101,2,1)*K166*$L166*$M166,0)+IF(ISNUMBER(O166), VLOOKUP(O166/$AH166,F!$A1:$B101,2,1)*O166*$P166*$Q166,0)+IF(ISNUMBER(S166), VLOOKUP(S166/$AH166,F!$A1:$B101,2,1)*S166*$T166*$U166,0)+IF(ISNUMBER(W166), VLOOKUP(W166/$AH166,F!$A1:$B101,2,1)*W166*$X166*$Y166,0)+IF(ISNUMBER(AA166), VLOOKUP(AA166/$AH166,F!$A1:$B101,2,1)*AA166*$AB166*$AC166,0))*IF(ISNUMBER(F166),F166,1)*IF(ISNUMBER(E166),E166,1) -> 0 | AJ166: 0 | AK166: =IFERROR(I166*INDEX(F!$P$21:$AB$33, MATCH(G166/$AH166, F!$O$21:$O$33,1), MATCH(E166, F!$P$20:$AB$20,1)), 0 ) +IFERROR( M166*INDEX(F!$P$21:$AB$33, MATCH(K166/$AH166, F!$O$21:$O$33,1), MATCH(E166, F!$P$20:$AB$20,1)),0) + IFERROR( Q166*INDEX(F!$P$21:$AB$33, MATCH(O166/$AH166, F!$O$21:$O$33,1), MATCH(E166, F!$P$20:$AB$20,1)), 0) + IFERROR( U166*INDEX(F!$P$21:$AB$33, MATCH(S166/$AH166, F!$O$21:$O$33,1), MATCH(E166, F!$P$20:$AB$20,1)),0) + IFERROR(Y166*INDEX(F!$P$21:$AB$33, MATCH(W166/$AH166, F!$O$21:$O$33,1), MATCH(E166, F!$P$20:$AB$20,1)),0) + IFERROR( AC166*INDEX(F!$P$21:$AB$33, MATCH(AA166/$AH166, F!$O$21:$O$33,1), MATCH(E166, F!$P$20:$AB$20,1)),) -> 0
AE167: 0 | AF167: 0 | AG167: 0% | AI167: =( IF(ISNUMBER(G167), VLOOKUP(G167/$AH167,F!$A1:$B101,2,1)*G167*$H167*$I167,0)+IF(ISNUMBER(K167), VLOOKUP(K167/$AH167,F!$A1:$B101,2,1)*K167*$L167*$M167,0)+IF(ISNUMBER(O167), VLOOKUP(O167/$AH167,F!$A1:$B101,2,1)*O167*$P167*$Q167,0)+IF(ISNUMBER(S167), VLOOKUP(S167/$AH167,F!$A1:$B101,2,1)*S167*$T167*$U167,0)+IF(ISNUMBER(W167), VLOOKUP(W167/$AH167,F!$A1:$B101,2,1)*W167*$X167*$Y167,0)+IF(ISNUMBER(AA167), VLOOKUP(AA167/$AH167,F!$A1:$B101,2,1)*AA167*$AB167*$AC167,0))*IF(ISNUMBER(F167),F167,1)*IF(ISNUMBER(E167),E167,1) -> 0 | AJ167: 0 | AK167: =IFERROR(I167*INDEX(F!$P$21:$AB$33, MATCH(G167/$AH167, F!$O$21:$O$33,1), MATCH(E167, F!$P$20:$AB$20,1)), 0 ) +IFERROR( M167*INDEX(F!$P$21:$AB$33, MATCH(K167/$AH167, F!$O$21:$O$33,1), MATCH(E167, F!$P$20:$AB$20,1)),0) + IFERROR( Q167*INDEX(F!$P$21:$AB$33, MATCH(O167/$AH167, F!$O$21:$O$33,1), MATCH(E167, F!$P$20:$AB$20,1)), 0) + IFERROR( U167*INDEX(F!$P$21:$AB$33, MATCH(S167/$AH167, F!$O$21:$O$33,1), MATCH(E167, F!$P$20:$AB$20,1)),0) + IFERROR(Y167*INDEX(F!$P$21:$AB$33, MATCH(W167/$AH167, F!$O$21:$O$33,1), MATCH(E167, F!$P$20:$AB$20,1)),0) + IFERROR( AC167*INDEX(F!$P$21:$AB$33, MATCH(AA167/$AH167, F!$O$21:$O$33,1), MATCH(E167, F!$P$20:$AB$20,1)),) -> 0
AE168: 0 | AF168: 0 | AG168: 0% | AI168: =( IF(ISNUMBER(G168), VLOOKUP(G168/$AH168,F!$A1:$B101,2,1)*G168*$H168*$I168,0)+IF(ISNUMBER(K168), VLOOKUP(K168/$AH168,F!$A1:$B101,2,1)*K168*$L168*$M168,0)+IF(ISNUMBER(O168), VLOOKUP(O168/$AH168,F!$A1:$B101,2,1)*O168*$P168*$Q168,0)+IF(ISNUMBER(S168), VLOOKUP(S168/$AH168,F!$A1:$B101,2,1)*S168*$T168*$U168,0)+IF(ISNUMBER(W168), VLOOKUP(W168/$AH168,F!$A1:$B101,2,1)*W168*$X168*$Y168,0)+IF(ISNUMBER(AA168), VLOOKUP(AA168/$AH168,F!$A1:$B101,2,1)*AA168*$AB168*$AC168,0))*IF(ISNUMBER(F168),F168,1)*IF(ISNUMBER(E168),E168,1) -> 0 | AJ168: 0 | AK168: =IFERROR(I168*INDEX(F!$P$21:$AB$33, MATCH(G168/$AH168, F!$O$21:$O$33,1), MATCH(E168, F!$P$20:$AB$20,1)), 0 ) +IFERROR( M168*INDEX(F!$P$21:$AB$33, MATCH(K168/$AH168, F!$O$21:$O$33,1), MATCH(E168, F!$P$20:$AB$20,1)),0) + IFERROR( Q168*INDEX(F!$P$21:$AB$33, MATCH(O168/$AH168, F!$O$21:$O$33,1), MATCH(E168, F!$P$20:$AB$20,1)), 0) + IFERROR( U168*INDEX(F!$P$21:$AB$33, MATCH(S168/$AH168, F!$O$21:$O$33,1), MATCH(E168, F!$P$20:$AB$20,1)),0) + IFERROR(Y168*INDEX(F!$P$21:$AB$33, MATCH(W168/$AH168, F!$O$21:$O$33,1), MATCH(E168, F!$P$20:$AB$20,1)),0) + IFERROR( AC168*INDEX(F!$P$21:$AB$33, MATCH(AA168/$AH168, F!$O$21:$O$33,1), MATCH(E168, F!$P$20:$AB$20,1)),) -> 0
E169: =ROUND(IFERROR(SUMPRODUCT(AJ161:AJ168,E161:E168)/AJ169,0),3) -> 0.00 | AE169: =SUM(AE161:AE168) -> 0 | AF169: 0.0 | AG169: =IFERROR( SUMPRODUCT(AG161:AG168,AJ161:AJ168)/AJ169,0) -> 0% | AI169: =SUM(AI161:AI168) -> 0 | AJ169: =SUM(AJ161:AJ168) -> 0 | AK169: =IF(SUM(AK161:AK168)=0,TIME(,0,),TIME(,SUM(AK161:AK168)+F!$V$37,)) -> 00:00:00
A170: =A114 -> 7 | E170: =IF(AJ170=0,0,(E180*AJ180 + E189*AJ189 + E198*AJ198 + E207*AJ207 + E216*AJ216 + E225*AJ225 ) /AJ170 ) -> 1.10 | F170: Микроцикл | N170: =N114+1 -> 4 | AE170: =AE180+AE189+AE198+AE207+AE216+AE225 -> 44515 | AF170: =IFERROR(AE170/AJ170,0) -> 106.5 | AG170: =IF(AJ170=0,0,(AG180*AJ180 + AG189*AJ189 + AG198*AJ198 + AG207*AJ207 + AG216*AJ216 + AG225*AJ225 ) /AJ170 ) -> 52.5% | AH170: =AH114 -> 1.0% | AI170: =AI180+AI189+AI198+AI207+AI216+AI225 -> 30034 | AJ170: =AJ180+AJ189+AJ198+AJ207+AJ216+AJ225 -> 418 | AK170: =AK180+AK189+AK198+AK207+AK216+AK225 -> 07:50:00
A171: Дата | B171: Нагрузка | C171: Группа | D171: Упражнения | E171: Коэф | F171: Множ | G171: Вес | H171: Пов | I171: Под | J171: % | K171: Вес | L171: Пов | M171: Под | N171: % | O171: Вес | P171: Пов | Q171: Под | R171: % | S171: Вес | T171: Пов | U171: Под | V171: % | W171: Вес | X171: Пов | Y171: Под | Z171: % | AA171: Вес | AB171: Пов | AC171: Под | AD171: % | AE171: Тоннаж | AF171: Ср.вес | AG171: ОИ | AH171: ПМ | AI171: Инт.Ф+Б | AJ171: КПШ | AK171: Время | AL171: Комментарии
A172: =A173 -> 2015-11-09 | B172: =IF(B116="","",B116) -> Средняя | C172: ТЯГА | D172: Тяга уступающая | E172: 1.4 | G172: =IF(J172<>0, IFERROR(IF( $F172=2, MROUND($AH172*J172,1), IF( OR($F172="",$F172=1), MROUND($AH172*J172,2.5), MROUND($AH172*J172, 0.1))), "" ), "") -> 162.5 | H172: 4 | I172: 2 | J172: 49% | K172: =IF(N172<>0, IFERROR(IF( $F172=2, MROUND($AH172*N172,1), IF( OR($F172="",$F172=1), MROUND($AH172*N172,2.5), MROUND($AH172*N172, 0.1))), "" ), "") -> 197.5 | L172: 3 | M172: 3 | N172: 60% | O172: =IF(R172<>0, IFERROR(IF( $F172=2, MROUND($AH172*R172,1), IF( OR($F172="",$F172=1), MROUND($AH172*R172,2.5), MROUND($AH172*R172, 0.1))), "" ), "") -> 215 | P172: 2 | Q172: 3 | R172: 65% | S172: =IF(V172<>0, IFERROR(IF( $F172=2, MROUND($AH172*V172,1), IF( OR($F172="",$F172=1), MROUND($AH172*V172,2.5), MROUND($AH172*V172, 0.1))), "" ), "") ->  | W172: =IF(Z172<>0, IFERROR(IF( $F172=2, MROUND($AH172*Z172,1), IF( OR($F172="",$F172=1), MROUND($AH172*Z172,2.5), MROUND($AH172*Z172, 0.1))), "" ), "") ->  | AA172: =IF(AD172<>0, IFERROR(IF( $F172=2, MROUND($AH172*AD172,1), IF( OR($F172="",$F172=1), MROUND($AH172*AD172,2.5), MROUND($AH172*AD172, 0.1))), "" ), "") ->  | AE172: =(IF(ISNUMBER(G172),G172,0)*H172*I172+IF(ISNUMBER(K172),K172,1)*L172*M172+IF(ISNUMBER(O172),O172,1)*P172*Q172+IF(ISNUMBER(S172),S172,1)*T172*U172+IF(ISNUMBER(W172),W172,1)*X172*Y172+IF(ISNUMBER(AA172),AA172,1)*AB172*AC172)*IF(ISNUMBER(F172),F172,1) -> 4367.5 | AF172: =IFERROR(AE172/AJ172,0) -> 190 | AG172: =IFERROR((AF172/(AH172*IF(ISNUMBER(F172),F172,1))),0) -> 58% | AH172: =IF(ISNUMBER(AH116), AH116+(AH116*$AH$170),"") -> 329.7 | AI172: =( IF(ISNUMBER(G172), VLOOKUP(G172/$AH172,F!$A1:$B101,2,1)*G172*$H172*$I172,0)+IF(ISNUMBER(K172), VLOOKUP(K172/$AH172,F!$A1:$B101,2,1)*K172*$L172*$M172,0)+IF(ISNUMBER(O172), VLOOKUP(O172/$AH172,F!$A1:$B101,2,1)*O172*$P172*$Q172,0)+IF(ISNUMBER(S172), VLOOKUP(S172/$AH172,F!$A1:$B101,2,1)*S172*$T172*$U172,0)+IF(ISNUMBER(W172), VLOOKUP(W172/$AH172,F!$A1:$B101,2,1)*W172*$X172*$Y172,0)+IF(ISNUMBER(AA172), VLOOKUP(AA172/$AH172,F!$A1:$B101,2,1)*AA172*$AB172*$AC172,0))*IF(ISNUMBER(F172),F172,1)*IF(ISNUMBER(E172),E172,1) -> 4011 | AJ172: =H172*I172+L172*M172+P172*Q172+T172*U172+X172*Y172+AB172*AC172 -> 23 | AK172: =IFERROR(I172*INDEX(F!$P$21:$AB$33, MATCH(G172/$AH172, F!$O$21:$O$33,1), MATCH(E172, F!$P$20:$AB$20,1)), 0 ) +IFERROR( M172*INDEX(F!$P$21:$AB$33, MATCH(K172/$AH172, F!$O$21:$O$33,1), MATCH(E172, F!$P$20:$AB$20,1)),0) + IFERROR( Q172*INDEX(F!$P$21:$AB$33, MATCH(O172/$AH172, F!$O$21:$O$33,1), MATCH(E172, F!$P$20:$AB$20,1)), 0) + IFERROR( U172*INDEX(F!$P$21:$AB$33, MATCH(S172/$AH172, F!$O$21:$O$33,1), MATCH(E172, F!$P$20:$AB$20,1)),0) + IFERROR(Y172*INDEX(F!$P$21:$AB$33, MATCH(W172/$AH172, F!$O$21:$O$33,1), MATCH(E172, F!$P$20:$AB$20,1)),0) + IFERROR( AC172*INDEX(F!$P$21:$AB$33, MATCH(AA172/$AH172, F!$O$21:$O$33,1), MATCH(E172, F!$P$20:$AB$20,1)),) -> 34
A173: =A117+A114 -> 2015-11-09 | B173: Легкая | C173: ЖИМ | D173: Жим лежа | E173: 1.0 | G173: 67.5 | H173: 4 | I173: 4 | J173: 40% | AE173: 1080 | AF173: 68 | AG173: 40% | AH173: 170.0 | AI173: =( IF(ISNUMBER(G173), VLOOKUP(G173/$AH173,F!$A1:$B101,2,1)*G173*$H173*$I173,0)+IF(ISNUMBER(K173), VLOOKUP(K173/$AH173,F!$A1:$B101,2,1)*K173*$L173*$M173,0)+IF(ISNUMBER(O173), VLOOKUP(O173/$AH173,F!$A1:$B101,2,1)*O173*$P173*$Q173,0)+IF(ISNUMBER(S173), VLOOKUP(S173/$AH173,F!$A1:$B101,2,1)*S173*$T173*$U173,0)+IF(ISNUMBER(W173), VLOOKUP(W173/$AH173,F!$A1:$B101,2,1)*W173*$X173*$Y173,0)+IF(ISNUMBER(AA173), VLOOKUP(AA173/$AH173,F!$A1:$B101,2,1)*AA173*$AB173*$AC173,0))*IF(ISNUMBER(F173),F173,1)*IF(ISNUMBER(E173),E173,1) -> 324 | AJ173: 16 | AK173: =IFERROR(I173*INDEX(F!$P$21:$AB$33, MATCH(G173/$AH173, F!$O$21:$O$33,1), MATCH(E173, F!$P$20:$AB$20,1)), 0 ) +IFERROR( M173*INDEX(F!$P$21:$AB$33, MATCH(K173/$AH173, F!$O$21:$O$33,1), MATCH(E173, F!$P$20:$AB$20,1)),0) + IFERROR( Q173*INDEX(F!$P$21:$AB$33, MATCH(O173/$AH173, F!$O$21:$O$33,1), MATCH(E173, F!$P$20:$AB$20,1)), 0) + IFERROR( U173*INDEX(F!$P$21:$AB$33, MATCH(S173/$AH173, F!$O$21:$O$33,1), MATCH(E173, F!$P$20:$AB$20,1)),0) + IFERROR(Y173*INDEX(F!$P$21:$AB$33, MATCH(W173/$AH173, F!$O$21:$O$33,1), MATCH(E173, F!$P$20:$AB$20,1)),0) + IFERROR( AC173*INDEX(F!$P$21:$AB$33, MATCH(AA173/$AH173, F!$O$21:$O$33,1), MATCH(E173, F!$P$20:$AB$20,1)),) -> 8
B174: Легкая | C174: ТЯГА | D174: Тяга до колен | E174: 1.4 | G174: 115 | H174: 4 | I174: 3 | J174: 35% | K174: 132.5 | L174: 3 | M174: 3 | N174: 40% | AE174: 2572.5 | AF174: 123 | AG174: 37% | AH174: 329.7 | AI174: =( IF(ISNUMBER(G174), VLOOKUP(G174/$AH174,F!$A1:$B101,2,1)*G174*$H174*$I174,0)+IF(ISNUMBER(K174), VLOOKUP(K174/$AH174,F!$A1:$B101,2,1)*K174*$L174*$M174,0)+IF(ISNUMBER(O174), VLOOKUP(O174/$AH174,F!$A1:$B101,2,1)*O174*$P174*$Q174,0)+IF(ISNUMBER(S174), VLOOKUP(S174/$AH174,F!$A1:$B101,2,1)*S174*$T174*$U174,0)+IF(ISNUMBER(W174), VLOOKUP(W174/$AH174,F!$A1:$B101,2,1)*W174*$X174*$Y174,0)+IF(ISNUMBER(AA174), VLOOKUP(AA174/$AH174,F!$A1:$B101,2,1)*AA174*$AB174*$AC174,0))*IF(ISNUMBER(F174),F174,1)*IF(ISNUMBER(E174),E174,1) -> 921 | AJ174: 21 | AK174: =IFERROR(I174*INDEX(F!$P$21:$AB$33, MATCH(G174/$AH174, F!$O$21:$O$33,1), MATCH(E174, F!$P$20:$AB$20,1)), 0 ) +IFERROR( M174*INDEX(F!$P$21:$AB$33, MATCH(K174/$AH174, F!$O$21:$O$33,1), MATCH(E174, F!$P$20:$AB$20,1)),0) + IFERROR( Q174*INDEX(F!$P$21:$AB$33, MATCH(O174/$AH174, F!$O$21:$O$33,1), MATCH(E174, F!$P$20:$AB$20,1)), 0) + IFERROR( U174*INDEX(F!$P$21:$AB$33, MATCH(S174/$AH174, F!$O$21:$O$33,1), MATCH(E174, F!$P$20:$AB$20,1)),0) + IFERROR(Y174*INDEX(F!$P$21:$AB$33, MATCH(W174/$AH174, F!$O$21:$O$33,1), MATCH(E174, F!$P$20:$AB$20,1)),0) + IFERROR( AC174*INDEX(F!$P$21:$AB$33, MATCH(AA174/$AH174, F!$O$21:$O$33,1), MATCH(E174, F!$P$20:$AB$20,1)),) -> 21
B175: Легкая | C175: ЖИМ | D175: Жим гантелей лежа на гор скамье | E175: 0.8 | F175: 2 | G175: 22 | H175: 4 | I175: 4 | J175: 49% | AE175: 704 | AF175: 44 | AG175: 48% | AH175: 45.4 | AI175: =( IF(ISNUMBER(G175), VLOOKUP(G175/$AH175,F!$A1:$B101,2,1)*G175*$H175*$I175,0)+IF(ISNUMBER(K175), VLOOKUP(K175/$AH175,F!$A1:$B101,2,1)*K175*$L175*$M175,0)+IF(ISNUMBER(O175), VLOOKUP(O175/$AH175,F!$A1:$B101,2,1)*O175*$P175*$Q175,0)+IF(ISNUMBER(S175), VLOOKUP(S175/$AH175,F!$A1:$B101,2,1)*S175*$T175*$U175,0)+IF(ISNUMBER(W175), VLOOKUP(W175/$AH175,F!$A1:$B101,2,1)*W175*$X175*$Y175,0)+IF(ISNUMBER(AA175), VLOOKUP(AA175/$AH175,F!$A1:$B101,2,1)*AA175*$AB175*$AC175,0))*IF(ISNUMBER(F175),F175,1)*IF(ISNUMBER(E175),E175,1) -> 265 | AJ175: =H175*I175+L175*M175+P175*Q175+T175*U175+X175*Y175+AB175*AC175 -> 16 | AK175: =IFERROR(I175*INDEX(F!$P$21:$AB$33, MATCH(G175/$AH175, F!$O$21:$O$33,1), MATCH(E175, F!$P$20:$AB$20,1)), 0 ) +IFERROR( M175*INDEX(F!$P$21:$AB$33, MATCH(K175/$AH175, F!$O$21:$O$33,1), MATCH(E175, F!$P$20:$AB$20,1)),0) + IFERROR( Q175*INDEX(F!$P$21:$AB$33, MATCH(O175/$AH175, F!$O$21:$O$33,1), MATCH(E175, F!$P$20:$AB$20,1)), 0) + IFERROR( U175*INDEX(F!$P$21:$AB$33, MATCH(S175/$AH175, F!$O$21:$O$33,1), MATCH(E175, F!$P$20:$AB$20,1)),0) + IFERROR(Y175*INDEX(F!$P$21:$AB$33, MATCH(W175/$AH175, F!$O$21:$O$33,1), MATCH(E175, F!$P$20:$AB$20,1)),0) + IFERROR( AC175*INDEX(F!$P$21:$AB$33, MATCH(AA175/$AH175, F!$O$21:$O$33,1), MATCH(E175, F!$P$20:$AB$20,1)),) -> 7
B176: Средняя | C176: ОФП | D176: Бицепс стоя | E176: 0.5 | G176: 27.5 | H176: 5 | I176: 1 | J176: 48% | K176: 40 | L176: 4 | M176: 4 | N176: 67% | AE176: 777.5 | AF176: 37 | AG176: 62% | AH176: 59.5 | AI176: =( IF(ISNUMBER(G176), VLOOKUP(G176/$AH176,F!$A1:$B101,2,1)*G176*$H176*$I176,0)+IF(ISNUMBER(K176), VLOOKUP(K176/$AH176,F!$A1:$B101,2,1)*K176*$L176*$M176,0)+IF(ISNUMBER(O176), VLOOKUP(O176/$AH176,F!$A1:$B101,2,1)*O176*$P176*$Q176,0)+IF(ISNUMBER(S176), VLOOKUP(S176/$AH176,F!$A1:$B101,2,1)*S176*$T176*$U176,0)+IF(ISNUMBER(W176), VLOOKUP(W176/$AH176,F!$A1:$B101,2,1)*W176*$X176*$Y176,0)+IF(ISNUMBER(AA176), VLOOKUP(AA176/$AH176,F!$A1:$B101,2,1)*AA176*$AB176*$AC176,0))*IF(ISNUMBER(F176),F176,1)*IF(ISNUMBER(E176),E176,1) -> 299 | AJ176: =H176*I176+L176*M176+P176*Q176+T176*U176+X176*Y176+AB176*AC176 -> 21 | AK176: =IFERROR(I176*INDEX(F!$P$21:$AB$33, MATCH(G176/$AH176, F!$O$21:$O$33,1), MATCH(E176, F!$P$20:$AB$20,1)), 0 ) +IFERROR( M176*INDEX(F!$P$21:$AB$33, MATCH(K176/$AH176, F!$O$21:$O$33,1), MATCH(E176, F!$P$20:$AB$20,1)),0) + IFERROR( Q176*INDEX(F!$P$21:$AB$33, MATCH(O176/$AH176, F!$O$21:$O$33,1), MATCH(E176, F!$P$20:$AB$20,1)), 0) + IFERROR( U176*INDEX(F!$P$21:$AB$33, MATCH(S176/$AH176, F!$O$21:$O$33,1), MATCH(E176, F!$P$20:$AB$20,1)),0) + IFERROR(Y176*INDEX(F!$P$21:$AB$33, MATCH(W176/$AH176, F!$O$21:$O$33,1), MATCH(E176, F!$P$20:$AB$20,1)),0) + IFERROR( AC176*INDEX(F!$P$21:$AB$33, MATCH(AA176/$AH176, F!$O$21:$O$33,1), MATCH(E176, F!$P$20:$AB$20,1)),) -> 9
AE177: 0 | AF177: 0 | AG177: 0% | AI177: =( IF(ISNUMBER(G177), VLOOKUP(G177/$AH177,F!$A1:$B101,2,1)*G177*$H177*$I177,0)+IF(ISNUMBER(K177), VLOOKUP(K177/$AH177,F!$A1:$B101,2,1)*K177*$L177*$M177,0)+IF(ISNUMBER(O177), VLOOKUP(O177/$AH177,F!$A1:$B101,2,1)*O177*$P177*$Q177,0)+IF(ISNUMBER(S177), VLOOKUP(S177/$AH177,F!$A1:$B101,2,1)*S177*$T177*$U177,0)+IF(ISNUMBER(W177), VLOOKUP(W177/$AH177,F!$A1:$B101,2,1)*W177*$X177*$Y177,0)+IF(ISNUMBER(AA177), VLOOKUP(AA177/$AH177,F!$A1:$B101,2,1)*AA177*$AB177*$AC177,0))*IF(ISNUMBER(F177),F177,1)*IF(ISNUMBER(E177),E177,1) -> 0 | AJ177: 0 | AK177: =IFERROR(I177*INDEX(F!$P$21:$AB$33, MATCH(G177/$AH177, F!$O$21:$O$33,1), MATCH(E177, F!$P$20:$AB$20,1)), 0 ) +IFERROR( M177*INDEX(F!$P$21:$AB$33, MATCH(K177/$AH177, F!$O$21:$O$33,1), MATCH(E177, F!$P$20:$AB$20,1)),0) + IFERROR( Q177*INDEX(F!$P$21:$AB$33, MATCH(O177/$AH177, F!$O$21:$O$33,1), MATCH(E177, F!$P$20:$AB$20,1)), 0) + IFERROR( U177*INDEX(F!$P$21:$AB$33, MATCH(S177/$AH177, F!$O$21:$O$33,1), MATCH(E177, F!$P$20:$AB$20,1)),0) + IFERROR(Y177*INDEX(F!$P$21:$AB$33, MATCH(W177/$AH177, F!$O$21:$O$33,1), MATCH(E177, F!$P$20:$AB$20,1)),0) + IFERROR( AC177*INDEX(F!$P$21:$AB$33, MATCH(AA177/$AH177, F!$O$21:$O$33,1), MATCH(E177, F!$P$20:$AB$20,1)),) -> 0
AE178: 0 | AF178: 0 | AG178: 0% | AI178: =( IF(ISNUMBER(G178), VLOOKUP(G178/$AH178,F!$A1:$B101,2,1)*G178*$H178*$I178,0)+IF(ISNUMBER(K178), VLOOKUP(K178/$AH178,F!$A1:$B101,2,1)*K178*$L178*$M178,0)+IF(ISNUMBER(O178), VLOOKUP(O178/$AH178,F!$A1:$B101,2,1)*O178*$P178*$Q178,0)+IF(ISNUMBER(S178), VLOOKUP(S178/$AH178,F!$A1:$B101,2,1)*S178*$T178*$U178,0)+IF(ISNUMBER(W178), VLOOKUP(W178/$AH178,F!$A1:$B101,2,1)*W178*$X178*$Y178,0)+IF(ISNUMBER(AA178), VLOOKUP(AA178/$AH178,F!$A1:$B101,2,1)*AA178*$AB178*$AC178,0))*IF(ISNUMBER(F178),F178,1)*IF(ISNUMBER(E178),E178,1) -> 0 | AJ178: 0 | AK178: =IFERROR(I178*INDEX(F!$P$21:$AB$33, MATCH(G178/$AH178, F!$O$21:$O$33,1), MATCH(E178, F!$P$20:$AB$20,1)), 0 ) +IFERROR( M178*INDEX(F!$P$21:$AB$33, MATCH(K178/$AH178, F!$O$21:$O$33,1), MATCH(E178, F!$P$20:$AB$20,1)),0) + IFERROR( Q178*INDEX(F!$P$21:$AB$33, MATCH(O178/$AH178, F!$O$21:$O$33,1), MATCH(E178, F!$P$20:$AB$20,1)), 0) + IFERROR( U178*INDEX(F!$P$21:$AB$33, MATCH(S178/$AH178, F!$O$21:$O$33,1), MATCH(E178, F!$P$20:$AB$20,1)),0) + IFERROR(Y178*INDEX(F!$P$21:$AB$33, MATCH(W178/$AH178, F!$O$21:$O$33,1), MATCH(E178, F!$P$20:$AB$20,1)),0) + IFERROR( AC178*INDEX(F!$P$21:$AB$33, MATCH(AA178/$AH178, F!$O$21:$O$33,1), MATCH(E178, F!$P$20:$AB$20,1)),) -> 0
AE179: 0 | AF179: 0 | AG179: 0% | AI179: =( IF(ISNUMBER(G179), VLOOKUP(G179/$AH179,F!$A1:$B101,2,1)*G179*$H179*$I179,0)+IF(ISNUMBER(K179), VLOOKUP(K179/$AH179,F!$A1:$B101,2,1)*K179*$L179*$M179,0)+IF(ISNUMBER(O179), VLOOKUP(O179/$AH179,F!$A1:$B101,2,1)*O179*$P179*$Q179,0)+IF(ISNUMBER(S179), VLOOKUP(S179/$AH179,F!$A1:$B101,2,1)*S179*$T179*$U179,0)+IF(ISNUMBER(W179), VLOOKUP(W179/$AH179,F!$A1:$B101,2,1)*W179*$X179*$Y179,0)+IF(ISNUMBER(AA179), VLOOKUP(AA179/$AH179,F!$A1:$B101,2,1)*AA179*$AB179*$AC179,0))*IF(ISNUMBER(F179),F179,1)*IF(ISNUMBER(E179),E179,1) -> 0 | AJ179: 0 | AK179: =IFERROR(I179*INDEX(F!$P$21:$AB$33, MATCH(G179/$AH179, F!$O$21:$O$33,1), MATCH(E179, F!$P$20:$AB$20,1)), 0 ) +IFERROR( M179*INDEX(F!$P$21:$AB$33, MATCH(K179/$AH179, F!$O$21:$O$33,1), MATCH(E179, F!$P$20:$AB$20,1)),0) + IFERROR( Q179*INDEX(F!$P$21:$AB$33, MATCH(O179/$AH179, F!$O$21:$O$33,1), MATCH(E179, F!$P$20:$AB$20,1)), 0) + IFERROR( U179*INDEX(F!$P$21:$AB$33, MATCH(S179/$AH179, F!$O$21:$O$33,1), MATCH(E179, F!$P$20:$AB$20,1)),0) + IFERROR(Y179*INDEX(F!$P$21:$AB$33, MATCH(W179/$AH179, F!$O$21:$O$33,1), MATCH(E179, F!$P$20:$AB$20,1)),0) + IFERROR( AC179*INDEX(F!$P$21:$AB$33, MATCH(AA179/$AH179, F!$O$21:$O$33,1), MATCH(E179, F!$P$20:$AB$20,1)),) -> 0
E180: =ROUND(IFERROR(SUMPRODUCT(AJ172:AJ179,E172:E179)/AJ180,0),3) -> 1.04 | AE180: =SUM(AE172:AE179) -> 9501.5 | AF180: 98.0 | AG180: =IFERROR( SUMPRODUCT(AG172:AG179,AJ172:AJ179)/AJ180,0) -> 50% | AI180: =SUM(AI172:AI179) -> 5819 | AJ180: =SUM(AJ172:AJ179) -> 97 | AK180: =IF(SUM(AK172:AK179)=0,TIME(,0,),TIME(,SUM(AK172:AK179)+F!$V$37,)) -> 01:48:00
A181: =A182 -> 2015-11-10 | B181: =IF(B125="","",B125) -> Легкая | C181: ТЯГА | D181: Тяга из ямы на прямых ногах (клас) | E181: 1.4 | G181: =IF(J181<>0, IFERROR(IF( $F181=2, MROUND($AH181*J181,1), IF( OR($F181="",$F181=1), MROUND($AH181*J181,2.5), MROUND($AH181*J181, 0.1))), "" ), "") -> 117.5 | H181: 4 | I181: 6 | J181: 40% | K181: =IF(N181<>0, IFERROR(IF( $F181=2, MROUND($AH181*N181,1), IF( OR($F181="",$F181=1), MROUND($AH181*N181,2.5), MROUND($AH181*N181, 0.1))), "" ), "") ->  | O181: =IF(R181<>0, IFERROR(IF( $F181=2, MROUND($AH181*R181,1), IF( OR($F181="",$F181=1), MROUND($AH181*R181,2.5), MROUND($AH181*R181, 0.1))), "" ), "") ->  | S181: =IF(V181<>0, IFERROR(IF( $F181=2, MROUND($AH181*V181,1), IF( OR($F181="",$F181=1), MROUND($AH181*V181,2.5), MROUND($AH181*V181, 0.1))), "" ), "") ->  | W181: =IF(Z181<>0, IFERROR(IF( $F181=2, MROUND($AH181*Z181,1), IF( OR($F181="",$F181=1), MROUND($AH181*Z181,2.5), MROUND($AH181*Z181, 0.1))), "" ), "") ->  | AA181: =IF(AD181<>0, IFERROR(IF( $F181=2, MROUND($AH181*AD181,1), IF( OR($F181="",$F181=1), MROUND($AH181*AD181,2.5), MROUND($AH181*AD181, 0.1))), "" ), "") ->  | AE181: =(IF(ISNUMBER(G181),G181,0)*H181*I181+IF(ISNUMBER(K181),K181,1)*L181*M181+IF(ISNUMBER(O181),O181,1)*P181*Q181+IF(ISNUMBER(S181),S181,1)*T181*U181+IF(ISNUMBER(W181),W181,1)*X181*Y181+IF(ISNUMBER(AA181),AA181,1)*AB181*AC181)*IF(ISNUMBER(F181),F181,1) -> 2820 | AF181: 118 | AG181: =IFERROR((AF181/(AH181*IF(ISNUMBER(F181),F181,1))),0) -> 40% | AH181: =IF(ISNUMBER(AH125), AH125+(AH125*$AH$170),"") -> 293.4 | AI181: =( IF(ISNUMBER(G181), VLOOKUP(G181/$AH181,F!$A1:$B101,2,1)*G181*$H181*$I181,0)+IF(ISNUMBER(K181), VLOOKUP(K181/$AH181,F!$A1:$B101,2,1)*K181*$L181*$M181,0)+IF(ISNUMBER(O181), VLOOKUP(O181/$AH181,F!$A1:$B101,2,1)*O181*$P181*$Q181,0)+IF(ISNUMBER(S181), VLOOKUP(S181/$AH181,F!$A1:$B101,2,1)*S181*$T181*$U181,0)+IF(ISNUMBER(W181), VLOOKUP(W181/$AH181,F!$A1:$B101,2,1)*W181*$X181*$Y181,0)+IF(ISNUMBER(AA181), VLOOKUP(AA181/$AH181,F!$A1:$B101,2,1)*AA181*$AB181*$AC181,0))*IF(ISNUMBER(F181),F181,1)*IF(ISNUMBER(E181),E181,1) -> 1263 | AJ181: =H181*I181+L181*M181+P181*Q181+T181*U181+X181*Y181+AB181*AC181 -> 24 | AK181: =IFERROR(I181*INDEX(F!$P$21:$AB$33, MATCH(G181/$AH181, F!$O$21:$O$33,1), MATCH(E181, F!$P$20:$AB$20,1)), 0 ) +IFERROR( M181*INDEX(F!$P$21:$AB$33, MATCH(K181/$AH181, F!$O$21:$O$33,1), MATCH(E181, F!$P$20:$AB$20,1)),0) + IFERROR( Q181*INDEX(F!$P$21:$AB$33, MATCH(O181/$AH181, F!$O$21:$O$33,1), MATCH(E181, F!$P$20:$AB$20,1)), 0) + IFERROR( U181*INDEX(F!$P$21:$AB$33, MATCH(S181/$AH181, F!$O$21:$O$33,1), MATCH(E181, F!$P$20:$AB$20,1)),0) + IFERROR(Y181*INDEX(F!$P$21:$AB$33, MATCH(W181/$AH181, F!$O$21:$O$33,1), MATCH(E181, F!$P$20:$AB$20,1)),0) + IFERROR( AC181*INDEX(F!$P$21:$AB$33, MATCH(AA181/$AH181, F!$O$21:$O$33,1), MATCH(E181, F!$P$20:$AB$20,1)),) -> 21
A182: =A126+A114 -> 2015-11-10 | B182: Легкая | C182: ОФП | D182: Жим стоя | E182: 1.0 | G182: 50 | H182: 3 | I182: 6 | J182: 50% | AE182: 900 | AF182: 50 | AG182: 49% | AH182: 102.0 | AI182: =( IF(ISNUMBER(G182), VLOOKUP(G182/$AH182,F!$A1:$B101,2,1)*G182*$H182*$I182,0)+IF(ISNUMBER(K182), VLOOKUP(K182/$AH182,F!$A1:$B101,2,1)*K182*$L182*$M182,0)+IF(ISNUMBER(O182), VLOOKUP(O182/$AH182,F!$A1:$B101,2,1)*O182*$P182*$Q182,0)+IF(ISNUMBER(S182), VLOOKUP(S182/$AH182,F!$A1:$B101,2,1)*S182*$T182*$U182,0)+IF(ISNUMBER(W182), VLOOKUP(W182/$AH182,F!$A1:$B101,2,1)*W182*$X182*$Y182,0)+IF(ISNUMBER(AA182), VLOOKUP(AA182/$AH182,F!$A1:$B101,2,1)*AA182*$AB182*$AC182,0))*IF(ISNUMBER(F182),F182,1)*IF(ISNUMBER(E182),E182,1) -> 432 | AJ182: 18 | AK182: =IFERROR(I182*INDEX(F!$P$21:$AB$33, MATCH(G182/$AH182, F!$O$21:$O$33,1), MATCH(E182, F!$P$20:$AB$20,1)), 0 ) +IFERROR( M182*INDEX(F!$P$21:$AB$33, MATCH(K182/$AH182, F!$O$21:$O$33,1), MATCH(E182, F!$P$20:$AB$20,1)),0) + IFERROR( Q182*INDEX(F!$P$21:$AB$33, MATCH(O182/$AH182, F!$O$21:$O$33,1), MATCH(E182, F!$P$20:$AB$20,1)), 0) + IFERROR( U182*INDEX(F!$P$21:$AB$33, MATCH(S182/$AH182, F!$O$21:$O$33,1), MATCH(E182, F!$P$20:$AB$20,1)),0) + IFERROR(Y182*INDEX(F!$P$21:$AB$33, MATCH(W182/$AH182, F!$O$21:$O$33,1), MATCH(E182, F!$P$20:$AB$20,1)),0) + IFERROR( AC182*INDEX(F!$P$21:$AB$33, MATCH(AA182/$AH182, F!$O$21:$O$33,1), MATCH(E182, F!$P$20:$AB$20,1)),) -> 12
B183: Средняя | C183: ОФП | D183: Присед в широкой постановке | E183: 1.2 | G183: 127.5 | H183: 3 | I183: 3 | J183: 50% | K183: 155 | L183: 3 | M183: 3 | N183: 60% | O183: 180 | P183: 3 | Q183: 3 | R183: 70% | AE183: 4162.5 | AF183: 154 | AG183: 60% | AH183: 257.2 | AI183: =( IF(ISNUMBER(G183), VLOOKUP(G183/$AH183,F!$A1:$B101,2,1)*G183*$H183*$I183,0)+IF(ISNUMBER(K183), VLOOKUP(K183/$AH183,F!$A1:$B101,2,1)*K183*$L183*$M183,0)+IF(ISNUMBER(O183), VLOOKUP(O183/$AH183,F!$A1:$B101,2,1)*O183*$P183*$Q183,0)+IF(ISNUMBER(S183), VLOOKUP(S183/$AH183,F!$A1:$B101,2,1)*S183*$T183*$U183,0)+IF(ISNUMBER(W183), VLOOKUP(W183/$AH183,F!$A1:$B101,2,1)*W183*$X183*$Y183,0)+IF(ISNUMBER(AA183), VLOOKUP(AA183/$AH183,F!$A1:$B101,2,1)*AA183*$AB183*$AC183,0))*IF(ISNUMBER(F183),F183,1)*IF(ISNUMBER(E183),E183,1) -> 3563 | AJ183: 27 | AK183: =IFERROR(I183*INDEX(F!$P$21:$AB$33, MATCH(G183/$AH183, F!$O$21:$O$33,1), MATCH(E183, F!$P$20:$AB$20,1)), 0 ) +IFERROR( M183*INDEX(F!$P$21:$AB$33, MATCH(K183/$AH183, F!$O$21:$O$33,1), MATCH(E183, F!$P$20:$AB$20,1)),0) + IFERROR( Q183*INDEX(F!$P$21:$AB$33, MATCH(O183/$AH183, F!$O$21:$O$33,1), MATCH(E183, F!$P$20:$AB$20,1)), 0) + IFERROR( U183*INDEX(F!$P$21:$AB$33, MATCH(S183/$AH183, F!$O$21:$O$33,1), MATCH(E183, F!$P$20:$AB$20,1)),0) + IFERROR(Y183*INDEX(F!$P$21:$AB$33, MATCH(W183/$AH183, F!$O$21:$O$33,1), MATCH(E183, F!$P$20:$AB$20,1)),0) + IFERROR( AC183*INDEX(F!$P$21:$AB$33, MATCH(AA183/$AH183, F!$O$21:$O$33,1), MATCH(E183, F!$P$20:$AB$20,1)),) -> 33
B184: Средняя | C184: ЖИМ | D184: Жим средним хватом | E184: 1.0 | G184: 65 | H184: 5 | I184: 1 | J184: 45% | K184: 80 | L184: 4 | M184: 1 | N184: 55% | O184: 100 | P184: 3 | Q184: 5 | R184: 70% | AE184: 2145 | AF184: 89 | AG184: 62% | AH184: 144.5 | AI184: =( IF(ISNUMBER(G184), VLOOKUP(G184/$AH184,F!$A1:$B101,2,1)*G184*$H184*$I184,0)+IF(ISNUMBER(K184), VLOOKUP(K184/$AH184,F!$A1:$B101,2,1)*K184*$L184*$M184,0)+IF(ISNUMBER(O184), VLOOKUP(O184/$AH184,F!$A1:$B101,2,1)*O184*$P184*$Q184,0)+IF(ISNUMBER(S184), VLOOKUP(S184/$AH184,F!$A1:$B101,2,1)*S184*$T184*$U184,0)+IF(ISNUMBER(W184), VLOOKUP(W184/$AH184,F!$A1:$B101,2,1)*W184*$X184*$Y184,0)+IF(ISNUMBER(AA184), VLOOKUP(AA184/$AH184,F!$A1:$B101,2,1)*AA184*$AB184*$AC184,0))*IF(ISNUMBER(F184),F184,1)*IF(ISNUMBER(E184),E184,1) -> 1651 | AJ184: =H184*I184+L184*M184+P184*Q184+T184*U184+X184*Y184+AB184*AC184 -> 24 | AK184: =IFERROR(I184*INDEX(F!$P$21:$AB$33, MATCH(G184/$AH184, F!$O$21:$O$33,1), MATCH(E184, F!$P$20:$AB$20,1)), 0 ) +IFERROR( M184*INDEX(F!$P$21:$AB$33, MATCH(K184/$AH184, F!$O$21:$O$33,1), MATCH(E184, F!$P$20:$AB$20,1)),0) + IFERROR( Q184*INDEX(F!$P$21:$AB$33, MATCH(O184/$AH184, F!$O$21:$O$33,1), MATCH(E184, F!$P$20:$AB$20,1)), 0) + IFERROR( U184*INDEX(F!$P$21:$AB$33, MATCH(S184/$AH184, F!$O$21:$O$33,1), MATCH(E184, F!$P$20:$AB$20,1)),0) + IFERROR(Y184*INDEX(F!$P$21:$AB$33, MATCH(W184/$AH184, F!$O$21:$O$33,1), MATCH(E184, F!$P$20:$AB$20,1)),0) + IFERROR( AC184*INDEX(F!$P$21:$AB$33, MATCH(AA184/$AH184, F!$O$21:$O$33,1), MATCH(E184, F!$P$20:$AB$20,1)),) -> 20
B185: Легкая | C185: ОФП | D185: Наклоны стоя | E185: 0.8 | AE185: 0 | AF185: 0 | AG185: 0% | AH185: 181.3 | AI185: =( IF(ISNUMBER(G185), VLOOKUP(G185/$AH185,F!$A1:$B101,2,1)*G185*$H185*$I185,0)+IF(ISNUMBER(K185), VLOOKUP(K185/$AH185,F!$A1:$B101,2,1)*K185*$L185*$M185,0)+IF(ISNUMBER(O185), VLOOKUP(O185/$AH185,F!$A1:$B101,2,1)*O185*$P185*$Q185,0)+IF(ISNUMBER(S185), VLOOKUP(S185/$AH185,F!$A1:$B101,2,1)*S185*$T185*$U185,0)+IF(ISNUMBER(W185), VLOOKUP(W185/$AH185,F!$A1:$B101,2,1)*W185*$X185*$Y185,0)+IF(ISNUMBER(AA185), VLOOKUP(AA185/$AH185,F!$A1:$B101,2,1)*AA185*$AB185*$AC185,0))*IF(ISNUMBER(F185),F185,1)*IF(ISNUMBER(E185),E185,1) -> 0 | AJ185: =H185*I185+L185*M185+P185*Q185+T185*U185+X185*Y185+AB185*AC185 -> 0 | AK185: =IFERROR(I185*INDEX(F!$P$21:$AB$33, MATCH(G185/$AH185, F!$O$21:$O$33,1), MATCH(E185, F!$P$20:$AB$20,1)), 0 ) +IFERROR( M185*INDEX(F!$P$21:$AB$33, MATCH(K185/$AH185, F!$O$21:$O$33,1), MATCH(E185, F!$P$20:$AB$20,1)),0) + IFERROR( Q185*INDEX(F!$P$21:$AB$33, MATCH(O185/$AH185, F!$O$21:$O$33,1), MATCH(E185, F!$P$20:$AB$20,1)), 0) + IFERROR( U185*INDEX(F!$P$21:$AB$33, MATCH(S185/$AH185, F!$O$21:$O$33,1), MATCH(E185, F!$P$20:$AB$20,1)),0) + IFERROR(Y185*INDEX(F!$P$21:$AB$33, MATCH(W185/$AH185, F!$O$21:$O$33,1), MATCH(E185, F!$P$20:$AB$20,1)),0) + IFERROR( AC185*INDEX(F!$P$21:$AB$33, MATCH(AA185/$AH185, F!$O$21:$O$33,1), MATCH(E185, F!$P$20:$AB$20,1)),) -> 0
AE186: 0 | AF186: 0 | AG186: 0% | AI186: =( IF(ISNUMBER(G186), VLOOKUP(G186/$AH186,F!$A1:$B101,2,1)*G186*$H186*$I186,0)+IF(ISNUMBER(K186), VLOOKUP(K186/$AH186,F!$A1:$B101,2,1)*K186*$L186*$M186,0)+IF(ISNUMBER(O186), VLOOKUP(O186/$AH186,F!$A1:$B101,2,1)*O186*$P186*$Q186,0)+IF(ISNUMBER(S186), VLOOKUP(S186/$AH186,F!$A1:$B101,2,1)*S186*$T186*$U186,0)+IF(ISNUMBER(W186), VLOOKUP(W186/$AH186,F!$A1:$B101,2,1)*W186*$X186*$Y186,0)+IF(ISNUMBER(AA186), VLOOKUP(AA186/$AH186,F!$A1:$B101,2,1)*AA186*$AB186*$AC186,0))*IF(ISNUMBER(F186),F186,1)*IF(ISNUMBER(E186),E186,1) -> 0 | AJ186: 0 | AK186: =IFERROR(I186*INDEX(F!$P$21:$AB$33, MATCH(G186/$AH186, F!$O$21:$O$33,1), MATCH(E186, F!$P$20:$AB$20,1)), 0 ) +IFERROR( M186*INDEX(F!$P$21:$AB$33, MATCH(K186/$AH186, F!$O$21:$O$33,1), MATCH(E186, F!$P$20:$AB$20,1)),0) + IFERROR( Q186*INDEX(F!$P$21:$AB$33, MATCH(O186/$AH186, F!$O$21:$O$33,1), MATCH(E186, F!$P$20:$AB$20,1)), 0) + IFERROR( U186*INDEX(F!$P$21:$AB$33, MATCH(S186/$AH186, F!$O$21:$O$33,1), MATCH(E186, F!$P$20:$AB$20,1)),0) + IFERROR(Y186*INDEX(F!$P$21:$AB$33, MATCH(W186/$AH186, F!$O$21:$O$33,1), MATCH(E186, F!$P$20:$AB$20,1)),0) + IFERROR( AC186*INDEX(F!$P$21:$AB$33, MATCH(AA186/$AH186, F!$O$21:$O$33,1), MATCH(E186, F!$P$20:$AB$20,1)),) -> 0
AE187: 0 | AF187: 0 | AG187: 0% | AI187: =( IF(ISNUMBER(G187), VLOOKUP(G187/$AH187,F!$A1:$B101,2,1)*G187*$H187*$I187,0)+IF(ISNUMBER(K187), VLOOKUP(K187/$AH187,F!$A1:$B101,2,1)*K187*$L187*$M187,0)+IF(ISNUMBER(O187), VLOOKUP(O187/$AH187,F!$A1:$B101,2,1)*O187*$P187*$Q187,0)+IF(ISNUMBER(S187), VLOOKUP(S187/$AH187,F!$A1:$B101,2,1)*S187*$T187*$U187,0)+IF(ISNUMBER(W187), VLOOKUP(W187/$AH187,F!$A1:$B101,2,1)*W187*$X187*$Y187,0)+IF(ISNUMBER(AA187), VLOOKUP(AA187/$AH187,F!$A1:$B101,2,1)*AA187*$AB187*$AC187,0))*IF(ISNUMBER(F187),F187,1)*IF(ISNUMBER(E187),E187,1) -> 0 | AJ187: 0 | AK187: =IFERROR(I187*INDEX(F!$P$21:$AB$33, MATCH(G187/$AH187, F!$O$21:$O$33,1), MATCH(E187, F!$P$20:$AB$20,1)), 0 ) +IFERROR( M187*INDEX(F!$P$21:$AB$33, MATCH(K187/$AH187, F!$O$21:$O$33,1), MATCH(E187, F!$P$20:$AB$20,1)),0) + IFERROR( Q187*INDEX(F!$P$21:$AB$33, MATCH(O187/$AH187, F!$O$21:$O$33,1), MATCH(E187, F!$P$20:$AB$20,1)), 0) + IFERROR( U187*INDEX(F!$P$21:$AB$33, MATCH(S187/$AH187, F!$O$21:$O$33,1), MATCH(E187, F!$P$20:$AB$20,1)),0) + IFERROR(Y187*INDEX(F!$P$21:$AB$33, MATCH(W187/$AH187, F!$O$21:$O$33,1), MATCH(E187, F!$P$20:$AB$20,1)),0) + IFERROR( AC187*INDEX(F!$P$21:$AB$33, MATCH(AA187/$AH187, F!$O$21:$O$33,1), MATCH(E187, F!$P$20:$AB$20,1)),) -> 0
AE188: 0 | AF188: 0 | AG188: 0% | AI188: =( IF(ISNUMBER(G188), VLOOKUP(G188/$AH188,F!$A1:$B101,2,1)*G188*$H188*$I188,0)+IF(ISNUMBER(K188), VLOOKUP(K188/$AH188,F!$A1:$B101,2,1)*K188*$L188*$M188,0)+IF(ISNUMBER(O188), VLOOKUP(O188/$AH188,F!$A1:$B101,2,1)*O188*$P188*$Q188,0)+IF(ISNUMBER(S188), VLOOKUP(S188/$AH188,F!$A1:$B101,2,1)*S188*$T188*$U188,0)+IF(ISNUMBER(W188), VLOOKUP(W188/$AH188,F!$A1:$B101,2,1)*W188*$X188*$Y188,0)+IF(ISNUMBER(AA188), VLOOKUP(AA188/$AH188,F!$A1:$B101,2,1)*AA188*$AB188*$AC188,0))*IF(ISNUMBER(F188),F188,1)*IF(ISNUMBER(E188),E188,1) -> 0 | AJ188: 0 | AK188: =IFERROR(I188*INDEX(F!$P$21:$AB$33, MATCH(G188/$AH188, F!$O$21:$O$33,1), MATCH(E188, F!$P$20:$AB$20,1)), 0 ) +IFERROR( M188*INDEX(F!$P$21:$AB$33, MATCH(K188/$AH188, F!$O$21:$O$33,1), MATCH(E188, F!$P$20:$AB$20,1)),0) + IFERROR( Q188*INDEX(F!$P$21:$AB$33, MATCH(O188/$AH188, F!$O$21:$O$33,1), MATCH(E188, F!$P$20:$AB$20,1)), 0) + IFERROR( U188*INDEX(F!$P$21:$AB$33, MATCH(S188/$AH188, F!$O$21:$O$33,1), MATCH(E188, F!$P$20:$AB$20,1)),0) + IFERROR(Y188*INDEX(F!$P$21:$AB$33, MATCH(W188/$AH188, F!$O$21:$O$33,1), MATCH(E188, F!$P$20:$AB$20,1)),0) + IFERROR( AC188*INDEX(F!$P$21:$AB$33, MATCH(AA188/$AH188, F!$O$21:$O$33,1), MATCH(E188, F!$P$20:$AB$20,1)),) -> 0
E189: =ROUND(IFERROR(SUMPRODUCT(AJ181:AJ188,E181:E188)/AJ189,0),3) -> 1.16 | AE189: =SUM(AE181:AE188) -> 10027.5 | AF189: 107.8 | AG189: =IFERROR( SUMPRODUCT(AG181:AG188,AJ181:AJ188)/AJ189,0) -> 53% | AI189: =SUM(AI181:AI188) -> 6909 | AJ189: =SUM(AJ181:AJ188) -> 93 | AK189: =IF(SUM(AK181:AK188)=0,TIME(,0,),TIME(,SUM(AK181:AK188)+F!$V$37,)) -> 01:56:00
A190: =A191 -> 2015-11-11 | B190: =IF(B134="","",B134) ->  | G190: =IF(J190<>0, IFERROR(IF( $F190=2, MROUND($AH190*J190,1), IF( OR($F190="",$F190=1), MROUND($AH190*J190,2.5), MROUND($AH190*J190, 0.1))), "" ), "") ->  | K190: =IF(N190<>0, IFERROR(IF( $F190=2, MROUND($AH190*N190,1), IF( OR($F190="",$F190=1), MROUND($AH190*N190,2.5), MROUND($AH190*N190, 0.1))), "" ), "") ->  | O190: =IF(R190<>0, IFERROR(IF( $F190=2, MROUND($AH190*R190,1), IF( OR($F190="",$F190=1), MROUND($AH190*R190,2.5), MROUND($AH190*R190, 0.1))), "" ), "") ->  | S190: =IF(V190<>0, IFERROR(IF( $F190=2, MROUND($AH190*V190,1), IF( OR($F190="",$F190=1), MROUND($AH190*V190,2.5), MROUND($AH190*V190, 0.1))), "" ), "") ->  | W190: =IF(Z190<>0, IFERROR(IF( $F190=2, MROUND($AH190*Z190,1), IF( OR($F190="",$F190=1), MROUND($AH190*Z190,2.5), MROUND($AH190*Z190, 0.1))), "" ), "") ->  | AA190: =IF(AD190<>0, IFERROR(IF( $F190=2, MROUND($AH190*AD190,1), IF( OR($F190="",$F190=1), MROUND($AH190*AD190,2.5), MROUND($AH190*AD190, 0.1))), "" ), "") ->  | AE190: =(IF(ISNUMBER(G190),G190,0)*H190*I190+IF(ISNUMBER(K190),K190,1)*L190*M190+IF(ISNUMBER(O190),O190,1)*P190*Q190+IF(ISNUMBER(S190),S190,1)*T190*U190+IF(ISNUMBER(W190),W190,1)*X190*Y190+IF(ISNUMBER(AA190),AA190,1)*AB190*AC190)*IF(ISNUMBER(F190),F190,1) -> 0 | AF190: 0 | AG190: =IFERROR((AF190/(AH190*IF(ISNUMBER(F190),F190,1))),0) -> 0% | AH190: =IF(ISNUMBER(AH134), AH134+(AH134*$AH$170),"") ->  | AI190: =( IF(ISNUMBER(G190), VLOOKUP(G190/$AH190,F!$A1:$B101,2,1)*G190*$H190*$I190,0)+IF(ISNUMBER(K190), VLOOKUP(K190/$AH190,F!$A1:$B101,2,1)*K190*$L190*$M190,0)+IF(ISNUMBER(O190), VLOOKUP(O190/$AH190,F!$A1:$B101,2,1)*O190*$P190*$Q190,0)+IF(ISNUMBER(S190), VLOOKUP(S190/$AH190,F!$A1:$B101,2,1)*S190*$T190*$U190,0)+IF(ISNUMBER(W190), VLOOKUP(W190/$AH190,F!$A1:$B101,2,1)*W190*$X190*$Y190,0)+IF(ISNUMBER(AA190), VLOOKUP(AA190/$AH190,F!$A1:$B101,2,1)*AA190*$AB190*$AC190,0))*IF(ISNUMBER(F190),F190,1)*IF(ISNUMBER(E190),E190,1) -> 0 | AJ190: =H190*I190+L190*M190+P190*Q190+T190*U190+X190*Y190+AB190*AC190 -> 0 | AK190: =IFERROR(I190*INDEX(F!$P$21:$AB$33, MATCH(G190/$AH190, F!$O$21:$O$33,1), MATCH(E190, F!$P$20:$AB$20,1)), 0 ) +IFERROR( M190*INDEX(F!$P$21:$AB$33, MATCH(K190/$AH190, F!$O$21:$O$33,1), MATCH(E190, F!$P$20:$AB$20,1)),0) + IFERROR( Q190*INDEX(F!$P$21:$AB$33, MATCH(O190/$AH190, F!$O$21:$O$33,1), MATCH(E190, F!$P$20:$AB$20,1)), 0) + IFERROR( U190*INDEX(F!$P$21:$AB$33, MATCH(S190/$AH190, F!$O$21:$O$33,1), MATCH(E190, F!$P$20:$AB$20,1)),0) + IFERROR(Y190*INDEX(F!$P$21:$AB$33, MATCH(W190/$AH190, F!$O$21:$O$33,1), MATCH(E190, F!$P$20:$AB$20,1)),0) + IFERROR( AC190*INDEX(F!$P$21:$AB$33, MATCH(AA190/$AH190, F!$O$21:$O$33,1), MATCH(E190, F!$P$20:$AB$20,1)),) -> 0
A191: =A135+A114 -> 2015-11-11 | AE191: 0 | AF191: 0 | AG191: 0% | AI191: =( IF(ISNUMBER(G191), VLOOKUP(G191/$AH191,F!$A1:$B101,2,1)*G191*$H191*$I191,0)+IF(ISNUMBER(K191), VLOOKUP(K191/$AH191,F!$A1:$B101,2,1)*K191*$L191*$M191,0)+IF(ISNUMBER(O191), VLOOKUP(O191/$AH191,F!$A1:$B101,2,1)*O191*$P191*$Q191,0)+IF(ISNUMBER(S191), VLOOKUP(S191/$AH191,F!$A1:$B101,2,1)*S191*$T191*$U191,0)+IF(ISNUMBER(W191), VLOOKUP(W191/$AH191,F!$A1:$B101,2,1)*W191*$X191*$Y191,0)+IF(ISNUMBER(AA191), VLOOKUP(AA191/$AH191,F!$A1:$B101,2,1)*AA191*$AB191*$AC191,0))*IF(ISNUMBER(F191),F191,1)*IF(ISNUMBER(E191),E191,1) -> 0 | AJ191: 0 | AK191: =IFERROR(I191*INDEX(F!$P$21:$AB$33, MATCH(G191/$AH191, F!$O$21:$O$33,1), MATCH(E191, F!$P$20:$AB$20,1)), 0 ) +IFERROR( M191*INDEX(F!$P$21:$AB$33, MATCH(K191/$AH191, F!$O$21:$O$33,1), MATCH(E191, F!$P$20:$AB$20,1)),0) + IFERROR( Q191*INDEX(F!$P$21:$AB$33, MATCH(O191/$AH191, F!$O$21:$O$33,1), MATCH(E191, F!$P$20:$AB$20,1)), 0) + IFERROR( U191*INDEX(F!$P$21:$AB$33, MATCH(S191/$AH191, F!$O$21:$O$33,1), MATCH(E191, F!$P$20:$AB$20,1)),0) + IFERROR(Y191*INDEX(F!$P$21:$AB$33, MATCH(W191/$AH191, F!$O$21:$O$33,1), MATCH(E191, F!$P$20:$AB$20,1)),0) + IFERROR( AC191*INDEX(F!$P$21:$AB$33, MATCH(AA191/$AH191, F!$O$21:$O$33,1), MATCH(E191, F!$P$20:$AB$20,1)),) -> 0
AE192: 0 | AF192: 0 | AG192: 0% | AI192: =( IF(ISNUMBER(G192), VLOOKUP(G192/$AH192,F!$A1:$B101,2,1)*G192*$H192*$I192,0)+IF(ISNUMBER(K192), VLOOKUP(K192/$AH192,F!$A1:$B101,2,1)*K192*$L192*$M192,0)+IF(ISNUMBER(O192), VLOOKUP(O192/$AH192,F!$A1:$B101,2,1)*O192*$P192*$Q192,0)+IF(ISNUMBER(S192), VLOOKUP(S192/$AH192,F!$A1:$B101,2,1)*S192*$T192*$U192,0)+IF(ISNUMBER(W192), VLOOKUP(W192/$AH192,F!$A1:$B101,2,1)*W192*$X192*$Y192,0)+IF(ISNUMBER(AA192), VLOOKUP(AA192/$AH192,F!$A1:$B101,2,1)*AA192*$AB192*$AC192,0))*IF(ISNUMBER(F192),F192,1)*IF(ISNUMBER(E192),E192,1) -> 0 | AJ192: 0 | AK192: =IFERROR(I192*INDEX(F!$P$21:$AB$33, MATCH(G192/$AH192, F!$O$21:$O$33,1), MATCH(E192, F!$P$20:$AB$20,1)), 0 ) +IFERROR( M192*INDEX(F!$P$21:$AB$33, MATCH(K192/$AH192, F!$O$21:$O$33,1), MATCH(E192, F!$P$20:$AB$20,1)),0) + IFERROR( Q192*INDEX(F!$P$21:$AB$33, MATCH(O192/$AH192, F!$O$21:$O$33,1), MATCH(E192, F!$P$20:$AB$20,1)), 0) + IFERROR( U192*INDEX(F!$P$21:$AB$33, MATCH(S192/$AH192, F!$O$21:$O$33,1), MATCH(E192, F!$P$20:$AB$20,1)),0) + IFERROR(Y192*INDEX(F!$P$21:$AB$33, MATCH(W192/$AH192, F!$O$21:$O$33,1), MATCH(E192, F!$P$20:$AB$20,1)),0) + IFERROR( AC192*INDEX(F!$P$21:$AB$33, MATCH(AA192/$AH192, F!$O$21:$O$33,1), MATCH(E192, F!$P$20:$AB$20,1)),) -> 0
AE193: 0 | AF193: 0 | AG193: 0% | AI193: =( IF(ISNUMBER(G193), VLOOKUP(G193/$AH193,F!$A1:$B101,2,1)*G193*$H193*$I193,0)+IF(ISNUMBER(K193), VLOOKUP(K193/$AH193,F!$A1:$B101,2,1)*K193*$L193*$M193,0)+IF(ISNUMBER(O193), VLOOKUP(O193/$AH193,F!$A1:$B101,2,1)*O193*$P193*$Q193,0)+IF(ISNUMBER(S193), VLOOKUP(S193/$AH193,F!$A1:$B101,2,1)*S193*$T193*$U193,0)+IF(ISNUMBER(W193), VLOOKUP(W193/$AH193,F!$A1:$B101,2,1)*W193*$X193*$Y193,0)+IF(ISNUMBER(AA193), VLOOKUP(AA193/$AH193,F!$A1:$B101,2,1)*AA193*$AB193*$AC193,0))*IF(ISNUMBER(F193),F193,1)*IF(ISNUMBER(E193),E193,1) -> 0 | AJ193: =H193*I193+L193*M193+P193*Q193+T193*U193+X193*Y193+AB193*AC193 -> 0 | AK193: =IFERROR(I193*INDEX(F!$P$21:$AB$33, MATCH(G193/$AH193, F!$O$21:$O$33,1), MATCH(E193, F!$P$20:$AB$20,1)), 0 ) +IFERROR( M193*INDEX(F!$P$21:$AB$33, MATCH(K193/$AH193, F!$O$21:$O$33,1), MATCH(E193, F!$P$20:$AB$20,1)),0) + IFERROR( Q193*INDEX(F!$P$21:$AB$33, MATCH(O193/$AH193, F!$O$21:$O$33,1), MATCH(E193, F!$P$20:$AB$20,1)), 0) + IFERROR( U193*INDEX(F!$P$21:$AB$33, MATCH(S193/$AH193, F!$O$21:$O$33,1), MATCH(E193, F!$P$20:$AB$20,1)),0) + IFERROR(Y193*INDEX(F!$P$21:$AB$33, MATCH(W193/$AH193, F!$O$21:$O$33,1), MATCH(E193, F!$P$20:$AB$20,1)),0) + IFERROR( AC193*INDEX(F!$P$21:$AB$33, MATCH(AA193/$AH193, F!$O$21:$O$33,1), MATCH(E193, F!$P$20:$AB$20,1)),) -> 0
AE194: 0 | AF194: 0 | AG194: 0% | AI194: =( IF(ISNUMBER(G194), VLOOKUP(G194/$AH194,F!$A1:$B101,2,1)*G194*$H194*$I194,0)+IF(ISNUMBER(K194), VLOOKUP(K194/$AH194,F!$A1:$B101,2,1)*K194*$L194*$M194,0)+IF(ISNUMBER(O194), VLOOKUP(O194/$AH194,F!$A1:$B101,2,1)*O194*$P194*$Q194,0)+IF(ISNUMBER(S194), VLOOKUP(S194/$AH194,F!$A1:$B101,2,1)*S194*$T194*$U194,0)+IF(ISNUMBER(W194), VLOOKUP(W194/$AH194,F!$A1:$B101,2,1)*W194*$X194*$Y194,0)+IF(ISNUMBER(AA194), VLOOKUP(AA194/$AH194,F!$A1:$B101,2,1)*AA194*$AB194*$AC194,0))*IF(ISNUMBER(F194),F194,1)*IF(ISNUMBER(E194),E194,1) -> 0 | AJ194: =H194*I194+L194*M194+P194*Q194+T194*U194+X194*Y194+AB194*AC194 -> 0 | AK194: =IFERROR(I194*INDEX(F!$P$21:$AB$33, MATCH(G194/$AH194, F!$O$21:$O$33,1), MATCH(E194, F!$P$20:$AB$20,1)), 0 ) +IFERROR( M194*INDEX(F!$P$21:$AB$33, MATCH(K194/$AH194, F!$O$21:$O$33,1), MATCH(E194, F!$P$20:$AB$20,1)),0) + IFERROR( Q194*INDEX(F!$P$21:$AB$33, MATCH(O194/$AH194, F!$O$21:$O$33,1), MATCH(E194, F!$P$20:$AB$20,1)), 0) + IFERROR( U194*INDEX(F!$P$21:$AB$33, MATCH(S194/$AH194, F!$O$21:$O$33,1), MATCH(E194, F!$P$20:$AB$20,1)),0) + IFERROR(Y194*INDEX(F!$P$21:$AB$33, MATCH(W194/$AH194, F!$O$21:$O$33,1), MATCH(E194, F!$P$20:$AB$20,1)),0) + IFERROR( AC194*INDEX(F!$P$21:$AB$33, MATCH(AA194/$AH194, F!$O$21:$O$33,1), MATCH(E194, F!$P$20:$AB$20,1)),) -> 0
AE195: 0 | AF195: 0 | AG195: 0% | AI195: =( IF(ISNUMBER(G195), VLOOKUP(G195/$AH195,F!$A1:$B101,2,1)*G195*$H195*$I195,0)+IF(ISNUMBER(K195), VLOOKUP(K195/$AH195,F!$A1:$B101,2,1)*K195*$L195*$M195,0)+IF(ISNUMBER(O195), VLOOKUP(O195/$AH195,F!$A1:$B101,2,1)*O195*$P195*$Q195,0)+IF(ISNUMBER(S195), VLOOKUP(S195/$AH195,F!$A1:$B101,2,1)*S195*$T195*$U195,0)+IF(ISNUMBER(W195), VLOOKUP(W195/$AH195,F!$A1:$B101,2,1)*W195*$X195*$Y195,0)+IF(ISNUMBER(AA195), VLOOKUP(AA195/$AH195,F!$A1:$B101,2,1)*AA195*$AB195*$AC195,0))*IF(ISNUMBER(F195),F195,1)*IF(ISNUMBER(E195),E195,1) -> 0 | AJ195: 0 | AK195: =IFERROR(I195*INDEX(F!$P$21:$AB$33, MATCH(G195/$AH195, F!$O$21:$O$33,1), MATCH(E195, F!$P$20:$AB$20,1)), 0 ) +IFERROR( M195*INDEX(F!$P$21:$AB$33, MATCH(K195/$AH195, F!$O$21:$O$33,1), MATCH(E195, F!$P$20:$AB$20,1)),0) + IFERROR( Q195*INDEX(F!$P$21:$AB$33, MATCH(O195/$AH195, F!$O$21:$O$33,1), MATCH(E195, F!$P$20:$AB$20,1)), 0) + IFERROR( U195*INDEX(F!$P$21:$AB$33, MATCH(S195/$AH195, F!$O$21:$O$33,1), MATCH(E195, F!$P$20:$AB$20,1)),0) + IFERROR(Y195*INDEX(F!$P$21:$AB$33, MATCH(W195/$AH195, F!$O$21:$O$33,1), MATCH(E195, F!$P$20:$AB$20,1)),0) + IFERROR( AC195*INDEX(F!$P$21:$AB$33, MATCH(AA195/$AH195, F!$O$21:$O$33,1), MATCH(E195, F!$P$20:$AB$20,1)),) -> 0
AE196: 0 | AF196: 0 | AG196: 0% | AI196: =( IF(ISNUMBER(G196), VLOOKUP(G196/$AH196,F!$A1:$B101,2,1)*G196*$H196*$I196,0)+IF(ISNUMBER(K196), VLOOKUP(K196/$AH196,F!$A1:$B101,2,1)*K196*$L196*$M196,0)+IF(ISNUMBER(O196), VLOOKUP(O196/$AH196,F!$A1:$B101,2,1)*O196*$P196*$Q196,0)+IF(ISNUMBER(S196), VLOOKUP(S196/$AH196,F!$A1:$B101,2,1)*S196*$T196*$U196,0)+IF(ISNUMBER(W196), VLOOKUP(W196/$AH196,F!$A1:$B101,2,1)*W196*$X196*$Y196,0)+IF(ISNUMBER(AA196), VLOOKUP(AA196/$AH196,F!$A1:$B101,2,1)*AA196*$AB196*$AC196,0))*IF(ISNUMBER(F196),F196,1)*IF(ISNUMBER(E196),E196,1) -> 0 | AJ196: 0 | AK196: =IFERROR(I196*INDEX(F!$P$21:$AB$33, MATCH(G196/$AH196, F!$O$21:$O$33,1), MATCH(E196, F!$P$20:$AB$20,1)), 0 ) +IFERROR( M196*INDEX(F!$P$21:$AB$33, MATCH(K196/$AH196, F!$O$21:$O$33,1), MATCH(E196, F!$P$20:$AB$20,1)),0) + IFERROR( Q196*INDEX(F!$P$21:$AB$33, MATCH(O196/$AH196, F!$O$21:$O$33,1), MATCH(E196, F!$P$20:$AB$20,1)), 0) + IFERROR( U196*INDEX(F!$P$21:$AB$33, MATCH(S196/$AH196, F!$O$21:$O$33,1), MATCH(E196, F!$P$20:$AB$20,1)),0) + IFERROR(Y196*INDEX(F!$P$21:$AB$33, MATCH(W196/$AH196, F!$O$21:$O$33,1), MATCH(E196, F!$P$20:$AB$20,1)),0) + IFERROR( AC196*INDEX(F!$P$21:$AB$33, MATCH(AA196/$AH196, F!$O$21:$O$33,1), MATCH(E196, F!$P$20:$AB$20,1)),) -> 0
AE197: 0 | AF197: 0 | AG197: 0% | AI197: =( IF(ISNUMBER(G197), VLOOKUP(G197/$AH197,F!$A1:$B101,2,1)*G197*$H197*$I197,0)+IF(ISNUMBER(K197), VLOOKUP(K197/$AH197,F!$A1:$B101,2,1)*K197*$L197*$M197,0)+IF(ISNUMBER(O197), VLOOKUP(O197/$AH197,F!$A1:$B101,2,1)*O197*$P197*$Q197,0)+IF(ISNUMBER(S197), VLOOKUP(S197/$AH197,F!$A1:$B101,2,1)*S197*$T197*$U197,0)+IF(ISNUMBER(W197), VLOOKUP(W197/$AH197,F!$A1:$B101,2,1)*W197*$X197*$Y197,0)+IF(ISNUMBER(AA197), VLOOKUP(AA197/$AH197,F!$A1:$B101,2,1)*AA197*$AB197*$AC197,0))*IF(ISNUMBER(F197),F197,1)*IF(ISNUMBER(E197),E197,1) -> 0 | AJ197: 0 | AK197: =IFERROR(I197*INDEX(F!$P$21:$AB$33, MATCH(G197/$AH197, F!$O$21:$O$33,1), MATCH(E197, F!$P$20:$AB$20,1)), 0 ) +IFERROR( M197*INDEX(F!$P$21:$AB$33, MATCH(K197/$AH197, F!$O$21:$O$33,1), MATCH(E197, F!$P$20:$AB$20,1)),0) + IFERROR( Q197*INDEX(F!$P$21:$AB$33, MATCH(O197/$AH197, F!$O$21:$O$33,1), MATCH(E197, F!$P$20:$AB$20,1)), 0) + IFERROR( U197*INDEX(F!$P$21:$AB$33, MATCH(S197/$AH197, F!$O$21:$O$33,1), MATCH(E197, F!$P$20:$AB$20,1)),0) + IFERROR(Y197*INDEX(F!$P$21:$AB$33, MATCH(W197/$AH197, F!$O$21:$O$33,1), MATCH(E197, F!$P$20:$AB$20,1)),0) + IFERROR( AC197*INDEX(F!$P$21:$AB$33, MATCH(AA197/$AH197, F!$O$21:$O$33,1), MATCH(E197, F!$P$20:$AB$20,1)),) -> 0
E198: =ROUND(IFERROR(SUMPRODUCT(AJ190:AJ197,E190:E197)/AJ198,0),3) -> 0.00 | AE198: =SUM(AE190:AE197) -> 0 | AF198: 0.0 | AG198: =IFERROR( SUMPRODUCT(AG190:AG197,AJ190:AJ197)/AJ198,0) -> 0% | AI198: =SUM(AI190:AI197) -> 0 | AJ198: =SUM(AJ190:AJ197) -> 0 | AK198: =IF(SUM(AK190:AK197)=0,TIME(,0,),TIME(,SUM(AK190:AK197)+F!$V$37,)) -> 00:00:00
A199: =A200 -> 2015-11-12 | B199: =IF(B143="","",B143) -> Средняя | C199: ТЯГА | D199: Становая тяга | E199: 1.4 | G199: =IF(J199<>0, IFERROR(IF( $F199=2, MROUND($AH199*J199,1), IF( OR($F199="",$F199=1), MROUND($AH199*J199,2.5), MROUND($AH199*J199, 0.1))), "" ), "") -> 147.5 | H199: 5 | I199: 1 | J199: 45% | K199: =IF(N199<>0, IFERROR(IF( $F199=2, MROUND($AH199*N199,1), IF( OR($F199="",$F199=1), MROUND($AH199*N199,2.5), MROUND($AH199*N199, 0.1))), "" ), "") -> 182.5 | L199: 4 | M199: 1 | N199: 55% | O199: =IF(R199<>0, IFERROR(IF( $F199=2, MROUND($AH199*R199,1), IF( OR($F199="",$F199=1), MROUND($AH199*R199,2.5), MROUND($AH199*R199, 0.1))), "" ), "") -> 215 | P199: 4 | Q199: 5 | R199: 65% | S199: =IF(V199<>0, IFERROR(IF( $F199=2, MROUND($AH199*V199,1), IF( OR($F199="",$F199=1), MROUND($AH199*V199,2.5), MROUND($AH199*V199, 0.1))), "" ), "") ->  | W199: =IF(Z199<>0, IFERROR(IF( $F199=2, MROUND($AH199*Z199,1), IF( OR($F199="",$F199=1), MROUND($AH199*Z199,2.5), MROUND($AH199*Z199, 0.1))), "" ), "") ->  | AA199: =IF(AD199<>0, IFERROR(IF( $F199=2, MROUND($AH199*AD199,1), IF( OR($F199="",$F199=1), MROUND($AH199*AD199,2.5), MROUND($AH199*AD199, 0.1))), "" ), "") ->  | AE199: =(IF(ISNUMBER(G199),G199,0)*H199*I199+IF(ISNUMBER(K199),K199,1)*L199*M199+IF(ISNUMBER(O199),O199,1)*P199*Q199+IF(ISNUMBER(S199),S199,1)*T199*U199+IF(ISNUMBER(W199),W199,1)*X199*Y199+IF(ISNUMBER(AA199),AA199,1)*AB199*AC199)*IF(ISNUMBER(F199),F199,1) -> 5767.5 | AF199: 199 | AG199: =IFERROR((AF199/(AH199*IF(ISNUMBER(F199),F199,1))),0) -> 60% | AH199: =IF(ISNUMBER(AH143), AH143+(AH143*$AH$170),"") -> 329.7 | AI199: =( IF(ISNUMBER(G199), VLOOKUP(G199/$AH199,F!$A1:$B101,2,1)*G199*$H199*$I199,0)+IF(ISNUMBER(K199), VLOOKUP(K199/$AH199,F!$A1:$B101,2,1)*K199*$L199*$M199,0)+IF(ISNUMBER(O199), VLOOKUP(O199/$AH199,F!$A1:$B101,2,1)*O199*$P199*$Q199,0)+IF(ISNUMBER(S199), VLOOKUP(S199/$AH199,F!$A1:$B101,2,1)*S199*$T199*$U199,0)+IF(ISNUMBER(W199), VLOOKUP(W199/$AH199,F!$A1:$B101,2,1)*W199*$X199*$Y199,0)+IF(ISNUMBER(AA199), VLOOKUP(AA199/$AH199,F!$A1:$B101,2,1)*AA199*$AB199*$AC199,0))*IF(ISNUMBER(F199),F199,1)*IF(ISNUMBER(E199),E199,1) -> 5822 | AJ199: =H199*I199+L199*M199+P199*Q199+T199*U199+X199*Y199+AB199*AC199 -> 29 | AK199: =IFERROR(I199*INDEX(F!$P$21:$AB$33, MATCH(G199/$AH199, F!$O$21:$O$33,1), MATCH(E199, F!$P$20:$AB$20,1)), 0 ) +IFERROR( M199*INDEX(F!$P$21:$AB$33, MATCH(K199/$AH199, F!$O$21:$O$33,1), MATCH(E199, F!$P$20:$AB$20,1)),0) + IFERROR( Q199*INDEX(F!$P$21:$AB$33, MATCH(O199/$AH199, F!$O$21:$O$33,1), MATCH(E199, F!$P$20:$AB$20,1)), 0) + IFERROR( U199*INDEX(F!$P$21:$AB$33, MATCH(S199/$AH199, F!$O$21:$O$33,1), MATCH(E199, F!$P$20:$AB$20,1)),0) + IFERROR(Y199*INDEX(F!$P$21:$AB$33, MATCH(W199/$AH199, F!$O$21:$O$33,1), MATCH(E199, F!$P$20:$AB$20,1)),0) + IFERROR( AC199*INDEX(F!$P$21:$AB$33, MATCH(AA199/$AH199, F!$O$21:$O$33,1), MATCH(E199, F!$P$20:$AB$20,1)),) -> 31
A200: =A144+A114 -> 2015-11-12 | B200: Тяжелая | C200: ЖИМ | D200: Жим лежа | E200: 1.0 | G200: 85 | H200: 6 | I200: 1 | J200: 50% | K200: 102.5 | L200: 5 | M200: 1 | N200: 60% | O200: 125 | P200: 5 | Q200: 5 | R200: 73% | AE200: 4147.5 | AF200: 115 | AG200: 68% | AH200: 170.0 | AI200: =( IF(ISNUMBER(G200), VLOOKUP(G200/$AH200,F!$A1:$B101,2,1)*G200*$H200*$I200,0)+IF(ISNUMBER(K200), VLOOKUP(K200/$AH200,F!$A1:$B101,2,1)*K200*$L200*$M200,0)+IF(ISNUMBER(O200), VLOOKUP(O200/$AH200,F!$A1:$B101,2,1)*O200*$P200*$Q200,0)+IF(ISNUMBER(S200), VLOOKUP(S200/$AH200,F!$A1:$B101,2,1)*S200*$T200*$U200,0)+IF(ISNUMBER(W200), VLOOKUP(W200/$AH200,F!$A1:$B101,2,1)*W200*$X200*$Y200,0)+IF(ISNUMBER(AA200), VLOOKUP(AA200/$AH200,F!$A1:$B101,2,1)*AA200*$AB200*$AC200,0))*IF(ISNUMBER(F200),F200,1)*IF(ISNUMBER(E200),E200,1) -> 3958 | AJ200: 36 | AK200: =IFERROR(I200*INDEX(F!$P$21:$AB$33, MATCH(G200/$AH200, F!$O$21:$O$33,1), MATCH(E200, F!$P$20:$AB$20,1)), 0 ) +IFERROR( M200*INDEX(F!$P$21:$AB$33, MATCH(K200/$AH200, F!$O$21:$O$33,1), MATCH(E200, F!$P$20:$AB$20,1)),0) + IFERROR( Q200*INDEX(F!$P$21:$AB$33, MATCH(O200/$AH200, F!$O$21:$O$33,1), MATCH(E200, F!$P$20:$AB$20,1)), 0) + IFERROR( U200*INDEX(F!$P$21:$AB$33, MATCH(S200/$AH200, F!$O$21:$O$33,1), MATCH(E200, F!$P$20:$AB$20,1)),0) + IFERROR(Y200*INDEX(F!$P$21:$AB$33, MATCH(W200/$AH200, F!$O$21:$O$33,1), MATCH(E200, F!$P$20:$AB$20,1)),0) + IFERROR( AC200*INDEX(F!$P$21:$AB$33, MATCH(AA200/$AH200, F!$O$21:$O$33,1), MATCH(E200, F!$P$20:$AB$20,1)),) -> 25
B201: Легкая | C201: ТЯГА | D201: Тяга уступающая | E201: 1.4 | G201: 115 | H201: 3 | I201: 5 | J201: 35% | K201: 132.5 | L201: 2 | M201: 5 | N201: 40% | AE201: 3050 | AF201: 122 | AG201: 37% | AH201: 329.7 | AI201: =( IF(ISNUMBER(G201), VLOOKUP(G201/$AH201,F!$A1:$B101,2,1)*G201*$H201*$I201,0)+IF(ISNUMBER(K201), VLOOKUP(K201/$AH201,F!$A1:$B101,2,1)*K201*$L201*$M201,0)+IF(ISNUMBER(O201), VLOOKUP(O201/$AH201,F!$A1:$B101,2,1)*O201*$P201*$Q201,0)+IF(ISNUMBER(S201), VLOOKUP(S201/$AH201,F!$A1:$B101,2,1)*S201*$T201*$U201,0)+IF(ISNUMBER(W201), VLOOKUP(W201/$AH201,F!$A1:$B101,2,1)*W201*$X201*$Y201,0)+IF(ISNUMBER(AA201), VLOOKUP(AA201/$AH201,F!$A1:$B101,2,1)*AA201*$AB201*$AC201,0))*IF(ISNUMBER(F201),F201,1)*IF(ISNUMBER(E201),E201,1) -> 1077 | AJ201: 25 | AK201: =IFERROR(I201*INDEX(F!$P$21:$AB$33, MATCH(G201/$AH201, F!$O$21:$O$33,1), MATCH(E201, F!$P$20:$AB$20,1)), 0 ) +IFERROR( M201*INDEX(F!$P$21:$AB$33, MATCH(K201/$AH201, F!$O$21:$O$33,1), MATCH(E201, F!$P$20:$AB$20,1)),0) + IFERROR( Q201*INDEX(F!$P$21:$AB$33, MATCH(O201/$AH201, F!$O$21:$O$33,1), MATCH(E201, F!$P$20:$AB$20,1)), 0) + IFERROR( U201*INDEX(F!$P$21:$AB$33, MATCH(S201/$AH201, F!$O$21:$O$33,1), MATCH(E201, F!$P$20:$AB$20,1)),0) + IFERROR(Y201*INDEX(F!$P$21:$AB$33, MATCH(W201/$AH201, F!$O$21:$O$33,1), MATCH(E201, F!$P$20:$AB$20,1)),0) + IFERROR( AC201*INDEX(F!$P$21:$AB$33, MATCH(AA201/$AH201, F!$O$21:$O$33,1), MATCH(E201, F!$P$20:$AB$20,1)),) -> 35
... 1200 more rows

Sheet Упражнение
B1: Упражнение | T1: =IF(S3="Да", "Программа будет корректно работать, если упражнение с таким названием будет встречаться лишь 1 раз в неделю!!!", "") -> 
B2: № п/п тренировки в микроцикле
B3: Коэф. | S3: Нет | T3: В случае отсутствия упражнения в указанном дне недели, искать в других днях
B4: Множитель
A6: № микр. | B6: № упржнения | C6: Вес | D6: Пов | E6: Под | F6: % | G6: Вес | H6: Пов | I6: Под | J6: % | K6: Вес | L6: Пов | M6: Под | N6: % | O6: Вес | P6: Пов | Q6: Под | R6: % | S6: Вес | T6: Пов | U6: Под | V6: % | W6: Вес | X6: Пов | Y6: Под | Z6: % | AA6: Тоннаж | AB6: Ср. вес | AC6: И.O. | AD6: ПМ | AE6: Инт. Ф+Б | AF6: КПШ
A7: 1 | B7: 1 | C7: =IF(F7<>0, IFERROR(IF($H$4=2, MROUND($AD7*F7,1), IF( OR($H$4="",$H$4=1), MROUND($AD7*F7,2.5), MROUND($AD7*F7, 0.1))), "" ), "") ->  | G7: =IF(J7<>0, IFERROR(IF($H$4=2, MROUND($AD7*J7,1), IF( OR($H$4="",$H$4=1), MROUND($AD7*J7,2.5), MROUND($AD7*J7, 0.1))), "" ), "") ->  | K7: =IF(N7<>0, IFERROR(IF($H$4=2, MROUND($AD7*N7,1), IF( OR($H$4="",$H$4=1), MROUND($AD7*N7,2.5), MROUND($AD7*N7, 0.1))), "" ), "") ->  | O7: =IF(R7<>0, IFERROR(IF($H$4=2, MROUND($AD7*R7,1), IF( OR($H$4="",$H$4=1), MROUND($AD7*R7,2.5), MROUND($AD7*R7, 0.1))), "" ), "") ->  | S7: =IF(V7<>0, IFERROR(IF($H$4=2, MROUND($AD7*V7,1), IF( OR($H$4="",$H$4=1), MROUND($AD7*V7,2.5), MROUND($AD7*V7, 0.1))), "" ), "") ->  | W7: =IF(Z7<>0, IFERROR(IF($H$4=2, MROUND($AD7*Z7,1), IF( OR($H$4="",$H$4=1), MROUND($AD7*Z7,2.5), MROUND($AD7*Z7, 0.1))), "" ), "") ->  | AA7: =(IF(ISNUMBER(C7),C7,0)*D7*E7+IF(ISNUMBER(G7),G7,1)*H7*I7+IF(ISNUMBER(K7),K7,1)*L7*M7+IF(ISNUMBER(O7),O7,1)*P7*Q7+IF(ISNUMBER(S7),S7,1)*T7*U7+IF(ISNUMBER(W7),W7,1)*X7*Y7)*IF(ISNUMBER($H$4), $H$4,1) -> 0 | AB7: =IFERROR(AA7/AF7,0) -> 0.0 | AC7: =ROUND(IFERROR((AB7/(AD7*IF(ISNUMBER($H$4),$H$4,1))),0),2) -> 0.0% | AE7: =( IF(ISNUMBER(C7), VLOOKUP(C7/$AD7,F!$A:$B,2,1)*C7*$D7*$E7,0)+ IF(ISNUMBER(G7), VLOOKUP(G7/$AD7,F!$A:$B,2,1)*G7*$H7*$I7,0)+ IF(ISNUMBER(K7), VLOOKUP(K7/$AD7,F!$A:$B,2,1)*K7*$L7*$M7,0)+IF(ISNUMBER(O7), VLOOKUP(O7/$AD7,F!$A:$B,2,1)*O7*$P7*$Q7,0)+IF(ISNUMBER(S7), VLOOKUP(S7/$AD7,F!$A:$B,2,1)*S7*$T7*$U7,0)+IF(ISNUMBER(W7), VLOOKUP(W7/$AD7,F!$A:$B,2,1)*W7*$X7*$Y7,0) )* IF(ISNUMBER( $H$4 ), $H$4,1)*IF(ISNUMBER($H$3),$H$3,1) -> 0 | AF7: =D7*E7+H7*I7+L7*M7+P7*Q7+T7*U7+X7*Y7 -> 0
A8: 2 | B8: 1 | AA8: =(IF(ISNUMBER(C8),C8,0)*D8*E8+IF(ISNUMBER(G8),G8,1)*H8*I8+IF(ISNUMBER(K8),K8,1)*L8*M8+IF(ISNUMBER(O8),O8,1)*P8*Q8+IF(ISNUMBER(S8),S8,1)*T8*U8+IF(ISNUMBER(W8),W8,1)*X8*Y8)*IF(ISNUMBER($H$4), $H$4,1) -> 0 | AB8: =IFERROR(AA8/AF8,0) -> 0.0 | AC8: =ROUND(IFERROR((AB8/(AD8*IF(ISNUMBER($H$4),$H$4,1))),0),2) -> 0.0% | AE8: =( IF(ISNUMBER(C8), VLOOKUP(C8/$AD8,F!$A:$B,2,1)*C8*$D8*$E8,0)+ IF(ISNUMBER(G8), VLOOKUP(G8/$AD8,F!$A:$B,2,1)*G8*$H8*$I8,0)+ IF(ISNUMBER(K8), VLOOKUP(K8/$AD8,F!$A:$B,2,1)*K8*$L8*$M8,0)+IF(ISNUMBER(O8), VLOOKUP(O8/$AD8,F!$A:$B,2,1)*O8*$P8*$Q8,0)+IF(ISNUMBER(S8), VLOOKUP(S8/$AD8,F!$A:$B,2,1)*S8*$T8*$U8,0)+IF(ISNUMBER(W8), VLOOKUP(W8/$AD8,F!$A:$B,2,1)*W8*$X8*$Y8,0) )* IF(ISNUMBER( $H$4 ), $H$4,1)*IF(ISNUMBER($H$3),$H$3,1) -> 0 | AF8: =D8*E8+H8*I8+L8*M8+P8*Q8+T8*U8+X8*Y8 -> 0
A9: 3 | B9: 1 | AA9: 0 | AB9: =IFERROR(AA9/AF9,0) -> 0.0 | AC9: 0.0% | AE9: =( IF(ISNUMBER(C9), VLOOKUP(C9/$AD9,F!$A:$B,2,1)*C9*$D9*$E9,0)+ IF(ISNUMBER(G9), VLOOKUP(G9/$AD9,F!$A:$B,2,1)*G9*$H9*$I9,0)+ IF(ISNUMBER(K9), VLOOKUP(K9/$AD9,F!$A:$B,2,1)*K9*$L9*$M9,0)+IF(ISNUMBER(O9), VLOOKUP(O9/$AD9,F!$A:$B,2,1)*O9*$P9*$Q9,0)+IF(ISNUMBER(S9), VLOOKUP(S9/$AD9,F!$A:$B,2,1)*S9*$T9*$U9,0)+IF(ISNUMBER(W9), VLOOKUP(W9/$AD9,F!$A:$B,2,1)*W9*$X9*$Y9,0) )* IF(ISNUMBER( $H$4 ), $H$4,1)*IF(ISNUMBER($H$3),$H$3,1) -> 0 | AF9: =D9*E9+H9*I9+L9*M9+P9*Q9+T9*U9+X9*Y9 -> 0
A10: 4 | B10: 1 | AA10: 0 | AB10: 0.0 | AC10: 0.0% | AE10: =( IF(ISNUMBER(C10), VLOOKUP(C10/$AD10,F!$A:$B,2,1)*C10*$D10*$E10,0)+ IF(ISNUMBER(G10), VLOOKUP(G10/$AD10,F!$A:$B,2,1)*G10*$H10*$I10,0)+ IF(ISNUMBER(K10), VLOOKUP(K10/$AD10,F!$A:$B,2,1)*K10*$L10*$M10,0)+IF(ISNUMBER(O10), VLOOKUP(O10/$AD10,F!$A:$B,2,1)*O10*$P10*$Q10,0)+IF(ISNUMBER(S10), VLOOKUP(S10/$AD10,F!$A:$B,2,1)*S10*$T10*$U10,0)+IF(ISNUMBER(W10), VLOOKUP(W10/$AD10,F!$A:$B,2,1)*W10*$X10*$Y10,0) )* IF(ISNUMBER( $H$4 ), $H$4,1)*IF(ISNUMBER($H$3),$H$3,1) -> 0 | AF10: 0
A11: 5 | B11: 1 | AA11: 0 | AB11: 0.0 | AC11: 0.0% | AE11: =( IF(ISNUMBER(C11), VLOOKUP(C11/$AD11,F!$A:$B,2,1)*C11*$D11*$E11,0)+ IF(ISNUMBER(G11), VLOOKUP(G11/$AD11,F!$A:$B,2,1)*G11*$H11*$I11,0)+ IF(ISNUMBER(K11), VLOOKUP(K11/$AD11,F!$A:$B,2,1)*K11*$L11*$M11,0)+IF(ISNUMBER(O11), VLOOKUP(O11/$AD11,F!$A:$B,2,1)*O11*$P11*$Q11,0)+IF(ISNUMBER(S11), VLOOKUP(S11/$AD11,F!$A:$B,2,1)*S11*$T11*$U11,0)+IF(ISNUMBER(W11), VLOOKUP(W11/$AD11,F!$A:$B,2,1)*W11*$X11*$Y11,0) )* IF(ISNUMBER( $H$4 ), $H$4,1)*IF(ISNUMBER($H$3),$H$3,1) -> 0 | AF11: 0
A12: 6 | B12: 1 | AA12: 0 | AB12: 0.0 | AC12: 0.0% | AE12: =( IF(ISNUMBER(C12), VLOOKUP(C12/$AD12,F!$A:$B,2,1)*C12*$D12*$E12,0)+ IF(ISNUMBER(G12), VLOOKUP(G12/$AD12,F!$A:$B,2,1)*G12*$H12*$I12,0)+ IF(ISNUMBER(K12), VLOOKUP(K12/$AD12,F!$A:$B,2,1)*K12*$L12*$M12,0)+IF(ISNUMBER(O12), VLOOKUP(O12/$AD12,F!$A:$B,2,1)*O12*$P12*$Q12,0)+IF(ISNUMBER(S12), VLOOKUP(S12/$AD12,F!$A:$B,2,1)*S12*$T12*$U12,0)+IF(ISNUMBER(W12), VLOOKUP(W12/$AD12,F!$A:$B,2,1)*W12*$X12*$Y12,0) )* IF(ISNUMBER( $H$4 ), $H$4,1)*IF(ISNUMBER($H$3),$H$3,1) -> 0 | AF12: 0
A13: 7 | B13: 1 | AA13: 0 | AB13: 0.0 | AC13: 0.0% | AE13: =( IF(ISNUMBER(C13), VLOOKUP(C13/$AD13,F!$A:$B,2,1)*C13*$D13*$E13,0)+ IF(ISNUMBER(G13), VLOOKUP(G13/$AD13,F!$A:$B,2,1)*G13*$H13*$I13,0)+ IF(ISNUMBER(K13), VLOOKUP(K13/$AD13,F!$A:$B,2,1)*K13*$L13*$M13,0)+IF(ISNUMBER(O13), VLOOKUP(O13/$AD13,F!$A:$B,2,1)*O13*$P13*$Q13,0)+IF(ISNUMBER(S13), VLOOKUP(S13/$AD13,F!$A:$B,2,1)*S13*$T13*$U13,0)+IF(ISNUMBER(W13), VLOOKUP(W13/$AD13,F!$A:$B,2,1)*W13*$X13*$Y13,0) )* IF(ISNUMBER( $H$4 ), $H$4,1)*IF(ISNUMBER($H$3),$H$3,1) -> 0 | AF13: 0
A14: 8 | B14: 1 | AA14: 0 | AB14: 0.0 | AC14: 0.0% | AE14: =( IF(ISNUMBER(C14), VLOOKUP(C14/$AD14,F!$A:$B,2,1)*C14*$D14*$E14,0)+ IF(ISNUMBER(G14), VLOOKUP(G14/$AD14,F!$A:$B,2,1)*G14*$H14*$I14,0)+ IF(ISNUMBER(K14), VLOOKUP(K14/$AD14,F!$A:$B,2,1)*K14*$L14*$M14,0)+IF(ISNUMBER(O14), VLOOKUP(O14/$AD14,F!$A:$B,2,1)*O14*$P14*$Q14,0)+IF(ISNUMBER(S14), VLOOKUP(S14/$AD14,F!$A:$B,2,1)*S14*$T14*$U14,0)+IF(ISNUMBER(W14), VLOOKUP(W14/$AD14,F!$A:$B,2,1)*W14*$X14*$Y14,0) )* IF(ISNUMBER( $H$4 ), $H$4,1)*IF(ISNUMBER($H$3),$H$3,1) -> 0 | AF14: 0
A15: 9 | B15: 1 | AA15: 0 | AB15: 0.0 | AC15: 0.0% | AE15: =( IF(ISNUMBER(C15), VLOOKUP(C15/$AD15,F!$A:$B,2,1)*C15*$D15*$E15,0)+ IF(ISNUMBER(G15), VLOOKUP(G15/$AD15,F!$A:$B,2,1)*G15*$H15*$I15,0)+ IF(ISNUMBER(K15), VLOOKUP(K15/$AD15,F!$A:$B,2,1)*K15*$L15*$M15,0)+IF(ISNUMBER(O15), VLOOKUP(O15/$AD15,F!$A:$B,2,1)*O15*$P15*$Q15,0)+IF(ISNUMBER(S15), VLOOKUP(S15/$AD15,F!$A:$B,2,1)*S15*$T15*$U15,0)+IF(ISNUMBER(W15), VLOOKUP(W15/$AD15,F!$A:$B,2,1)*W15*$X15*$Y15,0) )* IF(ISNUMBER( $H$4 ), $H$4,1)*IF(ISNUMBER($H$3),$H$3,1) -> 0 | AF15: 0
A16: 10 | B16: 1 | AA16: 0 | AB16: 0.0 | AC16: 0.0% | AE16: =( IF(ISNUMBER(C16), VLOOKUP(C16/$AD16,F!$A:$B,2,1)*C16*$D16*$E16,0)+ IF(ISNUMBER(G16), VLOOKUP(G16/$AD16,F!$A:$B,2,1)*G16*$H16*$I16,0)+ IF(ISNUMBER(K16), VLOOKUP(K16/$AD16,F!$A:$B,2,1)*K16*$L16*$M16,0)+IF(ISNUMBER(O16), VLOOKUP(O16/$AD16,F!$A:$B,2,1)*O16*$P16*$Q16,0)+IF(ISNUMBER(S16), VLOOKUP(S16/$AD16,F!$A:$B,2,1)*S16*$T16*$U16,0)+IF(ISNUMBER(W16), VLOOKUP(W16/$AD16,F!$A:$B,2,1)*W16*$X16*$Y16,0) )* IF(ISNUMBER( $H$4 ), $H$4,1)*IF(ISNUMBER($H$3),$H$3,1) -> 0 | AF16: 0
A17: 11 | B17: 1 | AA17: 0 | AB17: 0.0 | AC17: 0.0% | AE17: =( IF(ISNUMBER(C17), VLOOKUP(C17/$AD17,F!$A:$B,2,1)*C17*$D17*$E17,0)+ IF(ISNUMBER(G17), VLOOKUP(G17/$AD17,F!$A:$B,2,1)*G17*$H17*$I17,0)+ IF(ISNUMBER(K17), VLOOKUP(K17/$AD17,F!$A:$B,2,1)*K17*$L17*$M17,0)+IF(ISNUMBER(O17), VLOOKUP(O17/$AD17,F!$A:$B,2,1)*O17*$P17*$Q17,0)+IF(ISNUMBER(S17), VLOOKUP(S17/$AD17,F!$A:$B,2,1)*S17*$T17*$U17,0)+IF(ISNUMBER(W17), VLOOKUP(W17/$AD17,F!$A:$B,2,1)*W17*$X17*$Y17,0) )* IF(ISNUMBER( $H$4 ), $H$4,1)*IF(ISNUMBER($H$3),$H$3,1) -> 0 | AF17: 0
A18: 12 | B18: 1 | AA18: 0 | AB18: 0.0 | AC18: 0.0% | AE18: =( IF(ISNUMBER(C18), VLOOKUP(C18/$AD18,F!$A:$B,2,1)*C18*$D18*$E18,0)+ IF(ISNUMBER(G18), VLOOKUP(G18/$AD18,F!$A:$B,2,1)*G18*$H18*$I18,0)+ IF(ISNUMBER(K18), VLOOKUP(K18/$AD18,F!$A:$B,2,1)*K18*$L18*$M18,0)+IF(ISNUMBER(O18), VLOOKUP(O18/$AD18,F!$A:$B,2,1)*O18*$P18*$Q18,0)+IF(ISNUMBER(S18), VLOOKUP(S18/$AD18,F!$A:$B,2,1)*S18*$T18*$U18,0)+IF(ISNUMBER(W18), VLOOKUP(W18/$AD18,F!$A:$B,2,1)*W18*$X18*$Y18,0) )* IF(ISNUMBER( $H$4 ), $H$4,1)*IF(ISNUMBER($H$3),$H$3,1) -> 0 | AF18: 0
A19: 13 | B19: 1 | AA19: 0 | AB19: 0.0 | AC19: 0.0% | AE19: =( IF(ISNUMBER(C19), VLOOKUP(C19/$AD19,F!$A:$B,2,1)*C19*$D19*$E19,0)+ IF(ISNUMBER(G19), VLOOKUP(G19/$AD19,F!$A:$B,2,1)*G19*$H19*$I19,0)+ IF(ISNUMBER(K19), VLOOKUP(K19/$AD19,F!$A:$B,2,1)*K19*$L19*$M19,0)+IF(ISNUMBER(O19), VLOOKUP(O19/$AD19,F!$A:$B,2,1)*O19*$P19*$Q19,0)+IF(ISNUMBER(S19), VLOOKUP(S19/$AD19,F!$A:$B,2,1)*S19*$T19*$U19,0)+IF(ISNUMBER(W19), VLOOKUP(W19/$AD19,F!$A:$B,2,1)*W19*$X19*$Y19,0) )* IF(ISNUMBER( $H$4 ), $H$4,1)*IF(ISNUMBER($H$3),$H$3,1) -> 0 | AF19: 0
A20: 14 | B20: 1 | AA20: 0 | AB20: 0.0 | AC20: 0.0% | AE20: =( IF(ISNUMBER(C20), VLOOKUP(C20/$AD20,F!$A:$B,2,1)*C20*$D20*$E20,0)+ IF(ISNUMBER(G20), VLOOKUP(G20/$AD20,F!$A:$B,2,1)*G20*$H20*$I20,0)+ IF(ISNUMBER(K20), VLOOKUP(K20/$AD20,F!$A:$B,2,1)*K20*$L20*$M20,0)+IF(ISNUMBER(O20), VLOOKUP(O20/$AD20,F!$A:$B,2,1)*O20*$P20*$Q20,0)+IF(ISNUMBER(S20), VLOOKUP(S20/$AD20,F!$A:$B,2,1)*S20*$T20*$U20,0)+IF(ISNUMBER(W20), VLOOKUP(W20/$AD20,F!$A:$B,2,1)*W20*$X20*$Y20,0) )* IF(ISNUMBER( $H$4 ), $H$4,1)*IF(ISNUMBER($H$3),$H$3,1) -> 0 | AF20: 0
A21: 15 | B21: 1 | AA21: 0 | AB21: 0.0 | AC21: 0.0% | AE21: =( IF(ISNUMBER(C21), VLOOKUP(C21/$AD21,F!$A:$B,2,1)*C21*$D21*$E21,0)+ IF(ISNUMBER(G21), VLOOKUP(G21/$AD21,F!$A:$B,2,1)*G21*$H21*$I21,0)+ IF(ISNUMBER(K21), VLOOKUP(K21/$AD21,F!$A:$B,2,1)*K21*$L21*$M21,0)+IF(ISNUMBER(O21), VLOOKUP(O21/$AD21,F!$A:$B,2,1)*O21*$P21*$Q21,0)+IF(ISNUMBER(S21), VLOOKUP(S21/$AD21,F!$A:$B,2,1)*S21*$T21*$U21,0)+IF(ISNUMBER(W21), VLOOKUP(W21/$AD21,F!$A:$B,2,1)*W21*$X21*$Y21,0) )* IF(ISNUMBER( $H$4 ), $H$4,1)*IF(ISNUMBER($H$3),$H$3,1) -> 0 | AF21: 0
A22: 16 | B22: 1 | AA22: 0 | AB22: 0.0 | AC22: 0.0% | AE22: =( IF(ISNUMBER(C22), VLOOKUP(C22/$AD22,F!$A:$B,2,1)*C22*$D22*$E22,0)+ IF(ISNUMBER(G22), VLOOKUP(G22/$AD22,F!$A:$B,2,1)*G22*$H22*$I22,0)+ IF(ISNUMBER(K22), VLOOKUP(K22/$AD22,F!$A:$B,2,1)*K22*$L22*$M22,0)+IF(ISNUMBER(O22), VLOOKUP(O22/$AD22,F!$A:$B,2,1)*O22*$P22*$Q22,0)+IF(ISNUMBER(S22), VLOOKUP(S22/$AD22,F!$A:$B,2,1)*S22*$T22*$U22,0)+IF(ISNUMBER(W22), VLOOKUP(W22/$AD22,F!$A:$B,2,1)*W22*$X22*$Y22,0) )* IF(ISNUMBER( $H$4 ), $H$4,1)*IF(ISNUMBER($H$3),$H$3,1) -> 0 | AF22: 0
A23: 17 | B23: 1 | AA23: 0 | AB23: 0.0 | AC23: 0.0% | AE23: =( IF(ISNUMBER(C23), VLOOKUP(C23/$AD23,F!$A:$B,2,1)*C23*$D23*$E23,0)+ IF(ISNUMBER(G23), VLOOKUP(G23/$AD23,F!$A:$B,2,1)*G23*$H23*$I23,0)+ IF(ISNUMBER(K23), VLOOKUP(K23/$AD23,F!$A:$B,2,1)*K23*$L23*$M23,0)+IF(ISNUMBER(O23), VLOOKUP(O23/$AD23,F!$A:$B,2,1)*O23*$P23*$Q23,0)+IF(ISNUMBER(S23), VLOOKUP(S23/$AD23,F!$A:$B,2,1)*S23*$T23*$U23,0)+IF(ISNUMBER(W23), VLOOKUP(W23/$AD23,F!$A:$B,2,1)*W23*$X23*$Y23,0) )* IF(ISNUMBER( $H$4 ), $H$4,1)*IF(ISNUMBER($H$3),$H$3,1) -> 0 | AF23: 0
A24: 18 | B24: 1 | AA24: 0 | AB24: 0.0 | AC24: 0.0% | AE24: =( IF(ISNUMBER(C24), VLOOKUP(C24/$AD24,F!$A:$B,2,1)*C24*$D24*$E24,0)+ IF(ISNUMBER(G24), VLOOKUP(G24/$AD24,F!$A:$B,2,1)*G24*$H24*$I24,0)+ IF(ISNUMBER(K24), VLOOKUP(K24/$AD24,F!$A:$B,2,1)*K24*$L24*$M24,0)+IF(ISNUMBER(O24), VLOOKUP(O24/$AD24,F!$A:$B,2,1)*O24*$P24*$Q24,0)+IF(ISNUMBER(S24), VLOOKUP(S24/$AD24,F!$A:$B,2,1)*S24*$T24*$U24,0)+IF(ISNUMBER(W24), VLOOKUP(W24/$AD24,F!$A:$B,2,1)*W24*$X24*$Y24,0) )* IF(ISNUMBER( $H$4 ), $H$4,1)*IF(ISNUMBER($H$3),$H$3,1) -> 0 | AF24: 0
A25: 19 | B25: 1 | AA25: 0 | AB25: 0.0 | AC25: 0.0% | AE25: =( IF(ISNUMBER(C25), VLOOKUP(C25/$AD25,F!$A:$B,2,1)*C25*$D25*$E25,0)+ IF(ISNUMBER(G25), VLOOKUP(G25/$AD25,F!$A:$B,2,1)*G25*$H25*$I25,0)+ IF(ISNUMBER(K25), VLOOKUP(K25/$AD25,F!$A:$B,2,1)*K25*$L25*$M25,0)+IF(ISNUMBER(O25), VLOOKUP(O25/$AD25,F!$A:$B,2,1)*O25*$P25*$Q25,0)+IF(ISNUMBER(S25), VLOOKUP(S25/$AD25,F!$A:$B,2,1)*S25*$T25*$U25,0)+IF(ISNUMBER(W25), VLOOKUP(W25/$AD25,F!$A:$B,2,1)*W25*$X25*$Y25,0) )* IF(ISNUMBER( $H$4 ), $H$4,1)*IF(ISNUMBER($H$3),$H$3,1) -> 0 | AF25: 0
A26: 20 | B26: 1 | AA26: 0 | AB26: 0.0 | AC26: 0.0% | AE26: =( IF(ISNUMBER(C26), VLOOKUP(C26/$AD26,F!$A:$B,2,1)*C26*$D26*$E26,0)+ IF(ISNUMBER(G26), VLOOKUP(G26/$AD26,F!$A:$B,2,1)*G26*$H26*$I26,0)+ IF(ISNUMBER(K26), VLOOKUP(K26/$AD26,F!$A:$B,2,1)*K26*$L26*$M26,0)+IF(ISNUMBER(O26), VLOOKUP(O26/$AD26,F!$A:$B,2,1)*O26*$P26*$Q26,0)+IF(ISNUMBER(S26), VLOOKUP(S26/$AD26,F!$A:$B,2,1)*S26*$T26*$U26,0)+IF(ISNUMBER(W26), VLOOKUP(W26/$AD26,F!$A:$B,2,1)*W26*$X26*$Y26,0) )* IF(ISNUMBER( $H$4 ), $H$4,1)*IF(ISNUMBER($H$3),$H$3,1) -> 0 | AF26: 0
A27: 21 | B27: 1 | AA27: 0 | AB27: 0.0 | AC27: 0.0% | AE27: =( IF(ISNUMBER(C27), VLOOKUP(C27/$AD27,F!$A:$B,2,1)*C27*$D27*$E27,0)+ IF(ISNUMBER(G27), VLOOKUP(G27/$AD27,F!$A:$B,2,1)*G27*$H27*$I27,0)+ IF(ISNUMBER(K27), VLOOKUP(K27/$AD27,F!$A:$B,2,1)*K27*$L27*$M27,0)+IF(ISNUMBER(O27), VLOOKUP(O27/$AD27,F!$A:$B,2,1)*O27*$P27*$Q27,0)+IF(ISNUMBER(S27), VLOOKUP(S27/$AD27,F!$A:$B,2,1)*S27*$T27*$U27,0)+IF(ISNUMBER(W27), VLOOKUP(W27/$AD27,F!$A:$B,2,1)*W27*$X27*$Y27,0) )* IF(ISNUMBER( $H$4 ), $H$4,1)*IF(ISNUMBER($H$3),$H$3,1) -> 0 | AF27: 0
A28: 22 | B28: 1 | AA28: 0 | AB28: 0.0 | AC28: 0.0% | AE28: =( IF(ISNUMBER(C28), VLOOKUP(C28/$AD28,F!$A:$B,2,1)*C28*$D28*$E28,0)+ IF(ISNUMBER(G28), VLOOKUP(G28/$AD28,F!$A:$B,2,1)*G28*$H28*$I28,0)+ IF(ISNUMBER(K28), VLOOKUP(K28/$AD28,F!$A:$B,2,1)*K28*$L28*$M28,0)+IF(ISNUMBER(O28), VLOOKUP(O28/$AD28,F!$A:$B,2,1)*O28*$P28*$Q28,0)+IF(ISNUMBER(S28), VLOOKUP(S28/$AD28,F!$A:$B,2,1)*S28*$T28*$U28,0)+IF(ISNUMBER(W28), VLOOKUP(W28/$AD28,F!$A:$B,2,1)*W28*$X28*$Y28,0) )* IF(ISNUMBER( $H$4 ), $H$4,1)*IF(ISNUMBER($H$3),$H$3,1) -> 0 | AF28: =D28*E28+H28*I28+L28*M28+P28*Q28+T28*U28+X28*Y28 -> 0
A29: 23 | B29: 1 | AA29: 0 | AB29: 0.0 | AC29: 0.0% | AE29: =( IF(ISNUMBER(C29), VLOOKUP(C29/$AD29,F!$A:$B,2,1)*C29*$D29*$E29,0)+ IF(ISNUMBER(G29), VLOOKUP(G29/$AD29,F!$A:$B,2,1)*G29*$H29*$I29,0)+ IF(ISNUMBER(K29), VLOOKUP(K29/$AD29,F!$A:$B,2,1)*K29*$L29*$M29,0)+IF(ISNUMBER(O29), VLOOKUP(O29/$AD29,F!$A:$B,2,1)*O29*$P29*$Q29,0)+IF(ISNUMBER(S29), VLOOKUP(S29/$AD29,F!$A:$B,2,1)*S29*$T29*$U29,0)+IF(ISNUMBER(W29), VLOOKUP(W29/$AD29,F!$A:$B,2,1)*W29*$X29*$Y29,0) )* IF(ISNUMBER( $H$4 ), $H$4,1)*IF(ISNUMBER($H$3),$H$3,1) -> 0 | AF29: 0
A30: 24 | B30: 1 | AA30: 0 | AB30: 0.0 | AC30: 0.0% | AE30: =( IF(ISNUMBER(C30), VLOOKUP(C30/$AD30,F!$A:$B,2,1)*C30*$D30*$E30,0)+ IF(ISNUMBER(G30), VLOOKUP(G30/$AD30,F!$A:$B,2,1)*G30*$H30*$I30,0)+ IF(ISNUMBER(K30), VLOOKUP(K30/$AD30,F!$A:$B,2,1)*K30*$L30*$M30,0)+IF(ISNUMBER(O30), VLOOKUP(O30/$AD30,F!$A:$B,2,1)*O30*$P30*$Q30,0)+IF(ISNUMBER(S30), VLOOKUP(S30/$AD30,F!$A:$B,2,1)*S30*$T30*$U30,0)+IF(ISNUMBER(W30), VLOOKUP(W30/$AD30,F!$A:$B,2,1)*W30*$X30*$Y30,0) )* IF(ISNUMBER( $H$4 ), $H$4,1)*IF(ISNUMBER($H$3),$H$3,1) -> 0 | AF30: 0
A31: 25 | B31: 1 | AA31: =(IF(ISNUMBER(C31),C31,0)*D31*E31+IF(ISNUMBER(G31),G31,1)*H31*I31+IF(ISNUMBER(K31),K31,1)*L31*M31+IF(ISNUMBER(O31),O31,1)*P31*Q31+IF(ISNUMBER(S31),S31,1)*T31*U31+IF(ISNUMBER(W31),W31,1)*X31*Y31)*IF(ISNUMBER($H$4), $H$4,1) -> 0 | AB31: 0.0 | AC31: 0.0% | AE31: =( IF(ISNUMBER(C31), VLOOKUP(C31/$AD31,F!$A:$B,2,1)*C31*$D31*$E31,0)+ IF(ISNUMBER(G31), VLOOKUP(G31/$AD31,F!$A:$B,2,1)*G31*$H31*$I31,0)+ IF(ISNUMBER(K31), VLOOKUP(K31/$AD31,F!$A:$B,2,1)*K31*$L31*$M31,0)+IF(ISNUMBER(O31), VLOOKUP(O31/$AD31,F!$A:$B,2,1)*O31*$P31*$Q31,0)+IF(ISNUMBER(S31), VLOOKUP(S31/$AD31,F!$A:$B,2,1)*S31*$T31*$U31,0)+IF(ISNUMBER(W31), VLOOKUP(W31/$AD31,F!$A:$B,2,1)*W31*$X31*$Y31,0) )* IF(ISNUMBER( $H$4 ), $H$4,1)*IF(ISNUMBER($H$3),$H$3,1) -> 0 | AF31: 0

Sheet Отчеты
D1: Микроцикл № 1
D3: 02.09.2015 (Ср)
H4: Вес: _____ кг
H5: Продолжительность: 02:12
A7: № | B7: Упражнение | C7: I | D7: II | E7: III | F7: IV | G7: V | H7: VI
A8: 1 | B8: Жим | C8: 10 (10%)
C9: 2,2
A10: 2 | B10: Жим1 | C10: 150 (50%) | D10: 170 (57%) | E10: 185 (62%) | F10: 210 (70%) | G10: 220 (73%) | H10: 230 (77%)
C11: 6 | D11: 6 | E11: 6 | F11: 6,6,6,6 | G11: 5,5,5,5 | H11: 4,4,4,4
A12: 3 | B12: Жим | C12: 55 (56%)
C13: 5,5,5,5
A14: 4 | B14: Тяга | C14: 155 (77%)
C15: 5,5,5,5
A16: 5 | B16: Бицепс штангой стоя | C16: 37.5 (75%)
C17: 6,6,6,6
A18: 6
A20: 7
A22: 8
A24: 9
A26: 10
B29: КПШ = 146
B30: Т = 21290 кг
B31: Ср. вес = 145.8 кг
B32: Инт. Фунт. = 22346
B33: УОИ = 68%
M43: Микроцикл № 6
M46: 05.10.2015 (Пн)
K48: Вес: _____ кг | Q48: Продолжительность: 01:46
J50: № | K50: Упражнение | L50: I | M50: II | N50: III | O50: IV | P50: V | Q50: VI
J51: 1 | K51: Жим1 | L51: 67.5 (53%) | M51: 82.5 (65%)
L52: 5,5,5,5,5,5 | M52: 5,5
J53: 2 | K53: Жим2 | L53: 70 (55%)
L54: 5,5,5,5,5,5
J55: 3 | K55: Жим стоя | L55: 37.5 (45%)
L56: 5,5,5,5,5
J57: 4 | K57: Тяга
J59: 5 | K59: Жим гантелей на накл. скамье | L59: 29 (56%) | M59: 36 (70%)
L60: 5,5,5,5,5 | M60: 4,4
J61: 6 | K61: Становая тяга
J63: 7 | K63: Присед1
J65: 8 | K65: Жим гантелей лежа на гор скамье
M69: 06.10.2015 (Вт)
K70: Вес: _____ кг | Q70: Продолжительность: 00:00
J72: № | K72: Упражнение | L72: I | M72: II | N72: III | O72: IV | P72: V | Q72: VI
J73: 1 | K73: Жим
J75: 2 | K75: Жим
J77: 3 | K77: Жим
J79: 4
J81: 5
J83: 6
J85: 7
J87: 8
S90: Микроцикл № 2
S93: 07.09.2015 (Пн) | Z93: 08.09.2015 (Вт) | AG93: 09.09.2015 (Ср)
S95: Вес: _____ кг | X95: Продолжительность: 01:59 | Z95: Вес: _____ кг | AE95: Продолжительность: 01:10 | AG95: Вес: _____ кг | AL95: Продолжительность: 00:00
S97: Жим1 | V97: 55x 3,3,3,3 | Z97: Жим | AC97: 50x 5,5,5,5,5 | AG97: Жим
S100: Жим2 | Z100: Жим | AC100: 22.5x 5,5,5,5,5 | AG100: Жим1
S103: Жим стоя | Z103: Жим | AC103: 25x 4,4,4,4,4 | AG103: Жим
S106: Тяга | V106: 100x 6; 160 (80%)x 4,4,4,4 | AG106: Тяга
S109: Жим гантелей на накл. скамье | V109: 17x 4,4,4; 22x 3,3,3; 39 (77%)x 4,4,4; 28x 5,5,5; 44 (87%)x 1; 48 (95%)x 1 | AG109: Бицепс штангой стоя
S112: Становая тяга
S115: Присед1
S118: Жим гантелей лежа на гор скамье
S122: КПШ = 84, Т = 6584 кг, Ср. вес = 6584 кг | Z122: КПШ = 70, Т = 2312 кг, Ср. вес = 2312 кг | AG122: КПШ = 0, Т = 0 кг, Ср. вес = 0 кг
S123: Инт. Фунт. = 8899, УОИ = 58% | Z123: Инт. Фунт. = 774, УОИ = 46% | AG123: Инт. Фунт. = 0, УОИ = 0%
AN125: Микроцикл № 10
AN127: Вес: _____ кг | AQ127: 02.11.2015 (Пн) | AU127: Продолжительность: 01:06 | AW127: Вес: _____ кг | AZ127: 03.11.2015 (Вт) | BD127: Продолжительность: 00:00
AN128: 1. Жим1 | AQ128: 20x 4,4,4,4 | AW128: Жим
AN130: 2. Жим2 | AQ130: 100 (78%)x 4,4,4,4,4 | AW130: Жим
AN132: 3. Жим стоя | AQ132: 62.5 (76%)x 6,6 | AW132: Жим
AN134: Тяга
AN136: Жим гантелей на накл. скамье
AN138: Становая тяга
AN140: Присед1
AN142: Жим гантелей лежа на гор скамье
AN144: Вес: _____ кг | AQ144: 04.11.2015 (Ср) | AU144: Продолжительность: 00:00 | AW144: Вес: _____ кг | AZ144: 05.11.2015 (Чт) | BD144: Продолжительность: 00:00
AN145: Жим | AW145: Жим
AN147: Жим1 | AW147: Жим
AN149: Жим | AW149: Жим
AN151: Тяга | AW151: Тяга
AN153: Бицепс штангой стоя | AW153: Тяга
AW155: Тяга
AW157: Присед
AW159: Присед
BF161: Микроцикл № 1
BF163: 31.08.2015 (Пн) | BM163: 01.09.2015 (Вт) | BT163: 02.09.2015 (Ср)
BF164: Вес: _____ кг | BK164: Продолжительность: 02:00 | BM164: Вес: _____ кг | BR164: Продолжительность: 01:27 | BT164: Вес: _____ кг | BY164: Продолжительность: 01:40
BF180: 03.09.2015 (Чт) | BM180: 04.09.2015 (Пт) | BT180: 05.09.2015 (Сб)
BF181: Вес: _____ кг | BK181: Продолжительность: 01:06 | BM181: Вес: _____ кг | BR181: Продолжительность: 00:53 | BT181: Вес: _____ кг | BY181: Продолжительность: 01:00

Sheet Вес, сон, питание, курс
A1: № недели | B1: ДАТА | C1: Вес, кг | D1: Сон, ч:мм | E1: Еда | F1: Белки | G1: Жиры | H1: Углеводы | I1: Ккал | J1: ГИ средн. / ГИ макс. | K1: Б жив. | L1: Ж жив. | M1: Ж раст. | N1: % Б | O1: % Ж | P1: % У | Q1: Б/кг | R1: Б жив./кг | S1: Ж/кг | T1: Ж раст./кг | U1: У/кг | V1: Ккал/кг | W1: Медицина | X1: Рибоксин | Y1: Милдронат | Z1: Витамины | AA1: Метилурацил | AB1: Креатин | AN1: КУРС | AO1: Тестостерон | AS1: Анастрозол | AT1: Каберголин | AU1: ХГЧ | BF1: ПКТ | BG1: Кломид | BH1: Трибулус | BI1: Цинк | BJ1: Витамин Е
A2: 1 | B2: 2015-08-03 | E2: 1 | N2: =IFERROR(4.1*F2 / (4.1*$F2 + 9.3*$G2 + 4.1*$H2),0) -> 0% | O2: =IFERROR(9.3*G2 / (4.1*$F2 + 9.3*$G2 + 4.1*$H2),0) -> 0% | P2: =IFERROR(4.1*H2 / (4.1*$F2 + 9.3*$G2 + 4.1*$H2),0) -> 0% | Q2: =IFERROR(ROUND(F2/C2,1),0) -> 0 | R2: =IFERROR(ROUND(K2/C2,1),0) -> 0 | S2: =IFERROR(ROUND(G2/C2,1),0) -> 0 | T2: =IFERROR(ROUND(M2/C2,1),0) -> 0 | U2: =IFERROR(ROUND(H2/C2,1),0) -> 0 | V2: =IFERROR(ROUND(I2/C2,0),0) -> 0 | W2: 1 | AG2: Медицина | AH2: Кол. | AI2: В пачке | AJ2: Пачек | AK2: $ за пачку | AL2: =SUM(AL3:AL10)& " $" -> 0 $ | AN2: 1 | AY2: Курс | AZ2: Кол. | BA2: В пачке | BB2: Пачек | BC2: $ за пачку | BD2: =SUM(BD3:BD11)& " $ " -> 0 $ | BF2: 1 | BN2: ПКТ | BO2: Кол. | BP2: В пачке | BQ2: Пачек | BR2: $ за пачку | BS2: =SUM(BS3:BS8)& " $" -> 0 $
B3: =B2+1 -> 2015-08-04 | N3: =IFERROR(4.1*F3 / (4.1*$F3 + 9.3*$G3 + 4.1*$H3),0) -> 0% | O3: =IFERROR(9.3*G3 / (4.1*$F3 + 9.3*$G3 + 4.1*$H3),0) -> 0% | P3: =IFERROR(4.1*H3 / (4.1*$F3 + 9.3*$G3 + 4.1*$H3),0) -> 0% | Q3: =IFERROR(ROUND(F3/C3,1),0) -> 0 | R3: =IFERROR(ROUND(K3/C3,1),0) -> 0 | S3: =IFERROR(ROUND(G3/C3,1),0) -> 0 | T3: =IFERROR(ROUND(M3/C3,1),0) -> 0 | U3: =IFERROR(ROUND(H3/C3,1),0) -> 0 | V3: =IFERROR(ROUND(I3/C3,0),0) -> 0 | AG3: =IF(X1="","",X1) -> Рибоксин | AH3: =IF(AG3="","",SUM(X:X)) -> 0 | AJ3: =IF(AG3="","",IFERROR(ROUNDUP(AH3/AI3,0),0)) -> 0 | AL3: =IFERROR(AJ3*AK3,"") -> 0 | AY3: =IF(AO1="","",AO1) -> Тестостерон | AZ3: =IF(AY3="","",SUM(AO:AO)) -> 0 | BA3: 2000 | BB3: =IF(AY3="","",IFERROR(ROUNDUP(AZ3/BA3,0),0)) -> 0 | BC3: 15 | BD3: =IFERROR(BB3*BC3,"") -> 0 | BN3: =IF(BG1="","",BG1) -> Кломид | BO3: =IF(BN3="","",SUM(BG:BG)) -> 0 | BP3: 1000 | BQ3: =IF(BN3="","",IFERROR(ROUNDUP(BO3/BP3,0),0)) -> 0 | BR3: 100 | BS3: =IFERROR(BQ3*BR3,"") -> 0
B4: =B3+1 -> 2015-08-05 | N4: 0% | O4: 0% | P4: 0% | Q4: 0 | R4: 0 | S4: 0 | T4: 0 | U4: 0 | V4: 0 | AG4: =IF(Y1="","",Y1) -> Милдронат | AH4: =IF(AG4="","",SUM(Y:Y)) -> 0 | AJ4: 0 | AL4: 0 | AY4: =IF(AP1="","",AP1) ->  | AZ4: =IF(AY4="","",SUM(AP:AP)) ->  | BN4: =IF(BH1="","",BH1) -> Трибулус | BO4: =IF(BN4="","",SUM(BH:BH)) -> 0 | BP4: 1000 | BQ4: 0 | BR4: 100 | BS4: 0
B5: 2015-08-06 | N5: 0% | O5: 0% | P5: 0% | Q5: 0 | R5: 0 | S5: 0 | T5: 0 | U5: 0 | V5: 0 | AG5: =IF(Z1="","",Z1) -> Витамины | AH5: =IF(AG5="","",SUM(Z:Z)) -> 0 | AJ5: 0 | AL5: 0 | AY5: =IF(AQ1="","",AQ1) ->  | AZ5: =IF(AY5="","",SUM(AQ:AQ)) ->  | BN5: =IF(BI1="","",BI1) -> Цинк | BO5: =IF(BN5="","",SUM(BI:BI)) -> 0 | BP5: 1000 | BQ5: 0 | BR5: 100 | BS5: 0
B6: 2015-08-07 | N6: 0% | O6: 0% | P6: 0% | Q6: 0 | R6: 0 | S6: 0 | T6: 0 | U6: 0 | V6: 0 | AG6: =IF(AA1="","",AA1) -> Метилурацил | AH6: =IF(AG6="","",SUM(AA:AA)) -> 0 | AJ6: 0 | AL6: 0 | AY6: =IF(AR1="","",AR1) ->  | AZ6: =IF(AY6="","",SUM(AR:AR)) ->  | BN6: =IF(BJ1="","",BJ1) -> Витамин Е | BO6: =IF(BN6="","",SUM(BJ:BJ)) -> 0 | BP6: 1000 | BQ6: 0 | BR6: 100 | BS6: 0
B7: 2015-08-08 | N7: 0% | O7: 0% | P7: 0% | Q7: 0 | R7: 0 | S7: 0 | T7: 0 | U7: 0 | V7: =IFERROR(ROUND(I7/C7,0),0) -> 0 | AG7: =IF(AB1="","",AB1) -> Креатин | AH7: =IF(AG7="","",SUM(AB:AB)) -> 0 | AJ7: 0 | AL7: 0 | AY7: =IF(AS1="","",AS1) -> Анастрозол | AZ7: =IF(AY7="","",SUM(AS:AS)) -> 0 | BB7: 0 | BD7: 0 | BN7: =IF(BK1="","",BK1) ->  | BO7: =IF(BN7="","",SUM(BK:BK)) -> 
B8: 2015-08-09 | N8: 0% | O8: 0% | P8: 0% | Q8: 0 | R8: 0 | S8: 0 | T8: 0 | U8: 0 | V8: =IFERROR(ROUND(I8/C8,0),0) -> 0 | AG8: =IF(AC1="","",AC1) ->  | AH8: =IF(AG8="","",SUM(AC:AC)) ->  | AY8: =IF(AT1="","",AT1) -> Каберголин | AZ8: =IF(AY8="","",SUM(AT:AT)) -> 0 | BB8: 0 | BD8: 0 | BN8: =IF(BL1="","",BL1) ->  | BO8: =IF(BN8="","",SUM(BL:BL)) -> 
A9: =A2+1 -> 2 | B9: 2015-08-10 | E9: =E2+1 -> 2 | N9: 0% | O9: 0% | P9: 0% | Q9: 0 | R9: 0 | S9: 0 | T9: 0 | U9: 0 | V9: 0 | W9: =W2+1 -> 2 | AG9: =IF(AD1="","",AD1) ->  | AH9: =IF(AG9="","",SUM(AD:AD)) ->  | AN9: =AN2+1 -> 2 | AY9: =IF(AU1="","",AU1) -> ХГЧ | AZ9: =IF(AY9="","",SUM(AU:AU)) -> 0 | BB9: 0 | BD9: 0 | BF9: =BF2+1 -> 2
B10: 2015-08-11 | N10: 0% | O10: 0% | P10: 0% | Q10: 0 | R10: 0 | S10: 0 | T10: 0 | U10: 0 | V10: 0 | AG10: =IF(AE1="","",AE1) ->  | AH10: =IF(AG10="","",SUM(AE:AE)) ->  | AY10: =IF(AV1="","",AV1) ->  | AZ10: =IF(AY10="","",SUM(AV:AV)) ->  | BN10: Если все плохо - писать Сашану
B11: 2015-08-12 | N11: 0% | O11: 0% | P11: 0% | Q11: 0 | R11: 0 | S11: 0 | T11: 0 | U11: 0 | V11: 0 | AY11: =IF(AW1="","",AW1) ->  | AZ11: =IF(AY11="","",SUM(AW:AW)) ->  | BN11: http://vk.com/sashan_from_do4a_com
B12: 2015-08-13 | N12: 0% | O12: 0% | P12: 0% | Q12: 0 | R12: 0 | S12: 0 | T12: 0 | U12: 0 | V12: 0
B13: 2015-08-14 | N13: 0% | O13: 0% | P13: 0% | Q13: 0 | R13: 0 | S13: 0 | T13: 0 | U13: 0 | V13: 0 | AY13: Правильный магазин
B14: 2015-08-15 | N14: 0% | O14: 0% | P14: 0% | Q14: 0 | R14: 0 | S14: 0 | T14: 0 | U14: 0 | V14: 0 | AY14: http://yourstrongbody.net/
B15: 2015-08-16 | N15: 0% | O15: 0% | P15: 0% | Q15: 0 | R15: 0 | S15: 0 | T15: 0 | U15: 0 | V15: 0
A16: =A9+1 -> 3 | B16: 2015-08-17 | E16: =E9+1 -> 3 | N16: 0% | O16: 0% | P16: 0% | Q16: 0 | R16: 0 | S16: 0 | T16: 0 | U16: 0 | V16: 0 | W16: =W9+1 -> 3 | AN16: =AN9+1 -> 3 | BF16: =BF9+1 -> 3
B17: 2015-08-18 | N17: 0% | O17: 0% | P17: 0% | Q17: 0 | R17: 0 | S17: 0 | T17: 0 | U17: 0 | V17: 0
B18: 2015-08-19 | N18: 0% | O18: 0% | P18: 0% | Q18: 0 | R18: 0 | S18: 0 | T18: 0 | U18: 0 | V18: 0
B19: 2015-08-20 | N19: 0% | O19: 0% | P19: 0% | Q19: 0 | R19: 0 | S19: 0 | T19: 0 | U19: 0 | V19: 0
B20: 2015-08-21 | N20: 0% | O20: 0% | P20: 0% | Q20: 0 | R20: 0 | S20: 0 | T20: 0 | U20: 0 | V20: 0
B21: 2015-08-22 | N21: 0% | O21: 0% | P21: 0% | Q21: 0 | R21: 0 | S21: 0 | T21: 0 | U21: 0 | V21: 0
B22: 2015-08-23 | N22: 0% | O22: 0% | P22: 0% | Q22: 0 | R22: 0 | S22: 0 | T22: 0 | U22: 0 | V22: 0
A23: =A16+1 -> 4 | B23: 2015-08-24 | E23: =E16+1 -> 4 | N23: 0% | O23: 0% | P23: 0% | Q23: 0 | R23: 0 | S23: 0 | T23: 0 | U23: 0 | V23: 0 | W23: =W16+1 -> 4 | AN23: =AN16+1 -> 4 | BF23: =BF16+1 -> 4
B24: 2015-08-25 | N24: 0% | O24: 0% | P24: 0% | Q24: 0 | R24: 0 | S24: 0 | T24: 0 | U24: 0 | V24: 0
B25: 2015-08-26 | N25: 0% | O25: 0% | P25: 0% | Q25: 0 | R25: 0 | S25: 0 | T25: 0 | U25: 0 | V25: 0
B26: 2015-08-27 | N26: 0% | O26: 0% | P26: 0% | Q26: 0 | R26: 0 | S26: 0 | T26: 0 | U26: 0 | V26: 0
B27: 2015-08-28 | N27: 0% | O27: 0% | P27: 0% | Q27: 0 | R27: 0 | S27: 0 | T27: 0 | U27: 0 | V27: 0
B28: 2015-08-29 | N28: 0% | O28: 0% | P28: 0% | Q28: 0 | R28: 0 | S28: 0 | T28: 0 | U28: 0 | V28: 0
B29: 2015-08-30 | N29: 0% | O29: 0% | P29: 0% | Q29: 0 | R29: 0 | S29: 0 | T29: 0 | U29: 0 | V29: 0
A30: =A23+1 -> 5 | B30: 2015-08-31 | E30: =E23+1 -> 5 | N30: 0% | O30: 0% | P30: 0% | Q30: 0 | R30: 0 | S30: 0 | T30: 0 | U30: 0 | V30: 0 | W30: =W23+1 -> 5 | AN30: =AN23+1 -> 5 | BF30: =BF23+1 -> 5
B31: 2015-09-01 | N31: 0% | O31: 0% | P31: 0% | Q31: 0 | R31: 0 | S31: 0 | T31: 0 | U31: 0 | V31: 0
